Workbook

Sheet Guidelines
A1: 1. Purpose
A2: This cost/benefit analysis template provides the main support for the economic analysis of project alternatives. The template uses the Net Present Value (NPV) to perform economic or financial analyses as part of the justification of a project. The completed cost/benefit analysis spreadsheet should be stored electronically with other project documentation, and a summary of the results should be included as part of the project justification. This template is used for consistency across Nalcor Energy as part of the decision making process in evaluating project alternatives.
A4: Cost/benefit analysis shall be prepared for the following:
A5: • Capital projects that have investing or financing alternatives associated with them;
A6: • All projects considered financially justifiable where the capital spending is discretionary and/or based on achieving a future benefit that justifies the expenditure.
A8: Cost/benefit analysis is not relevant and the template does not require preparation if either of the conditions outlined below are met:
A9: • There are no investing or financing alternatives available to complete the project. Note, however, that financially justifiable projects require a cost/benefit analysis.
A10: • The capital is for purchase of tools and similar equipment and the value is less than $50,000.
A11: • The project involves the provision of town services for residents of the town of Churchill Falls, and there are no investing or financing alternatives available to complete the project.
A12: • The primary purpose of the project is to satisfy safety, or legal/compliance requirements and no alternative approach exists to satisfy such requirements.
A14: 2. Description of Input to the Template
A15: 2.1 Home Page
A16: Current Year - This is the year in which the evaluation is being done.
A17: Project Title - Choose an appropriate project title and enter it in this space. This should be consistent with the title used in the Proposal Summary Sheet.
A18: Project In-service Year - This is the year in which the project is completed and brought into service. This should be consistent with the year used in the Proposal Summary Sheet.
A19: Number of Years in Study Analysis - This is the length of time determined to evaluate the project and should reflect the period of time over which cash flows are expected to occur. The number of years should be between 1 and 50. A value chosen outside of this range will cause the cell to appear red in color highlighting an error.
A20: Discount Rate - The discount rate used in the NPV calculation is issued in the Nalcor Corporate Planning assumptions located here:
A21: X:\Investment Evaluation
A22: Present Worth Year - Often the present worth year is the same as the current year but can be a different year if desired. All costs are assumed to be discounted to January 1st of that year. (For all practical purposes January 1st of the year is the same as December 31st of the previous year).
A24: 2.2 The Alternatives
A25: Alternative # and Name - Place a suitable alternative name in cell AM4. This will display on the Summary Table and the Chart legend.
A26: Total In-service Year Project Cost - The total cost of the project the year it goes in-service.
A27: Other Project Cost After In-service - Often during the study period of the project other project costs may need to be evaluated.
A28: Other Project Year - This is the year in which the other project cost is realized (if applicable).
A29: Replacement Cost - During the study period of the project, replacement of whole or partial components may be required.
A30: Replacement Cost Year - This is the year the replacement is brought in-service (if applicable).
A31: Project Cost in Ending (E) or Beginning (B) Year $$ - Although most projects are deemed to come in service towards the end of the year, there are times when the in-service is early in the year and the project cost estimate may be stated in beginning year dollars rather than normally in end of year dollars. Enter E if the cost estimate is in ending year dollars or B if the cost estimate is in beginning year dollars.
A32: O&M Costs - The Investment Evaluation department provides a series of annual O&M escalation indices to accommodate the ratio of materials and labor in the expected costs:
A33: 1. If the proportion of materials is higher than labour select “More Material Less Labour” .
A34: 2. If the proportion of materials and labour is approximately equal choose “Same Material Same Labour”.
A35: 3. If the proportion of materials is lower than labour select “More Labour Less Material” .
A36: 4. If the O&M costs are related to Labour only, select “Labour Only”.
A37: 5. If the O&M costs are related to the Oil and Gas Operations Support Activities only, select “Oil and Gas Operations”.
A38: 6. The option is provided for the user to enter O&M rates that may be used in rare cases after consulting with Investment Evaluation. These rates would be entered in column 12 of the table in the ‘Scratch pad area for annual O&M costs’. If this option is chosen, the user chooses “User Defined”.
A40: 2.3 The Scratch Pad Areas
A41: Use the buttons located at the top of each Alternative worksheet to access each Scratch Pad area.
A43: O&M Costs: Total annual O&M costs should be entered in Column 9 in current year dollar amounts. Column 10 of the table automatically calculates the expected O&M costs for each year by multiplying the values from Column 9 by the appropriate escalation indices to reflect the value in the year in which the expenditure is to occur. The main template table copies the data from column 10 to its Annual O&M cost column.
A45: Fuel Costs: Various fuel prices for different delivery points are provided in the Nalcor Corporate Planning assumptions. The fuel prices are expressed as cents/litre or dollars/barrel depending on fuel type. The fuel price series for the analysis are to be input into column D in the main template table. This scratch pad annual fuel costs table accesses the fuel series in the main table and places them in column 3. The user may use the chosen fuel series to calculate the cost of fuel for each year in column 9 of the annual fuel cost table. The main template table copies the data from column 9 to its Annual Fuel cost column (column E).
A47: Other Costs: The costs entered are to be constant dollar values, that is, at today’s value. Seven columns are provided to enter the costs to be escalated and an eight column is provided for costs that need no escalation. Depending on which of the columns is chosen from the table, the costs will be escalated automatically using one of Nalcor Energy’s utility escalation indices. The tenth column is provided for costs that are not escalated (ex., rental costs that remain the same over a period of time). The main template table copies the data from column eleven to its Other cost column (column F) of the main table.
A49: Project Benefits: There are two areas that provide tables that may be utilized by the user to state any financial or economic benefits from the project. The benefits entered are to be constant dollar values, that is, at today’s value. Depending on the entry column chosen from the table by the user, the costs will be escalated automatically using one of Nalcor Energy’s utility escalation indices. The main template table copies the data from column eleven to its Benefit column (column H and/or I) of the main table.
A51: 3. Graph and Summary Table in the Template
A52: 3.1 The Graph
A53: The graph plots the cumulative present worth (CPW) for all alternatives where the CPW is non-zero. Below are a few points to remember in adjusting the graph:
A54: • The chart divides the CPW input data by 1000. Thus, the default units for the vertical axis is thousands (000s). The user may change the title of the axis to reflect units as required.
A55: • The chart dynamically removes alternatives where the cumulative present worth is zero. If all alternatives have a CPW of zero, the graph will not be visible.
A56: • The user has the option to alter the years of data which are graphed. User's may override the default values for the following parameters:
A57: - Start Year: The default start year is the current year. The user may define the start year as any year between the current year and the last year of the study analysis.
A58: - End Year: The default end year is the last year in the study analysis. The user may define the end year as any year between the start year and the last year of the study analyses.
A59: - Compress output years: By default the graph displays every year of the study analysis. The user may choose to show every year for the initial period and then only periodic years for the latter period.
A61: 3.2 The Summary Table
A62: The summary table is populated automatically by the alternative names and costs from their respective spreadsheets. Only the number of alternatives used in the analysis is listed in the table, i.e., if only three alternatives exist for the project, then these three will be automatically listed in the table. For the remainder of the six alternative spreadsheets that are not used, the cell for “Alternative # and Description” should be left blank.
A64: Contact the Investment Evaluation Department should you need assistance.

Sheet Home Page
A1: Project Cost/Benefit Analysis Template
AA2: NLH's Official O&M Indices | AL2: NLH's Official Utility Escalation Indices
G3: Home Page
AA4: Electric Utility Escalation Indices
G5: Current year | AB5: Operating & Maintenance | AJ5: =Escalation!R5 -> Oil and Gas Operations
G6: 2018
AB7: =Escalation!M6 -> More Material Less Labour | AD7: =Escalation!N6 -> Same Material Same Labour | AF7: =Escalation!O6 -> More Labor Less Material | AH7: =Escalation!P6 -> Labor Only | AJ7: =Escalation!R6 -> Support Activities | AM7: Electric Utility Escalation Indices
AM8: =Escalation!C6 -> GDP Implicit Price Deflator | AO8: =Escalation!F6 -> Combustion Turbine Plant Construction | AQ8: =Escalation!G6 -> CCCT Plant Construction | AS8: =Escalation!H6 -> Hydraulic Plant Construction | AU8: =Escalation!I6 -> Transmission Line Construction | AW8: =Escalation!J6 -> Transformer Station Construction | AY8: =Escalation!K6 -> Distribution Line Construction
AA9: Year | AB9: Annual | AC9: Cumulative | AD9: Annual | AE9: Cumulative | AF9: Annual | AG9: Cumulative | AH9: Annual | AI9: Cumulative | AJ9: Annual | AK9: Cumulative | AL9: Year
E10: Project Title | G10: Expansion Study - Lab East Interconnected System | AB10: Percentage | AC10: Change | AD10: Percentage | AE10: Change | AF10: Percentage | AG10: Change | AH10: Percentage | AI10: Change | AJ10: Percentage | AK10: Change | AM10: Annual | AN10: Cumulative | AO10: Annual | AP10: Cumulative | AQ10: Annual | AR10: Cumulative | AS10: Annual | AT10: Cumulative | AU10: Annual | AV10: Cumulative | AW10: Annual | AX10: Cumulative | AY10: Annual | AZ10: Cumulative
AB11: Change | AC11: Factor | AD11: Change | AE11: Factor | AF11: Change | AG11: Factor | AH11: Change | AI11: Factor | AJ11: Change | AK11: Factor | AM11: Change | AN11: Change | AO11: Change | AP11: Change | AQ11: Change | AR11: Change | AS11: Change | AT11: Change | AU11: Change | AV11: Change | AW11: Change | AX11: Change | AY11: Change | AZ11: Change
E12: Project In-Service Year | G12: 2020
AA13: =G6 -> 2018 | AC13: 1 | AE13: 1 | AG13: 1 | AI13: 1 | AK13: 1 | AL13: =AA13 -> 2018 | AN13: 1 | AP13: 1 | AR13: 1 | AT13: 1 | AV13: 1 | AX13: 1 | AZ13: 1
E14: Number of Years in Study Analysis | G14: 25 | AA14: =AA13+1 -> 2019 | AB14: =IF(ISNA(VLOOKUP($AA14,Escalation!$A$7:$R$54,MATCH(AB$7,Escalation!$6:$6,0),FALSE)*100),VLOOKUP(CONCATENATE("Post ",MAX(Escalation!$A:$A)),Escalation!$A$7:$R$54,MATCH(AB$7,Escalation!$6:$6,0),FALSE)*100,VLOOKUP($AA14,Escalation!$A$7:$R$54,MATCH(AB$7,Escalation!$6:$6,0),FALSE)*100) -> 2.218054074 | AC14: =(1+AB14/100)*AC13 -> 1.022180541 | AD14: =IF(ISNA(VLOOKUP($AA14,Escalation!$A$7:$R$54,MATCH(AD$7,Escalation!$6:$6,0),FALSE)*100),VLOOKUP(CONCATENATE("Post ",MAX(Escalation!$A:$A)),Escalation!$A$7:$R$54,MATCH(AD$7,Escalation!$6:$6,0),FALSE)*100,VLOOKUP($AA14,Escalation!$A$7:$R$54,MATCH(AD$7,Escalation!$6:$6,0),FALSE)*100) -> 2.478702716 | AE14: =(1+AD14/100)*AE13 -> 1.024787027 | AF14: =IF(ISNA(VLOOKUP($AA14,Escalation!$A$7:$R$54,MATCH(AF$7,Escalation!$6:$6,0),FALSE)*100),VLOOKUP(CONCATENATE("Post ",MAX(Escalation!$A:$A)),Escalation!$A$7:$R$54,MATCH(AF$7,Escalation!$6:$6,0),FALSE)*100,VLOOKUP($AA14,Escalation!$A$7:$R$54,MATCH(AF$7,Escalation!$6:$6,0),FALSE)*100) -> 2.739351358 | AG14: =(1+AF14/100)*AG13 -> 1.027393514 | AH14: =IF(ISNA(VLOOKUP($AA14,Escalation!$A$7:$R$54,MATCH(AH$7,Escalation!$6:$6,0),FALSE)*100),VLOOKUP(CONCATENATE("Post ",MAX(Escalation!$A:$A)),Escalation!$A$7:$R$54,MATCH(AH$7,Escalation!$6:$6,0),FALSE)*100,VLOOKUP($AA14,Escalation!$A$7:$R$54,MATCH(AH$7,Escalation!$6:$6,0),FALSE)*100) -> 3 | AI14: =(1+AH14/100)*AI13 -> 1.03 | AJ14: =IF(ISNA(VLOOKUP($AA14,Escalation!$A$7:$R$54,MATCH(AJ$7,Escalation!$6:$6,0),FALSE)*100),VLOOKUP(CONCATENATE("Post ",MAX(Escalation!$A:$A)),Escalation!$A$7:$R$54,MATCH(AJ$7,Escalation!$6:$6,0),FALSE)*100,VLOOKUP($AA14,Escalation!$A$7:$R$54,MATCH(AJ$7,Escalation!$6:$6,0),FALSE)*100) -> 1.957405431 | AK14: =(1+AJ14/100)*AK13 -> 1.019574054 | AL14: =AL13+1 -> 2019 | AM14: =IF(ISNA(VLOOKUP($AA14,Escalation!$A$7:$R$54,MATCH(AM$8,Escalation!$6:$6,0),FALSE)*100),VLOOKUP(CONCATENATE("Post ",MAX(Escalation!$A:$A)),Escalation!$A$7:$R$54,MATCH(AM$8,Escalation!$6:$6,0),FALSE)*100,VLOOKUP($AA14,Escalation!$A$7:$R$54,MATCH(AM$8,Escalation!$6:$6,0),FALSE)*100) -> 1.957405431 | AN14: =(1+AM14/100)*AN13 -> 1.019574054 | AO14: =IF(ISNA(VLOOKUP($AA14,Escalation!$A$7:$R$54,MATCH(AO$8,Escalation!$6:$6,0),FALSE)*100),VLOOKUP(CONCATENATE("Post ",MAX(Escalation!$A:$A)),Escalation!$A$7:$R$54,MATCH(AO$8,Escalation!$6:$6,0),FALSE)*100,VLOOKUP($AA14,Escalation!$A$7:$R$54,MATCH(AO$8,Escalation!$6:$6,0),FALSE)*100) -> 2.822540902 | AP14: =(1+AO14/100)*AP13 -> 1.028225409 | AQ14: =IF(ISNA(VLOOKUP($AA14,Escalation!$A$7:$R$54,MATCH(AQ$8,Escalation!$6:$6,0),FALSE)*100),VLOOKUP(CONCATENATE("Post ",MAX(Escalation!$A:$A)),Escalation!$A$7:$R$54,MATCH(AQ$8,Escalation!$6:$6,0),FALSE)*100,VLOOKUP($AA14,Escalation!$A$7:$R$54,MATCH(AQ$8,Escalation!$6:$6,0),FALSE)*100) -> 2.822540902 | AR14: =(1+AQ14/100)*AR13 -> 1.028225409 | AS14: =IF(ISNA(VLOOKUP($AA14,Escalation!$A$7:$R$54,MATCH(AS$8,Escalation!$6:$6,0),FALSE)*100),VLOOKUP(CONCATENATE("Post ",MAX(Escalation!$A:$A)),Escalation!$A$7:$R$54,MATCH(AS$8,Escalation!$6:$6,0),FALSE)*100,VLOOKUP($AA14,Escalation!$A$7:$R$54,MATCH(AS$8,Escalation!$6:$6,0),FALSE)*100) -> 2.665666731 | AT14: =(1+AS14/100)*AT13 -> 1.026656667 | AU14: =IF(ISNA(VLOOKUP($AA14,Escalation!$A$7:$R$54,MATCH(AU$8,Escalation!$6:$6,0),FALSE)*100),VLOOKUP(CONCATENATE("Post ",MAX(Escalation!$A:$A)),Escalation!$A$7:$R$54,MATCH(AU$8,Escalation!$6:$6,0),FALSE)*100,VLOOKUP($AA14,Escalation!$A$7:$R$54,MATCH(AU$8,Escalation!$6:$6,0),FALSE)*100) -> 2.544985799 | AV14: =(1+AU14/100)*AV13 -> 1.025449858 | AW14: =IF(ISNA(VLOOKUP($AA14,Escalation!$A$7:$R$54,MATCH(AW$8,Escalation!$6:$6,0),FALSE)*100),VLOOKUP(CONCATENATE("Post ",MAX(Escalation!$A:$A)),Escalation!$A$7:$R$54,MATCH(AW$8,Escalation!$6:$6,0),FALSE)*100,VLOOKUP($AA14,Escalation!$A$7:$R$54,MATCH(AW$8,Escalation!$6:$6,0),FALSE)*100) -> 2.093015895 | AX14: =(1+AW14/100)*AX13 -> 1.020930159 | AY14: =IF(ISNA(VLOOKUP($AA14,Escalation!$A$7:$R$54,MATCH(AY$8,Escalation!$6:$6,0),FALSE)*100),VLOOKUP(CONCATENATE("Post ",MAX(Escalation!$A:$A)),Escalation!$A$7:$R$54,MATCH(AY$8,Escalation!$6:$6,0),FALSE)*100,VLOOKUP($AA14,Escalation!$A$7:$R$54,MATCH(AY$8,Escalation!$6:$6,0),FALSE)*100) -> 2.093015895 | AZ14: =(1+AY14/100)*AZ13 -> 1.020930159
AA15: =AA14+1 -> 2020 | AB15: =IF(ISNA(VLOOKUP($AA15,Escalation!$A$7:$R$54,MATCH(AB$7,Escalation!$6:$6,0),FALSE)*100),VLOOKUP(CONCATENATE("Post ",MAX(Escalation!$A:$A)),Escalation!$A$7:$R$54,MATCH(AB$7,Escalation!$6:$6,0),FALSE)*100,VLOOKUP($AA15,Escalation!$A$7:$R$54,MATCH(AB$7,Escalation!$6:$6,0),FALSE)*100) -> 2.21669655 | AC15: =(1+AB15/100)*AC14 -> 1.044839182 | AD15: =IF(ISNA(VLOOKUP($AA15,Escalation!$A$7:$R$54,MATCH(AD$7,Escalation!$6:$6,0),FALSE)*100),VLOOKUP(CONCATENATE("Post ",MAX(Escalation!$A:$A)),Escalation!$A$7:$R$54,MATCH(AD$7,Escalation!$6:$6,0),FALSE)*100,VLOOKUP($AA15,Escalation!$A$7:$R$54,MATCH(AD$7,Escalation!$6:$6,0),FALSE)*100) -> 2.4777977 | AE15: 1.050179177 | AF15: =IF(ISNA(VLOOKUP($AA15,Escalation!$A$7:$R$54,MATCH(AF$7,Escalation!$6:$6,0),FALSE)*100),VLOOKUP(CONCATENATE("Post ",MAX(Escalation!$A:$A)),Escalation!$A$7:$R$54,MATCH(AF$7,Escalation!$6:$6,0),FALSE)*100,VLOOKUP($AA15,Escalation!$A$7:$R$54,MATCH(AF$7,Escalation!$6:$6,0),FALSE)*100) -> 2.73889885 | AG15: =(1+AF15/100)*AG14 -> 1.055532783 | AH15: =IF(ISNA(VLOOKUP($AA15,Escalation!$A$7:$R$54,MATCH(AH$7,Escalation!$6:$6,0),FALSE)*100),VLOOKUP(CONCATENATE("Post ",MAX(Escalation!$A:$A)),Escalation!$A$7:$R$54,MATCH(AH$7,Escalation!$6:$6,0),FALSE)*100,VLOOKUP($AA15,Escalation!$A$7:$R$54,MATCH(AH$7,Escalation!$6:$6,0),FALSE)*100) -> 3 | AI15: 1.0609 | AJ15: =IF(ISNA(VLOOKUP($AA15,Escalation!$A$7:$R$54,MATCH(AJ$7,Escalation!$6:$6,0),FALSE)*100),VLOOKUP(CONCATENATE("Post ",MAX(Escalation!$A:$A)),Escalation!$A$7:$R$54,MATCH(AJ$7,Escalation!$6:$6,0),FALSE)*100,VLOOKUP($AA15,Escalation!$A$7:$R$54,MATCH(AJ$7,Escalation!$6:$6,0),FALSE)*100) -> 1.955595401 | AK15: 1.039512798 | AL15: =AL14+1 -> 2020 | AM15: =IF(ISNA(VLOOKUP($AA15,Escalation!$A$7:$R$54,MATCH(AM$8,Escalation!$6:$6,0),FALSE)*100),VLOOKUP(CONCATENATE("Post ",MAX(Escalation!$A:$A)),Escalation!$A$7:$R$54,MATCH(AM$8,Escalation!$6:$6,0),FALSE)*100,VLOOKUP($AA15,Escalation!$A$7:$R$54,MATCH(AM$8,Escalation!$6:$6,0),FALSE)*100) -> 1.955595401 | AN15: 1.039512798 | AO15: =IF(ISNA(VLOOKUP($AA15,Escalation!$A$7:$R$54,MATCH(AO$8,Escalation!$6:$6,0),FALSE)*100),VLOOKUP(CONCATENATE("Post ",MAX(Escalation!$A:$A)),Escalation!$A$7:$R$54,MATCH(AO$8,Escalation!$6:$6,0),FALSE)*100,VLOOKUP($AA15,Escalation!$A$7:$R$54,MATCH(AO$8,Escalation!$6:$6,0),FALSE)*100) -> 2.820730871 | AP15: 1.057228881 | AQ15: =IF(ISNA(VLOOKUP($AA15,Escalation!$A$7:$R$54,MATCH(AQ$8,Escalation!$6:$6,0),FALSE)*100),VLOOKUP(CONCATENATE("Post ",MAX(Escalation!$A:$A)),Escalation!$A$7:$R$54,MATCH(AQ$8,Escalation!$6:$6,0),FALSE)*100,VLOOKUP($AA15,Escalation!$A$7:$R$54,MATCH(AQ$8,Escalation!$6:$6,0),FALSE)*100) -> 2.820730871 | AR15: 1.057228881 | AS15: =IF(ISNA(VLOOKUP($AA15,Escalation!$A$7:$R$54,MATCH(AS$8,Escalation!$6:$6,0),FALSE)*100),VLOOKUP(CONCATENATE("Post ",MAX(Escalation!$A:$A)),Escalation!$A$7:$R$54,MATCH(AS$8,Escalation!$6:$6,0),FALSE)*100,VLOOKUP($AA15,Escalation!$A$7:$R$54,MATCH(AS$8,Escalation!$6:$6,0),FALSE)*100) -> 2.6638567 | AT15: 1.05400533 | AU15: =IF(ISNA(VLOOKUP($AA15,Escalation!$A$7:$R$54,MATCH(AU$8,Escalation!$6:$6,0),FALSE)*100),VLOOKUP(CONCATENATE("Post ",MAX(Escalation!$A:$A)),Escalation!$A$7:$R$54,MATCH(AU$8,Escalation!$6:$6,0),FALSE)*100,VLOOKUP($AA15,Escalation!$A$7:$R$54,MATCH(AU$8,Escalation!$6:$6,0),FALSE)*100) -> 2.543175768 | AV15: 1.05152885 | AW15: =IF(ISNA(VLOOKUP($AA15,Escalation!$A$7:$R$54,MATCH(AW$8,Escalation!$6:$6,0),FALSE)*100),VLOOKUP(CONCATENATE("Post ",MAX(Escalation!$A:$A)),Escalation!$A$7:$R$54,MATCH(AW$8,Escalation!$6:$6,0),FALSE)*100,VLOOKUP($AA15,Escalation!$A$7:$R$54,MATCH(AW$8,Escalation!$6:$6,0),FALSE)*100) -> 2.050014561 | AX15: 1.041859376 | AY15: =IF(ISNA(VLOOKUP($AA15,Escalation!$A$7:$R$54,MATCH(AY$8,Escalation!$6:$6,0),FALSE)*100),VLOOKUP(CONCATENATE("Post ",MAX(Escalation!$A:$A)),Escalation!$A$7:$R$54,MATCH(AY$8,Escalation!$6:$6,0),FALSE)*100,VLOOKUP($AA15,Escalation!$A$7:$R$54,MATCH(AY$8,Escalation!$6:$6,0),FALSE)*100) -> 2.050014561 | AZ15: 1.041859376
E16: Discount Rate | G16: 0.059 | AA16: 2021 | AB16: =IF(ISNA(VLOOKUP($AA16,Escalation!$A$7:$R$54,MATCH(AB$7,Escalation!$6:$6,0),FALSE)*100),VLOOKUP(CONCATENATE("Post ",MAX(Escalation!$A:$A)),Escalation!$A$7:$R$54,MATCH(AB$7,Escalation!$6:$6,0),FALSE)*100,VLOOKUP($AA16,Escalation!$A$7:$R$54,MATCH(AB$7,Escalation!$6:$6,0),FALSE)*100) -> 2.21323349 | AC16: 1.067963912 | AD16: =IF(ISNA(VLOOKUP($AA16,Escalation!$A$7:$R$54,MATCH(AD$7,Escalation!$6:$6,0),FALSE)*100),VLOOKUP(CONCATENATE("Post ",MAX(Escalation!$A:$A)),Escalation!$A$7:$R$54,MATCH(AD$7,Escalation!$6:$6,0),FALSE)*100,VLOOKUP($AA16,Escalation!$A$7:$R$54,MATCH(AD$7,Escalation!$6:$6,0),FALSE)*100) -> 2.475488993 | AE16: 1.076176246 | AF16: =IF(ISNA(VLOOKUP($AA16,Escalation!$A$7:$R$54,MATCH(AF$7,Escalation!$6:$6,0),FALSE)*100),VLOOKUP(CONCATENATE("Post ",MAX(Escalation!$A:$A)),Escalation!$A$7:$R$54,MATCH(AF$7,Escalation!$6:$6,0),FALSE)*100,VLOOKUP($AA16,Escalation!$A$7:$R$54,MATCH(AF$7,Escalation!$6:$6,0),FALSE)*100) -> 2.737744497 | AG16: 1.084430573 | AH16: =IF(ISNA(VLOOKUP($AA16,Escalation!$A$7:$R$54,MATCH(AH$7,Escalation!$6:$6,0),FALSE)*100),VLOOKUP(CONCATENATE("Post ",MAX(Escalation!$A:$A)),Escalation!$A$7:$R$54,MATCH(AH$7,Escalation!$6:$6,0),FALSE)*100,VLOOKUP($AA16,Escalation!$A$7:$R$54,MATCH(AH$7,Escalation!$6:$6,0),FALSE)*100) -> 3 | AI16: 1.092727 | AJ16: =IF(ISNA(VLOOKUP($AA16,Escalation!$A$7:$R$54,MATCH(AJ$7,Escalation!$6:$6,0),FALSE)*100),VLOOKUP(CONCATENATE("Post ",MAX(Escalation!$A:$A)),Escalation!$A$7:$R$54,MATCH(AJ$7,Escalation!$6:$6,0),FALSE)*100,VLOOKUP($AA16,Escalation!$A$7:$R$54,MATCH(AJ$7,Escalation!$6:$6,0),FALSE)*100) -> 1.950977986 | AK16: 1.059793463 | AL16: 2021 | AM16: =IF(ISNA(VLOOKUP($AA16,Escalation!$A$7:$R$54,MATCH(AM$8,Escalation!$6:$6,0),FALSE)*100),VLOOKUP(CONCATENATE("Post ",MAX(Escalation!$A:$A)),Escalation!$A$7:$R$54,MATCH(AM$8,Escalation!$6:$6,0),FALSE)*100,VLOOKUP($AA16,Escalation!$A$7:$R$54,MATCH(AM$8,Escalation!$6:$6,0),FALSE)*100) -> 1.950977986 | AN16: 1.059793463 | AO16: =IF(ISNA(VLOOKUP($AA16,Escalation!$A$7:$R$54,MATCH(AO$8,Escalation!$6:$6,0),FALSE)*100),VLOOKUP(CONCATENATE("Post ",MAX(Escalation!$A:$A)),Escalation!$A$7:$R$54,MATCH(AO$8,Escalation!$6:$6,0),FALSE)*100,VLOOKUP($AA16,Escalation!$A$7:$R$54,MATCH(AO$8,Escalation!$6:$6,0),FALSE)*100) -> 2.816113457 | AP16: 1.087001645 | AQ16: =IF(ISNA(VLOOKUP($AA16,Escalation!$A$7:$R$54,MATCH(AQ$8,Escalation!$6:$6,0),FALSE)*100),VLOOKUP(CONCATENATE("Post ",MAX(Escalation!$A:$A)),Escalation!$A$7:$R$54,MATCH(AQ$8,Escalation!$6:$6,0),FALSE)*100,VLOOKUP($AA16,Escalation!$A$7:$R$54,MATCH(AQ$8,Escalation!$6:$6,0),FALSE)*100) -> 2.816113457 | AR16: 1.087001645 | AS16: =IF(ISNA(VLOOKUP($AA16,Escalation!$A$7:$R$54,MATCH(AS$8,Escalation!$6:$6,0),FALSE)*100),VLOOKUP(CONCATENATE("Post ",MAX(Escalation!$A:$A)),Escalation!$A$7:$R$54,MATCH(AS$8,Escalation!$6:$6,0),FALSE)*100,VLOOKUP($AA16,Escalation!$A$7:$R$54,MATCH(AS$8,Escalation!$6:$6,0),FALSE)*100) -> 2.659239285 | AT16: 1.082033854 | AU16: =IF(ISNA(VLOOKUP($AA16,Escalation!$A$7:$R$54,MATCH(AU$8,Escalation!$6:$6,0),FALSE)*100),VLOOKUP(CONCATENATE("Post ",MAX(Escalation!$A:$A)),Escalation!$A$7:$R$54,MATCH(AU$8,Escalation!$6:$6,0),FALSE)*100,VLOOKUP($AA16,Escalation!$A$7:$R$54,MATCH(AU$8,Escalation!$6:$6,0),FALSE)*100) -> 2.538558353 | AV16: 1.078222524 | AW16: =IF(ISNA(VLOOKUP($AA16,Escalation!$A$7:$R$54,MATCH(AW$8,Escalation!$6:$6,0),FALSE)*100),VLOOKUP(CONCATENATE("Post ",MAX(Escalation!$A:$A)),Escalation!$A$7:$R$54,MATCH(AW$8,Escalation!$6:$6,0),FALSE)*100,VLOOKUP($AA16,Escalation!$A$7:$R$54,MATCH(AW$8,Escalation!$6:$6,0),FALSE)*100) -> 2.049973715 | AX16: 1.063217219 | AY16: =IF(ISNA(VLOOKUP($AA16,Escalation!$A$7:$R$54,MATCH(AY$8,Escalation!$6:$6,0),FALSE)*100),VLOOKUP(CONCATENATE("Post ",MAX(Escalation!$A:$A)),Escalation!$A$7:$R$54,MATCH(AY$8,Escalation!$6:$6,0),FALSE)*100,VLOOKUP($AA16,Escalation!$A$7:$R$54,MATCH(AY$8,Escalation!$6:$6,0),FALSE)*100) -> 2.049973715 | AZ16: 1.063217219
AA17: 2022 | AB17: =IF(ISNA(VLOOKUP($AA17,Escalation!$A$7:$R$54,MATCH(AB$7,Escalation!$6:$6,0),FALSE)*100),VLOOKUP(CONCATENATE("Post ",MAX(Escalation!$A:$A)),Escalation!$A$7:$R$54,MATCH(AB$7,Escalation!$6:$6,0),FALSE)*100,VLOOKUP($AA17,Escalation!$A$7:$R$54,MATCH(AB$7,Escalation!$6:$6,0),FALSE)*100) -> 2.210875284 | AC17: 1.091575262 | AD17: =IF(ISNA(VLOOKUP($AA17,Escalation!$A$7:$R$54,MATCH(AD$7,Escalation!$6:$6,0),FALSE)*100),VLOOKUP(CONCATENATE("Post ",MAX(Escalation!$A:$A)),Escalation!$A$7:$R$54,MATCH(AD$7,Escalation!$6:$6,0),FALSE)*100,VLOOKUP($AA17,Escalation!$A$7:$R$54,MATCH(AD$7,Escalation!$6:$6,0),FALSE)*100) -> 2.473916856 | AE17: 1.102799952 | AF17: =IF(ISNA(VLOOKUP($AA17,Escalation!$A$7:$R$54,MATCH(AF$7,Escalation!$6:$6,0),FALSE)*100),VLOOKUP(CONCATENATE("Post ",MAX(Escalation!$A:$A)),Escalation!$A$7:$R$54,MATCH(AF$7,Escalation!$6:$6,0),FALSE)*100,VLOOKUP($AA17,Escalation!$A$7:$R$54,MATCH(AF$7,Escalation!$6:$6,0),FALSE)*100) -> 2.736958428 | AG17: 1.114110987 | AH17: =IF(ISNA(VLOOKUP($AA17,Escalation!$A$7:$R$54,MATCH(AH$7,Escalation!$6:$6,0),FALSE)*100),VLOOKUP(CONCATENATE("Post ",MAX(Escalation!$A:$A)),Escalation!$A$7:$R$54,MATCH(AH$7,Escalation!$6:$6,0),FALSE)*100,VLOOKUP($AA17,Escalation!$A$7:$R$54,MATCH(AH$7,Escalation!$6:$6,0),FALSE)*100) -> 3 | AI17: 1.12550881 | AJ17: =IF(ISNA(VLOOKUP($AA17,Escalation!$A$7:$R$54,MATCH(AJ$7,Escalation!$6:$6,0),FALSE)*100),VLOOKUP(CONCATENATE("Post ",MAX(Escalation!$A:$A)),Escalation!$A$7:$R$54,MATCH(AJ$7,Escalation!$6:$6,0),FALSE)*100,VLOOKUP($AA17,Escalation!$A$7:$R$54,MATCH(AJ$7,Escalation!$6:$6,0),FALSE)*100) -> 1.947833713 | AK17: 1.080436478 | AL17: 2022 | AM17: =IF(ISNA(VLOOKUP($AA17,Escalation!$A$7:$R$54,MATCH(AM$8,Escalation!$6:$6,0),FALSE)*100),VLOOKUP(CONCATENATE("Post ",MAX(Escalation!$A:$A)),Escalation!$A$7:$R$54,MATCH(AM$8,Escalation!$6:$6,0),FALSE)*100,VLOOKUP($AA17,Escalation!$A$7:$R$54,MATCH(AM$8,Escalation!$6:$6,0),FALSE)*100) -> 1.947833713 | AN17: 1.080436478 | AO17: =IF(ISNA(VLOOKUP($AA17,Escalation!$A$7:$R$54,MATCH(AO$8,Escalation!$6:$6,0),FALSE)*100),VLOOKUP(CONCATENATE("Post ",MAX(Escalation!$A:$A)),Escalation!$A$7:$R$54,MATCH(AO$8,Escalation!$6:$6,0),FALSE)*100,VLOOKUP($AA17,Escalation!$A$7:$R$54,MATCH(AO$8,Escalation!$6:$6,0),FALSE)*100) -> 2.812969183 | AP17: 1.117578667 | AQ17: =IF(ISNA(VLOOKUP($AA17,Escalation!$A$7:$R$54,MATCH(AQ$8,Escalation!$6:$6,0),FALSE)*100),VLOOKUP(CONCATENATE("Post ",MAX(Escalation!$A:$A)),Escalation!$A$7:$R$54,MATCH(AQ$8,Escalation!$6:$6,0),FALSE)*100,VLOOKUP($AA17,Escalation!$A$7:$R$54,MATCH(AQ$8,Escalation!$6:$6,0),FALSE)*100) -> 2.812969183 | AR17: 1.117578667 | AS17: =IF(ISNA(VLOOKUP($AA17,Escalation!$A$7:$R$54,MATCH(AS$8,Escalation!$6:$6,0),FALSE)*100),VLOOKUP(CONCATENATE("Post ",MAX(Escalation!$A:$A)),Escalation!$A$7:$R$54,MATCH(AS$8,Escalation!$6:$6,0),FALSE)*100,VLOOKUP($AA17,Escalation!$A$7:$R$54,MATCH(AS$8,Escalation!$6:$6,0),FALSE)*100) -> 2.656095012 | AT17: 1.110773701 | AU17: =IF(ISNA(VLOOKUP($AA17,Escalation!$A$7:$R$54,MATCH(AU$8,Escalation!$6:$6,0),FALSE)*100),VLOOKUP(CONCATENATE("Post ",MAX(Escalation!$A:$A)),Escalation!$A$7:$R$54,MATCH(AU$8,Escalation!$6:$6,0),FALSE)*100,VLOOKUP($AA17,Escalation!$A$7:$R$54,MATCH(AU$8,Escalation!$6:$6,0),FALSE)*100) -> 2.53541408 | AV17: 1.105559929 | AW17: =IF(ISNA(VLOOKUP($AA17,Escalation!$A$7:$R$54,MATCH(AW$8,Escalation!$6:$6,0),FALSE)*100),VLOOKUP(CONCATENATE("Post ",MAX(Escalation!$A:$A)),Escalation!$A$7:$R$54,MATCH(AW$8,Escalation!$6:$6,0),FALSE)*100,VLOOKUP($AA17,Escalation!$A$7:$R$54,MATCH(AW$8,Escalation!$6:$6,0),FALSE)*100) -> 2.050029531 | AX17: 1.085013486 | AY17: =IF(ISNA(VLOOKUP($AA17,Escalation!$A$7:$R$54,MATCH(AY$8,Escalation!$6:$6,0),FALSE)*100),VLOOKUP(CONCATENATE("Post ",MAX(Escalation!$A:$A)),Escalation!$A$7:$R$54,MATCH(AY$8,Escalation!$6:$6,0),FALSE)*100,VLOOKUP($AA17,Escalation!$A$7:$R$54,MATCH(AY$8,Escalation!$6:$6,0),FALSE)*100) -> 2.050029531 | AZ17: 1.085013486
E18: Present Worth Year | G18: 2018 | AA18: 2023 | AB18: =IF(ISNA(VLOOKUP($AA18,Escalation!$A$7:$R$54,MATCH(AB$7,Escalation!$6:$6,0),FALSE)*100),VLOOKUP(CONCATENATE("Post ",MAX(Escalation!$A:$A)),Escalation!$A$7:$R$54,MATCH(AB$7,Escalation!$6:$6,0),FALSE)*100,VLOOKUP($AA18,Escalation!$A$7:$R$54,MATCH(AB$7,Escalation!$6:$6,0),FALSE)*100) -> 2.210875284 | AC18: 1.11570863 | AD18: =IF(ISNA(VLOOKUP($AA18,Escalation!$A$7:$R$54,MATCH(AD$7,Escalation!$6:$6,0),FALSE)*100),VLOOKUP(CONCATENATE("Post ",MAX(Escalation!$A:$A)),Escalation!$A$7:$R$54,MATCH(AD$7,Escalation!$6:$6,0),FALSE)*100,VLOOKUP($AA18,Escalation!$A$7:$R$54,MATCH(AD$7,Escalation!$6:$6,0),FALSE)*100) -> 2.473916856 | AE18: 1.130082306 | AF18: =IF(ISNA(VLOOKUP($AA18,Escalation!$A$7:$R$54,MATCH(AF$7,Escalation!$6:$6,0),FALSE)*100),VLOOKUP(CONCATENATE("Post ",MAX(Escalation!$A:$A)),Escalation!$A$7:$R$54,MATCH(AF$7,Escalation!$6:$6,0),FALSE)*100,VLOOKUP($AA18,Escalation!$A$7:$R$54,MATCH(AF$7,Escalation!$6:$6,0),FALSE)*100) -> 2.736958428 | AG18: 1.144603742 | AH18: =IF(ISNA(VLOOKUP($AA18,Escalation!$A$7:$R$54,MATCH(AH$7,Escalation!$6:$6,0),FALSE)*100),VLOOKUP(CONCATENATE("Post ",MAX(Escalation!$A:$A)),Escalation!$A$7:$R$54,MATCH(AH$7,Escalation!$6:$6,0),FALSE)*100,VLOOKUP($AA18,Escalation!$A$7:$R$54,MATCH(AH$7,Escalation!$6:$6,0),FALSE)*100) -> 3 | AI18: 1.159274074 | AJ18: =IF(ISNA(VLOOKUP($AA18,Escalation!$A$7:$R$54,MATCH(AJ$7,Escalation!$6:$6,0),FALSE)*100),VLOOKUP(CONCATENATE("Post ",MAX(Escalation!$A:$A)),Escalation!$A$7:$R$54,MATCH(AJ$7,Escalation!$6:$6,0),FALSE)*100,VLOOKUP($AA18,Escalation!$A$7:$R$54,MATCH(AJ$7,Escalation!$6:$6,0),FALSE)*100) -> 1.947833713 | AK18: 1.101481584 | AL18: 2023 | AM18: =IF(ISNA(VLOOKUP($AA18,Escalation!$A$7:$R$54,MATCH(AM$8,Escalation!$6:$6,0),FALSE)*100),VLOOKUP(CONCATENATE("Post ",MAX(Escalation!$A:$A)),Escalation!$A$7:$R$54,MATCH(AM$8,Escalation!$6:$6,0),FALSE)*100,VLOOKUP($AA18,Escalation!$A$7:$R$54,MATCH(AM$8,Escalation!$6:$6,0),FALSE)*100) -> 1.947833713 | AN18: 1.101481584 | AO18: =IF(ISNA(VLOOKUP($AA18,Escalation!$A$7:$R$54,MATCH(AO$8,Escalation!$6:$6,0),FALSE)*100),VLOOKUP(CONCATENATE("Post ",MAX(Escalation!$A:$A)),Escalation!$A$7:$R$54,MATCH(AO$8,Escalation!$6:$6,0),FALSE)*100,VLOOKUP($AA18,Escalation!$A$7:$R$54,MATCH(AO$8,Escalation!$6:$6,0),FALSE)*100) -> 2.812969183 | AP18: 1.14901581 | AQ18: =IF(ISNA(VLOOKUP($AA18,Escalation!$A$7:$R$54,MATCH(AQ$8,Escalation!$6:$6,0),FALSE)*100),VLOOKUP(CONCATENATE("Post ",MAX(Escalation!$A:$A)),Escalation!$A$7:$R$54,MATCH(AQ$8,Escalation!$6:$6,0),FALSE)*100,VLOOKUP($AA18,Escalation!$A$7:$R$54,MATCH(AQ$8,Escalation!$6:$6,0),FALSE)*100) -> 2.812969183 | AR18: 1.14901581 | AS18: =IF(ISNA(VLOOKUP($AA18,Escalation!$A$7:$R$54,MATCH(AS$8,Escalation!$6:$6,0),FALSE)*100),VLOOKUP(CONCATENATE("Post ",MAX(Escalation!$A:$A)),Escalation!$A$7:$R$54,MATCH(AS$8,Escalation!$6:$6,0),FALSE)*100,VLOOKUP($AA18,Escalation!$A$7:$R$54,MATCH(AS$8,Escalation!$6:$6,0),FALSE)*100) -> 2.656095012 | AT18: 1.140276906 | AU18: =IF(ISNA(VLOOKUP($AA18,Escalation!$A$7:$R$54,MATCH(AU$8,Escalation!$6:$6,0),FALSE)*100),VLOOKUP(CONCATENATE("Post ",MAX(Escalation!$A:$A)),Escalation!$A$7:$R$54,MATCH(AU$8,Escalation!$6:$6,0),FALSE)*100,VLOOKUP($AA18,Escalation!$A$7:$R$54,MATCH(AU$8,Escalation!$6:$6,0),FALSE)*100) -> 2.53541408 | AV18: 1.133590452 | AW18: =IF(ISNA(VLOOKUP($AA18,Escalation!$A$7:$R$54,MATCH(AW$8,Escalation!$6:$6,0),FALSE)*100),VLOOKUP(CONCATENATE("Post ",MAX(Escalation!$A:$A)),Escalation!$A$7:$R$54,MATCH(AW$8,Escalation!$6:$6,0),FALSE)*100,VLOOKUP($AA18,Escalation!$A$7:$R$54,MATCH(AW$8,Escalation!$6:$6,0),FALSE)*100) -> 2.050029531 | AX18: 1.107256583 | AY18: =IF(ISNA(VLOOKUP($AA18,Escalation!$A$7:$R$54,MATCH(AY$8,Escalation!$6:$6,0),FALSE)*100),VLOOKUP(CONCATENATE("Post ",MAX(Escalation!$A:$A)),Escalation!$A$7:$R$54,MATCH(AY$8,Escalation!$6:$6,0),FALSE)*100,VLOOKUP($AA18,Escalation!$A$7:$R$54,MATCH(AY$8,Escalation!$6:$6,0),FALSE)*100) -> 2.050029531 | AZ18: 1.107256583
D19: (costs are present worthed to January of that year) | AA19: 2024 | AB19: =IF(ISNA(VLOOKUP($AA19,Escalation!$A$7:$R$54,MATCH(AB$7,Escalation!$6:$6,0),FALSE)*100),VLOOKUP(CONCATENATE("Post ",MAX(Escalation!$A:$A)),Escalation!$A$7:$R$54,MATCH(AB$7,Escalation!$6:$6,0),FALSE)*100,VLOOKUP($AA19,Escalation!$A$7:$R$54,MATCH(AB$7,Escalation!$6:$6,0),FALSE)*100) -> 2.210875284 | AC19: 1.140375556 | AD19: =IF(ISNA(VLOOKUP($AA19,Escalation!$A$7:$R$54,MATCH(AD$7,Escalation!$6:$6,0),FALSE)*100),VLOOKUP(CONCATENATE("Post ",MAX(Escalation!$A:$A)),Escalation!$A$7:$R$54,MATCH(AD$7,Escalation!$6:$6,0),FALSE)*100,VLOOKUP($AA19,Escalation!$A$7:$R$54,MATCH(AD$7,Escalation!$6:$6,0),FALSE)*100) -> 2.473916856 | AE19: 1.158039603 | AF19: =IF(ISNA(VLOOKUP($AA19,Escalation!$A$7:$R$54,MATCH(AF$7,Escalation!$6:$6,0),FALSE)*100),VLOOKUP(CONCATENATE("Post ",MAX(Escalation!$A:$A)),Escalation!$A$7:$R$54,MATCH(AF$7,Escalation!$6:$6,0),FALSE)*100,VLOOKUP($AA19,Escalation!$A$7:$R$54,MATCH(AF$7,Escalation!$6:$6,0),FALSE)*100) -> 2.736958428 | AG19: 1.175931071 | AH19: =IF(ISNA(VLOOKUP($AA19,Escalation!$A$7:$R$54,MATCH(AH$7,Escalation!$6:$6,0),FALSE)*100),VLOOKUP(CONCATENATE("Post ",MAX(Escalation!$A:$A)),Escalation!$A$7:$R$54,MATCH(AH$7,Escalation!$6:$6,0),FALSE)*100,VLOOKUP($AA19,Escalation!$A$7:$R$54,MATCH(AH$7,Escalation!$6:$6,0),FALSE)*100) -> 3 | AI19: 1.194052297 | AJ19: =IF(ISNA(VLOOKUP($AA19,Escalation!$A$7:$R$54,MATCH(AJ$7,Escalation!$6:$6,0),FALSE)*100),VLOOKUP(CONCATENATE("Post ",MAX(Escalation!$A:$A)),Escalation!$A$7:$R$54,MATCH(AJ$7,Escalation!$6:$6,0),FALSE)*100,VLOOKUP($AA19,Escalation!$A$7:$R$54,MATCH(AJ$7,Escalation!$6:$6,0),FALSE)*100) -> 1.947833713 | AK19: 1.122936613 | AL19: 2024 | AM19: =IF(ISNA(VLOOKUP($AA19,Escalation!$A$7:$R$54,MATCH(AM$8,Escalation!$6:$6,0),FALSE)*100),VLOOKUP(CONCATENATE("Post ",MAX(Escalation!$A:$A)),Escalation!$A$7:$R$54,MATCH(AM$8,Escalation!$6:$6,0),FALSE)*100,VLOOKUP($AA19,Escalation!$A$7:$R$54,MATCH(AM$8,Escalation!$6:$6,0),FALSE)*100) -> 1.947833713 | AN19: 1.122936613 | AO19: =IF(ISNA(VLOOKUP($AA19,Escalation!$A$7:$R$54,MATCH(AO$8,Escalation!$6:$6,0),FALSE)*100),VLOOKUP(CONCATENATE("Post ",MAX(Escalation!$A:$A)),Escalation!$A$7:$R$54,MATCH(AO$8,Escalation!$6:$6,0),FALSE)*100,VLOOKUP($AA19,Escalation!$A$7:$R$54,MATCH(AO$8,Escalation!$6:$6,0),FALSE)*100) -> 2.812969183 | AP19: 1.181337271 | AQ19: =IF(ISNA(VLOOKUP($AA19,Escalation!$A$7:$R$54,MATCH(AQ$8,Escalation!$6:$6,0),FALSE)*100),VLOOKUP(CONCATENATE("Post ",MAX(Escalation!$A:$A)),Escalation!$A$7:$R$54,MATCH(AQ$8,Escalation!$6:$6,0),FALSE)*100,VLOOKUP($AA19,Escalation!$A$7:$R$54,MATCH(AQ$8,Escalation!$6:$6,0),FALSE)*100) -> 2.812969183 | AR19: 1.181337271 | AS19: =IF(ISNA(VLOOKUP($AA19,Escalation!$A$7:$R$54,MATCH(AS$8,Escalation!$6:$6,0),FALSE)*100),VLOOKUP(CONCATENATE("Post ",MAX(Escalation!$A:$A)),Escalation!$A$7:$R$54,MATCH(AS$8,Escalation!$6:$6,0),FALSE)*100,VLOOKUP($AA19,Escalation!$A$7:$R$54,MATCH(AS$8,Escalation!$6:$6,0),FALSE)*100) -> 2.656095012 | AT19: 1.170563744 | AU19: =IF(ISNA(VLOOKUP($AA19,Escalation!$A$7:$R$54,MATCH(AU$8,Escalation!$6:$6,0),FALSE)*100),VLOOKUP(CONCATENATE("Post ",MAX(Escalation!$A:$A)),Escalation!$A$7:$R$54,MATCH(AU$8,Escalation!$6:$6,0),FALSE)*100,VLOOKUP($AA19,Escalation!$A$7:$R$54,MATCH(AU$8,Escalation!$6:$6,0),FALSE)*100) -> 2.53541408 | AV19: 1.162331663 | AW19: =IF(ISNA(VLOOKUP($AA19,Escalation!$A$7:$R$54,MATCH(AW$8,Escalation!$6:$6,0),FALSE)*100),VLOOKUP(CONCATENATE("Post ",MAX(Escalation!$A:$A)),Escalation!$A$7:$R$54,MATCH(AW$8,Escalation!$6:$6,0),FALSE)*100,VLOOKUP($AA19,Escalation!$A$7:$R$54,MATCH(AW$8,Escalation!$6:$6,0),FALSE)*100) -> 2.050029531 | AX19: 1.12995567 | AY19: =IF(ISNA(VLOOKUP($AA19,Escalation!$A$7:$R$54,MATCH(AY$8,Escalation!$6:$6,0),FALSE)*100),VLOOKUP(CONCATENATE("Post ",MAX(Escalation!$A:$A)),Escalation!$A$7:$R$54,MATCH(AY$8,Escalation!$6:$6,0),FALSE)*100,VLOOKUP($AA19,Escalation!$A$7:$R$54,MATCH(AY$8,Escalation!$6:$6,0),FALSE)*100) -> 2.050029531 | AZ19: 1.12995567
AA20: 2025 | AB20: =IF(ISNA(VLOOKUP($AA20,Escalation!$A$7:$R$54,MATCH(AB$7,Escalation!$6:$6,0),FALSE)*100),VLOOKUP(CONCATENATE("Post ",MAX(Escalation!$A:$A)),Escalation!$A$7:$R$54,MATCH(AB$7,Escalation!$6:$6,0),FALSE)*100,VLOOKUP($AA20,Escalation!$A$7:$R$54,MATCH(AB$7,Escalation!$6:$6,0),FALSE)*100) -> 2.210875284 | AC20: 1.165587838 | AD20: =IF(ISNA(VLOOKUP($AA20,Escalation!$A$7:$R$54,MATCH(AD$7,Escalation!$6:$6,0),FALSE)*100),VLOOKUP(CONCATENATE("Post ",MAX(Escalation!$A:$A)),Escalation!$A$7:$R$54,MATCH(AD$7,Escalation!$6:$6,0),FALSE)*100,VLOOKUP($AA20,Escalation!$A$7:$R$54,MATCH(AD$7,Escalation!$6:$6,0),FALSE)*100) -> 2.473916856 | AE20: 1.18668854 | AF20: =IF(ISNA(VLOOKUP($AA20,Escalation!$A$7:$R$54,MATCH(AF$7,Escalation!$6:$6,0),FALSE)*100),VLOOKUP(CONCATENATE("Post ",MAX(Escalation!$A:$A)),Escalation!$A$7:$R$54,MATCH(AF$7,Escalation!$6:$6,0),FALSE)*100,VLOOKUP($AA20,Escalation!$A$7:$R$54,MATCH(AF$7,Escalation!$6:$6,0),FALSE)*100) -> 2.736958428 | AG20: 1.208115815 | AH20: =IF(ISNA(VLOOKUP($AA20,Escalation!$A$7:$R$54,MATCH(AH$7,Escalation!$6:$6,0),FALSE)*100),VLOOKUP(CONCATENATE("Post ",MAX(Escalation!$A:$A)),Escalation!$A$7:$R$54,MATCH(AH$7,Escalation!$6:$6,0),FALSE)*100,VLOOKUP($AA20,Escalation!$A$7:$R$54,MATCH(AH$7,Escalation!$6:$6,0),FALSE)*100) -> 3 | AI20: 1.229873865 | AJ20: =IF(ISNA(VLOOKUP($AA20,Escalation!$A$7:$R$54,MATCH(AJ$7,Escalation!$6:$6,0),FALSE)*100),VLOOKUP(CONCATENATE("Post ",MAX(Escalation!$A:$A)),Escalation!$A$7:$R$54,MATCH(AJ$7,Escalation!$6:$6,0),FALSE)*100,VLOOKUP($AA20,Escalation!$A$7:$R$54,MATCH(AJ$7,Escalation!$6:$6,0),FALSE)*100) -> 1.947833713 | AK20: 1.144809551 | AL20: 2025 | AM20: =IF(ISNA(VLOOKUP($AA20,Escalation!$A$7:$R$54,MATCH(AM$8,Escalation!$6:$6,0),FALSE)*100),VLOOKUP(CONCATENATE("Post ",MAX(Escalation!$A:$A)),Escalation!$A$7:$R$54,MATCH(AM$8,Escalation!$6:$6,0),FALSE)*100,VLOOKUP($AA20,Escalation!$A$7:$R$54,MATCH(AM$8,Escalation!$6:$6,0),FALSE)*100) -> 1.947833713 | AN20: 1.144809551 | AO20: =IF(ISNA(VLOOKUP($AA20,Escalation!$A$7:$R$54,MATCH(AO$8,Escalation!$6:$6,0),FALSE)*100),VLOOKUP(CONCATENATE("Post ",MAX(Escalation!$A:$A)),Escalation!$A$7:$R$54,MATCH(AO$8,Escalation!$6:$6,0),FALSE)*100,VLOOKUP($AA20,Escalation!$A$7:$R$54,MATCH(AO$8,Escalation!$6:$6,0),FALSE)*100) -> 2.812969183 | AP20: 1.214567924 | AQ20: =IF(ISNA(VLOOKUP($AA20,Escalation!$A$7:$R$54,MATCH(AQ$8,Escalation!$6:$6,0),FALSE)*100),VLOOKUP(CONCATENATE("Post ",MAX(Escalation!$A:$A)),Escalation!$A$7:$R$54,MATCH(AQ$8,Escalation!$6:$6,0),FALSE)*100,VLOOKUP($AA20,Escalation!$A$7:$R$54,MATCH(AQ$8,Escalation!$6:$6,0),FALSE)*100) -> 2.812969183 | AR20: 1.214567924 | AS20: =IF(ISNA(VLOOKUP($AA20,Escalation!$A$7:$R$54,MATCH(AS$8,Escalation!$6:$6,0),FALSE)*100),VLOOKUP(CONCATENATE("Post ",MAX(Escalation!$A:$A)),Escalation!$A$7:$R$54,MATCH(AS$8,Escalation!$6:$6,0),FALSE)*100,VLOOKUP($AA20,Escalation!$A$7:$R$54,MATCH(AS$8,Escalation!$6:$6,0),FALSE)*100) -> 2.656095012 | AT20: 1.201655029 | AU20: =IF(ISNA(VLOOKUP($AA20,Escalation!$A$7:$R$54,MATCH(AU$8,Escalation!$6:$6,0),FALSE)*100),VLOOKUP(CONCATENATE("Post ",MAX(Escalation!$A:$A)),Escalation!$A$7:$R$54,MATCH(AU$8,Escalation!$6:$6,0),FALSE)*100,VLOOKUP($AA20,Escalation!$A$7:$R$54,MATCH(AU$8,Escalation!$6:$6,0),FALSE)*100) -> 2.53541408 | AV20: 1.191801584 | AW20: =IF(ISNA(VLOOKUP($AA20,Escalation!$A$7:$R$54,MATCH(AW$8,Escalation!$6:$6,0),FALSE)*100),VLOOKUP(CONCATENATE("Post ",MAX(Escalation!$A:$A)),Escalation!$A$7:$R$54,MATCH(AW$8,Escalation!$6:$6,0),FALSE)*100,VLOOKUP($AA20,Escalation!$A$7:$R$54,MATCH(AW$8,Escalation!$6:$6,0),FALSE)*100) -> 2.050029531 | AX20: 1.153120095 | AY20: =IF(ISNA(VLOOKUP($AA20,Escalation!$A$7:$R$54,MATCH(AY$8,Escalation!$6:$6,0),FALSE)*100),VLOOKUP(CONCATENATE("Post ",MAX(Escalation!$A:$A)),Escalation!$A$7:$R$54,MATCH(AY$8,Escalation!$6:$6,0),FALSE)*100,VLOOKUP($AA20,Escalation!$A$7:$R$54,MATCH(AY$8,Escalation!$6:$6,0),FALSE)*100) -> 2.050029531 | AZ20: 1.153120095
AA21: 2026 | AB21: =IF(ISNA(VLOOKUP($AA21,Escalation!$A$7:$R$54,MATCH(AB$7,Escalation!$6:$6,0),FALSE)*100),VLOOKUP(CONCATENATE("Post ",MAX(Escalation!$A:$A)),Escalation!$A$7:$R$54,MATCH(AB$7,Escalation!$6:$6,0),FALSE)*100,VLOOKUP($AA21,Escalation!$A$7:$R$54,MATCH(AB$7,Escalation!$6:$6,0),FALSE)*100) -> 2.210875284 | AC21: 1.191357531 | AD21: =IF(ISNA(VLOOKUP($AA21,Escalation!$A$7:$R$54,MATCH(AD$7,Escalation!$6:$6,0),FALSE)*100),VLOOKUP(CONCATENATE("Post ",MAX(Escalation!$A:$A)),Escalation!$A$7:$R$54,MATCH(AD$7,Escalation!$6:$6,0),FALSE)*100,VLOOKUP($AA21,Escalation!$A$7:$R$54,MATCH(AD$7,Escalation!$6:$6,0),FALSE)*100) -> 2.473916856 | AE21: 1.216046227 | AF21: =IF(ISNA(VLOOKUP($AA21,Escalation!$A$7:$R$54,MATCH(AF$7,Escalation!$6:$6,0),FALSE)*100),VLOOKUP(CONCATENATE("Post ",MAX(Escalation!$A:$A)),Escalation!$A$7:$R$54,MATCH(AF$7,Escalation!$6:$6,0),FALSE)*100,VLOOKUP($AA21,Escalation!$A$7:$R$54,MATCH(AF$7,Escalation!$6:$6,0),FALSE)*100) -> 2.736958428 | AG21: 1.241181443 | AH21: =IF(ISNA(VLOOKUP($AA21,Escalation!$A$7:$R$54,MATCH(AH$7,Escalation!$6:$6,0),FALSE)*100),VLOOKUP(CONCATENATE("Post ",MAX(Escalation!$A:$A)),Escalation!$A$7:$R$54,MATCH(AH$7,Escalation!$6:$6,0),FALSE)*100,VLOOKUP($AA21,Escalation!$A$7:$R$54,MATCH(AH$7,Escalation!$6:$6,0),FALSE)*100) -> 3 | AI21: 1.266770081 | AJ21: =IF(ISNA(VLOOKUP($AA21,Escalation!$A$7:$R$54,MATCH(AJ$7,Escalation!$6:$6,0),FALSE)*100),VLOOKUP(CONCATENATE("Post ",MAX(Escalation!$A:$A)),Escalation!$A$7:$R$54,MATCH(AJ$7,Escalation!$6:$6,0),FALSE)*100,VLOOKUP($AA21,Escalation!$A$7:$R$54,MATCH(AJ$7,Escalation!$6:$6,0),FALSE)*100) -> 1.947833713 | AK21: 1.167108538 | AL21: 2026 | AM21: =IF(ISNA(VLOOKUP($AA21,Escalation!$A$7:$R$54,MATCH(AM$8,Escalation!$6:$6,0),FALSE)*100),VLOOKUP(CONCATENATE("Post ",MAX(Escalation!$A:$A)),Escalation!$A$7:$R$54,MATCH(AM$8,Escalation!$6:$6,0),FALSE)*100,VLOOKUP($AA21,Escalation!$A$7:$R$54,MATCH(AM$8,Escalation!$6:$6,0),FALSE)*100) -> 1.947833713 | AN21: 1.167108538 | AO21: =IF(ISNA(VLOOKUP($AA21,Escalation!$A$7:$R$54,MATCH(AO$8,Escalation!$6:$6,0),FALSE)*100),VLOOKUP(CONCATENATE("Post ",MAX(Escalation!$A:$A)),Escalation!$A$7:$R$54,MATCH(AO$8,Escalation!$6:$6,0),FALSE)*100,VLOOKUP($AA21,Escalation!$A$7:$R$54,MATCH(AO$8,Escalation!$6:$6,0),FALSE)*100) -> 2.812969183 | AP21: 1.248733346 | AQ21: =IF(ISNA(VLOOKUP($AA21,Escalation!$A$7:$R$54,MATCH(AQ$8,Escalation!$6:$6,0),FALSE)*100),VLOOKUP(CONCATENATE("Post ",MAX(Escalation!$A:$A)),Escalation!$A$7:$R$54,MATCH(AQ$8,Escalation!$6:$6,0),FALSE)*100,VLOOKUP($AA21,Escalation!$A$7:$R$54,MATCH(AQ$8,Escalation!$6:$6,0),FALSE)*100) -> 2.812969183 | AR21: 1.248733346 | AS21: =IF(ISNA(VLOOKUP($AA21,Escalation!$A$7:$R$54,MATCH(AS$8,Escalation!$6:$6,0),FALSE)*100),VLOOKUP(CONCATENATE("Post ",MAX(Escalation!$A:$A)),Escalation!$A$7:$R$54,MATCH(AS$8,Escalation!$6:$6,0),FALSE)*100,VLOOKUP($AA21,Escalation!$A$7:$R$54,MATCH(AS$8,Escalation!$6:$6,0),FALSE)*100) -> 2.656095012 | AT21: 1.233572128 | AU21: =IF(ISNA(VLOOKUP($AA21,Escalation!$A$7:$R$54,MATCH(AU$8,Escalation!$6:$6,0),FALSE)*100),VLOOKUP(CONCATENATE("Post ",MAX(Escalation!$A:$A)),Escalation!$A$7:$R$54,MATCH(AU$8,Escalation!$6:$6,0),FALSE)*100,VLOOKUP($AA21,Escalation!$A$7:$R$54,MATCH(AU$8,Escalation!$6:$6,0),FALSE)*100) -> 2.53541408 | AV21: 1.222018689 | AW21: =IF(ISNA(VLOOKUP($AA21,Escalation!$A$7:$R$54,MATCH(AW$8,Escalation!$6:$6,0),FALSE)*100),VLOOKUP(CONCATENATE("Post ",MAX(Escalation!$A:$A)),Escalation!$A$7:$R$54,MATCH(AW$8,Escalation!$6:$6,0),FALSE)*100,VLOOKUP($AA21,Escalation!$A$7:$R$54,MATCH(AW$8,Escalation!$6:$6,0),FALSE)*100) -> 2.050029531 | AX21: 1.176759397 | AY21: =IF(ISNA(VLOOKUP($AA21,Escalation!$A$7:$R$54,MATCH(AY$8,Escalation!$6:$6,0),FALSE)*100),VLOOKUP(CONCATENATE("Post ",MAX(Escalation!$A:$A)),Escalation!$A$7:$R$54,MATCH(AY$8,Escalation!$6:$6,0),FALSE)*100,VLOOKUP($AA21,Escalation!$A$7:$R$54,MATCH(AY$8,Escalation!$6:$6,0),FALSE)*100) -> 2.050029531 | AZ21: 1.176759397
AA22: 2027 | AB22: =IF(ISNA(VLOOKUP($AA22,Escalation!$A$7:$R$54,MATCH(AB$7,Escalation!$6:$6,0),FALSE)*100),VLOOKUP(CONCATENATE("Post ",MAX(Escalation!$A:$A)),Escalation!$A$7:$R$54,MATCH(AB$7,Escalation!$6:$6,0),FALSE)*100,VLOOKUP($AA22,Escalation!$A$7:$R$54,MATCH(AB$7,Escalation!$6:$6,0),FALSE)*100) -> 2.210875284 | AC22: 1.21769696 | AD22: =IF(ISNA(VLOOKUP($AA22,Escalation!$A$7:$R$54,MATCH(AD$7,Escalation!$6:$6,0),FALSE)*100),VLOOKUP(CONCATENATE("Post ",MAX(Escalation!$A:$A)),Escalation!$A$7:$R$54,MATCH(AD$7,Escalation!$6:$6,0),FALSE)*100,VLOOKUP($AA22,Escalation!$A$7:$R$54,MATCH(AD$7,Escalation!$6:$6,0),FALSE)*100) -> 2.473916856 | AE22: 1.2461302 | AF22: =IF(ISNA(VLOOKUP($AA22,Escalation!$A$7:$R$54,MATCH(AF$7,Escalation!$6:$6,0),FALSE)*100),VLOOKUP(CONCATENATE("Post ",MAX(Escalation!$A:$A)),Escalation!$A$7:$R$54,MATCH(AF$7,Escalation!$6:$6,0),FALSE)*100,VLOOKUP($AA22,Escalation!$A$7:$R$54,MATCH(AF$7,Escalation!$6:$6,0),FALSE)*100) -> 2.736958428 | AG22: 1.275152063 | AH22: =IF(ISNA(VLOOKUP($AA22,Escalation!$A$7:$R$54,MATCH(AH$7,Escalation!$6:$6,0),FALSE)*100),VLOOKUP(CONCATENATE("Post ",MAX(Escalation!$A:$A)),Escalation!$A$7:$R$54,MATCH(AH$7,Escalation!$6:$6,0),FALSE)*100,VLOOKUP($AA22,Escalation!$A$7:$R$54,MATCH(AH$7,Escalation!$6:$6,0),FALSE)*100) -> 3 | AI22: 1.304773184 | AJ22: =IF(ISNA(VLOOKUP($AA22,Escalation!$A$7:$R$54,MATCH(AJ$7,Escalation!$6:$6,0),FALSE)*100),VLOOKUP(CONCATENATE("Post ",MAX(Escalation!$A:$A)),Escalation!$A$7:$R$54,MATCH(AJ$7,Escalation!$6:$6,0),FALSE)*100,VLOOKUP($AA22,Escalation!$A$7:$R$54,MATCH(AJ$7,Escalation!$6:$6,0),FALSE)*100) -> 1.947833713 | AK22: 1.189841871 | AL22: 2027 | AM22: =IF(ISNA(VLOOKUP($AA22,Escalation!$A$7:$R$54,MATCH(AM$8,Escalation!$6:$6,0),FALSE)*100),VLOOKUP(CONCATENATE("Post ",MAX(Escalation!$A:$A)),Escalation!$A$7:$R$54,MATCH(AM$8,Escalation!$6:$6,0),FALSE)*100,VLOOKUP($AA22,Escalation!$A$7:$R$54,MATCH(AM$8,Escalation!$6:$6,0),FALSE)*100) -> 1.947833713 | AN22: 1.189841871 | AO22: =IF(ISNA(VLOOKUP($AA22,Escalation!$A$7:$R$54,MATCH(AO$8,Escalation!$6:$6,0),FALSE)*100),VLOOKUP(CONCATENATE("Post ",MAX(Escalation!$A:$A)),Escalation!$A$7:$R$54,MATCH(AO$8,Escalation!$6:$6,0),FALSE)*100,VLOOKUP($AA22,Escalation!$A$7:$R$54,MATCH(AO$8,Escalation!$6:$6,0),FALSE)*100) -> 2.812969183 | AP22: 1.28385983 | AQ22: =IF(ISNA(VLOOKUP($AA22,Escalation!$A$7:$R$54,MATCH(AQ$8,Escalation!$6:$6,0),FALSE)*100),VLOOKUP(CONCATENATE("Post ",MAX(Escalation!$A:$A)),Escalation!$A$7:$R$54,MATCH(AQ$8,Escalation!$6:$6,0),FALSE)*100,VLOOKUP($AA22,Escalation!$A$7:$R$54,MATCH(AQ$8,Escalation!$6:$6,0),FALSE)*100) -> 2.812969183 | AR22: 1.28385983 | AS22: =IF(ISNA(VLOOKUP($AA22,Escalation!$A$7:$R$54,MATCH(AS$8,Escalation!$6:$6,0),FALSE)*100),VLOOKUP(CONCATENATE("Post ",MAX(Escalation!$A:$A)),Escalation!$A$7:$R$54,MATCH(AS$8,Escalation!$6:$6,0),FALSE)*100,VLOOKUP($AA22,Escalation!$A$7:$R$54,MATCH(AS$8,Escalation!$6:$6,0),FALSE)*100) -> 2.656095012 | AT22: 1.266336976 | AU22: =IF(ISNA(VLOOKUP($AA22,Escalation!$A$7:$R$54,MATCH(AU$8,Escalation!$6:$6,0),FALSE)*100),VLOOKUP(CONCATENATE("Post ",MAX(Escalation!$A:$A)),Escalation!$A$7:$R$54,MATCH(AU$8,Escalation!$6:$6,0),FALSE)*100,VLOOKUP($AA22,Escalation!$A$7:$R$54,MATCH(AU$8,Escalation!$6:$6,0),FALSE)*100) -> 2.53541408 | AV22: 1.253001923 | AW22: =IF(ISNA(VLOOKUP($AA22,Escalation!$A$7:$R$54,MATCH(AW$8,Escalation!$6:$6,0),FALSE)*100),VLOOKUP(CONCATENATE("Post ",MAX(Escalation!$A:$A)),Escalation!$A$7:$R$54,MATCH(AW$8,Escalation!$6:$6,0),FALSE)*100,VLOOKUP($AA22,Escalation!$A$7:$R$54,MATCH(AW$8,Escalation!$6:$6,0),FALSE)*100) -> 2.050029531 | AX22: 1.200883313 | AY22: =IF(ISNA(VLOOKUP($AA22,Escalation!$A$7:$R$54,MATCH(AY$8,Escalation!$6:$6,0),FALSE)*100),VLOOKUP(CONCATENATE("Post ",MAX(Escalation!$A:$A)),Escalation!$A$7:$R$54,MATCH(AY$8,Escalation!$6:$6,0),FALSE)*100,VLOOKUP($AA22,Escalation!$A$7:$R$54,MATCH(AY$8,Escalation!$6:$6,0),FALSE)*100) -> 2.050029531 | AZ22: 1.200883313
AA23: 2028 | AB23: =IF(ISNA(VLOOKUP($AA23,Escalation!$A$7:$R$54,MATCH(AB$7,Escalation!$6:$6,0),FALSE)*100),VLOOKUP(CONCATENATE("Post ",MAX(Escalation!$A:$A)),Escalation!$A$7:$R$54,MATCH(AB$7,Escalation!$6:$6,0),FALSE)*100,VLOOKUP($AA23,Escalation!$A$7:$R$54,MATCH(AB$7,Escalation!$6:$6,0),FALSE)*100) -> 2.210875284 | AC23: 1.244618722 | AD23: =IF(ISNA(VLOOKUP($AA23,Escalation!$A$7:$R$54,MATCH(AD$7,Escalation!$6:$6,0),FALSE)*100),VLOOKUP(CONCATENATE("Post ",MAX(Escalation!$A:$A)),Escalation!$A$7:$R$54,MATCH(AD$7,Escalation!$6:$6,0),FALSE)*100,VLOOKUP($AA23,Escalation!$A$7:$R$54,MATCH(AD$7,Escalation!$6:$6,0),FALSE)*100) -> 2.473916856 | AE23: 1.276958425 | AF23: =IF(ISNA(VLOOKUP($AA23,Escalation!$A$7:$R$54,MATCH(AF$7,Escalation!$6:$6,0),FALSE)*100),VLOOKUP(CONCATENATE("Post ",MAX(Escalation!$A:$A)),Escalation!$A$7:$R$54,MATCH(AF$7,Escalation!$6:$6,0),FALSE)*100,VLOOKUP($AA23,Escalation!$A$7:$R$54,MATCH(AF$7,Escalation!$6:$6,0),FALSE)*100) -> 2.736958428 | AG23: 1.310052445 | AH23: =IF(ISNA(VLOOKUP($AA23,Escalation!$A$7:$R$54,MATCH(AH$7,Escalation!$6:$6,0),FALSE)*100),VLOOKUP(CONCATENATE("Post ",MAX(Escalation!$A:$A)),Escalation!$A$7:$R$54,MATCH(AH$7,Escalation!$6:$6,0),FALSE)*100,VLOOKUP($AA23,Escalation!$A$7:$R$54,MATCH(AH$7,Escalation!$6:$6,0),FALSE)*100) -> 3 | AI23: 1.343916379 | AJ23: =IF(ISNA(VLOOKUP($AA23,Escalation!$A$7:$R$54,MATCH(AJ$7,Escalation!$6:$6,0),FALSE)*100),VLOOKUP(CONCATENATE("Post ",MAX(Escalation!$A:$A)),Escalation!$A$7:$R$54,MATCH(AJ$7,Escalation!$6:$6,0),FALSE)*100,VLOOKUP($AA23,Escalation!$A$7:$R$54,MATCH(AJ$7,Escalation!$6:$6,0),FALSE)*100) -> 1.947833713 | AK23: 1.213018012 | AL23: 2028 | AM23: =IF(ISNA(VLOOKUP($AA23,Escalation!$A$7:$R$54,MATCH(AM$8,Escalation!$6:$6,0),FALSE)*100),VLOOKUP(CONCATENATE("Post ",MAX(Escalation!$A:$A)),Escalation!$A$7:$R$54,MATCH(AM$8,Escalation!$6:$6,0),FALSE)*100,VLOOKUP($AA23,Escalation!$A$7:$R$54,MATCH(AM$8,Escalation!$6:$6,0),FALSE)*100) -> 1.947833713 | AN23: 1.213018012 | AO23: =IF(ISNA(VLOOKUP($AA23,Escalation!$A$7:$R$54,MATCH(AO$8,Escalation!$6:$6,0),FALSE)*100),VLOOKUP(CONCATENATE("Post ",MAX(Escalation!$A:$A)),Escalation!$A$7:$R$54,MATCH(AO$8,Escalation!$6:$6,0),FALSE)*100,VLOOKUP($AA23,Escalation!$A$7:$R$54,MATCH(AO$8,Escalation!$6:$6,0),FALSE)*100) -> 2.812969183 | AP23: 1.319974411 | AQ23: =IF(ISNA(VLOOKUP($AA23,Escalation!$A$7:$R$54,MATCH(AQ$8,Escalation!$6:$6,0),FALSE)*100),VLOOKUP(CONCATENATE("Post ",MAX(Escalation!$A:$A)),Escalation!$A$7:$R$54,MATCH(AQ$8,Escalation!$6:$6,0),FALSE)*100,VLOOKUP($AA23,Escalation!$A$7:$R$54,MATCH(AQ$8,Escalation!$6:$6,0),FALSE)*100) -> 2.812969183 | AR23: 1.319974411 | AS23: =IF(ISNA(VLOOKUP($AA23,Escalation!$A$7:$R$54,MATCH(AS$8,Escalation!$6:$6,0),FALSE)*100),VLOOKUP(CONCATENATE("Post ",MAX(Escalation!$A:$A)),Escalation!$A$7:$R$54,MATCH(AS$8,Escalation!$6:$6,0),FALSE)*100,VLOOKUP($AA23,Escalation!$A$7:$R$54,MATCH(AS$8,Escalation!$6:$6,0),FALSE)*100) -> 2.656095012 | AT23: 1.299972089 | AU23: =IF(ISNA(VLOOKUP($AA23,Escalation!$A$7:$R$54,MATCH(AU$8,Escalation!$6:$6,0),FALSE)*100),VLOOKUP(CONCATENATE("Post ",MAX(Escalation!$A:$A)),Escalation!$A$7:$R$54,MATCH(AU$8,Escalation!$6:$6,0),FALSE)*100,VLOOKUP($AA23,Escalation!$A$7:$R$54,MATCH(AU$8,Escalation!$6:$6,0),FALSE)*100) -> 2.53541408 | AV23: 1.28477071 | AW23: =IF(ISNA(VLOOKUP($AA23,Escalation!$A$7:$R$54,MATCH(AW$8,Escalation!$6:$6,0),FALSE)*100),VLOOKUP(CONCATENATE("Post ",MAX(Escalation!$A:$A)),Escalation!$A$7:$R$54,MATCH(AW$8,Escalation!$6:$6,0),FALSE)*100,VLOOKUP($AA23,Escalation!$A$7:$R$54,MATCH(AW$8,Escalation!$6:$6,0),FALSE)*100) -> 2.050029531 | AX23: 1.225501775 | AY23: =IF(ISNA(VLOOKUP($AA23,Escalation!$A$7:$R$54,MATCH(AY$8,Escalation!$6:$6,0),FALSE)*100),VLOOKUP(CONCATENATE("Post ",MAX(Escalation!$A:$A)),Escalation!$A$7:$R$54,MATCH(AY$8,Escalation!$6:$6,0),FALSE)*100,VLOOKUP($AA23,Escalation!$A$7:$R$54,MATCH(AY$8,Escalation!$6:$6,0),FALSE)*100) -> 2.050029531 | AZ23: 1.225501775
AA24: =AA23+1 -> 2029 | AB24: =IF(ISNA(VLOOKUP($AA24,Escalation!$A$7:$R$54,MATCH(AB$7,Escalation!$6:$6,0),FALSE)*100),VLOOKUP(CONCATENATE("Post ",MAX(Escalation!$A:$A)),Escalation!$A$7:$R$54,MATCH(AB$7,Escalation!$6:$6,0),FALSE)*100,VLOOKUP($AA24,Escalation!$A$7:$R$54,MATCH(AB$7,Escalation!$6:$6,0),FALSE)*100) -> 2.210875284 | AC24: 1.272135689 | AD24: =IF(ISNA(VLOOKUP($AA24,Escalation!$A$7:$R$54,MATCH(AD$7,Escalation!$6:$6,0),FALSE)*100),VLOOKUP(CONCATENATE("Post ",MAX(Escalation!$A:$A)),Escalation!$A$7:$R$54,MATCH(AD$7,Escalation!$6:$6,0),FALSE)*100,VLOOKUP($AA24,Escalation!$A$7:$R$54,MATCH(AD$7,Escalation!$6:$6,0),FALSE)*100) -> 2.473916856 | AE24: 1.308549315 | AF24: =IF(ISNA(VLOOKUP($AA24,Escalation!$A$7:$R$54,MATCH(AF$7,Escalation!$6:$6,0),FALSE)*100),VLOOKUP(CONCATENATE("Post ",MAX(Escalation!$A:$A)),Escalation!$A$7:$R$54,MATCH(AF$7,Escalation!$6:$6,0),FALSE)*100,VLOOKUP($AA24,Escalation!$A$7:$R$54,MATCH(AF$7,Escalation!$6:$6,0),FALSE)*100) -> 2.736958428 | AG24: 1.345908035 | AH24: =IF(ISNA(VLOOKUP($AA24,Escalation!$A$7:$R$54,MATCH(AH$7,Escalation!$6:$6,0),FALSE)*100),VLOOKUP(CONCATENATE("Post ",MAX(Escalation!$A:$A)),Escalation!$A$7:$R$54,MATCH(AH$7,Escalation!$6:$6,0),FALSE)*100,VLOOKUP($AA24,Escalation!$A$7:$R$54,MATCH(AH$7,Escalation!$6:$6,0),FALSE)*100) -> 3 | AI24: 1.384233871 | AJ24: =IF(ISNA(VLOOKUP($AA24,Escalation!$A$7:$R$54,MATCH(AJ$7,Escalation!$6:$6,0),FALSE)*100),VLOOKUP(CONCATENATE("Post ",MAX(Escalation!$A:$A)),Escalation!$A$7:$R$54,MATCH(AJ$7,Escalation!$6:$6,0),FALSE)*100,VLOOKUP($AA24,Escalation!$A$7:$R$54,MATCH(AJ$7,Escalation!$6:$6,0),FALSE)*100) -> 1.947833713 | AK24: 1.236645586 | AL24: 2029 | AM24: =IF(ISNA(VLOOKUP($AA24,Escalation!$A$7:$R$54,MATCH(AM$8,Escalation!$6:$6,0),FALSE)*100),VLOOKUP(CONCATENATE("Post ",MAX(Escalation!$A:$A)),Escalation!$A$7:$R$54,MATCH(AM$8,Escalation!$6:$6,0),FALSE)*100,VLOOKUP($AA24,Escalation!$A$7:$R$54,MATCH(AM$8,Escalation!$6:$6,0),FALSE)*100) -> 1.947833713 | AN24: 1.236645586 | AO24: =IF(ISNA(VLOOKUP($AA24,Escalation!$A$7:$R$54,MATCH(AO$8,Escalation!$6:$6,0),FALSE)*100),VLOOKUP(CONCATENATE("Post ",MAX(Escalation!$A:$A)),Escalation!$A$7:$R$54,MATCH(AO$8,Escalation!$6:$6,0),FALSE)*100,VLOOKUP($AA24,Escalation!$A$7:$R$54,MATCH(AO$8,Escalation!$6:$6,0),FALSE)*100) -> 2.812969183 | AP24: 1.357104885 | AQ24: =IF(ISNA(VLOOKUP($AA24,Escalation!$A$7:$R$54,MATCH(AQ$8,Escalation!$6:$6,0),FALSE)*100),VLOOKUP(CONCATENATE("Post ",MAX(Escalation!$A:$A)),Escalation!$A$7:$R$54,MATCH(AQ$8,Escalation!$6:$6,0),FALSE)*100,VLOOKUP($AA24,Escalation!$A$7:$R$54,MATCH(AQ$8,Escalation!$6:$6,0),FALSE)*100) -> 2.812969183 | AR24: 1.357104885 | AS24: =IF(ISNA(VLOOKUP($AA24,Escalation!$A$7:$R$54,MATCH(AS$8,Escalation!$6:$6,0),FALSE)*100),VLOOKUP(CONCATENATE("Post ",MAX(Escalation!$A:$A)),Escalation!$A$7:$R$54,MATCH(AS$8,Escalation!$6:$6,0),FALSE)*100,VLOOKUP($AA24,Escalation!$A$7:$R$54,MATCH(AS$8,Escalation!$6:$6,0),FALSE)*100) -> 2.656095012 | AT24: 1.334500583 | AU24: =IF(ISNA(VLOOKUP($AA24,Escalation!$A$7:$R$54,MATCH(AU$8,Escalation!$6:$6,0),FALSE)*100),VLOOKUP(CONCATENATE("Post ",MAX(Escalation!$A:$A)),Escalation!$A$7:$R$54,MATCH(AU$8,Escalation!$6:$6,0),FALSE)*100,VLOOKUP($AA24,Escalation!$A$7:$R$54,MATCH(AU$8,Escalation!$6:$6,0),FALSE)*100) -> 2.53541408 | AV24: 1.317344968 | AW24: =IF(ISNA(VLOOKUP($AA24,Escalation!$A$7:$R$54,MATCH(AW$8,Escalation!$6:$6,0),FALSE)*100),VLOOKUP(CONCATENATE("Post ",MAX(Escalation!$A:$A)),Escalation!$A$7:$R$54,MATCH(AW$8,Escalation!$6:$6,0),FALSE)*100,VLOOKUP($AA24,Escalation!$A$7:$R$54,MATCH(AW$8,Escalation!$6:$6,0),FALSE)*100) -> 2.050029531 | AX24: 1.250624923 | AY24: =IF(ISNA(VLOOKUP($AA24,Escalation!$A$7:$R$54,MATCH(AY$8,Escalation!$6:$6,0),FALSE)*100),VLOOKUP(CONCATENATE("Post ",MAX(Escalation!$A:$A)),Escalation!$A$7:$R$54,MATCH(AY$8,Escalation!$6:$6,0),FALSE)*100,VLOOKUP($AA24,Escalation!$A$7:$R$54,MATCH(AY$8,Escalation!$6:$6,0),FALSE)*100) -> 2.050029531 | AZ24: 1.250624923
AA25: =AA24+1 -> 2030 | AB25: =IF(ISNA(VLOOKUP($AA25,Escalation!$A$7:$R$54,MATCH(AB$7,Escalation!$6:$6,0),FALSE)*100),VLOOKUP(CONCATENATE("Post ",MAX(Escalation!$A:$A)),Escalation!$A$7:$R$54,MATCH(AB$7,Escalation!$6:$6,0),FALSE)*100,VLOOKUP($AA25,Escalation!$A$7:$R$54,MATCH(AB$7,Escalation!$6:$6,0),FALSE)*100) -> 2.210875284 | AC25: 1.300261023 | AD25: =IF(ISNA(VLOOKUP($AA25,Escalation!$A$7:$R$54,MATCH(AD$7,Escalation!$6:$6,0),FALSE)*100),VLOOKUP(CONCATENATE("Post ",MAX(Escalation!$A:$A)),Escalation!$A$7:$R$54,MATCH(AD$7,Escalation!$6:$6,0),FALSE)*100,VLOOKUP($AA25,Escalation!$A$7:$R$54,MATCH(AD$7,Escalation!$6:$6,0),FALSE)*100) -> 2.473916856 | AE25: 1.340921737 | AF25: =IF(ISNA(VLOOKUP($AA25,Escalation!$A$7:$R$54,MATCH(AF$7,Escalation!$6:$6,0),FALSE)*100),VLOOKUP(CONCATENATE("Post ",MAX(Escalation!$A:$A)),Escalation!$A$7:$R$54,MATCH(AF$7,Escalation!$6:$6,0),FALSE)*100,VLOOKUP($AA25,Escalation!$A$7:$R$54,MATCH(AF$7,Escalation!$6:$6,0),FALSE)*100) -> 2.736958428 | AG25: 1.382744979 | AH25: =IF(ISNA(VLOOKUP($AA25,Escalation!$A$7:$R$54,MATCH(AH$7,Escalation!$6:$6,0),FALSE)*100),VLOOKUP(CONCATENATE("Post ",MAX(Escalation!$A:$A)),Escalation!$A$7:$R$54,MATCH(AH$7,Escalation!$6:$6,0),FALSE)*100,VLOOKUP($AA25,Escalation!$A$7:$R$54,MATCH(AH$7,Escalation!$6:$6,0),FALSE)*100) -> 3 | AI25: 1.425760887 | AJ25: =IF(ISNA(VLOOKUP($AA25,Escalation!$A$7:$R$54,MATCH(AJ$7,Escalation!$6:$6,0),FALSE)*100),VLOOKUP(CONCATENATE("Post ",MAX(Escalation!$A:$A)),Escalation!$A$7:$R$54,MATCH(AJ$7,Escalation!$6:$6,0),FALSE)*100,VLOOKUP($AA25,Escalation!$A$7:$R$54,MATCH(AJ$7,Escalation!$6:$6,0),FALSE)*100) -> 1.947833713 | AK25: 1.260733386 | AL25: 2030 | AM25: =IF(ISNA(VLOOKUP($AA25,Escalation!$A$7:$R$54,MATCH(AM$8,Escalation!$6:$6,0),FALSE)*100),VLOOKUP(CONCATENATE("Post ",MAX(Escalation!$A:$A)),Escalation!$A$7:$R$54,MATCH(AM$8,Escalation!$6:$6,0),FALSE)*100,VLOOKUP($AA25,Escalation!$A$7:$R$54,MATCH(AM$8,Escalation!$6:$6,0),FALSE)*100) -> 1.947833713 | AN25: 1.260733386 | AO25: =IF(ISNA(VLOOKUP($AA25,Escalation!$A$7:$R$54,MATCH(AO$8,Escalation!$6:$6,0),FALSE)*100),VLOOKUP(CONCATENATE("Post ",MAX(Escalation!$A:$A)),Escalation!$A$7:$R$54,MATCH(AO$8,Escalation!$6:$6,0),FALSE)*100,VLOOKUP($AA25,Escalation!$A$7:$R$54,MATCH(AO$8,Escalation!$6:$6,0),FALSE)*100) -> 2.812969183 | AP25: 1.395279827 | AQ25: =IF(ISNA(VLOOKUP($AA25,Escalation!$A$7:$R$54,MATCH(AQ$8,Escalation!$6:$6,0),FALSE)*100),VLOOKUP(CONCATENATE("Post ",MAX(Escalation!$A:$A)),Escalation!$A$7:$R$54,MATCH(AQ$8,Escalation!$6:$6,0),FALSE)*100,VLOOKUP($AA25,Escalation!$A$7:$R$54,MATCH(AQ$8,Escalation!$6:$6,0),FALSE)*100) -> 2.812969183 | AR25: 1.395279827 | AS25: =IF(ISNA(VLOOKUP($AA25,Escalation!$A$7:$R$54,MATCH(AS$8,Escalation!$6:$6,0),FALSE)*100),VLOOKUP(CONCATENATE("Post ",MAX(Escalation!$A:$A)),Escalation!$A$7:$R$54,MATCH(AS$8,Escalation!$6:$6,0),FALSE)*100,VLOOKUP($AA25,Escalation!$A$7:$R$54,MATCH(AS$8,Escalation!$6:$6,0),FALSE)*100) -> 2.656095012 | AT25: 1.369946186 | AU25: =IF(ISNA(VLOOKUP($AA25,Escalation!$A$7:$R$54,MATCH(AU$8,Escalation!$6:$6,0),FALSE)*100),VLOOKUP(CONCATENATE("Post ",MAX(Escalation!$A:$A)),Escalation!$A$7:$R$54,MATCH(AU$8,Escalation!$6:$6,0),FALSE)*100,VLOOKUP($AA25,Escalation!$A$7:$R$54,MATCH(AU$8,Escalation!$6:$6,0),FALSE)*100) -> 2.53541408 | AV25: 1.350745118 | AW25: =IF(ISNA(VLOOKUP($AA25,Escalation!$A$7:$R$54,MATCH(AW$8,Escalation!$6:$6,0),FALSE)*100),VLOOKUP(CONCATENATE("Post ",MAX(Escalation!$A:$A)),Escalation!$A$7:$R$54,MATCH(AW$8,Escalation!$6:$6,0),FALSE)*100,VLOOKUP($AA25,Escalation!$A$7:$R$54,MATCH(AW$8,Escalation!$6:$6,0),FALSE)*100) -> 2.050029531 | AX25: 1.276263104 | AY25: =IF(ISNA(VLOOKUP($AA25,Escalation!$A$7:$R$54,MATCH(AY$8,Escalation!$6:$6,0),FALSE)*100),VLOOKUP(CONCATENATE("Post ",MAX(Escalation!$A:$A)),Escalation!$A$7:$R$54,MATCH(AY$8,Escalation!$6:$6,0),FALSE)*100,VLOOKUP($AA25,Escalation!$A$7:$R$54,MATCH(AY$8,Escalation!$6:$6,0),FALSE)*100) -> 2.050029531 | AZ25: 1.276263104
AA26: =AA25+1 -> 2031 | AB26: =IF(ISNA(VLOOKUP($AA26,Escalation!$A$7:$R$54,MATCH(AB$7,Escalation!$6:$6,0),FALSE)*100),VLOOKUP(CONCATENATE("Post ",MAX(Escalation!$A:$A)),Escalation!$A$7:$R$54,MATCH(AB$7,Escalation!$6:$6,0),FALSE)*100,VLOOKUP($AA26,Escalation!$A$7:$R$54,MATCH(AB$7,Escalation!$6:$6,0),FALSE)*100) -> 2.210875284 | AC26: =(1+AB26/100)*AC25 -> 1.329008172 | AD26: =IF(ISNA(VLOOKUP($AA26,Escalation!$A$7:$R$54,MATCH(AD$7,Escalation!$6:$6,0),FALSE)*100),VLOOKUP(CONCATENATE("Post ",MAX(Escalation!$A:$A)),Escalation!$A$7:$R$54,MATCH(AD$7,Escalation!$6:$6,0),FALSE)*100,VLOOKUP($AA26,Escalation!$A$7:$R$54,MATCH(AD$7,Escalation!$6:$6,0),FALSE)*100) -> 2.473916856 | AE26: =(1+AD26/100)*AE25 -> 1.374095026 | AF26: =IF(ISNA(VLOOKUP($AA26,Escalation!$A$7:$R$54,MATCH(AF$7,Escalation!$6:$6,0),FALSE)*100),VLOOKUP(CONCATENATE("Post ",MAX(Escalation!$A:$A)),Escalation!$A$7:$R$54,MATCH(AF$7,Escalation!$6:$6,0),FALSE)*100,VLOOKUP($AA26,Escalation!$A$7:$R$54,MATCH(AF$7,Escalation!$6:$6,0),FALSE)*100) -> 2.736958428 | AG26: =(1+AF26/100)*AG25 -> 1.420590134 | AH26: =IF(ISNA(VLOOKUP($AA26,Escalation!$A$7:$R$54,MATCH(AH$7,Escalation!$6:$6,0),FALSE)*100),VLOOKUP(CONCATENATE("Post ",MAX(Escalation!$A:$A)),Escalation!$A$7:$R$54,MATCH(AH$7,Escalation!$6:$6,0),FALSE)*100,VLOOKUP($AA26,Escalation!$A$7:$R$54,MATCH(AH$7,Escalation!$6:$6,0),FALSE)*100) -> 3 | AI26: =(1+AH26/100)*AI25 -> 1.468533713 | AJ26: =IF(ISNA(VLOOKUP($AA26,Escalation!$A$7:$R$54,MATCH(AJ$7,Escalation!$6:$6,0),FALSE)*100),VLOOKUP(CONCATENATE("Post ",MAX(Escalation!$A:$A)),Escalation!$A$7:$R$54,MATCH(AJ$7,Escalation!$6:$6,0),FALSE)*100,VLOOKUP($AA26,Escalation!$A$7:$R$54,MATCH(AJ$7,Escalation!$6:$6,0),FALSE)*100) -> 1.947833713 | AK26: =(1+AJ26/100)*AK25 -> 1.285290376 | AL26: =AL25+1 -> 2031 | AM26: =IF(ISNA(VLOOKUP($AA26,Escalation!$A$7:$R$54,MATCH(AM$8,Escalation!$6:$6,0),FALSE)*100),VLOOKUP(CONCATENATE("Post ",MAX(Escalation!$A:$A)),Escalation!$A$7:$R$54,MATCH(AM$8,Escalation!$6:$6,0),FALSE)*100,VLOOKUP($AA26,Escalation!$A$7:$R$54,MATCH(AM$8,Escalation!$6:$6,0),FALSE)*100) -> 1.947833713 | AN26: =(1+AM26/100)*AN25 -> 1.285290376 | AO26: =IF(ISNA(VLOOKUP($AA26,Escalation!$A$7:$R$54,MATCH(AO$8,Escalation!$6:$6,0),FALSE)*100),VLOOKUP(CONCATENATE("Post ",MAX(Escalation!$A:$A)),Escalation!$A$7:$R$54,MATCH(AO$8,Escalation!$6:$6,0),FALSE)*100,VLOOKUP($AA26,Escalation!$A$7:$R$54,MATCH(AO$8,Escalation!$6:$6,0),FALSE)*100) -> 2.812969183 | AP26: =(1+AO26/100)*AP25 -> 1.434528618 | AQ26: =IF(ISNA(VLOOKUP($AA26,Escalation!$A$7:$R$54,MATCH(AQ$8,Escalation!$6:$6,0),FALSE)*100),VLOOKUP(CONCATENATE("Post ",MAX(Escalation!$A:$A)),Escalation!$A$7:$R$54,MATCH(AQ$8,Escalation!$6:$6,0),FALSE)*100,VLOOKUP($AA26,Escalation!$A$7:$R$54,MATCH(AQ$8,Escalation!$6:$6,0),FALSE)*100) -> 2.812969183 | AR26: =(1+AQ26/100)*AR25 -> 1.434528618 | AS26: =IF(ISNA(VLOOKUP($AA26,Escalation!$A$7:$R$54,MATCH(AS$8,Escalation!$6:$6,0),FALSE)*100),VLOOKUP(CONCATENATE("Post ",MAX(Escalation!$A:$A)),Escalation!$A$7:$R$54,MATCH(AS$8,Escalation!$6:$6,0),FALSE)*100,VLOOKUP($AA26,Escalation!$A$7:$R$54,MATCH(AS$8,Escalation!$6:$6,0),FALSE)*100) -> 2.656095012 | AT26: =(1+AS26/100)*AT25 -> 1.406333259 | AU26: =IF(ISNA(VLOOKUP($AA26,Escalation!$A$7:$R$54,MATCH(AU$8,Escalation!$6:$6,0),FALSE)*100),VLOOKUP(CONCATENATE("Post ",MAX(Escalation!$A:$A)),Escalation!$A$7:$R$54,MATCH(AU$8,Escalation!$6:$6,0),FALSE)*100,VLOOKUP($AA26,Escalation!$A$7:$R$54,MATCH(AU$8,Escalation!$6:$6,0),FALSE)*100) -> 2.53541408 | AV26: =(1+AU26/100)*AV25 -> 1.3849921 | AW26: =IF(ISNA(VLOOKUP($AA26,Escalation!$A$7:$R$54,MATCH(AW$8,Escalation!$6:$6,0),FALSE)*100),VLOOKUP(CONCATENATE("Post ",MAX(Escalation!$A:$A)),Escalation!$A$7:$R$54,MATCH(AW$8,Escalation!$6:$6,0),FALSE)*100,VLOOKUP($AA26,Escalation!$A$7:$R$54,MATCH(AW$8,Escalation!$6:$6,0),FALSE)*100) -> 2.050029531 | AX26: =(1+AW26/100)*AX25 -> 1.302426874 | AY26: =IF(ISNA(VLOOKUP($AA26,Escalation!$A$7:$R$54,MATCH(AY$8,Escalation!$6:$6,0),FALSE)*100),VLOOKUP(CONCATENATE("Post ",MAX(Escalation!$A:$A)),Escalation!$A$7:$R$54,MATCH(AY$8,Escalation!$6:$6,0),FALSE)*100,VLOOKUP($AA26,Escalation!$A$7:$R$54,MATCH(AY$8,Escalation!$6:$6,0),FALSE)*100) -> 2.050029531 | AZ26: =(1+AY26/100)*AZ25 -> 1.302426874
A27: =CONCATENATE("NOTE: This Template is not Valid after December 31, ",G6,". Get updated Template from Project Proposal Forms Database.") -> NOTE: This Template is not Valid after December 31, 2018. Get updated Template from Project Proposal Forms Database. | AA27: =AA26+1 -> 2032 | AB27: =IF(ISNA(VLOOKUP($AA27,Escalation!$A$7:$R$54,MATCH(AB$7,Escalation!$6:$6,0),FALSE)*100),VLOOKUP(CONCATENATE("Post ",MAX(Escalation!$A:$A)),Escalation!$A$7:$R$54,MATCH(AB$7,Escalation!$6:$6,0),FALSE)*100,VLOOKUP($AA27,Escalation!$A$7:$R$54,MATCH(AB$7,Escalation!$6:$6,0),FALSE)*100) -> 2.210875284 | AC27: =(1+AB27/100)*AC26 -> 1.358390886 | AD27: =IF(ISNA(VLOOKUP($AA27,Escalation!$A$7:$R$54,MATCH(AD$7,Escalation!$6:$6,0),FALSE)*100),VLOOKUP(CONCATENATE("Post ",MAX(Escalation!$A:$A)),Escalation!$A$7:$R$54,MATCH(AD$7,Escalation!$6:$6,0),FALSE)*100,VLOOKUP($AA27,Escalation!$A$7:$R$54,MATCH(AD$7,Escalation!$6:$6,0),FALSE)*100) -> 2.473916856 | AE27: =(1+AD27/100)*AE26 -> 1.408088994 | AF27: =IF(ISNA(VLOOKUP($AA27,Escalation!$A$7:$R$54,MATCH(AF$7,Escalation!$6:$6,0),FALSE)*100),VLOOKUP(CONCATENATE("Post ",MAX(Escalation!$A:$A)),Escalation!$A$7:$R$54,MATCH(AF$7,Escalation!$6:$6,0),FALSE)*100,VLOOKUP($AA27,Escalation!$A$7:$R$54,MATCH(AF$7,Escalation!$6:$6,0),FALSE)*100) -> 2.736958428 | AG27: =(1+AF27/100)*AG26 -> 1.459471095 | AH27: =IF(ISNA(VLOOKUP($AA27,Escalation!$A$7:$R$54,MATCH(AH$7,Escalation!$6:$6,0),FALSE)*100),VLOOKUP(CONCATENATE("Post ",MAX(Escalation!$A:$A)),Escalation!$A$7:$R$54,MATCH(AH$7,Escalation!$6:$6,0),FALSE)*100,VLOOKUP($AA27,Escalation!$A$7:$R$54,MATCH(AH$7,Escalation!$6:$6,0),FALSE)*100) -> 3 | AI27: =(1+AH27/100)*AI26 -> 1.512589725 | AJ27: =IF(ISNA(VLOOKUP($AA27,Escalation!$A$7:$R$54,MATCH(AJ$7,Escalation!$6:$6,0),FALSE)*100),VLOOKUP(CONCATENATE("Post ",MAX(Escalation!$A:$A)),Escalation!$A$7:$R$54,MATCH(AJ$7,Escalation!$6:$6,0),FALSE)*100,VLOOKUP($AA27,Escalation!$A$7:$R$54,MATCH(AJ$7,Escalation!$6:$6,0),FALSE)*100) -> 1.947833713 | AK27: =(1+AJ27/100)*AK26 -> 1.310325695 | AL27: =AL26+1 -> 2032 | AM27: =IF(ISNA(VLOOKUP($AA27,Escalation!$A$7:$R$54,MATCH(AM$8,Escalation!$6:$6,0),FALSE)*100),VLOOKUP(CONCATENATE("Post ",MAX(Escalation!$A:$A)),Escalation!$A$7:$R$54,MATCH(AM$8,Escalation!$6:$6,0),FALSE)*100,VLOOKUP($AA27,Escalation!$A$7:$R$54,MATCH(AM$8,Escalation!$6:$6,0),FALSE)*100) -> 1.947833713 | AN27: =(1+AM27/100)*AN26 -> 1.310325695 | AO27: =IF(ISNA(VLOOKUP($AA27,Escalation!$A$7:$R$54,MATCH(AO$8,Escalation!$6:$6,0),FALSE)*100),VLOOKUP(CONCATENATE("Post ",MAX(Escalation!$A:$A)),Escalation!$A$7:$R$54,MATCH(AO$8,Escalation!$6:$6,0),FALSE)*100,VLOOKUP($AA27,Escalation!$A$7:$R$54,MATCH(AO$8,Escalation!$6:$6,0),FALSE)*100) -> 2.812969183 | AP27: =(1+AO27/100)*AP26 -> 1.474881466 | AQ27: =IF(ISNA(VLOOKUP($AA27,Escalation!$A$7:$R$54,MATCH(AQ$8,Escalation!$6:$6,0),FALSE)*100),VLOOKUP(CONCATENATE("Post ",MAX(Escalation!$A:$A)),Escalation!$A$7:$R$54,MATCH(AQ$8,Escalation!$6:$6,0),FALSE)*100,VLOOKUP($AA27,Escalation!$A$7:$R$54,MATCH(AQ$8,Escalation!$6:$6,0),FALSE)*100) -> 2.812969183 | AR27: =(1+AQ27/100)*AR26 -> 1.474881466 | AS27: =IF(ISNA(VLOOKUP($AA27,Escalation!$A$7:$R$54,MATCH(AS$8,Escalation!$6:$6,0),FALSE)*100),VLOOKUP(CONCATENATE("Post ",MAX(Escalation!$A:$A)),Escalation!$A$7:$R$54,MATCH(AS$8,Escalation!$6:$6,0),FALSE)*100,VLOOKUP($AA27,Escalation!$A$7:$R$54,MATCH(AS$8,Escalation!$6:$6,0),FALSE)*100) -> 2.656095012 | AT27: =(1+AS27/100)*AT26 -> 1.443686806 | AU27: =IF(ISNA(VLOOKUP($AA27,Escalation!$A$7:$R$54,MATCH(AU$8,Escalation!$6:$6,0),FALSE)*100),VLOOKUP(CONCATENATE("Post ",MAX(Escalation!$A:$A)),Escalation!$A$7:$R$54,MATCH(AU$8,Escalation!$6:$6,0),FALSE)*100,VLOOKUP($AA27,Escalation!$A$7:$R$54,MATCH(AU$8,Escalation!$6:$6,0),FALSE)*100) -> 2.53541408 | AV27: =(1+AU27/100)*AV26 -> 1.420107384 | AW27: =IF(ISNA(VLOOKUP($AA27,Escalation!$A$7:$R$54,MATCH(AW$8,Escalation!$6:$6,0),FALSE)*100),VLOOKUP(CONCATENATE("Post ",MAX(Escalation!$A:$A)),Escalation!$A$7:$R$54,MATCH(AW$8,Escalation!$6:$6,0),FALSE)*100,VLOOKUP($AA27,Escalation!$A$7:$R$54,MATCH(AW$8,Escalation!$6:$6,0),FALSE)*100) -> 2.050029531 | AX27: =(1+AW27/100)*AX26 -> 1.32912701 | AY27: =IF(ISNA(VLOOKUP($AA27,Escalation!$A$7:$R$54,MATCH(AY$8,Escalation!$6:$6,0),FALSE)*100),VLOOKUP(CONCATENATE("Post ",MAX(Escalation!$A:$A)),Escalation!$A$7:$R$54,MATCH(AY$8,Escalation!$6:$6,0),FALSE)*100,VLOOKUP($AA27,Escalation!$A$7:$R$54,MATCH(AY$8,Escalation!$6:$6,0),FALSE)*100) -> 2.050029531 | AZ27: =(1+AY27/100)*AZ26 -> 1.32912701
AA28: =AA27+1 -> 2033 | AB28: =IF(ISNA(VLOOKUP($AA28,Escalation!$A$7:$R$54,MATCH(AB$7,Escalation!$6:$6,0),FALSE)*100),VLOOKUP(CONCATENATE("Post ",MAX(Escalation!$A:$A)),Escalation!$A$7:$R$54,MATCH(AB$7,Escalation!$6:$6,0),FALSE)*100,VLOOKUP($AA28,Escalation!$A$7:$R$54,MATCH(AB$7,Escalation!$6:$6,0),FALSE)*100) -> 2.210875284 | AC28: =(1+AB28/100)*AC27 -> 1.388423214 | AD28: =IF(ISNA(VLOOKUP($AA28,Escalation!$A$7:$R$54,MATCH(AD$7,Escalation!$6:$6,0),FALSE)*100),VLOOKUP(CONCATENATE("Post ",MAX(Escalation!$A:$A)),Escalation!$A$7:$R$54,MATCH(AD$7,Escalation!$6:$6,0),FALSE)*100,VLOOKUP($AA28,Escalation!$A$7:$R$54,MATCH(AD$7,Escalation!$6:$6,0),FALSE)*100) -> 2.473916856 | AE28: =(1+AD28/100)*AE27 -> 1.442923945 | AF28: =IF(ISNA(VLOOKUP($AA28,Escalation!$A$7:$R$54,MATCH(AF$7,Escalation!$6:$6,0),FALSE)*100),VLOOKUP(CONCATENATE("Post ",MAX(Escalation!$A:$A)),Escalation!$A$7:$R$54,MATCH(AF$7,Escalation!$6:$6,0),FALSE)*100,VLOOKUP($AA28,Escalation!$A$7:$R$54,MATCH(AF$7,Escalation!$6:$6,0),FALSE)*100) -> 2.736958428 | AG28: =(1+AF28/100)*AG27 -> 1.499416213 | AH28: =IF(ISNA(VLOOKUP($AA28,Escalation!$A$7:$R$54,MATCH(AH$7,Escalation!$6:$6,0),FALSE)*100),VLOOKUP(CONCATENATE("Post ",MAX(Escalation!$A:$A)),Escalation!$A$7:$R$54,MATCH(AH$7,Escalation!$6:$6,0),FALSE)*100,VLOOKUP($AA28,Escalation!$A$7:$R$54,MATCH(AH$7,Escalation!$6:$6,0),FALSE)*100) -> 3 | AI28: =(1+AH28/100)*AI27 -> 1.557967417 | AJ28: =IF(ISNA(VLOOKUP($AA28,Escalation!$A$7:$R$54,MATCH(AJ$7,Escalation!$6:$6,0),FALSE)*100),VLOOKUP(CONCATENATE("Post ",MAX(Escalation!$A:$A)),Escalation!$A$7:$R$54,MATCH(AJ$7,Escalation!$6:$6,0),FALSE)*100,VLOOKUP($AA28,Escalation!$A$7:$R$54,MATCH(AJ$7,Escalation!$6:$6,0),FALSE)*100) -> 1.947833713 | AK28: =(1+AJ28/100)*AK27 -> 1.335848661 | AL28: =AL27+1 -> 2033 | AM28: =IF(ISNA(VLOOKUP($AA28,Escalation!$A$7:$R$54,MATCH(AM$8,Escalation!$6:$6,0),FALSE)*100),VLOOKUP(CONCATENATE("Post ",MAX(Escalation!$A:$A)),Escalation!$A$7:$R$54,MATCH(AM$8,Escalation!$6:$6,0),FALSE)*100,VLOOKUP($AA28,Escalation!$A$7:$R$54,MATCH(AM$8,Escalation!$6:$6,0),FALSE)*100) -> 1.947833713 | AN28: =(1+AM28/100)*AN27 -> 1.335848661 | AO28: =IF(ISNA(VLOOKUP($AA28,Escalation!$A$7:$R$54,MATCH(AO$8,Escalation!$6:$6,0),FALSE)*100),VLOOKUP(CONCATENATE("Post ",MAX(Escalation!$A:$A)),Escalation!$A$7:$R$54,MATCH(AO$8,Escalation!$6:$6,0),FALSE)*100,VLOOKUP($AA28,Escalation!$A$7:$R$54,MATCH(AO$8,Escalation!$6:$6,0),FALSE)*100) -> 2.812969183 | AP28: =(1+AO28/100)*AP27 -> 1.516369427 | AQ28: =IF(ISNA(VLOOKUP($AA28,Escalation!$A$7:$R$54,MATCH(AQ$8,Escalation!$6:$6,0),FALSE)*100),VLOOKUP(CONCATENATE("Post ",MAX(Escalation!$A:$A)),Escalation!$A$7:$R$54,MATCH(AQ$8,Escalation!$6:$6,0),FALSE)*100,VLOOKUP($AA28,Escalation!$A$7:$R$54,MATCH(AQ$8,Escalation!$6:$6,0),FALSE)*100) -> 2.812969183 | AR28: =(1+AQ28/100)*AR27 -> 1.516369427 | AS28: =IF(ISNA(VLOOKUP($AA28,Escalation!$A$7:$R$54,MATCH(AS$8,Escalation!$6:$6,0),FALSE)*100),VLOOKUP(CONCATENATE("Post ",MAX(Escalation!$A:$A)),Escalation!$A$7:$R$54,MATCH(AS$8,Escalation!$6:$6,0),FALSE)*100,VLOOKUP($AA28,Escalation!$A$7:$R$54,MATCH(AS$8,Escalation!$6:$6,0),FALSE)*100) -> 2.656095012 | AT28: =(1+AS28/100)*AT27 -> 1.482032499 | AU28: =IF(ISNA(VLOOKUP($AA28,Escalation!$A$7:$R$54,MATCH(AU$8,Escalation!$6:$6,0),FALSE)*100),VLOOKUP(CONCATENATE("Post ",MAX(Escalation!$A:$A)),Escalation!$A$7:$R$54,MATCH(AU$8,Escalation!$6:$6,0),FALSE)*100,VLOOKUP($AA28,Escalation!$A$7:$R$54,MATCH(AU$8,Escalation!$6:$6,0),FALSE)*100) -> 2.53541408 | AV28: =(1+AU28/100)*AV27 -> 1.456112987 | AW28: =IF(ISNA(VLOOKUP($AA28,Escalation!$A$7:$R$54,MATCH(AW$8,Escalation!$6:$6,0),FALSE)*100),VLOOKUP(CONCATENATE("Post ",MAX(Escalation!$A:$A)),Escalation!$A$7:$R$54,MATCH(AW$8,Escalation!$6:$6,0),FALSE)*100,VLOOKUP($AA28,Escalation!$A$7:$R$54,MATCH(AW$8,Escalation!$6:$6,0),FALSE)*100) -> 2.050029531 | AX28: =(1+AW28/100)*AX27 -> 1.356374506 | AY28: =IF(ISNA(VLOOKUP($AA28,Escalation!$A$7:$R$54,MATCH(AY$8,Escalation!$6:$6,0),FALSE)*100),VLOOKUP(CONCATENATE("Post ",MAX(Escalation!$A:$A)),Escalation!$A$7:$R$54,MATCH(AY$8,Escalation!$6:$6,0),FALSE)*100,VLOOKUP($AA28,Escalation!$A$7:$R$54,MATCH(AY$8,Escalation!$6:$6,0),FALSE)*100) -> 2.050029531 | AZ28: =(1+AY28/100)*AZ27 -> 1.356374506
B29: Date Printed: | D29: =NOW() -> 2019-02-27T10:41:48.630 | E29: =NOW() -> 43523.4457 | O29: REV 09.01 | AA29: 2034 | AB29: =IF(ISNA(VLOOKUP($AA29,Escalation!$A$7:$R$54,MATCH(AB$7,Escalation!$6:$6,0),FALSE)*100),VLOOKUP(CONCATENATE("Post ",MAX(Escalation!$A:$A)),Escalation!$A$7:$R$54,MATCH(AB$7,Escalation!$6:$6,0),FALSE)*100,VLOOKUP($AA29,Escalation!$A$7:$R$54,MATCH(AB$7,Escalation!$6:$6,0),FALSE)*100) -> 2.210875284 | AC29: 1.41911952 | AD29: =IF(ISNA(VLOOKUP($AA29,Escalation!$A$7:$R$54,MATCH(AD$7,Escalation!$6:$6,0),FALSE)*100),VLOOKUP(CONCATENATE("Post ",MAX(Escalation!$A:$A)),Escalation!$A$7:$R$54,MATCH(AD$7,Escalation!$6:$6,0),FALSE)*100,VLOOKUP($AA29,Escalation!$A$7:$R$54,MATCH(AD$7,Escalation!$6:$6,0),FALSE)*100) -> 2.473916856 | AE29: 1.478620684 | AF29: =IF(ISNA(VLOOKUP($AA29,Escalation!$A$7:$R$54,MATCH(AF$7,Escalation!$6:$6,0),FALSE)*100),VLOOKUP(CONCATENATE("Post ",MAX(Escalation!$A:$A)),Escalation!$A$7:$R$54,MATCH(AF$7,Escalation!$6:$6,0),FALSE)*100,VLOOKUP($AA29,Escalation!$A$7:$R$54,MATCH(AF$7,Escalation!$6:$6,0),FALSE)*100) -> 2.736958428 | AG29: 1.540454611 | AH29: =IF(ISNA(VLOOKUP($AA29,Escalation!$A$7:$R$54,MATCH(AH$7,Escalation!$6:$6,0),FALSE)*100),VLOOKUP(CONCATENATE("Post ",MAX(Escalation!$A:$A)),Escalation!$A$7:$R$54,MATCH(AH$7,Escalation!$6:$6,0),FALSE)*100,VLOOKUP($AA29,Escalation!$A$7:$R$54,MATCH(AH$7,Escalation!$6:$6,0),FALSE)*100) -> 3 | AI29: 1.604706439 | AJ29: =IF(ISNA(VLOOKUP($AA29,Escalation!$A$7:$R$54,MATCH(AJ$7,Escalation!$6:$6,0),FALSE)*100),VLOOKUP(CONCATENATE("Post ",MAX(Escalation!$A:$A)),Escalation!$A$7:$R$54,MATCH(AJ$7,Escalation!$6:$6,0),FALSE)*100,VLOOKUP($AA29,Escalation!$A$7:$R$54,MATCH(AJ$7,Escalation!$6:$6,0),FALSE)*100) -> 1.947833713 | AK29: 1.361868771 | AL29: 2034 | AM29: =IF(ISNA(VLOOKUP($AA29,Escalation!$A$7:$R$54,MATCH(AM$8,Escalation!$6:$6,0),FALSE)*100),VLOOKUP(CONCATENATE("Post ",MAX(Escalation!$A:$A)),Escalation!$A$7:$R$54,MATCH(AM$8,Escalation!$6:$6,0),FALSE)*100,VLOOKUP($AA29,Escalation!$A$7:$R$54,MATCH(AM$8,Escalation!$6:$6,0),FALSE)*100) -> 1.947833713 | AN29: 1.361868771 | AO29: =IF(ISNA(VLOOKUP($AA29,Escalation!$A$7:$R$54,MATCH(AO$8,Escalation!$6:$6,0),FALSE)*100),VLOOKUP(CONCATENATE("Post ",MAX(Escalation!$A:$A)),Escalation!$A$7:$R$54,MATCH(AO$8,Escalation!$6:$6,0),FALSE)*100,VLOOKUP($AA29,Escalation!$A$7:$R$54,MATCH(AO$8,Escalation!$6:$6,0),FALSE)*100) -> 2.812969183 | AP29: 1.559024432 | AQ29: =IF(ISNA(VLOOKUP($AA29,Escalation!$A$7:$R$54,MATCH(AQ$8,Escalation!$6:$6,0),FALSE)*100),VLOOKUP(CONCATENATE("Post ",MAX(Escalation!$A:$A)),Escalation!$A$7:$R$54,MATCH(AQ$8,Escalation!$6:$6,0),FALSE)*100,VLOOKUP($AA29,Escalation!$A$7:$R$54,MATCH(AQ$8,Escalation!$6:$6,0),FALSE)*100) -> 2.812969183 | AR29: 1.559024432 | AS29: =IF(ISNA(VLOOKUP($AA29,Escalation!$A$7:$R$54,MATCH(AS$8,Escalation!$6:$6,0),FALSE)*100),VLOOKUP(CONCATENATE("Post ",MAX(Escalation!$A:$A)),Escalation!$A$7:$R$54,MATCH(AS$8,Escalation!$6:$6,0),FALSE)*100,VLOOKUP($AA29,Escalation!$A$7:$R$54,MATCH(AS$8,Escalation!$6:$6,0),FALSE)*100) -> 2.656095012 | AT29: 1.521396691 | AU29: =IF(ISNA(VLOOKUP($AA29,Escalation!$A$7:$R$54,MATCH(AU$8,Escalation!$6:$6,0),FALSE)*100),VLOOKUP(CONCATENATE("Post ",MAX(Escalation!$A:$A)),Escalation!$A$7:$R$54,MATCH(AU$8,Escalation!$6:$6,0),FALSE)*100,VLOOKUP($AA29,Escalation!$A$7:$R$54,MATCH(AU$8,Escalation!$6:$6,0),FALSE)*100) -> 2.53541408 | AV29: 1.49303148 | AW29: =IF(ISNA(VLOOKUP($AA29,Escalation!$A$7:$R$54,MATCH(AW$8,Escalation!$6:$6,0),FALSE)*100),VLOOKUP(CONCATENATE("Post ",MAX(Escalation!$A:$A)),Escalation!$A$7:$R$54,MATCH(AW$8,Escalation!$6:$6,0),FALSE)*100,VLOOKUP($AA29,Escalation!$A$7:$R$54,MATCH(AW$8,Escalation!$6:$6,0),FALSE)*100) -> 2.050029531 | AX29: 1.384180584 | AY29: =IF(ISNA(VLOOKUP($AA29,Escalation!$A$7:$R$54,MATCH(AY$8,Escalation!$6:$6,0),FALSE)*100),VLOOKUP(CONCATENATE("Post ",MAX(Escalation!$A:$A)),Escalation!$A$7:$R$54,MATCH(AY$8,Escalation!$6:$6,0),FALSE)*100,VLOOKUP($AA29,Escalation!$A$7:$R$54,MATCH(AY$8,Escalation!$6:$6,0),FALSE)*100) -> 2.050029531 | AZ29: 1.384180584
AA30: =AA29+1 -> 2035 | AB30: =IF(ISNA(VLOOKUP($AA30,Escalation!$A$7:$R$54,MATCH(AB$7,Escalation!$6:$6,0),FALSE)*100),VLOOKUP(CONCATENATE("Post ",MAX(Escalation!$A:$A)),Escalation!$A$7:$R$54,MATCH(AB$7,Escalation!$6:$6,0),FALSE)*100,VLOOKUP($AA30,Escalation!$A$7:$R$54,MATCH(AB$7,Escalation!$6:$6,0),FALSE)*100) -> 2.210875284 | AC30: =(1+AB30/100)*AC29 -> 1.450494482 | AD30: =IF(ISNA(VLOOKUP($AA30,Escalation!$A$7:$R$54,MATCH(AD$7,Escalation!$6:$6,0),FALSE)*100),VLOOKUP(CONCATENATE("Post ",MAX(Escalation!$A:$A)),Escalation!$A$7:$R$54,MATCH(AD$7,Escalation!$6:$6,0),FALSE)*100,VLOOKUP($AA30,Escalation!$A$7:$R$54,MATCH(AD$7,Escalation!$6:$6,0),FALSE)*100) -> 2.473916856 | AE30: =(1+AD30/100)*AE29 -> 1.51520053 | AF30: =IF(ISNA(VLOOKUP($AA30,Escalation!$A$7:$R$54,MATCH(AF$7,Escalation!$6:$6,0),FALSE)*100),VLOOKUP(CONCATENATE("Post ",MAX(Escalation!$A:$A)),Escalation!$A$7:$R$54,MATCH(AF$7,Escalation!$6:$6,0),FALSE)*100,VLOOKUP($AA30,Escalation!$A$7:$R$54,MATCH(AF$7,Escalation!$6:$6,0),FALSE)*100) -> 2.736958428 | AG30: =(1+AF30/100)*AG29 -> 1.582616213 | AH30: =IF(ISNA(VLOOKUP($AA30,Escalation!$A$7:$R$54,MATCH(AH$7,Escalation!$6:$6,0),FALSE)*100),VLOOKUP(CONCATENATE("Post ",MAX(Escalation!$A:$A)),Escalation!$A$7:$R$54,MATCH(AH$7,Escalation!$6:$6,0),FALSE)*100,VLOOKUP($AA30,Escalation!$A$7:$R$54,MATCH(AH$7,Escalation!$6:$6,0),FALSE)*100) -> 3 | AI30: =(1+AH30/100)*AI29 -> 1.652847632 | AJ30: =IF(ISNA(VLOOKUP($AA30,Escalation!$A$7:$R$54,MATCH(AJ$7,Escalation!$6:$6,0),FALSE)*100),VLOOKUP(CONCATENATE("Post ",MAX(Escalation!$A:$A)),Escalation!$A$7:$R$54,MATCH(AJ$7,Escalation!$6:$6,0),FALSE)*100,VLOOKUP($AA30,Escalation!$A$7:$R$54,MATCH(AJ$7,Escalation!$6:$6,0),FALSE)*100) -> 1.947833713 | AK30: =(1+AJ30/100)*AK29 -> 1.38839571 | AL30: =AL29+1 -> 2035 | AM30: =IF(ISNA(VLOOKUP($AA30,Escalation!$A$7:$R$54,MATCH(AM$8,Escalation!$6:$6,0),FALSE)*100),VLOOKUP(CONCATENATE("Post ",MAX(Escalation!$A:$A)),Escalation!$A$7:$R$54,MATCH(AM$8,Escalation!$6:$6,0),FALSE)*100,VLOOKUP($AA30,Escalation!$A$7:$R$54,MATCH(AM$8,Escalation!$6:$6,0),FALSE)*100) -> 1.947833713 | AN30: =(1+AM30/100)*AN29 -> 1.38839571 | AO30: =IF(ISNA(VLOOKUP($AA30,Escalation!$A$7:$R$54,MATCH(AO$8,Escalation!$6:$6,0),FALSE)*100),VLOOKUP(CONCATENATE("Post ",MAX(Escalation!$A:$A)),Escalation!$A$7:$R$54,MATCH(AO$8,Escalation!$6:$6,0),FALSE)*100,VLOOKUP($AA30,Escalation!$A$7:$R$54,MATCH(AO$8,Escalation!$6:$6,0),FALSE)*100) -> 2.812969183 | AP30: =(1+AO30/100)*AP29 -> 1.602879309 | AQ30: =IF(ISNA(VLOOKUP($AA30,Escalation!$A$7:$R$54,MATCH(AQ$8,Escalation!$6:$6,0),FALSE)*100),VLOOKUP(CONCATENATE("Post ",MAX(Escalation!$A:$A)),Escalation!$A$7:$R$54,MATCH(AQ$8,Escalation!$6:$6,0),FALSE)*100,VLOOKUP($AA30,Escalation!$A$7:$R$54,MATCH(AQ$8,Escalation!$6:$6,0),FALSE)*100) -> 2.812969183 | AR30: =(1+AQ30/100)*AR29 -> 1.602879309 | AS30: =IF(ISNA(VLOOKUP($AA30,Escalation!$A$7:$R$54,MATCH(AS$8,Escalation!$6:$6,0),FALSE)*100),VLOOKUP(CONCATENATE("Post ",MAX(Escalation!$A:$A)),Escalation!$A$7:$R$54,MATCH(AS$8,Escalation!$6:$6,0),FALSE)*100,VLOOKUP($AA30,Escalation!$A$7:$R$54,MATCH(AS$8,Escalation!$6:$6,0),FALSE)*100) -> 2.656095012 | AT30: =(1+AS30/100)*AT29 -> 1.561806432 | AU30: =IF(ISNA(VLOOKUP($AA30,Escalation!$A$7:$R$54,MATCH(AU$8,Escalation!$6:$6,0),FALSE)*100),VLOOKUP(CONCATENATE("Post ",MAX(Escalation!$A:$A)),Escalation!$A$7:$R$54,MATCH(AU$8,Escalation!$6:$6,0),FALSE)*100,VLOOKUP($AA30,Escalation!$A$7:$R$54,MATCH(AU$8,Escalation!$6:$6,0),FALSE)*100) -> 2.53541408 | AV30: =(1+AU30/100)*AV29 -> 1.530886011 | AW30: =IF(ISNA(VLOOKUP($AA30,Escalation!$A$7:$R$54,MATCH(AW$8,Escalation!$6:$6,0),FALSE)*100),VLOOKUP(CONCATENATE("Post ",MAX(Escalation!$A:$A)),Escalation!$A$7:$R$54,MATCH(AW$8,Escalation!$6:$6,0),FALSE)*100,VLOOKUP($AA30,Escalation!$A$7:$R$54,MATCH(AW$8,Escalation!$6:$6,0),FALSE)*100) -> 2.050029531 | AX30: =(1+AW30/100)*AX29 -> 1.412556695 | AY30: =IF(ISNA(VLOOKUP($AA30,Escalation!$A$7:$R$54,MATCH(AY$8,Escalation!$6:$6,0),FALSE)*100),VLOOKUP(CONCATENATE("Post ",MAX(Escalation!$A:$A)),Escalation!$A$7:$R$54,MATCH(AY$8,Escalation!$6:$6,0),FALSE)*100,VLOOKUP($AA30,Escalation!$A$7:$R$54,MATCH(AY$8,Escalation!$6:$6,0),FALSE)*100) -> 2.050029531 | AZ30: =(1+AY30/100)*AZ29 -> 1.412556695
AA31: 2036 | AB31: =IF(ISNA(VLOOKUP($AA31,Escalation!$A$7:$R$54,MATCH(AB$7,Escalation!$6:$6,0),FALSE)*100),VLOOKUP(CONCATENATE("Post ",MAX(Escalation!$A:$A)),Escalation!$A$7:$R$54,MATCH(AB$7,Escalation!$6:$6,0),FALSE)*100,VLOOKUP($AA31,Escalation!$A$7:$R$54,MATCH(AB$7,Escalation!$6:$6,0),FALSE)*100) -> 2.210875284 | AC31: 1.482563106 | AD31: =IF(ISNA(VLOOKUP($AA31,Escalation!$A$7:$R$54,MATCH(AD$7,Escalation!$6:$6,0),FALSE)*100),VLOOKUP(CONCATENATE("Post ",MAX(Escalation!$A:$A)),Escalation!$A$7:$R$54,MATCH(AD$7,Escalation!$6:$6,0),FALSE)*100,VLOOKUP($AA31,Escalation!$A$7:$R$54,MATCH(AD$7,Escalation!$6:$6,0),FALSE)*100) -> 2.473916856 | AE31: 1.552685331 | AF31: =IF(ISNA(VLOOKUP($AA31,Escalation!$A$7:$R$54,MATCH(AF$7,Escalation!$6:$6,0),FALSE)*100),VLOOKUP(CONCATENATE("Post ",MAX(Escalation!$A:$A)),Escalation!$A$7:$R$54,MATCH(AF$7,Escalation!$6:$6,0),FALSE)*100,VLOOKUP($AA31,Escalation!$A$7:$R$54,MATCH(AF$7,Escalation!$6:$6,0),FALSE)*100) -> 2.736958428 | AG31: 1.625931761 | AH31: =IF(ISNA(VLOOKUP($AA31,Escalation!$A$7:$R$54,MATCH(AH$7,Escalation!$6:$6,0),FALSE)*100),VLOOKUP(CONCATENATE("Post ",MAX(Escalation!$A:$A)),Escalation!$A$7:$R$54,MATCH(AH$7,Escalation!$6:$6,0),FALSE)*100,VLOOKUP($AA31,Escalation!$A$7:$R$54,MATCH(AH$7,Escalation!$6:$6,0),FALSE)*100) -> 3 | AI31: 1.702433061 | AJ31: =IF(ISNA(VLOOKUP($AA31,Escalation!$A$7:$R$54,MATCH(AJ$7,Escalation!$6:$6,0),FALSE)*100),VLOOKUP(CONCATENATE("Post ",MAX(Escalation!$A:$A)),Escalation!$A$7:$R$54,MATCH(AJ$7,Escalation!$6:$6,0),FALSE)*100,VLOOKUP($AA31,Escalation!$A$7:$R$54,MATCH(AJ$7,Escalation!$6:$6,0),FALSE)*100) -> 1.947833713 | AK31: 1.41543935 | AL31: 2036 | AM31: =IF(ISNA(VLOOKUP($AA31,Escalation!$A$7:$R$54,MATCH(AM$8,Escalation!$6:$6,0),FALSE)*100),VLOOKUP(CONCATENATE("Post ",MAX(Escalation!$A:$A)),Escalation!$A$7:$R$54,MATCH(AM$8,Escalation!$6:$6,0),FALSE)*100,VLOOKUP($AA31,Escalation!$A$7:$R$54,MATCH(AM$8,Escalation!$6:$6,0),FALSE)*100) -> 1.947833713 | AN31: 1.41543935 | AO31: =IF(ISNA(VLOOKUP($AA31,Escalation!$A$7:$R$54,MATCH(AO$8,Escalation!$6:$6,0),FALSE)*100),VLOOKUP(CONCATENATE("Post ",MAX(Escalation!$A:$A)),Escalation!$A$7:$R$54,MATCH(AO$8,Escalation!$6:$6,0),FALSE)*100,VLOOKUP($AA31,Escalation!$A$7:$R$54,MATCH(AO$8,Escalation!$6:$6,0),FALSE)*100) -> 2.812969183 | AP31: 1.64796781 | AQ31: =IF(ISNA(VLOOKUP($AA31,Escalation!$A$7:$R$54,MATCH(AQ$8,Escalation!$6:$6,0),FALSE)*100),VLOOKUP(CONCATENATE("Post ",MAX(Escalation!$A:$A)),Escalation!$A$7:$R$54,MATCH(AQ$8,Escalation!$6:$6,0),FALSE)*100,VLOOKUP($AA31,Escalation!$A$7:$R$54,MATCH(AQ$8,Escalation!$6:$6,0),FALSE)*100) -> 2.812969183 | AR31: 1.64796781 | AS31: =IF(ISNA(VLOOKUP($AA31,Escalation!$A$7:$R$54,MATCH(AS$8,Escalation!$6:$6,0),FALSE)*100),VLOOKUP(CONCATENATE("Post ",MAX(Escalation!$A:$A)),Escalation!$A$7:$R$54,MATCH(AS$8,Escalation!$6:$6,0),FALSE)*100,VLOOKUP($AA31,Escalation!$A$7:$R$54,MATCH(AS$8,Escalation!$6:$6,0),FALSE)*100) -> 2.656095012 | AT31: 1.603289495 | AU31: =IF(ISNA(VLOOKUP($AA31,Escalation!$A$7:$R$54,MATCH(AU$8,Escalation!$6:$6,0),FALSE)*100),VLOOKUP(CONCATENATE("Post ",MAX(Escalation!$A:$A)),Escalation!$A$7:$R$54,MATCH(AU$8,Escalation!$6:$6,0),FALSE)*100,VLOOKUP($AA31,Escalation!$A$7:$R$54,MATCH(AU$8,Escalation!$6:$6,0),FALSE)*100) -> 2.53541408 | AV31: 1.56970031 | AW31: =IF(ISNA(VLOOKUP($AA31,Escalation!$A$7:$R$54,MATCH(AW$8,Escalation!$6:$6,0),FALSE)*100),VLOOKUP(CONCATENATE("Post ",MAX(Escalation!$A:$A)),Escalation!$A$7:$R$54,MATCH(AW$8,Escalation!$6:$6,0),FALSE)*100,VLOOKUP($AA31,Escalation!$A$7:$R$54,MATCH(AW$8,Escalation!$6:$6,0),FALSE)*100) -> 2.050029531 | AX31: 1.441514524 | AY31: =IF(ISNA(VLOOKUP($AA31,Escalation!$A$7:$R$54,MATCH(AY$8,Escalation!$6:$6,0),FALSE)*100),VLOOKUP(CONCATENATE("Post ",MAX(Escalation!$A:$A)),Escalation!$A$7:$R$54,MATCH(AY$8,Escalation!$6:$6,0),FALSE)*100,VLOOKUP($AA31,Escalation!$A$7:$R$54,MATCH(AY$8,Escalation!$6:$6,0),FALSE)*100) -> 2.050029531 | AZ31: 1.441514524
AA32: 2037 | AB32: =IF(ISNA(VLOOKUP($AA32,Escalation!$A$7:$R$54,MATCH(AB$7,Escalation!$6:$6,0),FALSE)*100),VLOOKUP(CONCATENATE("Post ",MAX(Escalation!$A:$A)),Escalation!$A$7:$R$54,MATCH(AB$7,Escalation!$6:$6,0),FALSE)*100,VLOOKUP($AA32,Escalation!$A$7:$R$54,MATCH(AB$7,Escalation!$6:$6,0),FALSE)*100) -> 2.210875284 | AC32: 1.515340728 | AD32: =IF(ISNA(VLOOKUP($AA32,Escalation!$A$7:$R$54,MATCH(AD$7,Escalation!$6:$6,0),FALSE)*100),VLOOKUP(CONCATENATE("Post ",MAX(Escalation!$A:$A)),Escalation!$A$7:$R$54,MATCH(AD$7,Escalation!$6:$6,0),FALSE)*100,VLOOKUP($AA32,Escalation!$A$7:$R$54,MATCH(AD$7,Escalation!$6:$6,0),FALSE)*100) -> 2.473916856 | AE32: 1.591097476 | AF32: =IF(ISNA(VLOOKUP($AA32,Escalation!$A$7:$R$54,MATCH(AF$7,Escalation!$6:$6,0),FALSE)*100),VLOOKUP(CONCATENATE("Post ",MAX(Escalation!$A:$A)),Escalation!$A$7:$R$54,MATCH(AF$7,Escalation!$6:$6,0),FALSE)*100,VLOOKUP($AA32,Escalation!$A$7:$R$54,MATCH(AF$7,Escalation!$6:$6,0),FALSE)*100) -> 2.736958428 | AG32: 1.670432838 | AH32: =IF(ISNA(VLOOKUP($AA32,Escalation!$A$7:$R$54,MATCH(AH$7,Escalation!$6:$6,0),FALSE)*100),VLOOKUP(CONCATENATE("Post ",MAX(Escalation!$A:$A)),Escalation!$A$7:$R$54,MATCH(AH$7,Escalation!$6:$6,0),FALSE)*100,VLOOKUP($AA32,Escalation!$A$7:$R$54,MATCH(AH$7,Escalation!$6:$6,0),FALSE)*100) -> 3 | AI32: 1.753506053 | AJ32: =IF(ISNA(VLOOKUP($AA32,Escalation!$A$7:$R$54,MATCH(AJ$7,Escalation!$6:$6,0),FALSE)*100),VLOOKUP(CONCATENATE("Post ",MAX(Escalation!$A:$A)),Escalation!$A$7:$R$54,MATCH(AJ$7,Escalation!$6:$6,0),FALSE)*100,VLOOKUP($AA32,Escalation!$A$7:$R$54,MATCH(AJ$7,Escalation!$6:$6,0),FALSE)*100) -> 1.947833713 | AK32: 1.443009755 | AL32: 2037 | AM32: =IF(ISNA(VLOOKUP($AA32,Escalation!$A$7:$R$54,MATCH(AM$8,Escalation!$6:$6,0),FALSE)*100),VLOOKUP(CONCATENATE("Post ",MAX(Escalation!$A:$A)),Escalation!$A$7:$R$54,MATCH(AM$8,Escalation!$6:$6,0),FALSE)*100,VLOOKUP($AA32,Escalation!$A$7:$R$54,MATCH(AM$8,Escalation!$6:$6,0),FALSE)*100) -> 1.947833713 | AN32: 1.443009755 | AO32: =IF(ISNA(VLOOKUP($AA32,Escalation!$A$7:$R$54,MATCH(AO$8,Escalation!$6:$6,0),FALSE)*100),VLOOKUP(CONCATENATE("Post ",MAX(Escalation!$A:$A)),Escalation!$A$7:$R$54,MATCH(AO$8,Escalation!$6:$6,0),FALSE)*100,VLOOKUP($AA32,Escalation!$A$7:$R$54,MATCH(AO$8,Escalation!$6:$6,0),FALSE)*100) -> 2.812969183 | AP32: 1.694324636 | AQ32: =IF(ISNA(VLOOKUP($AA32,Escalation!$A$7:$R$54,MATCH(AQ$8,Escalation!$6:$6,0),FALSE)*100),VLOOKUP(CONCATENATE("Post ",MAX(Escalation!$A:$A)),Escalation!$A$7:$R$54,MATCH(AQ$8,Escalation!$6:$6,0),FALSE)*100,VLOOKUP($AA32,Escalation!$A$7:$R$54,MATCH(AQ$8,Escalation!$6:$6,0),FALSE)*100) -> 2.812969183 | AR32: 1.694324636 | AS32: =IF(ISNA(VLOOKUP($AA32,Escalation!$A$7:$R$54,MATCH(AS$8,Escalation!$6:$6,0),FALSE)*100),VLOOKUP(CONCATENATE("Post ",MAX(Escalation!$A:$A)),Escalation!$A$7:$R$54,MATCH(AS$8,Escalation!$6:$6,0),FALSE)*100,VLOOKUP($AA32,Escalation!$A$7:$R$54,MATCH(AS$8,Escalation!$6:$6,0),FALSE)*100) -> 2.656095012 | AT32: 1.645874387 | AU32: =IF(ISNA(VLOOKUP($AA32,Escalation!$A$7:$R$54,MATCH(AU$8,Escalation!$6:$6,0),FALSE)*100),VLOOKUP(CONCATENATE("Post ",MAX(Escalation!$A:$A)),Escalation!$A$7:$R$54,MATCH(AU$8,Escalation!$6:$6,0),FALSE)*100,VLOOKUP($AA32,Escalation!$A$7:$R$54,MATCH(AU$8,Escalation!$6:$6,0),FALSE)*100) -> 2.53541408 | AV32: 1.609498713 | AW32: =IF(ISNA(VLOOKUP($AA32,Escalation!$A$7:$R$54,MATCH(AW$8,Escalation!$6:$6,0),FALSE)*100),VLOOKUP(CONCATENATE("Post ",MAX(Escalation!$A:$A)),Escalation!$A$7:$R$54,MATCH(AW$8,Escalation!$6:$6,0),FALSE)*100,VLOOKUP($AA32,Escalation!$A$7:$R$54,MATCH(AW$8,Escalation!$6:$6,0),FALSE)*100) -> 2.050029531 | AX32: 1.471065997 | AY32: =IF(ISNA(VLOOKUP($AA32,Escalation!$A$7:$R$54,MATCH(AY$8,Escalation!$6:$6,0),FALSE)*100),VLOOKUP(CONCATENATE("Post ",MAX(Escalation!$A:$A)),Escalation!$A$7:$R$54,MATCH(AY$8,Escalation!$6:$6,0),FALSE)*100,VLOOKUP($AA32,Escalation!$A$7:$R$54,MATCH(AY$8,Escalation!$6:$6,0),FALSE)*100) -> 2.050029531 | AZ32: 1.471065997
AA33: 2038 | AB33: =IF(ISNA(VLOOKUP($AA33,Escalation!$A$7:$R$54,MATCH(AB$7,Escalation!$6:$6,0),FALSE)*100),VLOOKUP(CONCATENATE("Post ",MAX(Escalation!$A:$A)),Escalation!$A$7:$R$54,MATCH(AB$7,Escalation!$6:$6,0),FALSE)*100,VLOOKUP($AA33,Escalation!$A$7:$R$54,MATCH(AB$7,Escalation!$6:$6,0),FALSE)*100) -> 2.210875284 | AC33: 1.548843021 | AD33: =IF(ISNA(VLOOKUP($AA33,Escalation!$A$7:$R$54,MATCH(AD$7,Escalation!$6:$6,0),FALSE)*100),VLOOKUP(CONCATENATE("Post ",MAX(Escalation!$A:$A)),Escalation!$A$7:$R$54,MATCH(AD$7,Escalation!$6:$6,0),FALSE)*100,VLOOKUP($AA33,Escalation!$A$7:$R$54,MATCH(AD$7,Escalation!$6:$6,0),FALSE)*100) -> 2.473916856 | AE33: 1.630459904 | AF33: =IF(ISNA(VLOOKUP($AA33,Escalation!$A$7:$R$54,MATCH(AF$7,Escalation!$6:$6,0),FALSE)*100),VLOOKUP(CONCATENATE("Post ",MAX(Escalation!$A:$A)),Escalation!$A$7:$R$54,MATCH(AF$7,Escalation!$6:$6,0),FALSE)*100,VLOOKUP($AA33,Escalation!$A$7:$R$54,MATCH(AF$7,Escalation!$6:$6,0),FALSE)*100) -> 2.736958428 | AG33: 1.71615189 | AH33: =IF(ISNA(VLOOKUP($AA33,Escalation!$A$7:$R$54,MATCH(AH$7,Escalation!$6:$6,0),FALSE)*100),VLOOKUP(CONCATENATE("Post ",MAX(Escalation!$A:$A)),Escalation!$A$7:$R$54,MATCH(AH$7,Escalation!$6:$6,0),FALSE)*100,VLOOKUP($AA33,Escalation!$A$7:$R$54,MATCH(AH$7,Escalation!$6:$6,0),FALSE)*100) -> 3 | AI33: 1.806111235 | AJ33: =IF(ISNA(VLOOKUP($AA33,Escalation!$A$7:$R$54,MATCH(AJ$7,Escalation!$6:$6,0),FALSE)*100),VLOOKUP(CONCATENATE("Post ",MAX(Escalation!$A:$A)),Escalation!$A$7:$R$54,MATCH(AJ$7,Escalation!$6:$6,0),FALSE)*100,VLOOKUP($AA33,Escalation!$A$7:$R$54,MATCH(AJ$7,Escalation!$6:$6,0),FALSE)*100) -> 1.947833713 | AK33: 1.471117185 | AL33: 2038 | AM33: =IF(ISNA(VLOOKUP($AA33,Escalation!$A$7:$R$54,MATCH(AM$8,Escalation!$6:$6,0),FALSE)*100),VLOOKUP(CONCATENATE("Post ",MAX(Escalation!$A:$A)),Escalation!$A$7:$R$54,MATCH(AM$8,Escalation!$6:$6,0),FALSE)*100,VLOOKUP($AA33,Escalation!$A$7:$R$54,MATCH(AM$8,Escalation!$6:$6,0),FALSE)*100) -> 1.947833713 | AN33: 1.471117185 | AO33: =IF(ISNA(VLOOKUP($AA33,Escalation!$A$7:$R$54,MATCH(AO$8,Escalation!$6:$6,0),FALSE)*100),VLOOKUP(CONCATENATE("Post ",MAX(Escalation!$A:$A)),Escalation!$A$7:$R$54,MATCH(AO$8,Escalation!$6:$6,0),FALSE)*100,VLOOKUP($AA33,Escalation!$A$7:$R$54,MATCH(AO$8,Escalation!$6:$6,0),FALSE)*100) -> 2.812969183 | AP33: 1.741985466 | AQ33: =IF(ISNA(VLOOKUP($AA33,Escalation!$A$7:$R$54,MATCH(AQ$8,Escalation!$6:$6,0),FALSE)*100),VLOOKUP(CONCATENATE("Post ",MAX(Escalation!$A:$A)),Escalation!$A$7:$R$54,MATCH(AQ$8,Escalation!$6:$6,0),FALSE)*100,VLOOKUP($AA33,Escalation!$A$7:$R$54,MATCH(AQ$8,Escalation!$6:$6,0),FALSE)*100) -> 2.812969183 | AR33: 1.741985466 | AS33: =IF(ISNA(VLOOKUP($AA33,Escalation!$A$7:$R$54,MATCH(AS$8,Escalation!$6:$6,0),FALSE)*100),VLOOKUP(CONCATENATE("Post ",MAX(Escalation!$A:$A)),Escalation!$A$7:$R$54,MATCH(AS$8,Escalation!$6:$6,0),FALSE)*100,VLOOKUP($AA33,Escalation!$A$7:$R$54,MATCH(AS$8,Escalation!$6:$6,0),FALSE)*100) -> 2.656095012 | AT33: 1.689590375 | AU33: =IF(ISNA(VLOOKUP($AA33,Escalation!$A$7:$R$54,MATCH(AU$8,Escalation!$6:$6,0),FALSE)*100),VLOOKUP(CONCATENATE("Post ",MAX(Escalation!$A:$A)),Escalation!$A$7:$R$54,MATCH(AU$8,Escalation!$6:$6,0),FALSE)*100,VLOOKUP($AA33,Escalation!$A$7:$R$54,MATCH(AU$8,Escalation!$6:$6,0),FALSE)*100) -> 2.53541408 | AV33: 1.65030617 | AW33: =IF(ISNA(VLOOKUP($AA33,Escalation!$A$7:$R$54,MATCH(AW$8,Escalation!$6:$6,0),FALSE)*100),VLOOKUP(CONCATENATE("Post ",MAX(Escalation!$A:$A)),Escalation!$A$7:$R$54,MATCH(AW$8,Escalation!$6:$6,0),FALSE)*100,VLOOKUP($AA33,Escalation!$A$7:$R$54,MATCH(AW$8,Escalation!$6:$6,0),FALSE)*100) -> 2.050029531 | AX33: 1.501223285 | AY33: =IF(ISNA(VLOOKUP($AA33,Escalation!$A$7:$R$54,MATCH(AY$8,Escalation!$6:$6,0),FALSE)*100),VLOOKUP(CONCATENATE("Post ",MAX(Escalation!$A:$A)),Escalation!$A$7:$R$54,MATCH(AY$8,Escalation!$6:$6,0),FALSE)*100,VLOOKUP($AA33,Escalation!$A$7:$R$54,MATCH(AY$8,Escalation!$6:$6,0),FALSE)*100) -> 2.050029531 | AZ33: 1.501223285
AA34: 2039 | AB34: =IF(ISNA(VLOOKUP($AA34,Escalation!$A$7:$R$54,MATCH(AB$7,Escalation!$6:$6,0),FALSE)*100),VLOOKUP(CONCATENATE("Post ",MAX(Escalation!$A:$A)),Escalation!$A$7:$R$54,MATCH(AB$7,Escalation!$6:$6,0),FALSE)*100,VLOOKUP($AA34,Escalation!$A$7:$R$54,MATCH(AB$7,Escalation!$6:$6,0),FALSE)*100) -> 2.210875284 | AC34: 1.583086009 | AD34: =IF(ISNA(VLOOKUP($AA34,Escalation!$A$7:$R$54,MATCH(AD$7,Escalation!$6:$6,0),FALSE)*100),VLOOKUP(CONCATENATE("Post ",MAX(Escalation!$A:$A)),Escalation!$A$7:$R$54,MATCH(AD$7,Escalation!$6:$6,0),FALSE)*100,VLOOKUP($AA34,Escalation!$A$7:$R$54,MATCH(AD$7,Escalation!$6:$6,0),FALSE)*100) -> 2.473916856 | AE34: 1.670796127 | AF34: =IF(ISNA(VLOOKUP($AA34,Escalation!$A$7:$R$54,MATCH(AF$7,Escalation!$6:$6,0),FALSE)*100),VLOOKUP(CONCATENATE("Post ",MAX(Escalation!$A:$A)),Escalation!$A$7:$R$54,MATCH(AF$7,Escalation!$6:$6,0),FALSE)*100,VLOOKUP($AA34,Escalation!$A$7:$R$54,MATCH(AF$7,Escalation!$6:$6,0),FALSE)*100) -> 2.736958428 | AG34: 1.763122254 | AH34: =IF(ISNA(VLOOKUP($AA34,Escalation!$A$7:$R$54,MATCH(AH$7,Escalation!$6:$6,0),FALSE)*100),VLOOKUP(CONCATENATE("Post ",MAX(Escalation!$A:$A)),Escalation!$A$7:$R$54,MATCH(AH$7,Escalation!$6:$6,0),FALSE)*100,VLOOKUP($AA34,Escalation!$A$7:$R$54,MATCH(AH$7,Escalation!$6:$6,0),FALSE)*100) -> 3 | AI34: 1.860294572 | AJ34: =IF(ISNA(VLOOKUP($AA34,Escalation!$A$7:$R$54,MATCH(AJ$7,Escalation!$6:$6,0),FALSE)*100),VLOOKUP(CONCATENATE("Post ",MAX(Escalation!$A:$A)),Escalation!$A$7:$R$54,MATCH(AJ$7,Escalation!$6:$6,0),FALSE)*100,VLOOKUP($AA34,Escalation!$A$7:$R$54,MATCH(AJ$7,Escalation!$6:$6,0),FALSE)*100) -> 1.947833713 | AK34: 1.499772102 | AL34: 2039 | AM34: =IF(ISNA(VLOOKUP($AA34,Escalation!$A$7:$R$54,MATCH(AM$8,Escalation!$6:$6,0),FALSE)*100),VLOOKUP(CONCATENATE("Post ",MAX(Escalation!$A:$A)),Escalation!$A$7:$R$54,MATCH(AM$8,Escalation!$6:$6,0),FALSE)*100,VLOOKUP($AA34,Escalation!$A$7:$R$54,MATCH(AM$8,Escalation!$6:$6,0),FALSE)*100) -> 1.947833713 | AN34: 1.499772102 | AO34: =IF(ISNA(VLOOKUP($AA34,Escalation!$A$7:$R$54,MATCH(AO$8,Escalation!$6:$6,0),FALSE)*100),VLOOKUP(CONCATENATE("Post ",MAX(Escalation!$A:$A)),Escalation!$A$7:$R$54,MATCH(AO$8,Escalation!$6:$6,0),FALSE)*100,VLOOKUP($AA34,Escalation!$A$7:$R$54,MATCH(AO$8,Escalation!$6:$6,0),FALSE)*100) -> 2.812969183 | AP34: 1.790986981 | AQ34: =IF(ISNA(VLOOKUP($AA34,Escalation!$A$7:$R$54,MATCH(AQ$8,Escalation!$6:$6,0),FALSE)*100),VLOOKUP(CONCATENATE("Post ",MAX(Escalation!$A:$A)),Escalation!$A$7:$R$54,MATCH(AQ$8,Escalation!$6:$6,0),FALSE)*100,VLOOKUP($AA34,Escalation!$A$7:$R$54,MATCH(AQ$8,Escalation!$6:$6,0),FALSE)*100) -> 2.812969183 | AR34: 1.790986981 | AS34: =IF(ISNA(VLOOKUP($AA34,Escalation!$A$7:$R$54,MATCH(AS$8,Escalation!$6:$6,0),FALSE)*100),VLOOKUP(CONCATENATE("Post ",MAX(Escalation!$A:$A)),Escalation!$A$7:$R$54,MATCH(AS$8,Escalation!$6:$6,0),FALSE)*100,VLOOKUP($AA34,Escalation!$A$7:$R$54,MATCH(AS$8,Escalation!$6:$6,0),FALSE)*100) -> 2.656095012 | AT34: 1.734467501 | AU34: =IF(ISNA(VLOOKUP($AA34,Escalation!$A$7:$R$54,MATCH(AU$8,Escalation!$6:$6,0),FALSE)*100),VLOOKUP(CONCATENATE("Post ",MAX(Escalation!$A:$A)),Escalation!$A$7:$R$54,MATCH(AU$8,Escalation!$6:$6,0),FALSE)*100,VLOOKUP($AA34,Escalation!$A$7:$R$54,MATCH(AU$8,Escalation!$6:$6,0),FALSE)*100) -> 2.53541408 | AV34: 1.692148265 | AW34: =IF(ISNA(VLOOKUP($AA34,Escalation!$A$7:$R$54,MATCH(AW$8,Escalation!$6:$6,0),FALSE)*100),VLOOKUP(CONCATENATE("Post ",MAX(Escalation!$A:$A)),Escalation!$A$7:$R$54,MATCH(AW$8,Escalation!$6:$6,0),FALSE)*100,VLOOKUP($AA34,Escalation!$A$7:$R$54,MATCH(AW$8,Escalation!$6:$6,0),FALSE)*100) -> 2.050029531 | AX34: 1.531998805 | AY34: =IF(ISNA(VLOOKUP($AA34,Escalation!$A$7:$R$54,MATCH(AY$8,Escalation!$6:$6,0),FALSE)*100),VLOOKUP(CONCATENATE("Post ",MAX(Escalation!$A:$A)),Escalation!$A$7:$R$54,MATCH(AY$8,Escalation!$6:$6,0),FALSE)*100,VLOOKUP($AA34,Escalation!$A$7:$R$54,MATCH(AY$8,Escalation!$6:$6,0),FALSE)*100) -> 2.050029531 | AZ34: 1.531998805
AA35: 2040 | AB35: =IF(ISNA(VLOOKUP($AA35,Escalation!$A$7:$R$54,MATCH(AB$7,Escalation!$6:$6,0),FALSE)*100),VLOOKUP(CONCATENATE("Post ",MAX(Escalation!$A:$A)),Escalation!$A$7:$R$54,MATCH(AB$7,Escalation!$6:$6,0),FALSE)*100,VLOOKUP($AA35,Escalation!$A$7:$R$54,MATCH(AB$7,Escalation!$6:$6,0),FALSE)*100) -> 2.210875284 | AC35: 1.618086066 | AD35: =IF(ISNA(VLOOKUP($AA35,Escalation!$A$7:$R$54,MATCH(AD$7,Escalation!$6:$6,0),FALSE)*100),VLOOKUP(CONCATENATE("Post ",MAX(Escalation!$A:$A)),Escalation!$A$7:$R$54,MATCH(AD$7,Escalation!$6:$6,0),FALSE)*100,VLOOKUP($AA35,Escalation!$A$7:$R$54,MATCH(AD$7,Escalation!$6:$6,0),FALSE)*100) -> 2.473916856 | AE35: 1.712130234 | AF35: =IF(ISNA(VLOOKUP($AA35,Escalation!$A$7:$R$54,MATCH(AF$7,Escalation!$6:$6,0),FALSE)*100),VLOOKUP(CONCATENATE("Post ",MAX(Escalation!$A:$A)),Escalation!$A$7:$R$54,MATCH(AF$7,Escalation!$6:$6,0),FALSE)*100,VLOOKUP($AA35,Escalation!$A$7:$R$54,MATCH(AF$7,Escalation!$6:$6,0),FALSE)*100) -> 2.736958428 | AG35: 1.811378177 | AH35: =IF(ISNA(VLOOKUP($AA35,Escalation!$A$7:$R$54,MATCH(AH$7,Escalation!$6:$6,0),FALSE)*100),VLOOKUP(CONCATENATE("Post ",MAX(Escalation!$A:$A)),Escalation!$A$7:$R$54,MATCH(AH$7,Escalation!$6:$6,0),FALSE)*100,VLOOKUP($AA35,Escalation!$A$7:$R$54,MATCH(AH$7,Escalation!$6:$6,0),FALSE)*100) -> 3 | AI35: 1.916103409 | AJ35: =IF(ISNA(VLOOKUP($AA35,Escalation!$A$7:$R$54,MATCH(AJ$7,Escalation!$6:$6,0),FALSE)*100),VLOOKUP(CONCATENATE("Post ",MAX(Escalation!$A:$A)),Escalation!$A$7:$R$54,MATCH(AJ$7,Escalation!$6:$6,0),FALSE)*100,VLOOKUP($AA35,Escalation!$A$7:$R$54,MATCH(AJ$7,Escalation!$6:$6,0),FALSE)*100) -> 1.947833713 | AK35: 1.528985168 | AL35: 2040 | AM35: =IF(ISNA(VLOOKUP($AA35,Escalation!$A$7:$R$54,MATCH(AM$8,Escalation!$6:$6,0),FALSE)*100),VLOOKUP(CONCATENATE("Post ",MAX(Escalation!$A:$A)),Escalation!$A$7:$R$54,MATCH(AM$8,Escalation!$6:$6,0),FALSE)*100,VLOOKUP($AA35,Escalation!$A$7:$R$54,MATCH(AM$8,Escalation!$6:$6,0),FALSE)*100) -> 1.947833713 | AN35: 1.528985168 | AO35: =IF(ISNA(VLOOKUP($AA35,Escalation!$A$7:$R$54,MATCH(AO$8,Escalation!$6:$6,0),FALSE)*100),VLOOKUP(CONCATENATE("Post ",MAX(Escalation!$A:$A)),Escalation!$A$7:$R$54,MATCH(AO$8,Escalation!$6:$6,0),FALSE)*100,VLOOKUP($AA35,Escalation!$A$7:$R$54,MATCH(AO$8,Escalation!$6:$6,0),FALSE)*100) -> 2.812969183 | AP35: 1.841366893 | AQ35: =IF(ISNA(VLOOKUP($AA35,Escalation!$A$7:$R$54,MATCH(AQ$8,Escalation!$6:$6,0),FALSE)*100),VLOOKUP(CONCATENATE("Post ",MAX(Escalation!$A:$A)),Escalation!$A$7:$R$54,MATCH(AQ$8,Escalation!$6:$6,0),FALSE)*100,VLOOKUP($AA35,Escalation!$A$7:$R$54,MATCH(AQ$8,Escalation!$6:$6,0),FALSE)*100) -> 2.812969183 | AR35: 1.841366893 | AS35: =IF(ISNA(VLOOKUP($AA35,Escalation!$A$7:$R$54,MATCH(AS$8,Escalation!$6:$6,0),FALSE)*100),VLOOKUP(CONCATENATE("Post ",MAX(Escalation!$A:$A)),Escalation!$A$7:$R$54,MATCH(AS$8,Escalation!$6:$6,0),FALSE)*100,VLOOKUP($AA35,Escalation!$A$7:$R$54,MATCH(AS$8,Escalation!$6:$6,0),FALSE)*100) -> 2.656095012 | AT35: 1.780536605 | AU35: =IF(ISNA(VLOOKUP($AA35,Escalation!$A$7:$R$54,MATCH(AU$8,Escalation!$6:$6,0),FALSE)*100),VLOOKUP(CONCATENATE("Post ",MAX(Escalation!$A:$A)),Escalation!$A$7:$R$54,MATCH(AU$8,Escalation!$6:$6,0),FALSE)*100,VLOOKUP($AA35,Escalation!$A$7:$R$54,MATCH(AU$8,Escalation!$6:$6,0),FALSE)*100) -> 2.53541408 | AV35: 1.73505123 | AW35: =IF(ISNA(VLOOKUP($AA35,Escalation!$A$7:$R$54,MATCH(AW$8,Escalation!$6:$6,0),FALSE)*100),VLOOKUP(CONCATENATE("Post ",MAX(Escalation!$A:$A)),Escalation!$A$7:$R$54,MATCH(AW$8,Escalation!$6:$6,0),FALSE)*100,VLOOKUP($AA35,Escalation!$A$7:$R$54,MATCH(AW$8,Escalation!$6:$6,0),FALSE)*100) -> 2.050029531 | AX35: 1.563405233 | AY35: =IF(ISNA(VLOOKUP($AA35,Escalation!$A$7:$R$54,MATCH(AY$8,Escalation!$6:$6,0),FALSE)*100),VLOOKUP(CONCATENATE("Post ",MAX(Escalation!$A:$A)),Escalation!$A$7:$R$54,MATCH(AY$8,Escalation!$6:$6,0),FALSE)*100,VLOOKUP($AA35,Escalation!$A$7:$R$54,MATCH(AY$8,Escalation!$6:$6,0),FALSE)*100) -> 2.050029531 | AZ35: 1.563405233
AA36: 2041 | AB36: =IF(ISNA(VLOOKUP($AA36,Escalation!$A$7:$R$54,MATCH(AB$7,Escalation!$6:$6,0),FALSE)*100),VLOOKUP(CONCATENATE("Post ",MAX(Escalation!$A:$A)),Escalation!$A$7:$R$54,MATCH(AB$7,Escalation!$6:$6,0),FALSE)*100,VLOOKUP($AA36,Escalation!$A$7:$R$54,MATCH(AB$7,Escalation!$6:$6,0),FALSE)*100) -> 2.210875284 | AC36: 1.653859931 | AD36: =IF(ISNA(VLOOKUP($AA36,Escalation!$A$7:$R$54,MATCH(AD$7,Escalation!$6:$6,0),FALSE)*100),VLOOKUP(CONCATENATE("Post ",MAX(Escalation!$A:$A)),Escalation!$A$7:$R$54,MATCH(AD$7,Escalation!$6:$6,0),FALSE)*100,VLOOKUP($AA36,Escalation!$A$7:$R$54,MATCH(AD$7,Escalation!$6:$6,0),FALSE)*100) -> 2.473916856 | AE36: 1.754486912 | AF36: =IF(ISNA(VLOOKUP($AA36,Escalation!$A$7:$R$54,MATCH(AF$7,Escalation!$6:$6,0),FALSE)*100),VLOOKUP(CONCATENATE("Post ",MAX(Escalation!$A:$A)),Escalation!$A$7:$R$54,MATCH(AF$7,Escalation!$6:$6,0),FALSE)*100,VLOOKUP($AA36,Escalation!$A$7:$R$54,MATCH(AF$7,Escalation!$6:$6,0),FALSE)*100) -> 2.736958428 | AG36: 1.860954844 | AH36: =IF(ISNA(VLOOKUP($AA36,Escalation!$A$7:$R$54,MATCH(AH$7,Escalation!$6:$6,0),FALSE)*100),VLOOKUP(CONCATENATE("Post ",MAX(Escalation!$A:$A)),Escalation!$A$7:$R$54,MATCH(AH$7,Escalation!$6:$6,0),FALSE)*100,VLOOKUP($AA36,Escalation!$A$7:$R$54,MATCH(AH$7,Escalation!$6:$6,0),FALSE)*100) -> 3 | AI36: 1.973586511 | AJ36: =IF(ISNA(VLOOKUP($AA36,Escalation!$A$7:$R$54,MATCH(AJ$7,Escalation!$6:$6,0),FALSE)*100),VLOOKUP(CONCATENATE("Post ",MAX(Escalation!$A:$A)),Escalation!$A$7:$R$54,MATCH(AJ$7,Escalation!$6:$6,0),FALSE)*100,VLOOKUP($AA36,Escalation!$A$7:$R$54,MATCH(AJ$7,Escalation!$6:$6,0),FALSE)*100) -> 1.947833713 | AK36: 1.558767257 | AL36: 2041 | AM36: =IF(ISNA(VLOOKUP($AA36,Escalation!$A$7:$R$54,MATCH(AM$8,Escalation!$6:$6,0),FALSE)*100),VLOOKUP(CONCATENATE("Post ",MAX(Escalation!$A:$A)),Escalation!$A$7:$R$54,MATCH(AM$8,Escalation!$6:$6,0),FALSE)*100,VLOOKUP($AA36,Escalation!$A$7:$R$54,MATCH(AM$8,Escalation!$6:$6,0),FALSE)*100) -> 1.947833713 | AN36: 1.558767257 | AO36: =IF(ISNA(VLOOKUP($AA36,Escalation!$A$7:$R$54,MATCH(AO$8,Escalation!$6:$6,0),FALSE)*100),VLOOKUP(CONCATENATE("Post ",MAX(Escalation!$A:$A)),Escalation!$A$7:$R$54,MATCH(AO$8,Escalation!$6:$6,0),FALSE)*100,VLOOKUP($AA36,Escalation!$A$7:$R$54,MATCH(AO$8,Escalation!$6:$6,0),FALSE)*100) -> 2.812969183 | AP36: 1.893163976 | AQ36: =IF(ISNA(VLOOKUP($AA36,Escalation!$A$7:$R$54,MATCH(AQ$8,Escalation!$6:$6,0),FALSE)*100),VLOOKUP(CONCATENATE("Post ",MAX(Escalation!$A:$A)),Escalation!$A$7:$R$54,MATCH(AQ$8,Escalation!$6:$6,0),FALSE)*100,VLOOKUP($AA36,Escalation!$A$7:$R$54,MATCH(AQ$8,Escalation!$6:$6,0),FALSE)*100) -> 2.812969183 | AR36: 1.893163976 | AS36: =IF(ISNA(VLOOKUP($AA36,Escalation!$A$7:$R$54,MATCH(AS$8,Escalation!$6:$6,0),FALSE)*100),VLOOKUP(CONCATENATE("Post ",MAX(Escalation!$A:$A)),Escalation!$A$7:$R$54,MATCH(AS$8,Escalation!$6:$6,0),FALSE)*100,VLOOKUP($AA36,Escalation!$A$7:$R$54,MATCH(AS$8,Escalation!$6:$6,0),FALSE)*100) -> 2.656095012 | AT36: 1.827829349 | AU36: =IF(ISNA(VLOOKUP($AA36,Escalation!$A$7:$R$54,MATCH(AU$8,Escalation!$6:$6,0),FALSE)*100),VLOOKUP(CONCATENATE("Post ",MAX(Escalation!$A:$A)),Escalation!$A$7:$R$54,MATCH(AU$8,Escalation!$6:$6,0),FALSE)*100,VLOOKUP($AA36,Escalation!$A$7:$R$54,MATCH(AU$8,Escalation!$6:$6,0),FALSE)*100) -> 2.53541408 | AV36: 1.779041964 | AW36: =IF(ISNA(VLOOKUP($AA36,Escalation!$A$7:$R$54,MATCH(AW$8,Escalation!$6:$6,0),FALSE)*100),VLOOKUP(CONCATENATE("Post ",MAX(Escalation!$A:$A)),Escalation!$A$7:$R$54,MATCH(AW$8,Escalation!$6:$6,0),FALSE)*100,VLOOKUP($AA36,Escalation!$A$7:$R$54,MATCH(AW$8,Escalation!$6:$6,0),FALSE)*100) -> 2.050029531 | AX36: 1.595455502 | AY36: =IF(ISNA(VLOOKUP($AA36,Escalation!$A$7:$R$54,MATCH(AY$8,Escalation!$6:$6,0),FALSE)*100),VLOOKUP(CONCATENATE("Post ",MAX(Escalation!$A:$A)),Escalation!$A$7:$R$54,MATCH(AY$8,Escalation!$6:$6,0),FALSE)*100,VLOOKUP($AA36,Escalation!$A$7:$R$54,MATCH(AY$8,Escalation!$6:$6,0),FALSE)*100) -> 2.050029531 | AZ36: 1.595455502
AA37: 2042 | AB37: =IF(ISNA(VLOOKUP($AA37,Escalation!$A$7:$R$54,MATCH(AB$7,Escalation!$6:$6,0),FALSE)*100),VLOOKUP(CONCATENATE("Post ",MAX(Escalation!$A:$A)),Escalation!$A$7:$R$54,MATCH(AB$7,Escalation!$6:$6,0),FALSE)*100,VLOOKUP($AA37,Escalation!$A$7:$R$54,MATCH(AB$7,Escalation!$6:$6,0),FALSE)*100) -> 2.210875284 | AC37: 1.690424711 | AD37: =IF(ISNA(VLOOKUP($AA37,Escalation!$A$7:$R$54,MATCH(AD$7,Escalation!$6:$6,0),FALSE)*100),VLOOKUP(CONCATENATE("Post ",MAX(Escalation!$A:$A)),Escalation!$A$7:$R$54,MATCH(AD$7,Escalation!$6:$6,0),FALSE)*100,VLOOKUP($AA37,Escalation!$A$7:$R$54,MATCH(AD$7,Escalation!$6:$6,0),FALSE)*100) -> 2.473916856 | AE37: 1.79789146 | AF37: =IF(ISNA(VLOOKUP($AA37,Escalation!$A$7:$R$54,MATCH(AF$7,Escalation!$6:$6,0),FALSE)*100),VLOOKUP(CONCATENATE("Post ",MAX(Escalation!$A:$A)),Escalation!$A$7:$R$54,MATCH(AF$7,Escalation!$6:$6,0),FALSE)*100,VLOOKUP($AA37,Escalation!$A$7:$R$54,MATCH(AF$7,Escalation!$6:$6,0),FALSE)*100) -> 2.736958428 | AG37: 1.911888405 | AH37: =IF(ISNA(VLOOKUP($AA37,Escalation!$A$7:$R$54,MATCH(AH$7,Escalation!$6:$6,0),FALSE)*100),VLOOKUP(CONCATENATE("Post ",MAX(Escalation!$A:$A)),Escalation!$A$7:$R$54,MATCH(AH$7,Escalation!$6:$6,0),FALSE)*100,VLOOKUP($AA37,Escalation!$A$7:$R$54,MATCH(AH$7,Escalation!$6:$6,0),FALSE)*100) -> 3 | AI37: 2.032794106 | AJ37: =IF(ISNA(VLOOKUP($AA37,Escalation!$A$7:$R$54,MATCH(AJ$7,Escalation!$6:$6,0),FALSE)*100),VLOOKUP(CONCATENATE("Post ",MAX(Escalation!$A:$A)),Escalation!$A$7:$R$54,MATCH(AJ$7,Escalation!$6:$6,0),FALSE)*100,VLOOKUP($AA37,Escalation!$A$7:$R$54,MATCH(AJ$7,Escalation!$6:$6,0),FALSE)*100) -> 1.947833713 | AK37: 1.589129451 | AL37: 2042 | AM37: =IF(ISNA(VLOOKUP($AA37,Escalation!$A$7:$R$54,MATCH(AM$8,Escalation!$6:$6,0),FALSE)*100),VLOOKUP(CONCATENATE("Post ",MAX(Escalation!$A:$A)),Escalation!$A$7:$R$54,MATCH(AM$8,Escalation!$6:$6,0),FALSE)*100,VLOOKUP($AA37,Escalation!$A$7:$R$54,MATCH(AM$8,Escalation!$6:$6,0),FALSE)*100) -> 1.947833713 | AN37: 1.589129451 | AO37: =IF(ISNA(VLOOKUP($AA37,Escalation!$A$7:$R$54,MATCH(AO$8,Escalation!$6:$6,0),FALSE)*100),VLOOKUP(CONCATENATE("Post ",MAX(Escalation!$A:$A)),Escalation!$A$7:$R$54,MATCH(AO$8,Escalation!$6:$6,0),FALSE)*100,VLOOKUP($AA37,Escalation!$A$7:$R$54,MATCH(AO$8,Escalation!$6:$6,0),FALSE)*100) -> 2.812969183 | AP37: 1.946418095 | AQ37: =IF(ISNA(VLOOKUP($AA37,Escalation!$A$7:$R$54,MATCH(AQ$8,Escalation!$6:$6,0),FALSE)*100),VLOOKUP(CONCATENATE("Post ",MAX(Escalation!$A:$A)),Escalation!$A$7:$R$54,MATCH(AQ$8,Escalation!$6:$6,0),FALSE)*100,VLOOKUP($AA37,Escalation!$A$7:$R$54,MATCH(AQ$8,Escalation!$6:$6,0),FALSE)*100) -> 2.812969183 | AR37: 1.946418095 | AS37: =IF(ISNA(VLOOKUP($AA37,Escalation!$A$7:$R$54,MATCH(AS$8,Escalation!$6:$6,0),FALSE)*100),VLOOKUP(CONCATENATE("Post ",MAX(Escalation!$A:$A)),Escalation!$A$7:$R$54,MATCH(AS$8,Escalation!$6:$6,0),FALSE)*100,VLOOKUP($AA37,Escalation!$A$7:$R$54,MATCH(AS$8,Escalation!$6:$6,0),FALSE)*100) -> 2.656095012 | AT37: 1.876378233 | AU37: =IF(ISNA(VLOOKUP($AA37,Escalation!$A$7:$R$54,MATCH(AU$8,Escalation!$6:$6,0),FALSE)*100),VLOOKUP(CONCATENATE("Post ",MAX(Escalation!$A:$A)),Escalation!$A$7:$R$54,MATCH(AU$8,Escalation!$6:$6,0),FALSE)*100,VLOOKUP($AA37,Escalation!$A$7:$R$54,MATCH(AU$8,Escalation!$6:$6,0),FALSE)*100) -> 2.53541408 | AV37: 1.824148044 | AW37: =IF(ISNA(VLOOKUP($AA37,Escalation!$A$7:$R$54,MATCH(AW$8,Escalation!$6:$6,0),FALSE)*100),VLOOKUP(CONCATENATE("Post ",MAX(Escalation!$A:$A)),Escalation!$A$7:$R$54,MATCH(AW$8,Escalation!$6:$6,0),FALSE)*100,VLOOKUP($AA37,Escalation!$A$7:$R$54,MATCH(AW$8,Escalation!$6:$6,0),FALSE)*100) -> 2.050029531 | AX37: 1.628162811 | AY37: =IF(ISNA(VLOOKUP($AA37,Escalation!$A$7:$R$54,MATCH(AY$8,Escalation!$6:$6,0),FALSE)*100),VLOOKUP(CONCATENATE("Post ",MAX(Escalation!$A:$A)),Escalation!$A$7:$R$54,MATCH(AY$8,Escalation!$6:$6,0),FALSE)*100,VLOOKUP($AA37,Escalation!$A$7:$R$54,MATCH(AY$8,Escalation!$6:$6,0),FALSE)*100) -> 2.050029531 | AZ37: 1.628162811
AA38: 2043 | AB38: =IF(ISNA(VLOOKUP($AA38,Escalation!$A$7:$R$54,MATCH(AB$7,Escalation!$6:$6,0),FALSE)*100),VLOOKUP(CONCATENATE("Post ",MAX(Escalation!$A:$A)),Escalation!$A$7:$R$54,MATCH(AB$7,Escalation!$6:$6,0),FALSE)*100,VLOOKUP($AA38,Escalation!$A$7:$R$54,MATCH(AB$7,Escalation!$6:$6,0),FALSE)*100) -> 2.210875284 | AC38: 1.727797894 | AD38: =IF(ISNA(VLOOKUP($AA38,Escalation!$A$7:$R$54,MATCH(AD$7,Escalation!$6:$6,0),FALSE)*100),VLOOKUP(CONCATENATE("Post ",MAX(Escalation!$A:$A)),Escalation!$A$7:$R$54,MATCH(AD$7,Escalation!$6:$6,0),FALSE)*100,VLOOKUP($AA38,Escalation!$A$7:$R$54,MATCH(AD$7,Escalation!$6:$6,0),FALSE)*100) -> 2.473916856 | AE38: 1.842369799 | AF38: =IF(ISNA(VLOOKUP($AA38,Escalation!$A$7:$R$54,MATCH(AF$7,Escalation!$6:$6,0),FALSE)*100),VLOOKUP(CONCATENATE("Post ",MAX(Escalation!$A:$A)),Escalation!$A$7:$R$54,MATCH(AF$7,Escalation!$6:$6,0),FALSE)*100,VLOOKUP($AA38,Escalation!$A$7:$R$54,MATCH(AF$7,Escalation!$6:$6,0),FALSE)*100) -> 2.736958428 | AG38: 1.964215996 | AH38: =IF(ISNA(VLOOKUP($AA38,Escalation!$A$7:$R$54,MATCH(AH$7,Escalation!$6:$6,0),FALSE)*100),VLOOKUP(CONCATENATE("Post ",MAX(Escalation!$A:$A)),Escalation!$A$7:$R$54,MATCH(AH$7,Escalation!$6:$6,0),FALSE)*100,VLOOKUP($AA38,Escalation!$A$7:$R$54,MATCH(AH$7,Escalation!$6:$6,0),FALSE)*100) -> 3 | AI38: 2.09377793 | AJ38: =IF(ISNA(VLOOKUP($AA38,Escalation!$A$7:$R$54,MATCH(AJ$7,Escalation!$6:$6,0),FALSE)*100),VLOOKUP(CONCATENATE("Post ",MAX(Escalation!$A:$A)),Escalation!$A$7:$R$54,MATCH(AJ$7,Escalation!$6:$6,0),FALSE)*100,VLOOKUP($AA38,Escalation!$A$7:$R$54,MATCH(AJ$7,Escalation!$6:$6,0),FALSE)*100) -> 1.947833713 | AK38: 1.62008305 | AL38: 2043 | AM38: =IF(ISNA(VLOOKUP($AA38,Escalation!$A$7:$R$54,MATCH(AM$8,Escalation!$6:$6,0),FALSE)*100),VLOOKUP(CONCATENATE("Post ",MAX(Escalation!$A:$A)),Escalation!$A$7:$R$54,MATCH(AM$8,Escalation!$6:$6,0),FALSE)*100,VLOOKUP($AA38,Escalation!$A$7:$R$54,MATCH(AM$8,Escalation!$6:$6,0),FALSE)*100) -> 1.947833713 | AN38: 1.62008305 | AO38: =IF(ISNA(VLOOKUP($AA38,Escalation!$A$7:$R$54,MATCH(AO$8,Escalation!$6:$6,0),FALSE)*100),VLOOKUP(CONCATENATE("Post ",MAX(Escalation!$A:$A)),Escalation!$A$7:$R$54,MATCH(AO$8,Escalation!$6:$6,0),FALSE)*100,VLOOKUP($AA38,Escalation!$A$7:$R$54,MATCH(AO$8,Escalation!$6:$6,0),FALSE)*100) -> 2.812969183 | AP38: 2.001170236 | AQ38: =IF(ISNA(VLOOKUP($AA38,Escalation!$A$7:$R$54,MATCH(AQ$8,Escalation!$6:$6,0),FALSE)*100),VLOOKUP(CONCATENATE("Post ",MAX(Escalation!$A:$A)),Escalation!$A$7:$R$54,MATCH(AQ$8,Escalation!$6:$6,0),FALSE)*100,VLOOKUP($AA38,Escalation!$A$7:$R$54,MATCH(AQ$8,Escalation!$6:$6,0),FALSE)*100) -> 2.812969183 | AR38: 2.001170236 | AS38: =IF(ISNA(VLOOKUP($AA38,Escalation!$A$7:$R$54,MATCH(AS$8,Escalation!$6:$6,0),FALSE)*100),VLOOKUP(CONCATENATE("Post ",MAX(Escalation!$A:$A)),Escalation!$A$7:$R$54,MATCH(AS$8,Escalation!$6:$6,0),FALSE)*100,VLOOKUP($AA38,Escalation!$A$7:$R$54,MATCH(AS$8,Escalation!$6:$6,0),FALSE)*100) -> 2.656095012 | AT38: 1.926216622 | AU38: =IF(ISNA(VLOOKUP($AA38,Escalation!$A$7:$R$54,MATCH(AU$8,Escalation!$6:$6,0),FALSE)*100),VLOOKUP(CONCATENATE("Post ",MAX(Escalation!$A:$A)),Escalation!$A$7:$R$54,MATCH(AU$8,Escalation!$6:$6,0),FALSE)*100,VLOOKUP($AA38,Escalation!$A$7:$R$54,MATCH(AU$8,Escalation!$6:$6,0),FALSE)*100) -> 2.53541408 | AV38: 1.87039775 | AW38: =IF(ISNA(VLOOKUP($AA38,Escalation!$A$7:$R$54,MATCH(AW$8,Escalation!$6:$6,0),FALSE)*100),VLOOKUP(CONCATENATE("Post ",MAX(Escalation!$A:$A)),Escalation!$A$7:$R$54,MATCH(AW$8,Escalation!$6:$6,0),FALSE)*100,VLOOKUP($AA38,Escalation!$A$7:$R$54,MATCH(AW$8,Escalation!$6:$6,0),FALSE)*100) -> 2.050029531 | AX38: 1.66154063 | AY38: =IF(ISNA(VLOOKUP($AA38,Escalation!$A$7:$R$54,MATCH(AY$8,Escalation!$6:$6,0),FALSE)*100),VLOOKUP(CONCATENATE("Post ",MAX(Escalation!$A:$A)),Escalation!$A$7:$R$54,MATCH(AY$8,Escalation!$6:$6,0),FALSE)*100,VLOOKUP($AA38,Escalation!$A$7:$R$54,MATCH(AY$8,Escalation!$6:$6,0),FALSE)*100) -> 2.050029531 | AZ38: 1.66154063
AA39: 2044 | AB39: =IF(ISNA(VLOOKUP($AA39,Escalation!$A$7:$R$54,MATCH(AB$7,Escalation!$6:$6,0),FALSE)*100),VLOOKUP(CONCATENATE("Post ",MAX(Escalation!$A:$A)),Escalation!$A$7:$R$54,MATCH(AB$7,Escalation!$6:$6,0),FALSE)*100,VLOOKUP($AA39,Escalation!$A$7:$R$54,MATCH(AB$7,Escalation!$6:$6,0),FALSE)*100) -> 2.210875284 | AC39: 1.76599735 | AD39: =IF(ISNA(VLOOKUP($AA39,Escalation!$A$7:$R$54,MATCH(AD$7,Escalation!$6:$6,0),FALSE)*100),VLOOKUP(CONCATENATE("Post ",MAX(Escalation!$A:$A)),Escalation!$A$7:$R$54,MATCH(AD$7,Escalation!$6:$6,0),FALSE)*100,VLOOKUP($AA39,Escalation!$A$7:$R$54,MATCH(AD$7,Escalation!$6:$6,0),FALSE)*100) -> 2.473916856 | AE39: 1.887948497 | AF39: =IF(ISNA(VLOOKUP($AA39,Escalation!$A$7:$R$54,MATCH(AF$7,Escalation!$6:$6,0),FALSE)*100),VLOOKUP(CONCATENATE("Post ",MAX(Escalation!$A:$A)),Escalation!$A$7:$R$54,MATCH(AF$7,Escalation!$6:$6,0),FALSE)*100,VLOOKUP($AA39,Escalation!$A$7:$R$54,MATCH(AF$7,Escalation!$6:$6,0),FALSE)*100) -> 2.736958428 | AG39: 2.017975771 | AH39: =IF(ISNA(VLOOKUP($AA39,Escalation!$A$7:$R$54,MATCH(AH$7,Escalation!$6:$6,0),FALSE)*100),VLOOKUP(CONCATENATE("Post ",MAX(Escalation!$A:$A)),Escalation!$A$7:$R$54,MATCH(AH$7,Escalation!$6:$6,0),FALSE)*100,VLOOKUP($AA39,Escalation!$A$7:$R$54,MATCH(AH$7,Escalation!$6:$6,0),FALSE)*100) -> 3 | AI39: 2.156591268 | AJ39: =IF(ISNA(VLOOKUP($AA39,Escalation!$A$7:$R$54,MATCH(AJ$7,Escalation!$6:$6,0),FALSE)*100),VLOOKUP(CONCATENATE("Post ",MAX(Escalation!$A:$A)),Escalation!$A$7:$R$54,MATCH(AJ$7,Escalation!$6:$6,0),FALSE)*100,VLOOKUP($AA39,Escalation!$A$7:$R$54,MATCH(AJ$7,Escalation!$6:$6,0),FALSE)*100) -> 1.947833713 | AK39: 1.651639574 | AL39: 2044 | AM39: =IF(ISNA(VLOOKUP($AA39,Escalation!$A$7:$R$54,MATCH(AM$8,Escalation!$6:$6,0),FALSE)*100),VLOOKUP(CONCATENATE("Post ",MAX(Escalation!$A:$A)),Escalation!$A$7:$R$54,MATCH(AM$8,Escalation!$6:$6,0),FALSE)*100,VLOOKUP($AA39,Escalation!$A$7:$R$54,MATCH(AM$8,Escalation!$6:$6,0),FALSE)*100) -> 1.947833713 | AN39: 1.651639574 | AO39: =IF(ISNA(VLOOKUP($AA39,Escalation!$A$7:$R$54,MATCH(AO$8,Escalation!$6:$6,0),FALSE)*100),VLOOKUP(CONCATENATE("Post ",MAX(Escalation!$A:$A)),Escalation!$A$7:$R$54,MATCH(AO$8,Escalation!$6:$6,0),FALSE)*100,VLOOKUP($AA39,Escalation!$A$7:$R$54,MATCH(AO$8,Escalation!$6:$6,0),FALSE)*100) -> 2.812969183 | AP39: 2.057462538 | AQ39: =IF(ISNA(VLOOKUP($AA39,Escalation!$A$7:$R$54,MATCH(AQ$8,Escalation!$6:$6,0),FALSE)*100),VLOOKUP(CONCATENATE("Post ",MAX(Escalation!$A:$A)),Escalation!$A$7:$R$54,MATCH(AQ$8,Escalation!$6:$6,0),FALSE)*100,VLOOKUP($AA39,Escalation!$A$7:$R$54,MATCH(AQ$8,Escalation!$6:$6,0),FALSE)*100) -> 2.812969183 | AR39: 2.057462538 | AS39: =IF(ISNA(VLOOKUP($AA39,Escalation!$A$7:$R$54,MATCH(AS$8,Escalation!$6:$6,0),FALSE)*100),VLOOKUP(CONCATENATE("Post ",MAX(Escalation!$A:$A)),Escalation!$A$7:$R$54,MATCH(AS$8,Escalation!$6:$6,0),FALSE)*100,VLOOKUP($AA39,Escalation!$A$7:$R$54,MATCH(AS$8,Escalation!$6:$6,0),FALSE)*100) -> 2.656095012 | AT39: 1.977378766 | AU39: =IF(ISNA(VLOOKUP($AA39,Escalation!$A$7:$R$54,MATCH(AU$8,Escalation!$6:$6,0),FALSE)*100),VLOOKUP(CONCATENATE("Post ",MAX(Escalation!$A:$A)),Escalation!$A$7:$R$54,MATCH(AU$8,Escalation!$6:$6,0),FALSE)*100,VLOOKUP($AA39,Escalation!$A$7:$R$54,MATCH(AU$8,Escalation!$6:$6,0),FALSE)*100) -> 2.53541408 | AV39: 1.917820078 | AW39: =IF(ISNA(VLOOKUP($AA39,Escalation!$A$7:$R$54,MATCH(AW$8,Escalation!$6:$6,0),FALSE)*100),VLOOKUP(CONCATENATE("Post ",MAX(Escalation!$A:$A)),Escalation!$A$7:$R$54,MATCH(AW$8,Escalation!$6:$6,0),FALSE)*100,VLOOKUP($AA39,Escalation!$A$7:$R$54,MATCH(AW$8,Escalation!$6:$6,0),FALSE)*100) -> 2.050029531 | AX39: 1.695602703 | AY39: =IF(ISNA(VLOOKUP($AA39,Escalation!$A$7:$R$54,MATCH(AY$8,Escalation!$6:$6,0),FALSE)*100),VLOOKUP(CONCATENATE("Post ",MAX(Escalation!$A:$A)),Escalation!$A$7:$R$54,MATCH(AY$8,Escalation!$6:$6,0),FALSE)*100,VLOOKUP($AA39,Escalation!$A$7:$R$54,MATCH(AY$8,Escalation!$6:$6,0),FALSE)*100) -> 2.050029531 | AZ39: 1.695602703
AA40: 2045 | AB40: =IF(ISNA(VLOOKUP($AA40,Escalation!$A$7:$R$54,MATCH(AB$7,Escalation!$6:$6,0),FALSE)*100),VLOOKUP(CONCATENATE("Post ",MAX(Escalation!$A:$A)),Escalation!$A$7:$R$54,MATCH(AB$7,Escalation!$6:$6,0),FALSE)*100,VLOOKUP($AA40,Escalation!$A$7:$R$54,MATCH(AB$7,Escalation!$6:$6,0),FALSE)*100) -> 2.210875284 | AC40: 1.805041349 | AD40: =IF(ISNA(VLOOKUP($AA40,Escalation!$A$7:$R$54,MATCH(AD$7,Escalation!$6:$6,0),FALSE)*100),VLOOKUP(CONCATENATE("Post ",MAX(Escalation!$A:$A)),Escalation!$A$7:$R$54,MATCH(AD$7,Escalation!$6:$6,0),FALSE)*100,VLOOKUP($AA40,Escalation!$A$7:$R$54,MATCH(AD$7,Escalation!$6:$6,0),FALSE)*100) -> 2.473916856 | AE40: 1.934654773 | AF40: =IF(ISNA(VLOOKUP($AA40,Escalation!$A$7:$R$54,MATCH(AF$7,Escalation!$6:$6,0),FALSE)*100),VLOOKUP(CONCATENATE("Post ",MAX(Escalation!$A:$A)),Escalation!$A$7:$R$54,MATCH(AF$7,Escalation!$6:$6,0),FALSE)*100,VLOOKUP($AA40,Escalation!$A$7:$R$54,MATCH(AF$7,Escalation!$6:$6,0),FALSE)*100) -> 2.736958428 | AG40: 2.073206929 | AH40: =IF(ISNA(VLOOKUP($AA40,Escalation!$A$7:$R$54,MATCH(AH$7,Escalation!$6:$6,0),FALSE)*100),VLOOKUP(CONCATENATE("Post ",MAX(Escalation!$A:$A)),Escalation!$A$7:$R$54,MATCH(AH$7,Escalation!$6:$6,0),FALSE)*100,VLOOKUP($AA40,Escalation!$A$7:$R$54,MATCH(AH$7,Escalation!$6:$6,0),FALSE)*100) -> 3 | AI40: 2.221289006 | AJ40: =IF(ISNA(VLOOKUP($AA40,Escalation!$A$7:$R$54,MATCH(AJ$7,Escalation!$6:$6,0),FALSE)*100),VLOOKUP(CONCATENATE("Post ",MAX(Escalation!$A:$A)),Escalation!$A$7:$R$54,MATCH(AJ$7,Escalation!$6:$6,0),FALSE)*100,VLOOKUP($AA40,Escalation!$A$7:$R$54,MATCH(AJ$7,Escalation!$6:$6,0),FALSE)*100) -> 1.947833713 | AK40: 1.683810766 | AL40: 2045 | AM40: =IF(ISNA(VLOOKUP($AA40,Escalation!$A$7:$R$54,MATCH(AM$8,Escalation!$6:$6,0),FALSE)*100),VLOOKUP(CONCATENATE("Post ",MAX(Escalation!$A:$A)),Escalation!$A$7:$R$54,MATCH(AM$8,Escalation!$6:$6,0),FALSE)*100,VLOOKUP($AA40,Escalation!$A$7:$R$54,MATCH(AM$8,Escalation!$6:$6,0),FALSE)*100) -> 1.947833713 | AN40: 1.683810766 | AO40: =IF(ISNA(VLOOKUP($AA40,Escalation!$A$7:$R$54,MATCH(AO$8,Escalation!$6:$6,0),FALSE)*100),VLOOKUP(CONCATENATE("Post ",MAX(Escalation!$A:$A)),Escalation!$A$7:$R$54,MATCH(AO$8,Escalation!$6:$6,0),FALSE)*100,VLOOKUP($AA40,Escalation!$A$7:$R$54,MATCH(AO$8,Escalation!$6:$6,0),FALSE)*100) -> 2.812969183 | AP40: 2.115338325 | AQ40: =IF(ISNA(VLOOKUP($AA40,Escalation!$A$7:$R$54,MATCH(AQ$8,Escalation!$6:$6,0),FALSE)*100),VLOOKUP(CONCATENATE("Post ",MAX(Escalation!$A:$A)),Escalation!$A$7:$R$54,MATCH(AQ$8,Escalation!$6:$6,0),FALSE)*100,VLOOKUP($AA40,Escalation!$A$7:$R$54,MATCH(AQ$8,Escalation!$6:$6,0),FALSE)*100) -> 2.812969183 | AR40: 2.115338325 | AS40: =IF(ISNA(VLOOKUP($AA40,Escalation!$A$7:$R$54,MATCH(AS$8,Escalation!$6:$6,0),FALSE)*100),VLOOKUP(CONCATENATE("Post ",MAX(Escalation!$A:$A)),Escalation!$A$7:$R$54,MATCH(AS$8,Escalation!$6:$6,0),FALSE)*100,VLOOKUP($AA40,Escalation!$A$7:$R$54,MATCH(AS$8,Escalation!$6:$6,0),FALSE)*100) -> 2.656095012 | AT40: 2.029899824 | AU40: =IF(ISNA(VLOOKUP($AA40,Escalation!$A$7:$R$54,MATCH(AU$8,Escalation!$6:$6,0),FALSE)*100),VLOOKUP(CONCATENATE("Post ",MAX(Escalation!$A:$A)),Escalation!$A$7:$R$54,MATCH(AU$8,Escalation!$6:$6,0),FALSE)*100,VLOOKUP($AA40,Escalation!$A$7:$R$54,MATCH(AU$8,Escalation!$6:$6,0),FALSE)*100) -> 2.53541408 | AV40: 1.966444759 | AW40: =IF(ISNA(VLOOKUP($AA40,Escalation!$A$7:$R$54,MATCH(AW$8,Escalation!$6:$6,0),FALSE)*100),VLOOKUP(CONCATENATE("Post ",MAX(Escalation!$A:$A)),Escalation!$A$7:$R$54,MATCH(AW$8,Escalation!$6:$6,0),FALSE)*100,VLOOKUP($AA40,Escalation!$A$7:$R$54,MATCH(AW$8,Escalation!$6:$6,0),FALSE)*100) -> 2.050029531 | AX40: 1.730363059 | AY40: =IF(ISNA(VLOOKUP($AA40,Escalation!$A$7:$R$54,MATCH(AY$8,Escalation!$6:$6,0),FALSE)*100),VLOOKUP(CONCATENATE("Post ",MAX(Escalation!$A:$A)),Escalation!$A$7:$R$54,MATCH(AY$8,Escalation!$6:$6,0),FALSE)*100,VLOOKUP($AA40,Escalation!$A$7:$R$54,MATCH(AY$8,Escalation!$6:$6,0),FALSE)*100) -> 2.050029531 | AZ40: 1.730363059
AA41: 2046 | AB41: =IF(ISNA(VLOOKUP($AA41,Escalation!$A$7:$R$54,MATCH(AB$7,Escalation!$6:$6,0),FALSE)*100),VLOOKUP(CONCATENATE("Post ",MAX(Escalation!$A:$A)),Escalation!$A$7:$R$54,MATCH(AB$7,Escalation!$6:$6,0),FALSE)*100,VLOOKUP($AA41,Escalation!$A$7:$R$54,MATCH(AB$7,Escalation!$6:$6,0),FALSE)*100) -> 2.210875284 | AC41: 1.844948562 | AD41: =IF(ISNA(VLOOKUP($AA41,Escalation!$A$7:$R$54,MATCH(AD$7,Escalation!$6:$6,0),FALSE)*100),VLOOKUP(CONCATENATE("Post ",MAX(Escalation!$A:$A)),Escalation!$A$7:$R$54,MATCH(AD$7,Escalation!$6:$6,0),FALSE)*100,VLOOKUP($AA41,Escalation!$A$7:$R$54,MATCH(AD$7,Escalation!$6:$6,0),FALSE)*100) -> 2.473916856 | AE41: 1.982516523 | AF41: =IF(ISNA(VLOOKUP($AA41,Escalation!$A$7:$R$54,MATCH(AF$7,Escalation!$6:$6,0),FALSE)*100),VLOOKUP(CONCATENATE("Post ",MAX(Escalation!$A:$A)),Escalation!$A$7:$R$54,MATCH(AF$7,Escalation!$6:$6,0),FALSE)*100,VLOOKUP($AA41,Escalation!$A$7:$R$54,MATCH(AF$7,Escalation!$6:$6,0),FALSE)*100) -> 2.736958428 | AG41: 2.129949741 | AH41: =IF(ISNA(VLOOKUP($AA41,Escalation!$A$7:$R$54,MATCH(AH$7,Escalation!$6:$6,0),FALSE)*100),VLOOKUP(CONCATENATE("Post ",MAX(Escalation!$A:$A)),Escalation!$A$7:$R$54,MATCH(AH$7,Escalation!$6:$6,0),FALSE)*100,VLOOKUP($AA41,Escalation!$A$7:$R$54,MATCH(AH$7,Escalation!$6:$6,0),FALSE)*100) -> 3 | AI41: 2.287927676 | AJ41: =IF(ISNA(VLOOKUP($AA41,Escalation!$A$7:$R$54,MATCH(AJ$7,Escalation!$6:$6,0),FALSE)*100),VLOOKUP(CONCATENATE("Post ",MAX(Escalation!$A:$A)),Escalation!$A$7:$R$54,MATCH(AJ$7,Escalation!$6:$6,0),FALSE)*100,VLOOKUP($AA41,Escalation!$A$7:$R$54,MATCH(AJ$7,Escalation!$6:$6,0),FALSE)*100) -> 1.947833713 | AK41: 1.7166086 | AL41: 2046 | AM41: =IF(ISNA(VLOOKUP($AA41,Escalation!$A$7:$R$54,MATCH(AM$8,Escalation!$6:$6,0),FALSE)*100),VLOOKUP(CONCATENATE("Post ",MAX(Escalation!$A:$A)),Escalation!$A$7:$R$54,MATCH(AM$8,Escalation!$6:$6,0),FALSE)*100,VLOOKUP($AA41,Escalation!$A$7:$R$54,MATCH(AM$8,Escalation!$6:$6,0),FALSE)*100) -> 1.947833713 | AN41: 1.7166086 | AO41: =IF(ISNA(VLOOKUP($AA41,Escalation!$A$7:$R$54,MATCH(AO$8,Escalation!$6:$6,0),FALSE)*100),VLOOKUP(CONCATENATE("Post ",MAX(Escalation!$A:$A)),Escalation!$A$7:$R$54,MATCH(AO$8,Escalation!$6:$6,0),FALSE)*100,VLOOKUP($AA41,Escalation!$A$7:$R$54,MATCH(AO$8,Escalation!$6:$6,0),FALSE)*100) -> 2.812969183 | AP41: 2.174842141 | AQ41: =IF(ISNA(VLOOKUP($AA41,Escalation!$A$7:$R$54,MATCH(AQ$8,Escalation!$6:$6,0),FALSE)*100),VLOOKUP(CONCATENATE("Post ",MAX(Escalation!$A:$A)),Escalation!$A$7:$R$54,MATCH(AQ$8,Escalation!$6:$6,0),FALSE)*100,VLOOKUP($AA41,Escalation!$A$7:$R$54,MATCH(AQ$8,Escalation!$6:$6,0),FALSE)*100) -> 2.812969183 | AR41: 2.174842141 | AS41: =IF(ISNA(VLOOKUP($AA41,Escalation!$A$7:$R$54,MATCH(AS$8,Escalation!$6:$6,0),FALSE)*100),VLOOKUP(CONCATENATE("Post ",MAX(Escalation!$A:$A)),Escalation!$A$7:$R$54,MATCH(AS$8,Escalation!$6:$6,0),FALSE)*100,VLOOKUP($AA41,Escalation!$A$7:$R$54,MATCH(AS$8,Escalation!$6:$6,0),FALSE)*100) -> 2.656095012 | AT41: 2.083815892 | AU41: =IF(ISNA(VLOOKUP($AA41,Escalation!$A$7:$R$54,MATCH(AU$8,Escalation!$6:$6,0),FALSE)*100),VLOOKUP(CONCATENATE("Post ",MAX(Escalation!$A:$A)),Escalation!$A$7:$R$54,MATCH(AU$8,Escalation!$6:$6,0),FALSE)*100,VLOOKUP($AA41,Escalation!$A$7:$R$54,MATCH(AU$8,Escalation!$6:$6,0),FALSE)*100) -> 2.53541408 | AV41: 2.016302276 | AW41: =IF(ISNA(VLOOKUP($AA41,Escalation!$A$7:$R$54,MATCH(AW$8,Escalation!$6:$6,0),FALSE)*100),VLOOKUP(CONCATENATE("Post ",MAX(Escalation!$A:$A)),Escalation!$A$7:$R$54,MATCH(AW$8,Escalation!$6:$6,0),FALSE)*100,VLOOKUP($AA41,Escalation!$A$7:$R$54,MATCH(AW$8,Escalation!$6:$6,0),FALSE)*100) -> 2.050029531 | AX41: 1.765836013 | AY41: =IF(ISNA(VLOOKUP($AA41,Escalation!$A$7:$R$54,MATCH(AY$8,Escalation!$6:$6,0),FALSE)*100),VLOOKUP(CONCATENATE("Post ",MAX(Escalation!$A:$A)),Escalation!$A$7:$R$54,MATCH(AY$8,Escalation!$6:$6,0),FALSE)*100,VLOOKUP($AA41,Escalation!$A$7:$R$54,MATCH(AY$8,Escalation!$6:$6,0),FALSE)*100) -> 2.050029531 | AZ41: 1.765836013
AA42: 2047 | AB42: =IF(ISNA(VLOOKUP($AA42,Escalation!$A$7:$R$54,MATCH(AB$7,Escalation!$6:$6,0),FALSE)*100),VLOOKUP(CONCATENATE("Post ",MAX(Escalation!$A:$A)),Escalation!$A$7:$R$54,MATCH(AB$7,Escalation!$6:$6,0),FALSE)*100,VLOOKUP($AA42,Escalation!$A$7:$R$54,MATCH(AB$7,Escalation!$6:$6,0),FALSE)*100) -> 2.210875284 | AC42: 1.885738074 | AD42: =IF(ISNA(VLOOKUP($AA42,Escalation!$A$7:$R$54,MATCH(AD$7,Escalation!$6:$6,0),FALSE)*100),VLOOKUP(CONCATENATE("Post ",MAX(Escalation!$A:$A)),Escalation!$A$7:$R$54,MATCH(AD$7,Escalation!$6:$6,0),FALSE)*100,VLOOKUP($AA42,Escalation!$A$7:$R$54,MATCH(AD$7,Escalation!$6:$6,0),FALSE)*100) -> 2.473916856 | AE42: 2.031562334 | AF42: =IF(ISNA(VLOOKUP($AA42,Escalation!$A$7:$R$54,MATCH(AF$7,Escalation!$6:$6,0),FALSE)*100),VLOOKUP(CONCATENATE("Post ",MAX(Escalation!$A:$A)),Escalation!$A$7:$R$54,MATCH(AF$7,Escalation!$6:$6,0),FALSE)*100,VLOOKUP($AA42,Escalation!$A$7:$R$54,MATCH(AF$7,Escalation!$6:$6,0),FALSE)*100) -> 2.736958428 | AG42: 2.18824558 | AH42: =IF(ISNA(VLOOKUP($AA42,Escalation!$A$7:$R$54,MATCH(AH$7,Escalation!$6:$6,0),FALSE)*100),VLOOKUP(CONCATENATE("Post ",MAX(Escalation!$A:$A)),Escalation!$A$7:$R$54,MATCH(AH$7,Escalation!$6:$6,0),FALSE)*100,VLOOKUP($AA42,Escalation!$A$7:$R$54,MATCH(AH$7,Escalation!$6:$6,0),FALSE)*100) -> 3 | AI42: 2.356565506 | AJ42: =IF(ISNA(VLOOKUP($AA42,Escalation!$A$7:$R$54,MATCH(AJ$7,Escalation!$6:$6,0),FALSE)*100),VLOOKUP(CONCATENATE("Post ",MAX(Escalation!$A:$A)),Escalation!$A$7:$R$54,MATCH(AJ$7,Escalation!$6:$6,0),FALSE)*100,VLOOKUP($AA42,Escalation!$A$7:$R$54,MATCH(AJ$7,Escalation!$6:$6,0),FALSE)*100) -> 1.947833713 | AK42: 1.750045281 | AL42: 2047 | AM42: =IF(ISNA(VLOOKUP($AA42,Escalation!$A$7:$R$54,MATCH(AM$8,Escalation!$6:$6,0),FALSE)*100),VLOOKUP(CONCATENATE("Post ",MAX(Escalation!$A:$A)),Escalation!$A$7:$R$54,MATCH(AM$8,Escalation!$6:$6,0),FALSE)*100,VLOOKUP($AA42,Escalation!$A$7:$R$54,MATCH(AM$8,Escalation!$6:$6,0),FALSE)*100) -> 1.947833713 | AN42: 1.750045281 | AO42: =IF(ISNA(VLOOKUP($AA42,Escalation!$A$7:$R$54,MATCH(AO$8,Escalation!$6:$6,0),FALSE)*100),VLOOKUP(CONCATENATE("Post ",MAX(Escalation!$A:$A)),Escalation!$A$7:$R$54,MATCH(AO$8,Escalation!$6:$6,0),FALSE)*100,VLOOKUP($AA42,Escalation!$A$7:$R$54,MATCH(AO$8,Escalation!$6:$6,0),FALSE)*100) -> 2.812969183 | AP42: 2.23601978 | AQ42: =IF(ISNA(VLOOKUP($AA42,Escalation!$A$7:$R$54,MATCH(AQ$8,Escalation!$6:$6,0),FALSE)*100),VLOOKUP(CONCATENATE("Post ",MAX(Escalation!$A:$A)),Escalation!$A$7:$R$54,MATCH(AQ$8,Escalation!$6:$6,0),FALSE)*100,VLOOKUP($AA42,Escalation!$A$7:$R$54,MATCH(AQ$8,Escalation!$6:$6,0),FALSE)*100) -> 2.812969183 | AR42: 2.23601978 | AS42: =IF(ISNA(VLOOKUP($AA42,Escalation!$A$7:$R$54,MATCH(AS$8,Escalation!$6:$6,0),FALSE)*100),VLOOKUP(CONCATENATE("Post ",MAX(Escalation!$A:$A)),Escalation!$A$7:$R$54,MATCH(AS$8,Escalation!$6:$6,0),FALSE)*100,VLOOKUP($AA42,Escalation!$A$7:$R$54,MATCH(AS$8,Escalation!$6:$6,0),FALSE)*100) -> 2.656095012 | AT42: 2.139164022 | AU42: =IF(ISNA(VLOOKUP($AA42,Escalation!$A$7:$R$54,MATCH(AU$8,Escalation!$6:$6,0),FALSE)*100),VLOOKUP(CONCATENATE("Post ",MAX(Escalation!$A:$A)),Escalation!$A$7:$R$54,MATCH(AU$8,Escalation!$6:$6,0),FALSE)*100,VLOOKUP($AA42,Escalation!$A$7:$R$54,MATCH(AU$8,Escalation!$6:$6,0),FALSE)*100) -> 2.53541408 | AV42: 2.067423888 | AW42: =IF(ISNA(VLOOKUP($AA42,Escalation!$A$7:$R$54,MATCH(AW$8,Escalation!$6:$6,0),FALSE)*100),VLOOKUP(CONCATENATE("Post ",MAX(Escalation!$A:$A)),Escalation!$A$7:$R$54,MATCH(AW$8,Escalation!$6:$6,0),FALSE)*100,VLOOKUP($AA42,Escalation!$A$7:$R$54,MATCH(AW$8,Escalation!$6:$6,0),FALSE)*100) -> 2.050029531 | AX42: 1.802036173 | AY42: =IF(ISNA(VLOOKUP($AA42,Escalation!$A$7:$R$54,MATCH(AY$8,Escalation!$6:$6,0),FALSE)*100),VLOOKUP(CONCATENATE("Post ",MAX(Escalation!$A:$A)),Escalation!$A$7:$R$54,MATCH(AY$8,Escalation!$6:$6,0),FALSE)*100,VLOOKUP($AA42,Escalation!$A$7:$R$54,MATCH(AY$8,Escalation!$6:$6,0),FALSE)*100) -> 2.050029531 | AZ42: 1.802036173
AA43: 2048 | AB43: =IF(ISNA(VLOOKUP($AA43,Escalation!$A$7:$R$54,MATCH(AB$7,Escalation!$6:$6,0),FALSE)*100),VLOOKUP(CONCATENATE("Post ",MAX(Escalation!$A:$A)),Escalation!$A$7:$R$54,MATCH(AB$7,Escalation!$6:$6,0),FALSE)*100,VLOOKUP($AA43,Escalation!$A$7:$R$54,MATCH(AB$7,Escalation!$6:$6,0),FALSE)*100) -> 2.210875284 | AC43: 1.927429391 | AD43: =IF(ISNA(VLOOKUP($AA43,Escalation!$A$7:$R$54,MATCH(AD$7,Escalation!$6:$6,0),FALSE)*100),VLOOKUP(CONCATENATE("Post ",MAX(Escalation!$A:$A)),Escalation!$A$7:$R$54,MATCH(AD$7,Escalation!$6:$6,0),FALSE)*100,VLOOKUP($AA43,Escalation!$A$7:$R$54,MATCH(AD$7,Escalation!$6:$6,0),FALSE)*100) -> 2.473916856 | AE43: 2.081821497 | AF43: =IF(ISNA(VLOOKUP($AA43,Escalation!$A$7:$R$54,MATCH(AF$7,Escalation!$6:$6,0),FALSE)*100),VLOOKUP(CONCATENATE("Post ",MAX(Escalation!$A:$A)),Escalation!$A$7:$R$54,MATCH(AF$7,Escalation!$6:$6,0),FALSE)*100,VLOOKUP($AA43,Escalation!$A$7:$R$54,MATCH(AF$7,Escalation!$6:$6,0),FALSE)*100) -> 2.736958428 | AG43: 2.248136951 | AH43: =IF(ISNA(VLOOKUP($AA43,Escalation!$A$7:$R$54,MATCH(AH$7,Escalation!$6:$6,0),FALSE)*100),VLOOKUP(CONCATENATE("Post ",MAX(Escalation!$A:$A)),Escalation!$A$7:$R$54,MATCH(AH$7,Escalation!$6:$6,0),FALSE)*100,VLOOKUP($AA43,Escalation!$A$7:$R$54,MATCH(AH$7,Escalation!$6:$6,0),FALSE)*100) -> 3 | AI43: 2.427262471 | AJ43: =IF(ISNA(VLOOKUP($AA43,Escalation!$A$7:$R$54,MATCH(AJ$7,Escalation!$6:$6,0),FALSE)*100),VLOOKUP(CONCATENATE("Post ",MAX(Escalation!$A:$A)),Escalation!$A$7:$R$54,MATCH(AJ$7,Escalation!$6:$6,0),FALSE)*100,VLOOKUP($AA43,Escalation!$A$7:$R$54,MATCH(AJ$7,Escalation!$6:$6,0),FALSE)*100) -> 1.947833713 | AK43: 1.784133253 | AL43: 2048 | AM43: =IF(ISNA(VLOOKUP($AA43,Escalation!$A$7:$R$54,MATCH(AM$8,Escalation!$6:$6,0),FALSE)*100),VLOOKUP(CONCATENATE("Post ",MAX(Escalation!$A:$A)),Escalation!$A$7:$R$54,MATCH(AM$8,Escalation!$6:$6,0),FALSE)*100,VLOOKUP($AA43,Escalation!$A$7:$R$54,MATCH(AM$8,Escalation!$6:$6,0),FALSE)*100) -> 1.947833713 | AN43: 1.784133253 | AO43: =IF(ISNA(VLOOKUP($AA43,Escalation!$A$7:$R$54,MATCH(AO$8,Escalation!$6:$6,0),FALSE)*100),VLOOKUP(CONCATENATE("Post ",MAX(Escalation!$A:$A)),Escalation!$A$7:$R$54,MATCH(AO$8,Escalation!$6:$6,0),FALSE)*100,VLOOKUP($AA43,Escalation!$A$7:$R$54,MATCH(AO$8,Escalation!$6:$6,0),FALSE)*100) -> 2.812969183 | AP43: 2.298918327 | AQ43: =IF(ISNA(VLOOKUP($AA43,Escalation!$A$7:$R$54,MATCH(AQ$8,Escalation!$6:$6,0),FALSE)*100),VLOOKUP(CONCATENATE("Post ",MAX(Escalation!$A:$A)),Escalation!$A$7:$R$54,MATCH(AQ$8,Escalation!$6:$6,0),FALSE)*100,VLOOKUP($AA43,Escalation!$A$7:$R$54,MATCH(AQ$8,Escalation!$6:$6,0),FALSE)*100) -> 2.812969183 | AR43: 2.298918327 | AS43: =IF(ISNA(VLOOKUP($AA43,Escalation!$A$7:$R$54,MATCH(AS$8,Escalation!$6:$6,0),FALSE)*100),VLOOKUP(CONCATENATE("Post ",MAX(Escalation!$A:$A)),Escalation!$A$7:$R$54,MATCH(AS$8,Escalation!$6:$6,0),FALSE)*100,VLOOKUP($AA43,Escalation!$A$7:$R$54,MATCH(AS$8,Escalation!$6:$6,0),FALSE)*100) -> 2.656095012 | AT43: 2.195982251 | AU43: =IF(ISNA(VLOOKUP($AA43,Escalation!$A$7:$R$54,MATCH(AU$8,Escalation!$6:$6,0),FALSE)*100),VLOOKUP(CONCATENATE("Post ",MAX(Escalation!$A:$A)),Escalation!$A$7:$R$54,MATCH(AU$8,Escalation!$6:$6,0),FALSE)*100,VLOOKUP($AA43,Escalation!$A$7:$R$54,MATCH(AU$8,Escalation!$6:$6,0),FALSE)*100) -> 2.53541408 | AV43: 2.119841644 | AW43: =IF(ISNA(VLOOKUP($AA43,Escalation!$A$7:$R$54,MATCH(AW$8,Escalation!$6:$6,0),FALSE)*100),VLOOKUP(CONCATENATE("Post ",MAX(Escalation!$A:$A)),Escalation!$A$7:$R$54,MATCH(AW$8,Escalation!$6:$6,0),FALSE)*100,VLOOKUP($AA43,Escalation!$A$7:$R$54,MATCH(AW$8,Escalation!$6:$6,0),FALSE)*100) -> 2.050029531 | AX43: 1.838978447 | AY43: =IF(ISNA(VLOOKUP($AA43,Escalation!$A$7:$R$54,MATCH(AY$8,Escalation!$6:$6,0),FALSE)*100),VLOOKUP(CONCATENATE("Post ",MAX(Escalation!$A:$A)),Escalation!$A$7:$R$54,MATCH(AY$8,Escalation!$6:$6,0),FALSE)*100,VLOOKUP($AA43,Escalation!$A$7:$R$54,MATCH(AY$8,Escalation!$6:$6,0),FALSE)*100) -> 2.050029531 | AZ43: 1.838978447
AA44: 2049 | AB44: =IF(ISNA(VLOOKUP($AA44,Escalation!$A$7:$R$54,MATCH(AB$7,Escalation!$6:$6,0),FALSE)*100),VLOOKUP(CONCATENATE("Post ",MAX(Escalation!$A:$A)),Escalation!$A$7:$R$54,MATCH(AB$7,Escalation!$6:$6,0),FALSE)*100,VLOOKUP($AA44,Escalation!$A$7:$R$54,MATCH(AB$7,Escalation!$6:$6,0),FALSE)*100) -> 2.210875284 | AC44: 1.970042451 | AD44: =IF(ISNA(VLOOKUP($AA44,Escalation!$A$7:$R$54,MATCH(AD$7,Escalation!$6:$6,0),FALSE)*100),VLOOKUP(CONCATENATE("Post ",MAX(Escalation!$A:$A)),Escalation!$A$7:$R$54,MATCH(AD$7,Escalation!$6:$6,0),FALSE)*100,VLOOKUP($AA44,Escalation!$A$7:$R$54,MATCH(AD$7,Escalation!$6:$6,0),FALSE)*100) -> 2.473916856 | AE44: 2.13332403 | AF44: =IF(ISNA(VLOOKUP($AA44,Escalation!$A$7:$R$54,MATCH(AF$7,Escalation!$6:$6,0),FALSE)*100),VLOOKUP(CONCATENATE("Post ",MAX(Escalation!$A:$A)),Escalation!$A$7:$R$54,MATCH(AF$7,Escalation!$6:$6,0),FALSE)*100,VLOOKUP($AA44,Escalation!$A$7:$R$54,MATCH(AF$7,Escalation!$6:$6,0),FALSE)*100) -> 2.736958428 | AG44: 2.309667525 | AH44: =IF(ISNA(VLOOKUP($AA44,Escalation!$A$7:$R$54,MATCH(AH$7,Escalation!$6:$6,0),FALSE)*100),VLOOKUP(CONCATENATE("Post ",MAX(Escalation!$A:$A)),Escalation!$A$7:$R$54,MATCH(AH$7,Escalation!$6:$6,0),FALSE)*100,VLOOKUP($AA44,Escalation!$A$7:$R$54,MATCH(AH$7,Escalation!$6:$6,0),FALSE)*100) -> 3 | AI44: 2.500080345 | AJ44: =IF(ISNA(VLOOKUP($AA44,Escalation!$A$7:$R$54,MATCH(AJ$7,Escalation!$6:$6,0),FALSE)*100),VLOOKUP(CONCATENATE("Post ",MAX(Escalation!$A:$A)),Escalation!$A$7:$R$54,MATCH(AJ$7,Escalation!$6:$6,0),FALSE)*100,VLOOKUP($AA44,Escalation!$A$7:$R$54,MATCH(AJ$7,Escalation!$6:$6,0),FALSE)*100) -> 1.947833713 | AK44: 1.818885202 | AL44: 2049 | AM44: =IF(ISNA(VLOOKUP($AA44,Escalation!$A$7:$R$54,MATCH(AM$8,Escalation!$6:$6,0),FALSE)*100),VLOOKUP(CONCATENATE("Post ",MAX(Escalation!$A:$A)),Escalation!$A$7:$R$54,MATCH(AM$8,Escalation!$6:$6,0),FALSE)*100,VLOOKUP($AA44,Escalation!$A$7:$R$54,MATCH(AM$8,Escalation!$6:$6,0),FALSE)*100) -> 1.947833713 | AN44: 1.818885202 | AO44: =IF(ISNA(VLOOKUP($AA44,Escalation!$A$7:$R$54,MATCH(AO$8,Escalation!$6:$6,0),FALSE)*100),VLOOKUP(CONCATENATE("Post ",MAX(Escalation!$A:$A)),Escalation!$A$7:$R$54,MATCH(AO$8,Escalation!$6:$6,0),FALSE)*100,VLOOKUP($AA44,Escalation!$A$7:$R$54,MATCH(AO$8,Escalation!$6:$6,0),FALSE)*100) -> 2.812969183 | AP44: 2.363586191 | AQ44: =IF(ISNA(VLOOKUP($AA44,Escalation!$A$7:$R$54,MATCH(AQ$8,Escalation!$6:$6,0),FALSE)*100),VLOOKUP(CONCATENATE("Post ",MAX(Escalation!$A:$A)),Escalation!$A$7:$R$54,MATCH(AQ$8,Escalation!$6:$6,0),FALSE)*100,VLOOKUP($AA44,Escalation!$A$7:$R$54,MATCH(AQ$8,Escalation!$6:$6,0),FALSE)*100) -> 2.812969183 | AR44: 2.363586191 | AS44: =IF(ISNA(VLOOKUP($AA44,Escalation!$A$7:$R$54,MATCH(AS$8,Escalation!$6:$6,0),FALSE)*100),VLOOKUP(CONCATENATE("Post ",MAX(Escalation!$A:$A)),Escalation!$A$7:$R$54,MATCH(AS$8,Escalation!$6:$6,0),FALSE)*100,VLOOKUP($AA44,Escalation!$A$7:$R$54,MATCH(AS$8,Escalation!$6:$6,0),FALSE)*100) -> 2.656095012 | AT44: 2.254309626 | AU44: =IF(ISNA(VLOOKUP($AA44,Escalation!$A$7:$R$54,MATCH(AU$8,Escalation!$6:$6,0),FALSE)*100),VLOOKUP(CONCATENATE("Post ",MAX(Escalation!$A:$A)),Escalation!$A$7:$R$54,MATCH(AU$8,Escalation!$6:$6,0),FALSE)*100,VLOOKUP($AA44,Escalation!$A$7:$R$54,MATCH(AU$8,Escalation!$6:$6,0),FALSE)*100) -> 2.53541408 | AV44: 2.173588407 | AW44: =IF(ISNA(VLOOKUP($AA44,Escalation!$A$7:$R$54,MATCH(AW$8,Escalation!$6:$6,0),FALSE)*100),VLOOKUP(CONCATENATE("Post ",MAX(Escalation!$A:$A)),Escalation!$A$7:$R$54,MATCH(AW$8,Escalation!$6:$6,0),FALSE)*100,VLOOKUP($AA44,Escalation!$A$7:$R$54,MATCH(AW$8,Escalation!$6:$6,0),FALSE)*100) -> 2.050029531 | AX44: 1.876678048 | AY44: =IF(ISNA(VLOOKUP($AA44,Escalation!$A$7:$R$54,MATCH(AY$8,Escalation!$6:$6,0),FALSE)*100),VLOOKUP(CONCATENATE("Post ",MAX(Escalation!$A:$A)),Escalation!$A$7:$R$54,MATCH(AY$8,Escalation!$6:$6,0),FALSE)*100,VLOOKUP($AA44,Escalation!$A$7:$R$54,MATCH(AY$8,Escalation!$6:$6,0),FALSE)*100) -> 2.050029531 | AZ44: 1.876678048
AA45: 2050 | AB45: =IF(ISNA(VLOOKUP($AA45,Escalation!$A$7:$R$54,MATCH(AB$7,Escalation!$6:$6,0),FALSE)*100),VLOOKUP(CONCATENATE("Post ",MAX(Escalation!$A:$A)),Escalation!$A$7:$R$54,MATCH(AB$7,Escalation!$6:$6,0),FALSE)*100,VLOOKUP($AA45,Escalation!$A$7:$R$54,MATCH(AB$7,Escalation!$6:$6,0),FALSE)*100) -> 2.210875284 | AC45: 2.013597633 | AD45: =IF(ISNA(VLOOKUP($AA45,Escalation!$A$7:$R$54,MATCH(AD$7,Escalation!$6:$6,0),FALSE)*100),VLOOKUP(CONCATENATE("Post ",MAX(Escalation!$A:$A)),Escalation!$A$7:$R$54,MATCH(AD$7,Escalation!$6:$6,0),FALSE)*100,VLOOKUP($AA45,Escalation!$A$7:$R$54,MATCH(AD$7,Escalation!$6:$6,0),FALSE)*100) -> 2.473916856 | AE45: 2.186100692 | AF45: =IF(ISNA(VLOOKUP($AA45,Escalation!$A$7:$R$54,MATCH(AF$7,Escalation!$6:$6,0),FALSE)*100),VLOOKUP(CONCATENATE("Post ",MAX(Escalation!$A:$A)),Escalation!$A$7:$R$54,MATCH(AF$7,Escalation!$6:$6,0),FALSE)*100,VLOOKUP($AA45,Escalation!$A$7:$R$54,MATCH(AF$7,Escalation!$6:$6,0),FALSE)*100) -> 2.736958428 | AG45: 2.372882165 | AH45: =IF(ISNA(VLOOKUP($AA45,Escalation!$A$7:$R$54,MATCH(AH$7,Escalation!$6:$6,0),FALSE)*100),VLOOKUP(CONCATENATE("Post ",MAX(Escalation!$A:$A)),Escalation!$A$7:$R$54,MATCH(AH$7,Escalation!$6:$6,0),FALSE)*100,VLOOKUP($AA45,Escalation!$A$7:$R$54,MATCH(AH$7,Escalation!$6:$6,0),FALSE)*100) -> 3 | AI45: 2.575082756 | AJ45: =IF(ISNA(VLOOKUP($AA45,Escalation!$A$7:$R$54,MATCH(AJ$7,Escalation!$6:$6,0),FALSE)*100),VLOOKUP(CONCATENATE("Post ",MAX(Escalation!$A:$A)),Escalation!$A$7:$R$54,MATCH(AJ$7,Escalation!$6:$6,0),FALSE)*100,VLOOKUP($AA45,Escalation!$A$7:$R$54,MATCH(AJ$7,Escalation!$6:$6,0),FALSE)*100) -> 1.947833713 | AK45: 1.854314061 | AL45: 2050 | AM45: =IF(ISNA(VLOOKUP($AA45,Escalation!$A$7:$R$54,MATCH(AM$8,Escalation!$6:$6,0),FALSE)*100),VLOOKUP(CONCATENATE("Post ",MAX(Escalation!$A:$A)),Escalation!$A$7:$R$54,MATCH(AM$8,Escalation!$6:$6,0),FALSE)*100,VLOOKUP($AA45,Escalation!$A$7:$R$54,MATCH(AM$8,Escalation!$6:$6,0),FALSE)*100) -> 1.947833713 | AN45: 1.854314061 | AO45: =IF(ISNA(VLOOKUP($AA45,Escalation!$A$7:$R$54,MATCH(AO$8,Escalation!$6:$6,0),FALSE)*100),VLOOKUP(CONCATENATE("Post ",MAX(Escalation!$A:$A)),Escalation!$A$7:$R$54,MATCH(AO$8,Escalation!$6:$6,0),FALSE)*100,VLOOKUP($AA45,Escalation!$A$7:$R$54,MATCH(AO$8,Escalation!$6:$6,0),FALSE)*100) -> 2.812969183 | AP45: 2.430073142 | AQ45: =IF(ISNA(VLOOKUP($AA45,Escalation!$A$7:$R$54,MATCH(AQ$8,Escalation!$6:$6,0),FALSE)*100),VLOOKUP(CONCATENATE("Post ",MAX(Escalation!$A:$A)),Escalation!$A$7:$R$54,MATCH(AQ$8,Escalation!$6:$6,0),FALSE)*100,VLOOKUP($AA45,Escalation!$A$7:$R$54,MATCH(AQ$8,Escalation!$6:$6,0),FALSE)*100) -> 2.812969183 | AR45: 2.430073142 | AS45: =IF(ISNA(VLOOKUP($AA45,Escalation!$A$7:$R$54,MATCH(AS$8,Escalation!$6:$6,0),FALSE)*100),VLOOKUP(CONCATENATE("Post ",MAX(Escalation!$A:$A)),Escalation!$A$7:$R$54,MATCH(AS$8,Escalation!$6:$6,0),FALSE)*100,VLOOKUP($AA45,Escalation!$A$7:$R$54,MATCH(AS$8,Escalation!$6:$6,0),FALSE)*100) -> 2.656095012 | AT45: 2.314186232 | AU45: =IF(ISNA(VLOOKUP($AA45,Escalation!$A$7:$R$54,MATCH(AU$8,Escalation!$6:$6,0),FALSE)*100),VLOOKUP(CONCATENATE("Post ",MAX(Escalation!$A:$A)),Escalation!$A$7:$R$54,MATCH(AU$8,Escalation!$6:$6,0),FALSE)*100,VLOOKUP($AA45,Escalation!$A$7:$R$54,MATCH(AU$8,Escalation!$6:$6,0),FALSE)*100) -> 2.53541408 | AV45: 2.228697874 | AW45: =IF(ISNA(VLOOKUP($AA45,Escalation!$A$7:$R$54,MATCH(AW$8,Escalation!$6:$6,0),FALSE)*100),VLOOKUP(CONCATENATE("Post ",MAX(Escalation!$A:$A)),Escalation!$A$7:$R$54,MATCH(AW$8,Escalation!$6:$6,0),FALSE)*100,VLOOKUP($AA45,Escalation!$A$7:$R$54,MATCH(AW$8,Escalation!$6:$6,0),FALSE)*100) -> 2.050029531 | AX45: 1.915150502 | AY45: =IF(ISNA(VLOOKUP($AA45,Escalation!$A$7:$R$54,MATCH(AY$8,Escalation!$6:$6,0),FALSE)*100),VLOOKUP(CONCATENATE("Post ",MAX(Escalation!$A:$A)),Escalation!$A$7:$R$54,MATCH(AY$8,Escalation!$6:$6,0),FALSE)*100,VLOOKUP($AA45,Escalation!$A$7:$R$54,MATCH(AY$8,Escalation!$6:$6,0),FALSE)*100) -> 2.050029531 | AZ45: 1.915150502
AA46: 2051 | AB46: =IF(ISNA(VLOOKUP($AA46,Escalation!$A$7:$R$54,MATCH(AB$7,Escalation!$6:$6,0),FALSE)*100),VLOOKUP(CONCATENATE("Post ",MAX(Escalation!$A:$A)),Escalation!$A$7:$R$54,MATCH(AB$7,Escalation!$6:$6,0),FALSE)*100,VLOOKUP($AA46,Escalation!$A$7:$R$54,MATCH(AB$7,Escalation!$6:$6,0),FALSE)*100) -> 2.210875284 | AC46: 2.058115765 | AD46: =IF(ISNA(VLOOKUP($AA46,Escalation!$A$7:$R$54,MATCH(AD$7,Escalation!$6:$6,0),FALSE)*100),VLOOKUP(CONCATENATE("Post ",MAX(Escalation!$A:$A)),Escalation!$A$7:$R$54,MATCH(AD$7,Escalation!$6:$6,0),FALSE)*100,VLOOKUP($AA46,Escalation!$A$7:$R$54,MATCH(AD$7,Escalation!$6:$6,0),FALSE)*100) -> 2.473916856 | AE46: 2.240183006 | AF46: =IF(ISNA(VLOOKUP($AA46,Escalation!$A$7:$R$54,MATCH(AF$7,Escalation!$6:$6,0),FALSE)*100),VLOOKUP(CONCATENATE("Post ",MAX(Escalation!$A:$A)),Escalation!$A$7:$R$54,MATCH(AF$7,Escalation!$6:$6,0),FALSE)*100,VLOOKUP($AA46,Escalation!$A$7:$R$54,MATCH(AF$7,Escalation!$6:$6,0),FALSE)*100) -> 2.736958428 | AG46: 2.437826964 | AH46: =IF(ISNA(VLOOKUP($AA46,Escalation!$A$7:$R$54,MATCH(AH$7,Escalation!$6:$6,0),FALSE)*100),VLOOKUP(CONCATENATE("Post ",MAX(Escalation!$A:$A)),Escalation!$A$7:$R$54,MATCH(AH$7,Escalation!$6:$6,0),FALSE)*100,VLOOKUP($AA46,Escalation!$A$7:$R$54,MATCH(AH$7,Escalation!$6:$6,0),FALSE)*100) -> 3 | AI46: 2.652335238 | AJ46: =IF(ISNA(VLOOKUP($AA46,Escalation!$A$7:$R$54,MATCH(AJ$7,Escalation!$6:$6,0),FALSE)*100),VLOOKUP(CONCATENATE("Post ",MAX(Escalation!$A:$A)),Escalation!$A$7:$R$54,MATCH(AJ$7,Escalation!$6:$6,0),FALSE)*100,VLOOKUP($AA46,Escalation!$A$7:$R$54,MATCH(AJ$7,Escalation!$6:$6,0),FALSE)*100) -> 1.947833713 | AK46: 1.890433016 | AL46: 2051 | AM46: =IF(ISNA(VLOOKUP($AA46,Escalation!$A$7:$R$54,MATCH(AM$8,Escalation!$6:$6,0),FALSE)*100),VLOOKUP(CONCATENATE("Post ",MAX(Escalation!$A:$A)),Escalation!$A$7:$R$54,MATCH(AM$8,Escalation!$6:$6,0),FALSE)*100,VLOOKUP($AA46,Escalation!$A$7:$R$54,MATCH(AM$8,Escalation!$6:$6,0),FALSE)*100) -> 1.947833713 | AN46: 1.890433016 | AO46: =IF(ISNA(VLOOKUP($AA46,Escalation!$A$7:$R$54,MATCH(AO$8,Escalation!$6:$6,0),FALSE)*100),VLOOKUP(CONCATENATE("Post ",MAX(Escalation!$A:$A)),Escalation!$A$7:$R$54,MATCH(AO$8,Escalation!$6:$6,0),FALSE)*100,VLOOKUP($AA46,Escalation!$A$7:$R$54,MATCH(AO$8,Escalation!$6:$6,0),FALSE)*100) -> 2.812969183 | AP46: 2.498430351 | AQ46: =IF(ISNA(VLOOKUP($AA46,Escalation!$A$7:$R$54,MATCH(AQ$8,Escalation!$6:$6,0),FALSE)*100),VLOOKUP(CONCATENATE("Post ",MAX(Escalation!$A:$A)),Escalation!$A$7:$R$54,MATCH(AQ$8,Escalation!$6:$6,0),FALSE)*100,VLOOKUP($AA46,Escalation!$A$7:$R$54,MATCH(AQ$8,Escalation!$6:$6,0),FALSE)*100) -> 2.812969183 | AR46: 2.498430351 | AS46: =IF(ISNA(VLOOKUP($AA46,Escalation!$A$7:$R$54,MATCH(AS$8,Escalation!$6:$6,0),FALSE)*100),VLOOKUP(CONCATENATE("Post ",MAX(Escalation!$A:$A)),Escalation!$A$7:$R$54,MATCH(AS$8,Escalation!$6:$6,0),FALSE)*100,VLOOKUP($AA46,Escalation!$A$7:$R$54,MATCH(AS$8,Escalation!$6:$6,0),FALSE)*100) -> 2.656095012 | AT46: 2.375653217 | AU46: =IF(ISNA(VLOOKUP($AA46,Escalation!$A$7:$R$54,MATCH(AU$8,Escalation!$6:$6,0),FALSE)*100),VLOOKUP(CONCATENATE("Post ",MAX(Escalation!$A:$A)),Escalation!$A$7:$R$54,MATCH(AU$8,Escalation!$6:$6,0),FALSE)*100,VLOOKUP($AA46,Escalation!$A$7:$R$54,MATCH(AU$8,Escalation!$6:$6,0),FALSE)*100) -> 2.53541408 | AV46: 2.285204594 | AW46: =IF(ISNA(VLOOKUP($AA46,Escalation!$A$7:$R$54,MATCH(AW$8,Escalation!$6:$6,0),FALSE)*100),VLOOKUP(CONCATENATE("Post ",MAX(Escalation!$A:$A)),Escalation!$A$7:$R$54,MATCH(AW$8,Escalation!$6:$6,0),FALSE)*100,VLOOKUP($AA46,Escalation!$A$7:$R$54,MATCH(AW$8,Escalation!$6:$6,0),FALSE)*100) -> 2.050029531 | AX46: 1.954411653 | AY46: =IF(ISNA(VLOOKUP($AA46,Escalation!$A$7:$R$54,MATCH(AY$8,Escalation!$6:$6,0),FALSE)*100),VLOOKUP(CONCATENATE("Post ",MAX(Escalation!$A:$A)),Escalation!$A$7:$R$54,MATCH(AY$8,Escalation!$6:$6,0),FALSE)*100,VLOOKUP($AA46,Escalation!$A$7:$R$54,MATCH(AY$8,Escalation!$6:$6,0),FALSE)*100) -> 2.050029531 | AZ46: 1.954411653
AA47: 2052 | AB47: =IF(ISNA(VLOOKUP($AA47,Escalation!$A$7:$R$54,MATCH(AB$7,Escalation!$6:$6,0),FALSE)*100),VLOOKUP(CONCATENATE("Post ",MAX(Escalation!$A:$A)),Escalation!$A$7:$R$54,MATCH(AB$7,Escalation!$6:$6,0),FALSE)*100,VLOOKUP($AA47,Escalation!$A$7:$R$54,MATCH(AB$7,Escalation!$6:$6,0),FALSE)*100) -> 2.210875284 | AC47: 2.103618138 | AD47: =IF(ISNA(VLOOKUP($AA47,Escalation!$A$7:$R$54,MATCH(AD$7,Escalation!$6:$6,0),FALSE)*100),VLOOKUP(CONCATENATE("Post ",MAX(Escalation!$A:$A)),Escalation!$A$7:$R$54,MATCH(AD$7,Escalation!$6:$6,0),FALSE)*100,VLOOKUP($AA47,Escalation!$A$7:$R$54,MATCH(AD$7,Escalation!$6:$6,0),FALSE)*100) -> 2.473916856 | AE47: 2.295603271 | AF47: =IF(ISNA(VLOOKUP($AA47,Escalation!$A$7:$R$54,MATCH(AF$7,Escalation!$6:$6,0),FALSE)*100),VLOOKUP(CONCATENATE("Post ",MAX(Escalation!$A:$A)),Escalation!$A$7:$R$54,MATCH(AF$7,Escalation!$6:$6,0),FALSE)*100,VLOOKUP($AA47,Escalation!$A$7:$R$54,MATCH(AF$7,Escalation!$6:$6,0),FALSE)*100) -> 2.736958428 | AG47: 2.504549274 | AH47: =IF(ISNA(VLOOKUP($AA47,Escalation!$A$7:$R$54,MATCH(AH$7,Escalation!$6:$6,0),FALSE)*100),VLOOKUP(CONCATENATE("Post ",MAX(Escalation!$A:$A)),Escalation!$A$7:$R$54,MATCH(AH$7,Escalation!$6:$6,0),FALSE)*100,VLOOKUP($AA47,Escalation!$A$7:$R$54,MATCH(AH$7,Escalation!$6:$6,0),FALSE)*100) -> 3 | AI47: 2.731905296 | AJ47: =IF(ISNA(VLOOKUP($AA47,Escalation!$A$7:$R$54,MATCH(AJ$7,Escalation!$6:$6,0),FALSE)*100),VLOOKUP(CONCATENATE("Post ",MAX(Escalation!$A:$A)),Escalation!$A$7:$R$54,MATCH(AJ$7,Escalation!$6:$6,0),FALSE)*100,VLOOKUP($AA47,Escalation!$A$7:$R$54,MATCH(AJ$7,Escalation!$6:$6,0),FALSE)*100) -> 1.947833713 | AK47: 1.927255507 | AL47: 2052 | AM47: =IF(ISNA(VLOOKUP($AA47,Escalation!$A$7:$R$54,MATCH(AM$8,Escalation!$6:$6,0),FALSE)*100),VLOOKUP(CONCATENATE("Post ",MAX(Escalation!$A:$A)),Escalation!$A$7:$R$54,MATCH(AM$8,Escalation!$6:$6,0),FALSE)*100,VLOOKUP($AA47,Escalation!$A$7:$R$54,MATCH(AM$8,Escalation!$6:$6,0),FALSE)*100) -> 1.947833713 | AN47: 1.927255507 | AO47: =IF(ISNA(VLOOKUP($AA47,Escalation!$A$7:$R$54,MATCH(AO$8,Escalation!$6:$6,0),FALSE)*100),VLOOKUP(CONCATENATE("Post ",MAX(Escalation!$A:$A)),Escalation!$A$7:$R$54,MATCH(AO$8,Escalation!$6:$6,0),FALSE)*100,VLOOKUP($AA47,Escalation!$A$7:$R$54,MATCH(AO$8,Escalation!$6:$6,0),FALSE)*100) -> 2.812969183 | AP47: 2.568710427 | AQ47: =IF(ISNA(VLOOKUP($AA47,Escalation!$A$7:$R$54,MATCH(AQ$8,Escalation!$6:$6,0),FALSE)*100),VLOOKUP(CONCATENATE("Post ",MAX(Escalation!$A:$A)),Escalation!$A$7:$R$54,MATCH(AQ$8,Escalation!$6:$6,0),FALSE)*100,VLOOKUP($AA47,Escalation!$A$7:$R$54,MATCH(AQ$8,Escalation!$6:$6,0),FALSE)*100) -> 2.812969183 | AR47: 2.568710427 | AS47: =IF(ISNA(VLOOKUP($AA47,Escalation!$A$7:$R$54,MATCH(AS$8,Escalation!$6:$6,0),FALSE)*100),VLOOKUP(CONCATENATE("Post ",MAX(Escalation!$A:$A)),Escalation!$A$7:$R$54,MATCH(AS$8,Escalation!$6:$6,0),FALSE)*100,VLOOKUP($AA47,Escalation!$A$7:$R$54,MATCH(AS$8,Escalation!$6:$6,0),FALSE)*100) -> 2.656095012 | AT47: 2.438752824 | AU47: =IF(ISNA(VLOOKUP($AA47,Escalation!$A$7:$R$54,MATCH(AU$8,Escalation!$6:$6,0),FALSE)*100),VLOOKUP(CONCATENATE("Post ",MAX(Escalation!$A:$A)),Escalation!$A$7:$R$54,MATCH(AU$8,Escalation!$6:$6,0),FALSE)*100,VLOOKUP($AA47,Escalation!$A$7:$R$54,MATCH(AU$8,Escalation!$6:$6,0),FALSE)*100) -> 2.53541408 | AV47: 2.343143993 | AW47: =IF(ISNA(VLOOKUP($AA47,Escalation!$A$7:$R$54,MATCH(AW$8,Escalation!$6:$6,0),FALSE)*100),VLOOKUP(CONCATENATE("Post ",MAX(Escalation!$A:$A)),Escalation!$A$7:$R$54,MATCH(AW$8,Escalation!$6:$6,0),FALSE)*100,VLOOKUP($AA47,Escalation!$A$7:$R$54,MATCH(AW$8,Escalation!$6:$6,0),FALSE)*100) -> 2.050029531 | AX47: 1.994477669 | AY47: =IF(ISNA(VLOOKUP($AA47,Escalation!$A$7:$R$54,MATCH(AY$8,Escalation!$6:$6,0),FALSE)*100),VLOOKUP(CONCATENATE("Post ",MAX(Escalation!$A:$A)),Escalation!$A$7:$R$54,MATCH(AY$8,Escalation!$6:$6,0),FALSE)*100,VLOOKUP($AA47,Escalation!$A$7:$R$54,MATCH(AY$8,Escalation!$6:$6,0),FALSE)*100) -> 2.050029531 | AZ47: 1.994477669
AA48: 2053 | AB48: =IF(ISNA(VLOOKUP($AA48,Escalation!$A$7:$R$54,MATCH(AB$7,Escalation!$6:$6,0),FALSE)*100),VLOOKUP(CONCATENATE("Post ",MAX(Escalation!$A:$A)),Escalation!$A$7:$R$54,MATCH(AB$7,Escalation!$6:$6,0),FALSE)*100,VLOOKUP($AA48,Escalation!$A$7:$R$54,MATCH(AB$7,Escalation!$6:$6,0),FALSE)*100) -> 2.210875284 | AC48: 2.150126511 | AD48: =IF(ISNA(VLOOKUP($AA48,Escalation!$A$7:$R$54,MATCH(AD$7,Escalation!$6:$6,0),FALSE)*100),VLOOKUP(CONCATENATE("Post ",MAX(Escalation!$A:$A)),Escalation!$A$7:$R$54,MATCH(AD$7,Escalation!$6:$6,0),FALSE)*100,VLOOKUP($AA48,Escalation!$A$7:$R$54,MATCH(AD$7,Escalation!$6:$6,0),FALSE)*100) -> 2.473916856 | AE48: 2.352394587 | AF48: =IF(ISNA(VLOOKUP($AA48,Escalation!$A$7:$R$54,MATCH(AF$7,Escalation!$6:$6,0),FALSE)*100),VLOOKUP(CONCATENATE("Post ",MAX(Escalation!$A:$A)),Escalation!$A$7:$R$54,MATCH(AF$7,Escalation!$6:$6,0),FALSE)*100,VLOOKUP($AA48,Escalation!$A$7:$R$54,MATCH(AF$7,Escalation!$6:$6,0),FALSE)*100) -> 2.736958428 | AG48: 2.573097747 | AH48: =IF(ISNA(VLOOKUP($AA48,Escalation!$A$7:$R$54,MATCH(AH$7,Escalation!$6:$6,0),FALSE)*100),VLOOKUP(CONCATENATE("Post ",MAX(Escalation!$A:$A)),Escalation!$A$7:$R$54,MATCH(AH$7,Escalation!$6:$6,0),FALSE)*100,VLOOKUP($AA48,Escalation!$A$7:$R$54,MATCH(AH$7,Escalation!$6:$6,0),FALSE)*100) -> 3 | AI48: 2.813862454 | AJ48: =IF(ISNA(VLOOKUP($AA48,Escalation!$A$7:$R$54,MATCH(AJ$7,Escalation!$6:$6,0),FALSE)*100),VLOOKUP(CONCATENATE("Post ",MAX(Escalation!$A:$A)),Escalation!$A$7:$R$54,MATCH(AJ$7,Escalation!$6:$6,0),FALSE)*100,VLOOKUP($AA48,Escalation!$A$7:$R$54,MATCH(AJ$7,Escalation!$6:$6,0),FALSE)*100) -> 1.947833713 | AK48: 1.96479524 | AL48: 2053 | AM48: =IF(ISNA(VLOOKUP($AA48,Escalation!$A$7:$R$54,MATCH(AM$8,Escalation!$6:$6,0),FALSE)*100),VLOOKUP(CONCATENATE("Post ",MAX(Escalation!$A:$A)),Escalation!$A$7:$R$54,MATCH(AM$8,Escalation!$6:$6,0),FALSE)*100,VLOOKUP($AA48,Escalation!$A$7:$R$54,MATCH(AM$8,Escalation!$6:$6,0),FALSE)*100) -> 1.947833713 | AN48: 1.96479524 | AO48: =IF(ISNA(VLOOKUP($AA48,Escalation!$A$7:$R$54,MATCH(AO$8,Escalation!$6:$6,0),FALSE)*100),VLOOKUP(CONCATENATE("Post ",MAX(Escalation!$A:$A)),Escalation!$A$7:$R$54,MATCH(AO$8,Escalation!$6:$6,0),FALSE)*100,VLOOKUP($AA48,Escalation!$A$7:$R$54,MATCH(AO$8,Escalation!$6:$6,0),FALSE)*100) -> 2.812969183 | AP48: 2.64096746 | AQ48: =IF(ISNA(VLOOKUP($AA48,Escalation!$A$7:$R$54,MATCH(AQ$8,Escalation!$6:$6,0),FALSE)*100),VLOOKUP(CONCATENATE("Post ",MAX(Escalation!$A:$A)),Escalation!$A$7:$R$54,MATCH(AQ$8,Escalation!$6:$6,0),FALSE)*100,VLOOKUP($AA48,Escalation!$A$7:$R$54,MATCH(AQ$8,Escalation!$6:$6,0),FALSE)*100) -> 2.812969183 | AR48: 2.64096746 | AS48: =IF(ISNA(VLOOKUP($AA48,Escalation!$A$7:$R$54,MATCH(AS$8,Escalation!$6:$6,0),FALSE)*100),VLOOKUP(CONCATENATE("Post ",MAX(Escalation!$A:$A)),Escalation!$A$7:$R$54,MATCH(AS$8,Escalation!$6:$6,0),FALSE)*100,VLOOKUP($AA48,Escalation!$A$7:$R$54,MATCH(AS$8,Escalation!$6:$6,0),FALSE)*100) -> 2.656095012 | AT48: 2.503528416 | AU48: =IF(ISNA(VLOOKUP($AA48,Escalation!$A$7:$R$54,MATCH(AU$8,Escalation!$6:$6,0),FALSE)*100),VLOOKUP(CONCATENATE("Post ",MAX(Escalation!$A:$A)),Escalation!$A$7:$R$54,MATCH(AU$8,Escalation!$6:$6,0),FALSE)*100,VLOOKUP($AA48,Escalation!$A$7:$R$54,MATCH(AU$8,Escalation!$6:$6,0),FALSE)*100) -> 2.53541408 | AV48: 2.402552395 | AW48: =IF(ISNA(VLOOKUP($AA48,Escalation!$A$7:$R$54,MATCH(AW$8,Escalation!$6:$6,0),FALSE)*100),VLOOKUP(CONCATENATE("Post ",MAX(Escalation!$A:$A)),Escalation!$A$7:$R$54,MATCH(AW$8,Escalation!$6:$6,0),FALSE)*100,VLOOKUP($AA48,Escalation!$A$7:$R$54,MATCH(AW$8,Escalation!$6:$6,0),FALSE)*100) -> 2.050029531 | AX48: 2.03536505 | AY48: =IF(ISNA(VLOOKUP($AA48,Escalation!$A$7:$R$54,MATCH(AY$8,Escalation!$6:$6,0),FALSE)*100),VLOOKUP(CONCATENATE("Post ",MAX(Escalation!$A:$A)),Escalation!$A$7:$R$54,MATCH(AY$8,Escalation!$6:$6,0),FALSE)*100,VLOOKUP($AA48,Escalation!$A$7:$R$54,MATCH(AY$8,Escalation!$6:$6,0),FALSE)*100) -> 2.050029531 | AZ48: 2.03536505
AA49: 2054 | AB49: =IF(ISNA(VLOOKUP($AA49,Escalation!$A$7:$R$54,MATCH(AB$7,Escalation!$6:$6,0),FALSE)*100),VLOOKUP(CONCATENATE("Post ",MAX(Escalation!$A:$A)),Escalation!$A$7:$R$54,MATCH(AB$7,Escalation!$6:$6,0),FALSE)*100,VLOOKUP($AA49,Escalation!$A$7:$R$54,MATCH(AB$7,Escalation!$6:$6,0),FALSE)*100) -> 2.210875284 | AC49: 2.197663127 | AD49: =IF(ISNA(VLOOKUP($AA49,Escalation!$A$7:$R$54,MATCH(AD$7,Escalation!$6:$6,0),FALSE)*100),VLOOKUP(CONCATENATE("Post ",MAX(Escalation!$A:$A)),Escalation!$A$7:$R$54,MATCH(AD$7,Escalation!$6:$6,0),FALSE)*100,VLOOKUP($AA49,Escalation!$A$7:$R$54,MATCH(AD$7,Escalation!$6:$6,0),FALSE)*100) -> 2.473916856 | AE49: 2.410590873 | AF49: =IF(ISNA(VLOOKUP($AA49,Escalation!$A$7:$R$54,MATCH(AF$7,Escalation!$6:$6,0),FALSE)*100),VLOOKUP(CONCATENATE("Post ",MAX(Escalation!$A:$A)),Escalation!$A$7:$R$54,MATCH(AF$7,Escalation!$6:$6,0),FALSE)*100,VLOOKUP($AA49,Escalation!$A$7:$R$54,MATCH(AF$7,Escalation!$6:$6,0),FALSE)*100) -> 2.736958428 | AG49: 2.643522362 | AH49: =IF(ISNA(VLOOKUP($AA49,Escalation!$A$7:$R$54,MATCH(AH$7,Escalation!$6:$6,0),FALSE)*100),VLOOKUP(CONCATENATE("Post ",MAX(Escalation!$A:$A)),Escalation!$A$7:$R$54,MATCH(AH$7,Escalation!$6:$6,0),FALSE)*100,VLOOKUP($AA49,Escalation!$A$7:$R$54,MATCH(AH$7,Escalation!$6:$6,0),FALSE)*100) -> 3 | AI49: 2.898278328 | AJ49: =IF(ISNA(VLOOKUP($AA49,Escalation!$A$7:$R$54,MATCH(AJ$7,Escalation!$6:$6,0),FALSE)*100),VLOOKUP(CONCATENATE("Post ",MAX(Escalation!$A:$A)),Escalation!$A$7:$R$54,MATCH(AJ$7,Escalation!$6:$6,0),FALSE)*100,VLOOKUP($AA49,Escalation!$A$7:$R$54,MATCH(AJ$7,Escalation!$6:$6,0),FALSE)*100) -> 1.947833713 | AK49: 2.003066184 | AL49: 2054 | AM49: =IF(ISNA(VLOOKUP($AA49,Escalation!$A$7:$R$54,MATCH(AM$8,Escalation!$6:$6,0),FALSE)*100),VLOOKUP(CONCATENATE("Post ",MAX(Escalation!$A:$A)),Escalation!$A$7:$R$54,MATCH(AM$8,Escalation!$6:$6,0),FALSE)*100,VLOOKUP($AA49,Escalation!$A$7:$R$54,MATCH(AM$8,Escalation!$6:$6,0),FALSE)*100) -> 1.947833713 | AN49: 2.003066184 | AO49: =IF(ISNA(VLOOKUP($AA49,Escalation!$A$7:$R$54,MATCH(AO$8,Escalation!$6:$6,0),FALSE)*100),VLOOKUP(CONCATENATE("Post ",MAX(Escalation!$A:$A)),Escalation!$A$7:$R$54,MATCH(AO$8,Escalation!$6:$6,0),FALSE)*100,VLOOKUP($AA49,Escalation!$A$7:$R$54,MATCH(AO$8,Escalation!$6:$6,0),FALSE)*100) -> 2.812969183 | AP49: 2.71525706 | AQ49: =IF(ISNA(VLOOKUP($AA49,Escalation!$A$7:$R$54,MATCH(AQ$8,Escalation!$6:$6,0),FALSE)*100),VLOOKUP(CONCATENATE("Post ",MAX(Escalation!$A:$A)),Escalation!$A$7:$R$54,MATCH(AQ$8,Escalation!$6:$6,0),FALSE)*100,VLOOKUP($AA49,Escalation!$A$7:$R$54,MATCH(AQ$8,Escalation!$6:$6,0),FALSE)*100) -> 2.812969183 | AR49: 2.71525706 | AS49: =IF(ISNA(VLOOKUP($AA49,Escalation!$A$7:$R$54,MATCH(AS$8,Escalation!$6:$6,0),FALSE)*100),VLOOKUP(CONCATENATE("Post ",MAX(Escalation!$A:$A)),Escalation!$A$7:$R$54,MATCH(AS$8,Escalation!$6:$6,0),FALSE)*100,VLOOKUP($AA49,Escalation!$A$7:$R$54,MATCH(AS$8,Escalation!$6:$6,0),FALSE)*100) -> 2.656095012 | AT49: 2.570024509 | AU49: =IF(ISNA(VLOOKUP($AA49,Escalation!$A$7:$R$54,MATCH(AU$8,Escalation!$6:$6,0),FALSE)*100),VLOOKUP(CONCATENATE("Post ",MAX(Escalation!$A:$A)),Escalation!$A$7:$R$54,MATCH(AU$8,Escalation!$6:$6,0),FALSE)*100,VLOOKUP($AA49,Escalation!$A$7:$R$54,MATCH(AU$8,Escalation!$6:$6,0),FALSE)*100) -> 2.53541408 | AV49: 2.463467047 | AW49: =IF(ISNA(VLOOKUP($AA49,Escalation!$A$7:$R$54,MATCH(AW$8,Escalation!$6:$6,0),FALSE)*100),VLOOKUP(CONCATENATE("Post ",MAX(Escalation!$A:$A)),Escalation!$A$7:$R$54,MATCH(AW$8,Escalation!$6:$6,0),FALSE)*100,VLOOKUP($AA49,Escalation!$A$7:$R$54,MATCH(AW$8,Escalation!$6:$6,0),FALSE)*100) -> 2.050029531 | AX49: 2.077090635 | AY49: =IF(ISNA(VLOOKUP($AA49,Escalation!$A$7:$R$54,MATCH(AY$8,Escalation!$6:$6,0),FALSE)*100),VLOOKUP(CONCATENATE("Post ",MAX(Escalation!$A:$A)),Escalation!$A$7:$R$54,MATCH(AY$8,Escalation!$6:$6,0),FALSE)*100,VLOOKUP($AA49,Escalation!$A$7:$R$54,MATCH(AY$8,Escalation!$6:$6,0),FALSE)*100) -> 2.050029531 | AZ49: 2.077090635
AA50: 2055 | AB50: =IF(ISNA(VLOOKUP($AA50,Escalation!$A$7:$R$54,MATCH(AB$7,Escalation!$6:$6,0),FALSE)*100),VLOOKUP(CONCATENATE("Post ",MAX(Escalation!$A:$A)),Escalation!$A$7:$R$54,MATCH(AB$7,Escalation!$6:$6,0),FALSE)*100,VLOOKUP($AA50,Escalation!$A$7:$R$54,MATCH(AB$7,Escalation!$6:$6,0),FALSE)*100) -> 2.210875284 | AC50: 2.246250718 | AD50: =IF(ISNA(VLOOKUP($AA50,Escalation!$A$7:$R$54,MATCH(AD$7,Escalation!$6:$6,0),FALSE)*100),VLOOKUP(CONCATENATE("Post ",MAX(Escalation!$A:$A)),Escalation!$A$7:$R$54,MATCH(AD$7,Escalation!$6:$6,0),FALSE)*100,VLOOKUP($AA50,Escalation!$A$7:$R$54,MATCH(AD$7,Escalation!$6:$6,0),FALSE)*100) -> 2.473916856 | AE50: 2.470226887 | AF50: =IF(ISNA(VLOOKUP($AA50,Escalation!$A$7:$R$54,MATCH(AF$7,Escalation!$6:$6,0),FALSE)*100),VLOOKUP(CONCATENATE("Post ",MAX(Escalation!$A:$A)),Escalation!$A$7:$R$54,MATCH(AF$7,Escalation!$6:$6,0),FALSE)*100,VLOOKUP($AA50,Escalation!$A$7:$R$54,MATCH(AF$7,Escalation!$6:$6,0),FALSE)*100) -> 2.736958428 | AG50: 2.71587447 | AH50: =IF(ISNA(VLOOKUP($AA50,Escalation!$A$7:$R$54,MATCH(AH$7,Escalation!$6:$6,0),FALSE)*100),VLOOKUP(CONCATENATE("Post ",MAX(Escalation!$A:$A)),Escalation!$A$7:$R$54,MATCH(AH$7,Escalation!$6:$6,0),FALSE)*100,VLOOKUP($AA50,Escalation!$A$7:$R$54,MATCH(AH$7,Escalation!$6:$6,0),FALSE)*100) -> 3 | AI50: 2.985226678 | AJ50: =IF(ISNA(VLOOKUP($AA50,Escalation!$A$7:$R$54,MATCH(AJ$7,Escalation!$6:$6,0),FALSE)*100),VLOOKUP(CONCATENATE("Post ",MAX(Escalation!$A:$A)),Escalation!$A$7:$R$54,MATCH(AJ$7,Escalation!$6:$6,0),FALSE)*100,VLOOKUP($AA50,Escalation!$A$7:$R$54,MATCH(AJ$7,Escalation!$6:$6,0),FALSE)*100) -> 1.947833713 | AK50: 2.042082582 | AL50: 2055 | AM50: =IF(ISNA(VLOOKUP($AA50,Escalation!$A$7:$R$54,MATCH(AM$8,Escalation!$6:$6,0),FALSE)*100),VLOOKUP(CONCATENATE("Post ",MAX(Escalation!$A:$A)),Escalation!$A$7:$R$54,MATCH(AM$8,Escalation!$6:$6,0),FALSE)*100,VLOOKUP($AA50,Escalation!$A$7:$R$54,MATCH(AM$8,Escalation!$6:$6,0),FALSE)*100) -> 1.947833713 | AN50: 2.042082582 | AO50: =IF(ISNA(VLOOKUP($AA50,Escalation!$A$7:$R$54,MATCH(AO$8,Escalation!$6:$6,0),FALSE)*100),VLOOKUP(CONCATENATE("Post ",MAX(Escalation!$A:$A)),Escalation!$A$7:$R$54,MATCH(AO$8,Escalation!$6:$6,0),FALSE)*100,VLOOKUP($AA50,Escalation!$A$7:$R$54,MATCH(AO$8,Escalation!$6:$6,0),FALSE)*100) -> 2.812969183 | AP50: 2.791636405 | AQ50: =IF(ISNA(VLOOKUP($AA50,Escalation!$A$7:$R$54,MATCH(AQ$8,Escalation!$6:$6,0),FALSE)*100),VLOOKUP(CONCATENATE("Post ",MAX(Escalation!$A:$A)),Escalation!$A$7:$R$54,MATCH(AQ$8,Escalation!$6:$6,0),FALSE)*100,VLOOKUP($AA50,Escalation!$A$7:$R$54,MATCH(AQ$8,Escalation!$6:$6,0),FALSE)*100) -> 2.812969183 | AR50: 2.791636405 | AS50: =IF(ISNA(VLOOKUP($AA50,Escalation!$A$7:$R$54,MATCH(AS$8,Escalation!$6:$6,0),FALSE)*100),VLOOKUP(CONCATENATE("Post ",MAX(Escalation!$A:$A)),Escalation!$A$7:$R$54,MATCH(AS$8,Escalation!$6:$6,0),FALSE)*100,VLOOKUP($AA50,Escalation!$A$7:$R$54,MATCH(AS$8,Escalation!$6:$6,0),FALSE)*100) -> 2.656095012 | AT50: 2.638286802 | AU50: =IF(ISNA(VLOOKUP($AA50,Escalation!$A$7:$R$54,MATCH(AU$8,Escalation!$6:$6,0),FALSE)*100),VLOOKUP(CONCATENATE("Post ",MAX(Escalation!$A:$A)),Escalation!$A$7:$R$54,MATCH(AU$8,Escalation!$6:$6,0),FALSE)*100,VLOOKUP($AA50,Escalation!$A$7:$R$54,MATCH(AU$8,Escalation!$6:$6,0),FALSE)*100) -> 2.53541408 | AV50: 2.525926137 | AW50: =IF(ISNA(VLOOKUP($AA50,Escalation!$A$7:$R$54,MATCH(AW$8,Escalation!$6:$6,0),FALSE)*100),VLOOKUP(CONCATENATE("Post ",MAX(Escalation!$A:$A)),Escalation!$A$7:$R$54,MATCH(AW$8,Escalation!$6:$6,0),FALSE)*100,VLOOKUP($AA50,Escalation!$A$7:$R$54,MATCH(AW$8,Escalation!$6:$6,0),FALSE)*100) -> 2.050029531 | AX50: 2.119671606 | AY50: =IF(ISNA(VLOOKUP($AA50,Escalation!$A$7:$R$54,MATCH(AY$8,Escalation!$6:$6,0),FALSE)*100),VLOOKUP(CONCATENATE("Post ",MAX(Escalation!$A:$A)),Escalation!$A$7:$R$54,MATCH(AY$8,Escalation!$6:$6,0),FALSE)*100,VLOOKUP($AA50,Escalation!$A$7:$R$54,MATCH(AY$8,Escalation!$6:$6,0),FALSE)*100) -> 2.050029531 | AZ50: 2.119671606
AA51: 2056 | AB51: =IF(ISNA(VLOOKUP($AA51,Escalation!$A$7:$R$54,MATCH(AB$7,Escalation!$6:$6,0),FALSE)*100),VLOOKUP(CONCATENATE("Post ",MAX(Escalation!$A:$A)),Escalation!$A$7:$R$54,MATCH(AB$7,Escalation!$6:$6,0),FALSE)*100,VLOOKUP($AA51,Escalation!$A$7:$R$54,MATCH(AB$7,Escalation!$6:$6,0),FALSE)*100) -> 2.210875284 | AC51: 2.29591252 | AD51: =IF(ISNA(VLOOKUP($AA51,Escalation!$A$7:$R$54,MATCH(AD$7,Escalation!$6:$6,0),FALSE)*100),VLOOKUP(CONCATENATE("Post ",MAX(Escalation!$A:$A)),Escalation!$A$7:$R$54,MATCH(AD$7,Escalation!$6:$6,0),FALSE)*100,VLOOKUP($AA51,Escalation!$A$7:$R$54,MATCH(AD$7,Escalation!$6:$6,0),FALSE)*100) -> 2.473916856 | AE51: 2.531338247 | AF51: =IF(ISNA(VLOOKUP($AA51,Escalation!$A$7:$R$54,MATCH(AF$7,Escalation!$6:$6,0),FALSE)*100),VLOOKUP(CONCATENATE("Post ",MAX(Escalation!$A:$A)),Escalation!$A$7:$R$54,MATCH(AF$7,Escalation!$6:$6,0),FALSE)*100,VLOOKUP($AA51,Escalation!$A$7:$R$54,MATCH(AF$7,Escalation!$6:$6,0),FALSE)*100) -> 2.736958428 | AG51: 2.790206826 | AH51: =IF(ISNA(VLOOKUP($AA51,Escalation!$A$7:$R$54,MATCH(AH$7,Escalation!$6:$6,0),FALSE)*100),VLOOKUP(CONCATENATE("Post ",MAX(Escalation!$A:$A)),Escalation!$A$7:$R$54,MATCH(AH$7,Escalation!$6:$6,0),FALSE)*100,VLOOKUP($AA51,Escalation!$A$7:$R$54,MATCH(AH$7,Escalation!$6:$6,0),FALSE)*100) -> 3 | AI51: 3.074783478 | AJ51: =IF(ISNA(VLOOKUP($AA51,Escalation!$A$7:$R$54,MATCH(AJ$7,Escalation!$6:$6,0),FALSE)*100),VLOOKUP(CONCATENATE("Post ",MAX(Escalation!$A:$A)),Escalation!$A$7:$R$54,MATCH(AJ$7,Escalation!$6:$6,0),FALSE)*100,VLOOKUP($AA51,Escalation!$A$7:$R$54,MATCH(AJ$7,Escalation!$6:$6,0),FALSE)*100) -> 1.947833713 | AK51: 2.081858955 | AL51: 2056 | AM51: =IF(ISNA(VLOOKUP($AA51,Escalation!$A$7:$R$54,MATCH(AM$8,Escalation!$6:$6,0),FALSE)*100),VLOOKUP(CONCATENATE("Post ",MAX(Escalation!$A:$A)),Escalation!$A$7:$R$54,MATCH(AM$8,Escalation!$6:$6,0),FALSE)*100,VLOOKUP($AA51,Escalation!$A$7:$R$54,MATCH(AM$8,Escalation!$6:$6,0),FALSE)*100) -> 1.947833713 | AN51: 2.081858955 | AO51: =IF(ISNA(VLOOKUP($AA51,Escalation!$A$7:$R$54,MATCH(AO$8,Escalation!$6:$6,0),FALSE)*100),VLOOKUP(CONCATENATE("Post ",MAX(Escalation!$A:$A)),Escalation!$A$7:$R$54,MATCH(AO$8,Escalation!$6:$6,0),FALSE)*100,VLOOKUP($AA51,Escalation!$A$7:$R$54,MATCH(AO$8,Escalation!$6:$6,0),FALSE)*100) -> 2.812969183 | AP51: 2.870164276 | AQ51: =IF(ISNA(VLOOKUP($AA51,Escalation!$A$7:$R$54,MATCH(AQ$8,Escalation!$6:$6,0),FALSE)*100),VLOOKUP(CONCATENATE("Post ",MAX(Escalation!$A:$A)),Escalation!$A$7:$R$54,MATCH(AQ$8,Escalation!$6:$6,0),FALSE)*100,VLOOKUP($AA51,Escalation!$A$7:$R$54,MATCH(AQ$8,Escalation!$6:$6,0),FALSE)*100) -> 2.812969183 | AR51: 2.870164276 | AS51: =IF(ISNA(VLOOKUP($AA51,Escalation!$A$7:$R$54,MATCH(AS$8,Escalation!$6:$6,0),FALSE)*100),VLOOKUP(CONCATENATE("Post ",MAX(Escalation!$A:$A)),Escalation!$A$7:$R$54,MATCH(AS$8,Escalation!$6:$6,0),FALSE)*100,VLOOKUP($AA51,Escalation!$A$7:$R$54,MATCH(AS$8,Escalation!$6:$6,0),FALSE)*100) -> 2.656095012 | AT51: 2.708362206 | AU51: =IF(ISNA(VLOOKUP($AA51,Escalation!$A$7:$R$54,MATCH(AU$8,Escalation!$6:$6,0),FALSE)*100),VLOOKUP(CONCATENATE("Post ",MAX(Escalation!$A:$A)),Escalation!$A$7:$R$54,MATCH(AU$8,Escalation!$6:$6,0),FALSE)*100,VLOOKUP($AA51,Escalation!$A$7:$R$54,MATCH(AU$8,Escalation!$6:$6,0),FALSE)*100) -> 2.53541408 | AV51: 2.589968824 | AW51: =IF(ISNA(VLOOKUP($AA51,Escalation!$A$7:$R$54,MATCH(AW$8,Escalation!$6:$6,0),FALSE)*100),VLOOKUP(CONCATENATE("Post ",MAX(Escalation!$A:$A)),Escalation!$A$7:$R$54,MATCH(AW$8,Escalation!$6:$6,0),FALSE)*100,VLOOKUP($AA51,Escalation!$A$7:$R$54,MATCH(AW$8,Escalation!$6:$6,0),FALSE)*100) -> 2.050029531 | AX51: 2.1631255 | AY51: =IF(ISNA(VLOOKUP($AA51,Escalation!$A$7:$R$54,MATCH(AY$8,Escalation!$6:$6,0),FALSE)*100),VLOOKUP(CONCATENATE("Post ",MAX(Escalation!$A:$A)),Escalation!$A$7:$R$54,MATCH(AY$8,Escalation!$6:$6,0),FALSE)*100,VLOOKUP($AA51,Escalation!$A$7:$R$54,MATCH(AY$8,Escalation!$6:$6,0),FALSE)*100) -> 2.050029531 | AZ51: 2.1631255
AA52: 2057 | AB52: =IF(ISNA(VLOOKUP($AA52,Escalation!$A$7:$R$54,MATCH(AB$7,Escalation!$6:$6,0),FALSE)*100),VLOOKUP(CONCATENATE("Post ",MAX(Escalation!$A:$A)),Escalation!$A$7:$R$54,MATCH(AB$7,Escalation!$6:$6,0),FALSE)*100,VLOOKUP($AA52,Escalation!$A$7:$R$54,MATCH(AB$7,Escalation!$6:$6,0),FALSE)*100) -> 2.210875284 | AC52: 2.346672282 | AD52: =IF(ISNA(VLOOKUP($AA52,Escalation!$A$7:$R$54,MATCH(AD$7,Escalation!$6:$6,0),FALSE)*100),VLOOKUP(CONCATENATE("Post ",MAX(Escalation!$A:$A)),Escalation!$A$7:$R$54,MATCH(AD$7,Escalation!$6:$6,0),FALSE)*100,VLOOKUP($AA52,Escalation!$A$7:$R$54,MATCH(AD$7,Escalation!$6:$6,0),FALSE)*100) -> 2.473916856 | AE52: 2.59396145 | AF52: =IF(ISNA(VLOOKUP($AA52,Escalation!$A$7:$R$54,MATCH(AF$7,Escalation!$6:$6,0),FALSE)*100),VLOOKUP(CONCATENATE("Post ",MAX(Escalation!$A:$A)),Escalation!$A$7:$R$54,MATCH(AF$7,Escalation!$6:$6,0),FALSE)*100,VLOOKUP($AA52,Escalation!$A$7:$R$54,MATCH(AF$7,Escalation!$6:$6,0),FALSE)*100) -> 2.736958428 | AG52: 2.866573626 | AH52: =IF(ISNA(VLOOKUP($AA52,Escalation!$A$7:$R$54,MATCH(AH$7,Escalation!$6:$6,0),FALSE)*100),VLOOKUP(CONCATENATE("Post ",MAX(Escalation!$A:$A)),Escalation!$A$7:$R$54,MATCH(AH$7,Escalation!$6:$6,0),FALSE)*100,VLOOKUP($AA52,Escalation!$A$7:$R$54,MATCH(AH$7,Escalation!$6:$6,0),FALSE)*100) -> 3 | AI52: 3.167026983 | AJ52: =IF(ISNA(VLOOKUP($AA52,Escalation!$A$7:$R$54,MATCH(AJ$7,Escalation!$6:$6,0),FALSE)*100),VLOOKUP(CONCATENATE("Post ",MAX(Escalation!$A:$A)),Escalation!$A$7:$R$54,MATCH(AJ$7,Escalation!$6:$6,0),FALSE)*100,VLOOKUP($AA52,Escalation!$A$7:$R$54,MATCH(AJ$7,Escalation!$6:$6,0),FALSE)*100) -> 1.947833713 | AK52: 2.122410106 | AL52: 2057 | AM52: =IF(ISNA(VLOOKUP($AA52,Escalation!$A$7:$R$54,MATCH(AM$8,Escalation!$6:$6,0),FALSE)*100),VLOOKUP(CONCATENATE("Post ",MAX(Escalation!$A:$A)),Escalation!$A$7:$R$54,MATCH(AM$8,Escalation!$6:$6,0),FALSE)*100,VLOOKUP($AA52,Escalation!$A$7:$R$54,MATCH(AM$8,Escalation!$6:$6,0),FALSE)*100) -> 1.947833713 | AN52: 2.122410106 | AO52: =IF(ISNA(VLOOKUP($AA52,Escalation!$A$7:$R$54,MATCH(AO$8,Escalation!$6:$6,0),FALSE)*100),VLOOKUP(CONCATENATE("Post ",MAX(Escalation!$A:$A)),Escalation!$A$7:$R$54,MATCH(AO$8,Escalation!$6:$6,0),FALSE)*100,VLOOKUP($AA52,Escalation!$A$7:$R$54,MATCH(AO$8,Escalation!$6:$6,0),FALSE)*100) -> 2.812969183 | AP52: 2.950901113 | AQ52: =IF(ISNA(VLOOKUP($AA52,Escalation!$A$7:$R$54,MATCH(AQ$8,Escalation!$6:$6,0),FALSE)*100),VLOOKUP(CONCATENATE("Post ",MAX(Escalation!$A:$A)),Escalation!$A$7:$R$54,MATCH(AQ$8,Escalation!$6:$6,0),FALSE)*100,VLOOKUP($AA52,Escalation!$A$7:$R$54,MATCH(AQ$8,Escalation!$6:$6,0),FALSE)*100) -> 2.812969183 | AR52: 2.950901113 | AS52: =IF(ISNA(VLOOKUP($AA52,Escalation!$A$7:$R$54,MATCH(AS$8,Escalation!$6:$6,0),FALSE)*100),VLOOKUP(CONCATENATE("Post ",MAX(Escalation!$A:$A)),Escalation!$A$7:$R$54,MATCH(AS$8,Escalation!$6:$6,0),FALSE)*100,VLOOKUP($AA52,Escalation!$A$7:$R$54,MATCH(AS$8,Escalation!$6:$6,0),FALSE)*100) -> 2.656095012 | AT52: 2.780298879 | AU52: =IF(ISNA(VLOOKUP($AA52,Escalation!$A$7:$R$54,MATCH(AU$8,Escalation!$6:$6,0),FALSE)*100),VLOOKUP(CONCATENATE("Post ",MAX(Escalation!$A:$A)),Escalation!$A$7:$R$54,MATCH(AU$8,Escalation!$6:$6,0),FALSE)*100,VLOOKUP($AA52,Escalation!$A$7:$R$54,MATCH(AU$8,Escalation!$6:$6,0),FALSE)*100) -> 2.53541408 | AV52: 2.655635259 | AW52: =IF(ISNA(VLOOKUP($AA52,Escalation!$A$7:$R$54,MATCH(AW$8,Escalation!$6:$6,0),FALSE)*100),VLOOKUP(CONCATENATE("Post ",MAX(Escalation!$A:$A)),Escalation!$A$7:$R$54,MATCH(AW$8,Escalation!$6:$6,0),FALSE)*100,VLOOKUP($AA52,Escalation!$A$7:$R$54,MATCH(AW$8,Escalation!$6:$6,0),FALSE)*100) -> 2.050029531 | AX52: 2.207470212 | AY52: =IF(ISNA(VLOOKUP($AA52,Escalation!$A$7:$R$54,MATCH(AY$8,Escalation!$6:$6,0),FALSE)*100),VLOOKUP(CONCATENATE("Post ",MAX(Escalation!$A:$A)),Escalation!$A$7:$R$54,MATCH(AY$8,Escalation!$6:$6,0),FALSE)*100,VLOOKUP($AA52,Escalation!$A$7:$R$54,MATCH(AY$8,Escalation!$6:$6,0),FALSE)*100) -> 2.050029531 | AZ52: 2.207470212
AA53: 2058 | AB53: =IF(ISNA(VLOOKUP($AA53,Escalation!$A$7:$R$54,MATCH(AB$7,Escalation!$6:$6,0),FALSE)*100),VLOOKUP(CONCATENATE("Post ",MAX(Escalation!$A:$A)),Escalation!$A$7:$R$54,MATCH(AB$7,Escalation!$6:$6,0),FALSE)*100,VLOOKUP($AA53,Escalation!$A$7:$R$54,MATCH(AB$7,Escalation!$6:$6,0),FALSE)*100) -> 2.210875284 | AC53: 2.39855428 | AD53: =IF(ISNA(VLOOKUP($AA53,Escalation!$A$7:$R$54,MATCH(AD$7,Escalation!$6:$6,0),FALSE)*100),VLOOKUP(CONCATENATE("Post ",MAX(Escalation!$A:$A)),Escalation!$A$7:$R$54,MATCH(AD$7,Escalation!$6:$6,0),FALSE)*100,VLOOKUP($AA53,Escalation!$A$7:$R$54,MATCH(AD$7,Escalation!$6:$6,0),FALSE)*100) -> 2.473916856 | AE53: 2.6581339 | AF53: =IF(ISNA(VLOOKUP($AA53,Escalation!$A$7:$R$54,MATCH(AF$7,Escalation!$6:$6,0),FALSE)*100),VLOOKUP(CONCATENATE("Post ",MAX(Escalation!$A:$A)),Escalation!$A$7:$R$54,MATCH(AF$7,Escalation!$6:$6,0),FALSE)*100,VLOOKUP($AA53,Escalation!$A$7:$R$54,MATCH(AF$7,Escalation!$6:$6,0),FALSE)*100) -> 2.736958428 | AG53: 2.945030555 | AH53: =IF(ISNA(VLOOKUP($AA53,Escalation!$A$7:$R$54,MATCH(AH$7,Escalation!$6:$6,0),FALSE)*100),VLOOKUP(CONCATENATE("Post ",MAX(Escalation!$A:$A)),Escalation!$A$7:$R$54,MATCH(AH$7,Escalation!$6:$6,0),FALSE)*100,VLOOKUP($AA53,Escalation!$A$7:$R$54,MATCH(AH$7,Escalation!$6:$6,0),FALSE)*100) -> 3 | AI53: 3.262037792 | AJ53: =IF(ISNA(VLOOKUP($AA53,Escalation!$A$7:$R$54,MATCH(AJ$7,Escalation!$6:$6,0),FALSE)*100),VLOOKUP(CONCATENATE("Post ",MAX(Escalation!$A:$A)),Escalation!$A$7:$R$54,MATCH(AJ$7,Escalation!$6:$6,0),FALSE)*100,VLOOKUP($AA53,Escalation!$A$7:$R$54,MATCH(AJ$7,Escalation!$6:$6,0),FALSE)*100) -> 1.947833713 | AK53: 2.163751125 | AL53: 2058 | AM53: =IF(ISNA(VLOOKUP($AA53,Escalation!$A$7:$R$54,MATCH(AM$8,Escalation!$6:$6,0),FALSE)*100),VLOOKUP(CONCATENATE("Post ",MAX(Escalation!$A:$A)),Escalation!$A$7:$R$54,MATCH(AM$8,Escalation!$6:$6,0),FALSE)*100,VLOOKUP($AA53,Escalation!$A$7:$R$54,MATCH(AM$8,Escalation!$6:$6,0),FALSE)*100) -> 1.947833713 | AN53: 2.163751125 | AO53: =IF(ISNA(VLOOKUP($AA53,Escalation!$A$7:$R$54,MATCH(AO$8,Escalation!$6:$6,0),FALSE)*100),VLOOKUP(CONCATENATE("Post ",MAX(Escalation!$A:$A)),Escalation!$A$7:$R$54,MATCH(AO$8,Escalation!$6:$6,0),FALSE)*100,VLOOKUP($AA53,Escalation!$A$7:$R$54,MATCH(AO$8,Escalation!$6:$6,0),FALSE)*100) -> 2.812969183 | AP53: 3.033909052 | AQ53: =IF(ISNA(VLOOKUP($AA53,Escalation!$A$7:$R$54,MATCH(AQ$8,Escalation!$6:$6,0),FALSE)*100),VLOOKUP(CONCATENATE("Post ",MAX(Escalation!$A:$A)),Escalation!$A$7:$R$54,MATCH(AQ$8,Escalation!$6:$6,0),FALSE)*100,VLOOKUP($AA53,Escalation!$A$7:$R$54,MATCH(AQ$8,Escalation!$6:$6,0),FALSE)*100) -> 2.812969183 | AR53: 3.033909052 | AS53: =IF(ISNA(VLOOKUP($AA53,Escalation!$A$7:$R$54,MATCH(AS$8,Escalation!$6:$6,0),FALSE)*100),VLOOKUP(CONCATENATE("Post ",MAX(Escalation!$A:$A)),Escalation!$A$7:$R$54,MATCH(AS$8,Escalation!$6:$6,0),FALSE)*100,VLOOKUP($AA53,Escalation!$A$7:$R$54,MATCH(AS$8,Escalation!$6:$6,0),FALSE)*100) -> 2.656095012 | AT53: 2.854146259 | AU53: =IF(ISNA(VLOOKUP($AA53,Escalation!$A$7:$R$54,MATCH(AU$8,Escalation!$6:$6,0),FALSE)*100),VLOOKUP(CONCATENATE("Post ",MAX(Escalation!$A:$A)),Escalation!$A$7:$R$54,MATCH(AU$8,Escalation!$6:$6,0),FALSE)*100,VLOOKUP($AA53,Escalation!$A$7:$R$54,MATCH(AU$8,Escalation!$6:$6,0),FALSE)*100) -> 2.53541408 | AV53: 2.722966609 | AW53: =IF(ISNA(VLOOKUP($AA53,Escalation!$A$7:$R$54,MATCH(AW$8,Escalation!$6:$6,0),FALSE)*100),VLOOKUP(CONCATENATE("Post ",MAX(Escalation!$A:$A)),Escalation!$A$7:$R$54,MATCH(AW$8,Escalation!$6:$6,0),FALSE)*100,VLOOKUP($AA53,Escalation!$A$7:$R$54,MATCH(AW$8,Escalation!$6:$6,0),FALSE)*100) -> 2.050029531 | AX53: 2.252724003 | AY53: =IF(ISNA(VLOOKUP($AA53,Escalation!$A$7:$R$54,MATCH(AY$8,Escalation!$6:$6,0),FALSE)*100),VLOOKUP(CONCATENATE("Post ",MAX(Escalation!$A:$A)),Escalation!$A$7:$R$54,MATCH(AY$8,Escalation!$6:$6,0),FALSE)*100,VLOOKUP($AA53,Escalation!$A$7:$R$54,MATCH(AY$8,Escalation!$6:$6,0),FALSE)*100) -> 2.050029531 | AZ53: 2.252724003
AA54: =AA53+1 -> 2059 | AB54: =IF(ISNA(VLOOKUP($AA54,Escalation!$A$7:$R$54,MATCH(AB$7,Escalation!$6:$6,0),FALSE)*100),VLOOKUP(CONCATENATE("Post ",MAX(Escalation!$A:$A)),Escalation!$A$7:$R$54,MATCH(AB$7,Escalation!$6:$6,0),FALSE)*100,VLOOKUP($AA54,Escalation!$A$7:$R$54,MATCH(AB$7,Escalation!$6:$6,0),FALSE)*100) -> 2.210875284 | AC54: 2.451583323 | AD54: =IF(ISNA(VLOOKUP($AA54,Escalation!$A$7:$R$54,MATCH(AD$7,Escalation!$6:$6,0),FALSE)*100),VLOOKUP(CONCATENATE("Post ",MAX(Escalation!$A:$A)),Escalation!$A$7:$R$54,MATCH(AD$7,Escalation!$6:$6,0),FALSE)*100,VLOOKUP($AA54,Escalation!$A$7:$R$54,MATCH(AD$7,Escalation!$6:$6,0),FALSE)*100) -> 2.473916856 | AE54: =(1+AD54/100)*AE53 -> 2.723893922 | AF54: =IF(ISNA(VLOOKUP($AA54,Escalation!$A$7:$R$54,MATCH(AF$7,Escalation!$6:$6,0),FALSE)*100),VLOOKUP(CONCATENATE("Post ",MAX(Escalation!$A:$A)),Escalation!$A$7:$R$54,MATCH(AF$7,Escalation!$6:$6,0),FALSE)*100,VLOOKUP($AA54,Escalation!$A$7:$R$54,MATCH(AF$7,Escalation!$6:$6,0),FALSE)*100) -> 2.736958428 | AG54: =(1+AF54/100)*AG53 -> 3.025634817 | AH54: =IF(ISNA(VLOOKUP($AA54,Escalation!$A$7:$R$54,MATCH(AH$7,Escalation!$6:$6,0),FALSE)*100),VLOOKUP(CONCATENATE("Post ",MAX(Escalation!$A:$A)),Escalation!$A$7:$R$54,MATCH(AH$7,Escalation!$6:$6,0),FALSE)*100,VLOOKUP($AA54,Escalation!$A$7:$R$54,MATCH(AH$7,Escalation!$6:$6,0),FALSE)*100) -> 3 | AI54: =(1+AH54/100)*AI53 -> 3.359898926 | AJ54: =IF(ISNA(VLOOKUP($AA54,Escalation!$A$7:$R$54,MATCH(AJ$7,Escalation!$6:$6,0),FALSE)*100),VLOOKUP(CONCATENATE("Post ",MAX(Escalation!$A:$A)),Escalation!$A$7:$R$54,MATCH(AJ$7,Escalation!$6:$6,0),FALSE)*100,VLOOKUP($AA54,Escalation!$A$7:$R$54,MATCH(AJ$7,Escalation!$6:$6,0),FALSE)*100) -> 1.947833713 | AK54: =(1+AJ54/100)*AK53 -> 2.205897399 | AL54: 2059 | AM54: =IF(ISNA(VLOOKUP($AA54,Escalation!$A$7:$R$54,MATCH(AM$8,Escalation!$6:$6,0),FALSE)*100),VLOOKUP(CONCATENATE("Post ",MAX(Escalation!$A:$A)),Escalation!$A$7:$R$54,MATCH(AM$8,Escalation!$6:$6,0),FALSE)*100,VLOOKUP($AA54,Escalation!$A$7:$R$54,MATCH(AM$8,Escalation!$6:$6,0),FALSE)*100) -> 1.947833713 | AN54: =(1+AM54/100)*AN53 -> 2.205897399 | AO54: =IF(ISNA(VLOOKUP($AA54,Escalation!$A$7:$R$54,MATCH(AO$8,Escalation!$6:$6,0),FALSE)*100),VLOOKUP(CONCATENATE("Post ",MAX(Escalation!$A:$A)),Escalation!$A$7:$R$54,MATCH(AO$8,Escalation!$6:$6,0),FALSE)*100,VLOOKUP($AA54,Escalation!$A$7:$R$54,MATCH(AO$8,Escalation!$6:$6,0),FALSE)*100) -> 2.812969183 | AP54: =(1+AO54/100)*AP53 -> 3.119251979 | AQ54: =IF(ISNA(VLOOKUP($AA54,Escalation!$A$7:$R$54,MATCH(AQ$8,Escalation!$6:$6,0),FALSE)*100),VLOOKUP(CONCATENATE("Post ",MAX(Escalation!$A:$A)),Escalation!$A$7:$R$54,MATCH(AQ$8,Escalation!$6:$6,0),FALSE)*100,VLOOKUP($AA54,Escalation!$A$7:$R$54,MATCH(AQ$8,Escalation!$6:$6,0),FALSE)*100) -> 2.812969183 | AR54: =(1+AQ54/100)*AR53 -> 3.119251979 | AS54: =IF(ISNA(VLOOKUP($AA54,Escalation!$A$7:$R$54,MATCH(AS$8,Escalation!$6:$6,0),FALSE)*100),VLOOKUP(CONCATENATE("Post ",MAX(Escalation!$A:$A)),Escalation!$A$7:$R$54,MATCH(AS$8,Escalation!$6:$6,0),FALSE)*100,VLOOKUP($AA54,Escalation!$A$7:$R$54,MATCH(AS$8,Escalation!$6:$6,0),FALSE)*100) -> 2.656095012 | AT54: =(1+AS54/100)*AT53 -> 2.929955096 | AU54: =IF(ISNA(VLOOKUP($AA54,Escalation!$A$7:$R$54,MATCH(AU$8,Escalation!$6:$6,0),FALSE)*100),VLOOKUP(CONCATENATE("Post ",MAX(Escalation!$A:$A)),Escalation!$A$7:$R$54,MATCH(AU$8,Escalation!$6:$6,0),FALSE)*100,VLOOKUP($AA54,Escalation!$A$7:$R$54,MATCH(AU$8,Escalation!$6:$6,0),FALSE)*100) -> 2.53541408 | AV54: =(1+AU54/100)*AV53 -> 2.792005088 | AW54: =IF(ISNA(VLOOKUP($AA54,Escalation!$A$7:$R$54,MATCH(AW$8,Escalation!$6:$6,0),FALSE)*100),VLOOKUP(CONCATENATE("Post ",MAX(Escalation!$A:$A)),Escalation!$A$7:$R$54,MATCH(AW$8,Escalation!$6:$6,0),FALSE)*100,VLOOKUP($AA54,Escalation!$A$7:$R$54,MATCH(AW$8,Escalation!$6:$6,0),FALSE)*100) -> 2.050029531 | AX54: =(1+AW54/100)*AX53 -> 2.29890551 | AY54: =IF(ISNA(VLOOKUP($AA54,Escalation!$A$7:$R$54,MATCH(AY$8,Escalation!$6:$6,0),FALSE)*100),VLOOKUP(CONCATENATE("Post ",MAX(Escalation!$A:$A)),Escalation!$A$7:$R$54,MATCH(AY$8,Escalation!$6:$6,0),FALSE)*100,VLOOKUP($AA54,Escalation!$A$7:$R$54,MATCH(AY$8,Escalation!$6:$6,0),FALSE)*100) -> 2.050029531 | AZ54: =(1+AY54/100)*AZ53 -> 2.29890551
AA55: =AA54+1 -> 2060 | AB55: =IF(ISNA(VLOOKUP($AA55,Escalation!$A$7:$R$54,MATCH(AB$7,Escalation!$6:$6,0),FALSE)*100),VLOOKUP(CONCATENATE("Post ",MAX(Escalation!$A:$A)),Escalation!$A$7:$R$54,MATCH(AB$7,Escalation!$6:$6,0),FALSE)*100,VLOOKUP($AA55,Escalation!$A$7:$R$54,MATCH(AB$7,Escalation!$6:$6,0),FALSE)*100) -> 2.210875284 | AC55: =(1+AB55/100)*AC54 -> 2.505784773 | AD55: =IF(ISNA(VLOOKUP($AA55,Escalation!$A$7:$R$54,MATCH(AD$7,Escalation!$6:$6,0),FALSE)*100),VLOOKUP(CONCATENATE("Post ",MAX(Escalation!$A:$A)),Escalation!$A$7:$R$54,MATCH(AD$7,Escalation!$6:$6,0),FALSE)*100,VLOOKUP($AA55,Escalation!$A$7:$R$54,MATCH(AD$7,Escalation!$6:$6,0),FALSE)*100) -> 2.473916856 | AE55: =(1+AD55/100)*AE54 -> 2.791280793 | AF55: =IF(ISNA(VLOOKUP($AA55,Escalation!$A$7:$R$54,MATCH(AF$7,Escalation!$6:$6,0),FALSE)*100),VLOOKUP(CONCATENATE("Post ",MAX(Escalation!$A:$A)),Escalation!$A$7:$R$54,MATCH(AF$7,Escalation!$6:$6,0),FALSE)*100,VLOOKUP($AA55,Escalation!$A$7:$R$54,MATCH(AF$7,Escalation!$6:$6,0),FALSE)*100) -> 2.736958428 | AG55: =(1+AF55/100)*AG54 -> 3.108445184 | AH55: =IF(ISNA(VLOOKUP($AA55,Escalation!$A$7:$R$54,MATCH(AH$7,Escalation!$6:$6,0),FALSE)*100),VLOOKUP(CONCATENATE("Post ",MAX(Escalation!$A:$A)),Escalation!$A$7:$R$54,MATCH(AH$7,Escalation!$6:$6,0),FALSE)*100,VLOOKUP($AA55,Escalation!$A$7:$R$54,MATCH(AH$7,Escalation!$6:$6,0),FALSE)*100) -> 3 | AI55: =(1+AH55/100)*AI54 -> 3.460695894 | AJ55: =IF(ISNA(VLOOKUP($AA55,Escalation!$A$7:$R$54,MATCH(AJ$7,Escalation!$6:$6,0),FALSE)*100),VLOOKUP(CONCATENATE("Post ",MAX(Escalation!$A:$A)),Escalation!$A$7:$R$54,MATCH(AJ$7,Escalation!$6:$6,0),FALSE)*100,VLOOKUP($AA55,Escalation!$A$7:$R$54,MATCH(AJ$7,Escalation!$6:$6,0),FALSE)*100) -> 1.947833713 | AK55: =(1+AJ55/100)*AK54 -> 2.248864613 | AL55: 2060 | AM55: =IF(ISNA(VLOOKUP($AA55,Escalation!$A$7:$R$54,MATCH(AM$8,Escalation!$6:$6,0),FALSE)*100),VLOOKUP(CONCATENATE("Post ",MAX(Escalation!$A:$A)),Escalation!$A$7:$R$54,MATCH(AM$8,Escalation!$6:$6,0),FALSE)*100,VLOOKUP($AA55,Escalation!$A$7:$R$54,MATCH(AM$8,Escalation!$6:$6,0),FALSE)*100) -> 1.947833713 | AN55: =(1+AM55/100)*AN54 -> 2.248864613 | AO55: =IF(ISNA(VLOOKUP($AA55,Escalation!$A$7:$R$54,MATCH(AO$8,Escalation!$6:$6,0),FALSE)*100),VLOOKUP(CONCATENATE("Post ",MAX(Escalation!$A:$A)),Escalation!$A$7:$R$54,MATCH(AO$8,Escalation!$6:$6,0),FALSE)*100,VLOOKUP($AA55,Escalation!$A$7:$R$54,MATCH(AO$8,Escalation!$6:$6,0),FALSE)*100) -> 2.812969183 | AP55: =(1+AO55/100)*AP54 -> 3.206995576 | AQ55: =IF(ISNA(VLOOKUP($AA55,Escalation!$A$7:$R$54,MATCH(AQ$8,Escalation!$6:$6,0),FALSE)*100),VLOOKUP(CONCATENATE("Post ",MAX(Escalation!$A:$A)),Escalation!$A$7:$R$54,MATCH(AQ$8,Escalation!$6:$6,0),FALSE)*100,VLOOKUP($AA55,Escalation!$A$7:$R$54,MATCH(AQ$8,Escalation!$6:$6,0),FALSE)*100) -> 2.812969183 | AR55: =(1+AQ55/100)*AR54 -> 3.206995576 | AS55: =IF(ISNA(VLOOKUP($AA55,Escalation!$A$7:$R$54,MATCH(AS$8,Escalation!$6:$6,0),FALSE)*100),VLOOKUP(CONCATENATE("Post ",MAX(Escalation!$A:$A)),Escalation!$A$7:$R$54,MATCH(AS$8,Escalation!$6:$6,0),FALSE)*100,VLOOKUP($AA55,Escalation!$A$7:$R$54,MATCH(AS$8,Escalation!$6:$6,0),FALSE)*100) -> 2.656095012 | AT55: =(1+AS55/100)*AT54 -> 3.007777487 | AU55: =IF(ISNA(VLOOKUP($AA55,Escalation!$A$7:$R$54,MATCH(AU$8,Escalation!$6:$6,0),FALSE)*100),VLOOKUP(CONCATENATE("Post ",MAX(Escalation!$A:$A)),Escalation!$A$7:$R$54,MATCH(AU$8,Escalation!$6:$6,0),FALSE)*100,VLOOKUP($AA55,Escalation!$A$7:$R$54,MATCH(AU$8,Escalation!$6:$6,0),FALSE)*100) -> 2.53541408 | AV55: =(1+AU55/100)*AV54 -> 2.862793978 | AW55: =IF(ISNA(VLOOKUP($AA55,Escalation!$A$7:$R$54,MATCH(AW$8,Escalation!$6:$6,0),FALSE)*100),VLOOKUP(CONCATENATE("Post ",MAX(Escalation!$A:$A)),Escalation!$A$7:$R$54,MATCH(AW$8,Escalation!$6:$6,0),FALSE)*100,VLOOKUP($AA55,Escalation!$A$7:$R$54,MATCH(AW$8,Escalation!$6:$6,0),FALSE)*100) -> 2.050029531 | AX55: =(1+AW55/100)*AX54 -> 2.346033752 | AY55: =IF(ISNA(VLOOKUP($AA55,Escalation!$A$7:$R$54,MATCH(AY$8,Escalation!$6:$6,0),FALSE)*100),VLOOKUP(CONCATENATE("Post ",MAX(Escalation!$A:$A)),Escalation!$A$7:$R$54,MATCH(AY$8,Escalation!$6:$6,0),FALSE)*100,VLOOKUP($AA55,Escalation!$A$7:$R$54,MATCH(AY$8,Escalation!$6:$6,0),FALSE)*100) -> 2.050029531 | AZ55: =(1+AY55/100)*AZ54 -> 2.346033752
AA56: =AA55+1 -> 2061 | AB56: =IF(ISNA(VLOOKUP($AA56,Escalation!$A$7:$R$54,MATCH(AB$7,Escalation!$6:$6,0),FALSE)*100),VLOOKUP(CONCATENATE("Post ",MAX(Escalation!$A:$A)),Escalation!$A$7:$R$54,MATCH(AB$7,Escalation!$6:$6,0),FALSE)*100,VLOOKUP($AA56,Escalation!$A$7:$R$54,MATCH(AB$7,Escalation!$6:$6,0),FALSE)*100) -> 2.210875284 | AC56: =(1+AB56/100)*AC55 -> 2.561184549 | AD56: =IF(ISNA(VLOOKUP($AA56,Escalation!$A$7:$R$54,MATCH(AD$7,Escalation!$6:$6,0),FALSE)*100),VLOOKUP(CONCATENATE("Post ",MAX(Escalation!$A:$A)),Escalation!$A$7:$R$54,MATCH(AD$7,Escalation!$6:$6,0),FALSE)*100,VLOOKUP($AA56,Escalation!$A$7:$R$54,MATCH(AD$7,Escalation!$6:$6,0),FALSE)*100) -> 2.473916856 | AE56: =(1+AD56/100)*AE55 -> 2.860334759 | AF56: =IF(ISNA(VLOOKUP($AA56,Escalation!$A$7:$R$54,MATCH(AF$7,Escalation!$6:$6,0),FALSE)*100),VLOOKUP(CONCATENATE("Post ",MAX(Escalation!$A:$A)),Escalation!$A$7:$R$54,MATCH(AF$7,Escalation!$6:$6,0),FALSE)*100,VLOOKUP($AA56,Escalation!$A$7:$R$54,MATCH(AF$7,Escalation!$6:$6,0),FALSE)*100) -> 2.736958428 | AG56: =(1+AF56/100)*AG55 -> 3.193522037 | AH56: =IF(ISNA(VLOOKUP($AA56,Escalation!$A$7:$R$54,MATCH(AH$7,Escalation!$6:$6,0),FALSE)*100),VLOOKUP(CONCATENATE("Post ",MAX(Escalation!$A:$A)),Escalation!$A$7:$R$54,MATCH(AH$7,Escalation!$6:$6,0),FALSE)*100,VLOOKUP($AA56,Escalation!$A$7:$R$54,MATCH(AH$7,Escalation!$6:$6,0),FALSE)*100) -> 3 | AI56: =(1+AH56/100)*AI55 -> 3.56451677 | AJ56: =IF(ISNA(VLOOKUP($AA56,Escalation!$A$7:$R$54,MATCH(AJ$7,Escalation!$6:$6,0),FALSE)*100),VLOOKUP(CONCATENATE("Post ",MAX(Escalation!$A:$A)),Escalation!$A$7:$R$54,MATCH(AJ$7,Escalation!$6:$6,0),FALSE)*100,VLOOKUP($AA56,Escalation!$A$7:$R$54,MATCH(AJ$7,Escalation!$6:$6,0),FALSE)*100) -> 1.947833713 | AK56: =(1+AJ56/100)*AK55 -> 2.292668756 | AL56: 2061 | AM56: =IF(ISNA(VLOOKUP($AA56,Escalation!$A$7:$R$54,MATCH(AM$8,Escalation!$6:$6,0),FALSE)*100),VLOOKUP(CONCATENATE("Post ",MAX(Escalation!$A:$A)),Escalation!$A$7:$R$54,MATCH(AM$8,Escalation!$6:$6,0),FALSE)*100,VLOOKUP($AA56,Escalation!$A$7:$R$54,MATCH(AM$8,Escalation!$6:$6,0),FALSE)*100) -> 1.947833713 | AN56: =(1+AM56/100)*AN55 -> 2.292668756 | AO56: =IF(ISNA(VLOOKUP($AA56,Escalation!$A$7:$R$54,MATCH(AO$8,Escalation!$6:$6,0),FALSE)*100),VLOOKUP(CONCATENATE("Post ",MAX(Escalation!$A:$A)),Escalation!$A$7:$R$54,MATCH(AO$8,Escalation!$6:$6,0),FALSE)*100,VLOOKUP($AA56,Escalation!$A$7:$R$54,MATCH(AO$8,Escalation!$6:$6,0),FALSE)*100) -> 2.812969183 | AP56: =(1+AO56/100)*AP55 -> 3.297207373 | AQ56: =IF(ISNA(VLOOKUP($AA56,Escalation!$A$7:$R$54,MATCH(AQ$8,Escalation!$6:$6,0),FALSE)*100),VLOOKUP(CONCATENATE("Post ",MAX(Escalation!$A:$A)),Escalation!$A$7:$R$54,MATCH(AQ$8,Escalation!$6:$6,0),FALSE)*100,VLOOKUP($AA56,Escalation!$A$7:$R$54,MATCH(AQ$8,Escalation!$6:$6,0),FALSE)*100) -> 2.812969183 | AR56: =(1+AQ56/100)*AR55 -> 3.297207373 | AS56: =IF(ISNA(VLOOKUP($AA56,Escalation!$A$7:$R$54,MATCH(AS$8,Escalation!$6:$6,0),FALSE)*100),VLOOKUP(CONCATENATE("Post ",MAX(Escalation!$A:$A)),Escalation!$A$7:$R$54,MATCH(AS$8,Escalation!$6:$6,0),FALSE)*100,VLOOKUP($AA56,Escalation!$A$7:$R$54,MATCH(AS$8,Escalation!$6:$6,0),FALSE)*100) -> 2.656095012 | AT56: =(1+AS56/100)*AT55 -> 3.087666915 | AU56: =IF(ISNA(VLOOKUP($AA56,Escalation!$A$7:$R$54,MATCH(AU$8,Escalation!$6:$6,0),FALSE)*100),VLOOKUP(CONCATENATE("Post ",MAX(Escalation!$A:$A)),Escalation!$A$7:$R$54,MATCH(AU$8,Escalation!$6:$6,0),FALSE)*100,VLOOKUP($AA56,Escalation!$A$7:$R$54,MATCH(AU$8,Escalation!$6:$6,0),FALSE)*100) -> 2.53541408 | AV56: =(1+AU56/100)*AV55 -> 2.935377659 | AW56: =IF(ISNA(VLOOKUP($AA56,Escalation!$A$7:$R$54,MATCH(AW$8,Escalation!$6:$6,0),FALSE)*100),VLOOKUP(CONCATENATE("Post ",MAX(Escalation!$A:$A)),Escalation!$A$7:$R$54,MATCH(AW$8,Escalation!$6:$6,0),FALSE)*100,VLOOKUP($AA56,Escalation!$A$7:$R$54,MATCH(AW$8,Escalation!$6:$6,0),FALSE)*100) -> 2.050029531 | AX56: =(1+AW56/100)*AX55 -> 2.394128137 | AY56: =IF(ISNA(VLOOKUP($AA56,Escalation!$A$7:$R$54,MATCH(AY$8,Escalation!$6:$6,0),FALSE)*100),VLOOKUP(CONCATENATE("Post ",MAX(Escalation!$A:$A)),Escalation!$A$7:$R$54,MATCH(AY$8,Escalation!$6:$6,0),FALSE)*100,VLOOKUP($AA56,Escalation!$A$7:$R$54,MATCH(AY$8,Escalation!$6:$6,0),FALSE)*100) -> 2.050029531 | AZ56: =(1+AY56/100)*AZ55 -> 2.394128137
AA57: 2062 | AB57: =IF(ISNA(VLOOKUP($AA57,Escalation!$A$7:$R$54,MATCH(AB$7,Escalation!$6:$6,0),FALSE)*100),VLOOKUP(CONCATENATE("Post ",MAX(Escalation!$A:$A)),Escalation!$A$7:$R$54,MATCH(AB$7,Escalation!$6:$6,0),FALSE)*100,VLOOKUP($AA57,Escalation!$A$7:$R$54,MATCH(AB$7,Escalation!$6:$6,0),FALSE)*100) -> 2.210875284 | AC57: 2.617809146 | AD57: =IF(ISNA(VLOOKUP($AA57,Escalation!$A$7:$R$54,MATCH(AD$7,Escalation!$6:$6,0),FALSE)*100),VLOOKUP(CONCATENATE("Post ",MAX(Escalation!$A:$A)),Escalation!$A$7:$R$54,MATCH(AD$7,Escalation!$6:$6,0),FALSE)*100,VLOOKUP($AA57,Escalation!$A$7:$R$54,MATCH(AD$7,Escalation!$6:$6,0),FALSE)*100) -> 2.473916856 | AE57: 2.931097063 | AF57: =IF(ISNA(VLOOKUP($AA57,Escalation!$A$7:$R$54,MATCH(AF$7,Escalation!$6:$6,0),FALSE)*100),VLOOKUP(CONCATENATE("Post ",MAX(Escalation!$A:$A)),Escalation!$A$7:$R$54,MATCH(AF$7,Escalation!$6:$6,0),FALSE)*100,VLOOKUP($AA57,Escalation!$A$7:$R$54,MATCH(AF$7,Escalation!$6:$6,0),FALSE)*100) -> 2.736958428 | AG57: 3.280927407 | AH57: =IF(ISNA(VLOOKUP($AA57,Escalation!$A$7:$R$54,MATCH(AH$7,Escalation!$6:$6,0),FALSE)*100),VLOOKUP(CONCATENATE("Post ",MAX(Escalation!$A:$A)),Escalation!$A$7:$R$54,MATCH(AH$7,Escalation!$6:$6,0),FALSE)*100,VLOOKUP($AA57,Escalation!$A$7:$R$54,MATCH(AH$7,Escalation!$6:$6,0),FALSE)*100) -> 3 | AI57: 3.671452273 | AJ57: =IF(ISNA(VLOOKUP($AA57,Escalation!$A$7:$R$54,MATCH(AJ$7,Escalation!$6:$6,0),FALSE)*100),VLOOKUP(CONCATENATE("Post ",MAX(Escalation!$A:$A)),Escalation!$A$7:$R$54,MATCH(AJ$7,Escalation!$6:$6,0),FALSE)*100,VLOOKUP($AA57,Escalation!$A$7:$R$54,MATCH(AJ$7,Escalation!$6:$6,0),FALSE)*100) -> 1.947833713 | AK57: 2.337326131 | AL57: 2062 | AM57: =IF(ISNA(VLOOKUP($AA57,Escalation!$A$7:$R$54,MATCH(AM$8,Escalation!$6:$6,0),FALSE)*100),VLOOKUP(CONCATENATE("Post ",MAX(Escalation!$A:$A)),Escalation!$A$7:$R$54,MATCH(AM$8,Escalation!$6:$6,0),FALSE)*100,VLOOKUP($AA57,Escalation!$A$7:$R$54,MATCH(AM$8,Escalation!$6:$6,0),FALSE)*100) -> 1.947833713 | AN57: 2.337326131 | AO57: =IF(ISNA(VLOOKUP($AA57,Escalation!$A$7:$R$54,MATCH(AO$8,Escalation!$6:$6,0),FALSE)*100),VLOOKUP(CONCATENATE("Post ",MAX(Escalation!$A:$A)),Escalation!$A$7:$R$54,MATCH(AO$8,Escalation!$6:$6,0),FALSE)*100,VLOOKUP($AA57,Escalation!$A$7:$R$54,MATCH(AO$8,Escalation!$6:$6,0),FALSE)*100) -> 2.812969183 | AP57: 3.3899568 | AQ57: =IF(ISNA(VLOOKUP($AA57,Escalation!$A$7:$R$54,MATCH(AQ$8,Escalation!$6:$6,0),FALSE)*100),VLOOKUP(CONCATENATE("Post ",MAX(Escalation!$A:$A)),Escalation!$A$7:$R$54,MATCH(AQ$8,Escalation!$6:$6,0),FALSE)*100,VLOOKUP($AA57,Escalation!$A$7:$R$54,MATCH(AQ$8,Escalation!$6:$6,0),FALSE)*100) -> 2.812969183 | AR57: 3.3899568 | AS57: =IF(ISNA(VLOOKUP($AA57,Escalation!$A$7:$R$54,MATCH(AS$8,Escalation!$6:$6,0),FALSE)*100),VLOOKUP(CONCATENATE("Post ",MAX(Escalation!$A:$A)),Escalation!$A$7:$R$54,MATCH(AS$8,Escalation!$6:$6,0),FALSE)*100,VLOOKUP($AA57,Escalation!$A$7:$R$54,MATCH(AS$8,Escalation!$6:$6,0),FALSE)*100) -> 2.656095012 | AT57: 3.169678281 | AU57: =IF(ISNA(VLOOKUP($AA57,Escalation!$A$7:$R$54,MATCH(AU$8,Escalation!$6:$6,0),FALSE)*100),VLOOKUP(CONCATENATE("Post ",MAX(Escalation!$A:$A)),Escalation!$A$7:$R$54,MATCH(AU$8,Escalation!$6:$6,0),FALSE)*100,VLOOKUP($AA57,Escalation!$A$7:$R$54,MATCH(AU$8,Escalation!$6:$6,0),FALSE)*100) -> 2.53541408 | AV57: 3.009801638 | AW57: =IF(ISNA(VLOOKUP($AA57,Escalation!$A$7:$R$54,MATCH(AW$8,Escalation!$6:$6,0),FALSE)*100),VLOOKUP(CONCATENATE("Post ",MAX(Escalation!$A:$A)),Escalation!$A$7:$R$54,MATCH(AW$8,Escalation!$6:$6,0),FALSE)*100,VLOOKUP($AA57,Escalation!$A$7:$R$54,MATCH(AW$8,Escalation!$6:$6,0),FALSE)*100) -> 2.050029531 | AX57: 2.443208471 | AY57: =IF(ISNA(VLOOKUP($AA57,Escalation!$A$7:$R$54,MATCH(AY$8,Escalation!$6:$6,0),FALSE)*100),VLOOKUP(CONCATENATE("Post ",MAX(Escalation!$A:$A)),Escalation!$A$7:$R$54,MATCH(AY$8,Escalation!$6:$6,0),FALSE)*100,VLOOKUP($AA57,Escalation!$A$7:$R$54,MATCH(AY$8,Escalation!$6:$6,0),FALSE)*100) -> 2.050029531 | AZ57: 2.443208471
AA58: 2063 | AB58: =IF(ISNA(VLOOKUP($AA58,Escalation!$A$7:$R$54,MATCH(AB$7,Escalation!$6:$6,0),FALSE)*100),VLOOKUP(CONCATENATE("Post ",MAX(Escalation!$A:$A)),Escalation!$A$7:$R$54,MATCH(AB$7,Escalation!$6:$6,0),FALSE)*100,VLOOKUP($AA58,Escalation!$A$7:$R$54,MATCH(AB$7,Escalation!$6:$6,0),FALSE)*100) -> 2.210875284 | AC58: 2.675685641 | AD58: =IF(ISNA(VLOOKUP($AA58,Escalation!$A$7:$R$54,MATCH(AD$7,Escalation!$6:$6,0),FALSE)*100),VLOOKUP(CONCATENATE("Post ",MAX(Escalation!$A:$A)),Escalation!$A$7:$R$54,MATCH(AD$7,Escalation!$6:$6,0),FALSE)*100,VLOOKUP($AA58,Escalation!$A$7:$R$54,MATCH(AD$7,Escalation!$6:$6,0),FALSE)*100) -> 2.473916856 | AE58: 3.003609967 | AF58: =IF(ISNA(VLOOKUP($AA58,Escalation!$A$7:$R$54,MATCH(AF$7,Escalation!$6:$6,0),FALSE)*100),VLOOKUP(CONCATENATE("Post ",MAX(Escalation!$A:$A)),Escalation!$A$7:$R$54,MATCH(AF$7,Escalation!$6:$6,0),FALSE)*100,VLOOKUP($AA58,Escalation!$A$7:$R$54,MATCH(AF$7,Escalation!$6:$6,0),FALSE)*100) -> 2.736958428 | AG58: 3.370725026 | AH58: =IF(ISNA(VLOOKUP($AA58,Escalation!$A$7:$R$54,MATCH(AH$7,Escalation!$6:$6,0),FALSE)*100),VLOOKUP(CONCATENATE("Post ",MAX(Escalation!$A:$A)),Escalation!$A$7:$R$54,MATCH(AH$7,Escalation!$6:$6,0),FALSE)*100,VLOOKUP($AA58,Escalation!$A$7:$R$54,MATCH(AH$7,Escalation!$6:$6,0),FALSE)*100) -> 3 | AI58: 3.781595842 | AJ58: =IF(ISNA(VLOOKUP($AA58,Escalation!$A$7:$R$54,MATCH(AJ$7,Escalation!$6:$6,0),FALSE)*100),VLOOKUP(CONCATENATE("Post ",MAX(Escalation!$A:$A)),Escalation!$A$7:$R$54,MATCH(AJ$7,Escalation!$6:$6,0),FALSE)*100,VLOOKUP($AA58,Escalation!$A$7:$R$54,MATCH(AJ$7,Escalation!$6:$6,0),FALSE)*100) -> 1.947833713 | AK58: 2.382853357 | AL58: 2063 | AM58: =IF(ISNA(VLOOKUP($AA58,Escalation!$A$7:$R$54,MATCH(AM$8,Escalation!$6:$6,0),FALSE)*100),VLOOKUP(CONCATENATE("Post ",MAX(Escalation!$A:$A)),Escalation!$A$7:$R$54,MATCH(AM$8,Escalation!$6:$6,0),FALSE)*100,VLOOKUP($AA58,Escalation!$A$7:$R$54,MATCH(AM$8,Escalation!$6:$6,0),FALSE)*100) -> 1.947833713 | AN58: 2.382853357 | AO58: =IF(ISNA(VLOOKUP($AA58,Escalation!$A$7:$R$54,MATCH(AO$8,Escalation!$6:$6,0),FALSE)*100),VLOOKUP(CONCATENATE("Post ",MAX(Escalation!$A:$A)),Escalation!$A$7:$R$54,MATCH(AO$8,Escalation!$6:$6,0),FALSE)*100,VLOOKUP($AA58,Escalation!$A$7:$R$54,MATCH(AO$8,Escalation!$6:$6,0),FALSE)*100) -> 2.812969183 | AP58: 3.48531524 | AQ58: =IF(ISNA(VLOOKUP($AA58,Escalation!$A$7:$R$54,MATCH(AQ$8,Escalation!$6:$6,0),FALSE)*100),VLOOKUP(CONCATENATE("Post ",MAX(Escalation!$A:$A)),Escalation!$A$7:$R$54,MATCH(AQ$8,Escalation!$6:$6,0),FALSE)*100,VLOOKUP($AA58,Escalation!$A$7:$R$54,MATCH(AQ$8,Escalation!$6:$6,0),FALSE)*100) -> 2.812969183 | AR58: 3.48531524 | AS58: =IF(ISNA(VLOOKUP($AA58,Escalation!$A$7:$R$54,MATCH(AS$8,Escalation!$6:$6,0),FALSE)*100),VLOOKUP(CONCATENATE("Post ",MAX(Escalation!$A:$A)),Escalation!$A$7:$R$54,MATCH(AS$8,Escalation!$6:$6,0),FALSE)*100,VLOOKUP($AA58,Escalation!$A$7:$R$54,MATCH(AS$8,Escalation!$6:$6,0),FALSE)*100) -> 2.656095012 | AT58: 3.253867948 | AU58: =IF(ISNA(VLOOKUP($AA58,Escalation!$A$7:$R$54,MATCH(AU$8,Escalation!$6:$6,0),FALSE)*100),VLOOKUP(CONCATENATE("Post ",MAX(Escalation!$A:$A)),Escalation!$A$7:$R$54,MATCH(AU$8,Escalation!$6:$6,0),FALSE)*100,VLOOKUP($AA58,Escalation!$A$7:$R$54,MATCH(AU$8,Escalation!$6:$6,0),FALSE)*100) -> 2.53541408 | AV58: 3.086112572 | AW58: =IF(ISNA(VLOOKUP($AA58,Escalation!$A$7:$R$54,MATCH(AW$8,Escalation!$6:$6,0),FALSE)*100),VLOOKUP(CONCATENATE("Post ",MAX(Escalation!$A:$A)),Escalation!$A$7:$R$54,MATCH(AW$8,Escalation!$6:$6,0),FALSE)*100,VLOOKUP($AA58,Escalation!$A$7:$R$54,MATCH(AW$8,Escalation!$6:$6,0),FALSE)*100) -> 2.050029531 | AX58: 2.493294966 | AY58: =IF(ISNA(VLOOKUP($AA58,Escalation!$A$7:$R$54,MATCH(AY$8,Escalation!$6:$6,0),FALSE)*100),VLOOKUP(CONCATENATE("Post ",MAX(Escalation!$A:$A)),Escalation!$A$7:$R$54,MATCH(AY$8,Escalation!$6:$6,0),FALSE)*100,VLOOKUP($AA58,Escalation!$A$7:$R$54,MATCH(AY$8,Escalation!$6:$6,0),FALSE)*100) -> 2.050029531 | AZ58: 2.493294966
AA59: 2064 | AB59: =IF(ISNA(VLOOKUP($AA59,Escalation!$A$7:$R$54,MATCH(AB$7,Escalation!$6:$6,0),FALSE)*100),VLOOKUP(CONCATENATE("Post ",MAX(Escalation!$A:$A)),Escalation!$A$7:$R$54,MATCH(AB$7,Escalation!$6:$6,0),FALSE)*100,VLOOKUP($AA59,Escalation!$A$7:$R$54,MATCH(AB$7,Escalation!$6:$6,0),FALSE)*100) -> 2.210875284 | AC59: 2.734841714 | AD59: =IF(ISNA(VLOOKUP($AA59,Escalation!$A$7:$R$54,MATCH(AD$7,Escalation!$6:$6,0),FALSE)*100),VLOOKUP(CONCATENATE("Post ",MAX(Escalation!$A:$A)),Escalation!$A$7:$R$54,MATCH(AD$7,Escalation!$6:$6,0),FALSE)*100,VLOOKUP($AA59,Escalation!$A$7:$R$54,MATCH(AD$7,Escalation!$6:$6,0),FALSE)*100) -> 2.473916856 | AE59: 3.077916781 | AF59: =IF(ISNA(VLOOKUP($AA59,Escalation!$A$7:$R$54,MATCH(AF$7,Escalation!$6:$6,0),FALSE)*100),VLOOKUP(CONCATENATE("Post ",MAX(Escalation!$A:$A)),Escalation!$A$7:$R$54,MATCH(AF$7,Escalation!$6:$6,0),FALSE)*100,VLOOKUP($AA59,Escalation!$A$7:$R$54,MATCH(AF$7,Escalation!$6:$6,0),FALSE)*100) -> 2.736958428 | AG59: 3.462980369 | AH59: =IF(ISNA(VLOOKUP($AA59,Escalation!$A$7:$R$54,MATCH(AH$7,Escalation!$6:$6,0),FALSE)*100),VLOOKUP(CONCATENATE("Post ",MAX(Escalation!$A:$A)),Escalation!$A$7:$R$54,MATCH(AH$7,Escalation!$6:$6,0),FALSE)*100,VLOOKUP($AA59,Escalation!$A$7:$R$54,MATCH(AH$7,Escalation!$6:$6,0),FALSE)*100) -> 3 | AI59: 3.895043717 | AJ59: =IF(ISNA(VLOOKUP($AA59,Escalation!$A$7:$R$54,MATCH(AJ$7,Escalation!$6:$6,0),FALSE)*100),VLOOKUP(CONCATENATE("Post ",MAX(Escalation!$A:$A)),Escalation!$A$7:$R$54,MATCH(AJ$7,Escalation!$6:$6,0),FALSE)*100,VLOOKUP($AA59,Escalation!$A$7:$R$54,MATCH(AJ$7,Escalation!$6:$6,0),FALSE)*100) -> 1.947833713 | AK59: 2.429267378 | AL59: 2064 | AM59: =IF(ISNA(VLOOKUP($AA59,Escalation!$A$7:$R$54,MATCH(AM$8,Escalation!$6:$6,0),FALSE)*100),VLOOKUP(CONCATENATE("Post ",MAX(Escalation!$A:$A)),Escalation!$A$7:$R$54,MATCH(AM$8,Escalation!$6:$6,0),FALSE)*100,VLOOKUP($AA59,Escalation!$A$7:$R$54,MATCH(AM$8,Escalation!$6:$6,0),FALSE)*100) -> 1.947833713 | AN59: 2.429267378 | AO59: =IF(ISNA(VLOOKUP($AA59,Escalation!$A$7:$R$54,MATCH(AO$8,Escalation!$6:$6,0),FALSE)*100),VLOOKUP(CONCATENATE("Post ",MAX(Escalation!$A:$A)),Escalation!$A$7:$R$54,MATCH(AO$8,Escalation!$6:$6,0),FALSE)*100,VLOOKUP($AA59,Escalation!$A$7:$R$54,MATCH(AO$8,Escalation!$6:$6,0),FALSE)*100) -> 2.812969183 | AP59: 3.583356084 | AQ59: =IF(ISNA(VLOOKUP($AA59,Escalation!$A$7:$R$54,MATCH(AQ$8,Escalation!$6:$6,0),FALSE)*100),VLOOKUP(CONCATENATE("Post ",MAX(Escalation!$A:$A)),Escalation!$A$7:$R$54,MATCH(AQ$8,Escalation!$6:$6,0),FALSE)*100,VLOOKUP($AA59,Escalation!$A$7:$R$54,MATCH(AQ$8,Escalation!$6:$6,0),FALSE)*100) -> 2.812969183 | AR59: 3.583356084 | AS59: =IF(ISNA(VLOOKUP($AA59,Escalation!$A$7:$R$54,MATCH(AS$8,Escalation!$6:$6,0),FALSE)*100),VLOOKUP(CONCATENATE("Post ",MAX(Escalation!$A:$A)),Escalation!$A$7:$R$54,MATCH(AS$8,Escalation!$6:$6,0),FALSE)*100,VLOOKUP($AA59,Escalation!$A$7:$R$54,MATCH(AS$8,Escalation!$6:$6,0),FALSE)*100) -> 2.656095012 | AT59: 3.340293772 | AU59: =IF(ISNA(VLOOKUP($AA59,Escalation!$A$7:$R$54,MATCH(AU$8,Escalation!$6:$6,0),FALSE)*100),VLOOKUP(CONCATENATE("Post ",MAX(Escalation!$A:$A)),Escalation!$A$7:$R$54,MATCH(AU$8,Escalation!$6:$6,0),FALSE)*100,VLOOKUP($AA59,Escalation!$A$7:$R$54,MATCH(AU$8,Escalation!$6:$6,0),FALSE)*100) -> 2.53541408 | AV59: 3.164358305 | AW59: =IF(ISNA(VLOOKUP($AA59,Escalation!$A$7:$R$54,MATCH(AW$8,Escalation!$6:$6,0),FALSE)*100),VLOOKUP(CONCATENATE("Post ",MAX(Escalation!$A:$A)),Escalation!$A$7:$R$54,MATCH(AW$8,Escalation!$6:$6,0),FALSE)*100,VLOOKUP($AA59,Escalation!$A$7:$R$54,MATCH(AW$8,Escalation!$6:$6,0),FALSE)*100) -> 2.050029531 | AX59: 2.544408249 | AY59: =IF(ISNA(VLOOKUP($AA59,Escalation!$A$7:$R$54,MATCH(AY$8,Escalation!$6:$6,0),FALSE)*100),VLOOKUP(CONCATENATE("Post ",MAX(Escalation!$A:$A)),Escalation!$A$7:$R$54,MATCH(AY$8,Escalation!$6:$6,0),FALSE)*100,VLOOKUP($AA59,Escalation!$A$7:$R$54,MATCH(AY$8,Escalation!$6:$6,0),FALSE)*100) -> 2.050029531 | AZ59: 2.544408249
AA60: 2065 | AB60: =IF(ISNA(VLOOKUP($AA60,Escalation!$A$7:$R$54,MATCH(AB$7,Escalation!$6:$6,0),FALSE)*100),VLOOKUP(CONCATENATE("Post ",MAX(Escalation!$A:$A)),Escalation!$A$7:$R$54,MATCH(AB$7,Escalation!$6:$6,0),FALSE)*100,VLOOKUP($AA60,Escalation!$A$7:$R$54,MATCH(AB$7,Escalation!$6:$6,0),FALSE)*100) -> 2.210875284 | AC60: 2.795305653 | AD60: =IF(ISNA(VLOOKUP($AA60,Escalation!$A$7:$R$54,MATCH(AD$7,Escalation!$6:$6,0),FALSE)*100),VLOOKUP(CONCATENATE("Post ",MAX(Escalation!$A:$A)),Escalation!$A$7:$R$54,MATCH(AD$7,Escalation!$6:$6,0),FALSE)*100,VLOOKUP($AA60,Escalation!$A$7:$R$54,MATCH(AD$7,Escalation!$6:$6,0),FALSE)*100) -> 2.473916856 | AE60: 3.154061883 | AF60: =IF(ISNA(VLOOKUP($AA60,Escalation!$A$7:$R$54,MATCH(AF$7,Escalation!$6:$6,0),FALSE)*100),VLOOKUP(CONCATENATE("Post ",MAX(Escalation!$A:$A)),Escalation!$A$7:$R$54,MATCH(AF$7,Escalation!$6:$6,0),FALSE)*100,VLOOKUP($AA60,Escalation!$A$7:$R$54,MATCH(AF$7,Escalation!$6:$6,0),FALSE)*100) -> 2.736958428 | AG60: 3.557760702 | AH60: =IF(ISNA(VLOOKUP($AA60,Escalation!$A$7:$R$54,MATCH(AH$7,Escalation!$6:$6,0),FALSE)*100),VLOOKUP(CONCATENATE("Post ",MAX(Escalation!$A:$A)),Escalation!$A$7:$R$54,MATCH(AH$7,Escalation!$6:$6,0),FALSE)*100,VLOOKUP($AA60,Escalation!$A$7:$R$54,MATCH(AH$7,Escalation!$6:$6,0),FALSE)*100) -> 3 | AI60: 4.011895028 | AJ60: =IF(ISNA(VLOOKUP($AA60,Escalation!$A$7:$R$54,MATCH(AJ$7,Escalation!$6:$6,0),FALSE)*100),VLOOKUP(CONCATENATE("Post ",MAX(Escalation!$A:$A)),Escalation!$A$7:$R$54,MATCH(AJ$7,Escalation!$6:$6,0),FALSE)*100,VLOOKUP($AA60,Escalation!$A$7:$R$54,MATCH(AJ$7,Escalation!$6:$6,0),FALSE)*100) -> 1.947833713 | AK60: 2.476585467 | AL60: 2065 | AM60: =IF(ISNA(VLOOKUP($AA60,Escalation!$A$7:$R$54,MATCH(AM$8,Escalation!$6:$6,0),FALSE)*100),VLOOKUP(CONCATENATE("Post ",MAX(Escalation!$A:$A)),Escalation!$A$7:$R$54,MATCH(AM$8,Escalation!$6:$6,0),FALSE)*100,VLOOKUP($AA60,Escalation!$A$7:$R$54,MATCH(AM$8,Escalation!$6:$6,0),FALSE)*100) -> 1.947833713 | AN60: 2.476585467 | AO60: =IF(ISNA(VLOOKUP($AA60,Escalation!$A$7:$R$54,MATCH(AO$8,Escalation!$6:$6,0),FALSE)*100),VLOOKUP(CONCATENATE("Post ",MAX(Escalation!$A:$A)),Escalation!$A$7:$R$54,MATCH(AO$8,Escalation!$6:$6,0),FALSE)*100,VLOOKUP($AA60,Escalation!$A$7:$R$54,MATCH(AO$8,Escalation!$6:$6,0),FALSE)*100) -> 2.812969183 | AP60: 3.684154786 | AQ60: =IF(ISNA(VLOOKUP($AA60,Escalation!$A$7:$R$54,MATCH(AQ$8,Escalation!$6:$6,0),FALSE)*100),VLOOKUP(CONCATENATE("Post ",MAX(Escalation!$A:$A)),Escalation!$A$7:$R$54,MATCH(AQ$8,Escalation!$6:$6,0),FALSE)*100,VLOOKUP($AA60,Escalation!$A$7:$R$54,MATCH(AQ$8,Escalation!$6:$6,0),FALSE)*100) -> 2.812969183 | AR60: 3.684154786 | AS60: =IF(ISNA(VLOOKUP($AA60,Escalation!$A$7:$R$54,MATCH(AS$8,Escalation!$6:$6,0),FALSE)*100),VLOOKUP(CONCATENATE("Post ",MAX(Escalation!$A:$A)),Escalation!$A$7:$R$54,MATCH(AS$8,Escalation!$6:$6,0),FALSE)*100,VLOOKUP($AA60,Escalation!$A$7:$R$54,MATCH(AS$8,Escalation!$6:$6,0),FALSE)*100) -> 2.656095012 | AT60: 3.429015149 | AU60: =IF(ISNA(VLOOKUP($AA60,Escalation!$A$7:$R$54,MATCH(AU$8,Escalation!$6:$6,0),FALSE)*100),VLOOKUP(CONCATENATE("Post ",MAX(Escalation!$A:$A)),Escalation!$A$7:$R$54,MATCH(AU$8,Escalation!$6:$6,0),FALSE)*100,VLOOKUP($AA60,Escalation!$A$7:$R$54,MATCH(AU$8,Escalation!$6:$6,0),FALSE)*100) -> 2.53541408 | AV60: 3.244587891 | AW60: =IF(ISNA(VLOOKUP($AA60,Escalation!$A$7:$R$54,MATCH(AW$8,Escalation!$6:$6,0),FALSE)*100),VLOOKUP(CONCATENATE("Post ",MAX(Escalation!$A:$A)),Escalation!$A$7:$R$54,MATCH(AW$8,Escalation!$6:$6,0),FALSE)*100,VLOOKUP($AA60,Escalation!$A$7:$R$54,MATCH(AW$8,Escalation!$6:$6,0),FALSE)*100) -> 2.050029531 | AX60: 2.596569369 | AY60: =IF(ISNA(VLOOKUP($AA60,Escalation!$A$7:$R$54,MATCH(AY$8,Escalation!$6:$6,0),FALSE)*100),VLOOKUP(CONCATENATE("Post ",MAX(Escalation!$A:$A)),Escalation!$A$7:$R$54,MATCH(AY$8,Escalation!$6:$6,0),FALSE)*100,VLOOKUP($AA60,Escalation!$A$7:$R$54,MATCH(AY$8,Escalation!$6:$6,0),FALSE)*100) -> 2.050029531 | AZ60: 2.596569369
AA61: 2066 | AB61: =IF(ISNA(VLOOKUP($AA61,Escalation!$A$7:$R$54,MATCH(AB$7,Escalation!$6:$6,0),FALSE)*100),VLOOKUP(CONCATENATE("Post ",MAX(Escalation!$A:$A)),Escalation!$A$7:$R$54,MATCH(AB$7,Escalation!$6:$6,0),FALSE)*100,VLOOKUP($AA61,Escalation!$A$7:$R$54,MATCH(AB$7,Escalation!$6:$6,0),FALSE)*100) -> 2.210875284 | AC61: 2.857106375 | AD61: =IF(ISNA(VLOOKUP($AA61,Escalation!$A$7:$R$54,MATCH(AD$7,Escalation!$6:$6,0),FALSE)*100),VLOOKUP(CONCATENATE("Post ",MAX(Escalation!$A:$A)),Escalation!$A$7:$R$54,MATCH(AD$7,Escalation!$6:$6,0),FALSE)*100,VLOOKUP($AA61,Escalation!$A$7:$R$54,MATCH(AD$7,Escalation!$6:$6,0),FALSE)*100) -> 2.473916856 | AE61: 3.232090751 | AF61: =IF(ISNA(VLOOKUP($AA61,Escalation!$A$7:$R$54,MATCH(AF$7,Escalation!$6:$6,0),FALSE)*100),VLOOKUP(CONCATENATE("Post ",MAX(Escalation!$A:$A)),Escalation!$A$7:$R$54,MATCH(AF$7,Escalation!$6:$6,0),FALSE)*100,VLOOKUP($AA61,Escalation!$A$7:$R$54,MATCH(AF$7,Escalation!$6:$6,0),FALSE)*100) -> 2.736958428 | AG61: 3.655135133 | AH61: =IF(ISNA(VLOOKUP($AA61,Escalation!$A$7:$R$54,MATCH(AH$7,Escalation!$6:$6,0),FALSE)*100),VLOOKUP(CONCATENATE("Post ",MAX(Escalation!$A:$A)),Escalation!$A$7:$R$54,MATCH(AH$7,Escalation!$6:$6,0),FALSE)*100,VLOOKUP($AA61,Escalation!$A$7:$R$54,MATCH(AH$7,Escalation!$6:$6,0),FALSE)*100) -> 3 | AI61: 4.132251879 | AJ61: =IF(ISNA(VLOOKUP($AA61,Escalation!$A$7:$R$54,MATCH(AJ$7,Escalation!$6:$6,0),FALSE)*100),VLOOKUP(CONCATENATE("Post ",MAX(Escalation!$A:$A)),Escalation!$A$7:$R$54,MATCH(AJ$7,Escalation!$6:$6,0),FALSE)*100,VLOOKUP($AA61,Escalation!$A$7:$R$54,MATCH(AJ$7,Escalation!$6:$6,0),FALSE)*100) -> 1.947833713 | AK61: 2.524825234 | AL61: 2066 | AM61: =IF(ISNA(VLOOKUP($AA61,Escalation!$A$7:$R$54,MATCH(AM$8,Escalation!$6:$6,0),FALSE)*100),VLOOKUP(CONCATENATE("Post ",MAX(Escalation!$A:$A)),Escalation!$A$7:$R$54,MATCH(AM$8,Escalation!$6:$6,0),FALSE)*100,VLOOKUP($AA61,Escalation!$A$7:$R$54,MATCH(AM$8,Escalation!$6:$6,0),FALSE)*100) -> 1.947833713 | AN61: 2.524825234 | AO61: =IF(ISNA(VLOOKUP($AA61,Escalation!$A$7:$R$54,MATCH(AO$8,Escalation!$6:$6,0),FALSE)*100),VLOOKUP(CONCATENATE("Post ",MAX(Escalation!$A:$A)),Escalation!$A$7:$R$54,MATCH(AO$8,Escalation!$6:$6,0),FALSE)*100,VLOOKUP($AA61,Escalation!$A$7:$R$54,MATCH(AO$8,Escalation!$6:$6,0),FALSE)*100) -> 2.812969183 | AP61: 3.787788925 | AQ61: =IF(ISNA(VLOOKUP($AA61,Escalation!$A$7:$R$54,MATCH(AQ$8,Escalation!$6:$6,0),FALSE)*100),VLOOKUP(CONCATENATE("Post ",MAX(Escalation!$A:$A)),Escalation!$A$7:$R$54,MATCH(AQ$8,Escalation!$6:$6,0),FALSE)*100,VLOOKUP($AA61,Escalation!$A$7:$R$54,MATCH(AQ$8,Escalation!$6:$6,0),FALSE)*100) -> 2.812969183 | AR61: 3.787788925 | AS61: =IF(ISNA(VLOOKUP($AA61,Escalation!$A$7:$R$54,MATCH(AS$8,Escalation!$6:$6,0),FALSE)*100),VLOOKUP(CONCATENATE("Post ",MAX(Escalation!$A:$A)),Escalation!$A$7:$R$54,MATCH(AS$8,Escalation!$6:$6,0),FALSE)*100,VLOOKUP($AA61,Escalation!$A$7:$R$54,MATCH(AS$8,Escalation!$6:$6,0),FALSE)*100) -> 2.656095012 | AT61: 3.520093049 | AU61: =IF(ISNA(VLOOKUP($AA61,Escalation!$A$7:$R$54,MATCH(AU$8,Escalation!$6:$6,0),FALSE)*100),VLOOKUP(CONCATENATE("Post ",MAX(Escalation!$A:$A)),Escalation!$A$7:$R$54,MATCH(AU$8,Escalation!$6:$6,0),FALSE)*100,VLOOKUP($AA61,Escalation!$A$7:$R$54,MATCH(AU$8,Escalation!$6:$6,0),FALSE)*100) -> 2.53541408 | AV61: 3.326851629 | AW61: =IF(ISNA(VLOOKUP($AA61,Escalation!$A$7:$R$54,MATCH(AW$8,Escalation!$6:$6,0),FALSE)*100),VLOOKUP(CONCATENATE("Post ",MAX(Escalation!$A:$A)),Escalation!$A$7:$R$54,MATCH(AW$8,Escalation!$6:$6,0),FALSE)*100,VLOOKUP($AA61,Escalation!$A$7:$R$54,MATCH(AW$8,Escalation!$6:$6,0),FALSE)*100) -> 2.050029531 | AX61: 2.649799808 | AY61: =IF(ISNA(VLOOKUP($AA61,Escalation!$A$7:$R$54,MATCH(AY$8,Escalation!$6:$6,0),FALSE)*100),VLOOKUP(CONCATENATE("Post ",MAX(Escalation!$A:$A)),Escalation!$A$7:$R$54,MATCH(AY$8,Escalation!$6:$6,0),FALSE)*100,VLOOKUP($AA61,Escalation!$A$7:$R$54,MATCH(AY$8,Escalation!$6:$6,0),FALSE)*100) -> 2.050029531 | AZ61: 2.649799808
AA62: 2067 | AB62: =IF(ISNA(VLOOKUP($AA62,Escalation!$A$7:$R$54,MATCH(AB$7,Escalation!$6:$6,0),FALSE)*100),VLOOKUP(CONCATENATE("Post ",MAX(Escalation!$A:$A)),Escalation!$A$7:$R$54,MATCH(AB$7,Escalation!$6:$6,0),FALSE)*100,VLOOKUP($AA62,Escalation!$A$7:$R$54,MATCH(AB$7,Escalation!$6:$6,0),FALSE)*100) -> 2.210875284 | AC62: 2.920273434 | AD62: =IF(ISNA(VLOOKUP($AA62,Escalation!$A$7:$R$54,MATCH(AD$7,Escalation!$6:$6,0),FALSE)*100),VLOOKUP(CONCATENATE("Post ",MAX(Escalation!$A:$A)),Escalation!$A$7:$R$54,MATCH(AD$7,Escalation!$6:$6,0),FALSE)*100,VLOOKUP($AA62,Escalation!$A$7:$R$54,MATCH(AD$7,Escalation!$6:$6,0),FALSE)*100) -> 2.473916856 | AE62: 3.312049989 | AF62: =IF(ISNA(VLOOKUP($AA62,Escalation!$A$7:$R$54,MATCH(AF$7,Escalation!$6:$6,0),FALSE)*100),VLOOKUP(CONCATENATE("Post ",MAX(Escalation!$A:$A)),Escalation!$A$7:$R$54,MATCH(AF$7,Escalation!$6:$6,0),FALSE)*100,VLOOKUP($AA62,Escalation!$A$7:$R$54,MATCH(AF$7,Escalation!$6:$6,0),FALSE)*100) -> 2.736958428 | AG62: 3.755174662 | AH62: =IF(ISNA(VLOOKUP($AA62,Escalation!$A$7:$R$54,MATCH(AH$7,Escalation!$6:$6,0),FALSE)*100),VLOOKUP(CONCATENATE("Post ",MAX(Escalation!$A:$A)),Escalation!$A$7:$R$54,MATCH(AH$7,Escalation!$6:$6,0),FALSE)*100,VLOOKUP($AA62,Escalation!$A$7:$R$54,MATCH(AH$7,Escalation!$6:$6,0),FALSE)*100) -> 3 | AI62: 4.256219436 | AJ62: =IF(ISNA(VLOOKUP($AA62,Escalation!$A$7:$R$54,MATCH(AJ$7,Escalation!$6:$6,0),FALSE)*100),VLOOKUP(CONCATENATE("Post ",MAX(Escalation!$A:$A)),Escalation!$A$7:$R$54,MATCH(AJ$7,Escalation!$6:$6,0),FALSE)*100,VLOOKUP($AA62,Escalation!$A$7:$R$54,MATCH(AJ$7,Escalation!$6:$6,0),FALSE)*100) -> 1.947833713 | AK62: 2.574004631 | AL62: 2067 | AM62: =IF(ISNA(VLOOKUP($AA62,Escalation!$A$7:$R$54,MATCH(AM$8,Escalation!$6:$6,0),FALSE)*100),VLOOKUP(CONCATENATE("Post ",MAX(Escalation!$A:$A)),Escalation!$A$7:$R$54,MATCH(AM$8,Escalation!$6:$6,0),FALSE)*100,VLOOKUP($AA62,Escalation!$A$7:$R$54,MATCH(AM$8,Escalation!$6:$6,0),FALSE)*100) -> 1.947833713 | AN62: 2.574004631 | AO62: =IF(ISNA(VLOOKUP($AA62,Escalation!$A$7:$R$54,MATCH(AO$8,Escalation!$6:$6,0),FALSE)*100),VLOOKUP(CONCATENATE("Post ",MAX(Escalation!$A:$A)),Escalation!$A$7:$R$54,MATCH(AO$8,Escalation!$6:$6,0),FALSE)*100,VLOOKUP($AA62,Escalation!$A$7:$R$54,MATCH(AO$8,Escalation!$6:$6,0),FALSE)*100) -> 2.812969183 | AP62: 3.89433826 | AQ62: =IF(ISNA(VLOOKUP($AA62,Escalation!$A$7:$R$54,MATCH(AQ$8,Escalation!$6:$6,0),FALSE)*100),VLOOKUP(CONCATENATE("Post ",MAX(Escalation!$A:$A)),Escalation!$A$7:$R$54,MATCH(AQ$8,Escalation!$6:$6,0),FALSE)*100,VLOOKUP($AA62,Escalation!$A$7:$R$54,MATCH(AQ$8,Escalation!$6:$6,0),FALSE)*100) -> 2.812969183 | AR62: 3.89433826 | AS62: =IF(ISNA(VLOOKUP($AA62,Escalation!$A$7:$R$54,MATCH(AS$8,Escalation!$6:$6,0),FALSE)*100),VLOOKUP(CONCATENATE("Post ",MAX(Escalation!$A:$A)),Escalation!$A$7:$R$54,MATCH(AS$8,Escalation!$6:$6,0),FALSE)*100,VLOOKUP($AA62,Escalation!$A$7:$R$54,MATCH(AS$8,Escalation!$6:$6,0),FALSE)*100) -> 2.656095012 | AT62: 3.613590065 | AU62: =IF(ISNA(VLOOKUP($AA62,Escalation!$A$7:$R$54,MATCH(AU$8,Escalation!$6:$6,0),FALSE)*100),VLOOKUP(CONCATENATE("Post ",MAX(Escalation!$A:$A)),Escalation!$A$7:$R$54,MATCH(AU$8,Escalation!$6:$6,0),FALSE)*100,VLOOKUP($AA62,Escalation!$A$7:$R$54,MATCH(AU$8,Escalation!$6:$6,0),FALSE)*100) -> 2.53541408 | AV62: 3.411201094 | AW62: =IF(ISNA(VLOOKUP($AA62,Escalation!$A$7:$R$54,MATCH(AW$8,Escalation!$6:$6,0),FALSE)*100),VLOOKUP(CONCATENATE("Post ",MAX(Escalation!$A:$A)),Escalation!$A$7:$R$54,MATCH(AW$8,Escalation!$6:$6,0),FALSE)*100,VLOOKUP($AA62,Escalation!$A$7:$R$54,MATCH(AW$8,Escalation!$6:$6,0),FALSE)*100) -> 2.050029531 | AX62: 2.704121487 | AY62: =IF(ISNA(VLOOKUP($AA62,Escalation!$A$7:$R$54,MATCH(AY$8,Escalation!$6:$6,0),FALSE)*100),VLOOKUP(CONCATENATE("Post ",MAX(Escalation!$A:$A)),Escalation!$A$7:$R$54,MATCH(AY$8,Escalation!$6:$6,0),FALSE)*100,VLOOKUP($AA62,Escalation!$A$7:$R$54,MATCH(AY$8,Escalation!$6:$6,0),FALSE)*100) -> 2.050029531 | AZ62: 2.704121487
AA63: 2068 | AB63: =IF(ISNA(VLOOKUP($AA63,Escalation!$A$7:$R$54,MATCH(AB$7,Escalation!$6:$6,0),FALSE)*100),VLOOKUP(CONCATENATE("Post ",MAX(Escalation!$A:$A)),Escalation!$A$7:$R$54,MATCH(AB$7,Escalation!$6:$6,0),FALSE)*100,VLOOKUP($AA63,Escalation!$A$7:$R$54,MATCH(AB$7,Escalation!$6:$6,0),FALSE)*100) -> 2.210875284 | AC63: 2.984837037 | AD63: =IF(ISNA(VLOOKUP($AA63,Escalation!$A$7:$R$54,MATCH(AD$7,Escalation!$6:$6,0),FALSE)*100),VLOOKUP(CONCATENATE("Post ",MAX(Escalation!$A:$A)),Escalation!$A$7:$R$54,MATCH(AD$7,Escalation!$6:$6,0),FALSE)*100,VLOOKUP($AA63,Escalation!$A$7:$R$54,MATCH(AD$7,Escalation!$6:$6,0),FALSE)*100) -> 2.473916856 | AE63: 3.393987352 | AF63: =IF(ISNA(VLOOKUP($AA63,Escalation!$A$7:$R$54,MATCH(AF$7,Escalation!$6:$6,0),FALSE)*100),VLOOKUP(CONCATENATE("Post ",MAX(Escalation!$A:$A)),Escalation!$A$7:$R$54,MATCH(AF$7,Escalation!$6:$6,0),FALSE)*100,VLOOKUP($AA63,Escalation!$A$7:$R$54,MATCH(AF$7,Escalation!$6:$6,0),FALSE)*100) -> 2.736958428 | AG63: 3.857952232 | AH63: =IF(ISNA(VLOOKUP($AA63,Escalation!$A$7:$R$54,MATCH(AH$7,Escalation!$6:$6,0),FALSE)*100),VLOOKUP(CONCATENATE("Post ",MAX(Escalation!$A:$A)),Escalation!$A$7:$R$54,MATCH(AH$7,Escalation!$6:$6,0),FALSE)*100,VLOOKUP($AA63,Escalation!$A$7:$R$54,MATCH(AH$7,Escalation!$6:$6,0),FALSE)*100) -> 3 | AI63: 4.383906019 | AJ63: =IF(ISNA(VLOOKUP($AA63,Escalation!$A$7:$R$54,MATCH(AJ$7,Escalation!$6:$6,0),FALSE)*100),VLOOKUP(CONCATENATE("Post ",MAX(Escalation!$A:$A)),Escalation!$A$7:$R$54,MATCH(AJ$7,Escalation!$6:$6,0),FALSE)*100,VLOOKUP($AA63,Escalation!$A$7:$R$54,MATCH(AJ$7,Escalation!$6:$6,0),FALSE)*100) -> 1.947833713 | AK63: 2.624141961 | AL63: 2068 | AM63: =IF(ISNA(VLOOKUP($AA63,Escalation!$A$7:$R$54,MATCH(AM$8,Escalation!$6:$6,0),FALSE)*100),VLOOKUP(CONCATENATE("Post ",MAX(Escalation!$A:$A)),Escalation!$A$7:$R$54,MATCH(AM$8,Escalation!$6:$6,0),FALSE)*100,VLOOKUP($AA63,Escalation!$A$7:$R$54,MATCH(AM$8,Escalation!$6:$6,0),FALSE)*100) -> 1.947833713 | AN63: 2.624141961 | AO63: =IF(ISNA(VLOOKUP($AA63,Escalation!$A$7:$R$54,MATCH(AO$8,Escalation!$6:$6,0),FALSE)*100),VLOOKUP(CONCATENATE("Post ",MAX(Escalation!$A:$A)),Escalation!$A$7:$R$54,MATCH(AO$8,Escalation!$6:$6,0),FALSE)*100,VLOOKUP($AA63,Escalation!$A$7:$R$54,MATCH(AO$8,Escalation!$6:$6,0),FALSE)*100) -> 2.812969183 | AP63: 4.003884795 | AQ63: =IF(ISNA(VLOOKUP($AA63,Escalation!$A$7:$R$54,MATCH(AQ$8,Escalation!$6:$6,0),FALSE)*100),VLOOKUP(CONCATENATE("Post ",MAX(Escalation!$A:$A)),Escalation!$A$7:$R$54,MATCH(AQ$8,Escalation!$6:$6,0),FALSE)*100,VLOOKUP($AA63,Escalation!$A$7:$R$54,MATCH(AQ$8,Escalation!$6:$6,0),FALSE)*100) -> 2.812969183 | AR63: 4.003884795 | AS63: =IF(ISNA(VLOOKUP($AA63,Escalation!$A$7:$R$54,MATCH(AS$8,Escalation!$6:$6,0),FALSE)*100),VLOOKUP(CONCATENATE("Post ",MAX(Escalation!$A:$A)),Escalation!$A$7:$R$54,MATCH(AS$8,Escalation!$6:$6,0),FALSE)*100,VLOOKUP($AA63,Escalation!$A$7:$R$54,MATCH(AS$8,Escalation!$6:$6,0),FALSE)*100) -> 2.656095012 | AT63: 3.70957045 | AU63: =IF(ISNA(VLOOKUP($AA63,Escalation!$A$7:$R$54,MATCH(AU$8,Escalation!$6:$6,0),FALSE)*100),VLOOKUP(CONCATENATE("Post ",MAX(Escalation!$A:$A)),Escalation!$A$7:$R$54,MATCH(AU$8,Escalation!$6:$6,0),FALSE)*100,VLOOKUP($AA63,Escalation!$A$7:$R$54,MATCH(AU$8,Escalation!$6:$6,0),FALSE)*100) -> 2.53541408 | AV63: 3.497689167 | AW63: =IF(ISNA(VLOOKUP($AA63,Escalation!$A$7:$R$54,MATCH(AW$8,Escalation!$6:$6,0),FALSE)*100),VLOOKUP(CONCATENATE("Post ",MAX(Escalation!$A:$A)),Escalation!$A$7:$R$54,MATCH(AW$8,Escalation!$6:$6,0),FALSE)*100,VLOOKUP($AA63,Escalation!$A$7:$R$54,MATCH(AW$8,Escalation!$6:$6,0),FALSE)*100) -> 2.050029531 | AX63: 2.759556776 | AY63: =IF(ISNA(VLOOKUP($AA63,Escalation!$A$7:$R$54,MATCH(AY$8,Escalation!$6:$6,0),FALSE)*100),VLOOKUP(CONCATENATE("Post ",MAX(Escalation!$A:$A)),Escalation!$A$7:$R$54,MATCH(AY$8,Escalation!$6:$6,0),FALSE)*100,VLOOKUP($AA63,Escalation!$A$7:$R$54,MATCH(AY$8,Escalation!$6:$6,0),FALSE)*100) -> 2.050029531 | AZ63: 2.759556776
AA64: 2069 | AB64: =IF(ISNA(VLOOKUP($AA64,Escalation!$A$7:$R$54,MATCH(AB$7,Escalation!$6:$6,0),FALSE)*100),VLOOKUP(CONCATENATE("Post ",MAX(Escalation!$A:$A)),Escalation!$A$7:$R$54,MATCH(AB$7,Escalation!$6:$6,0),FALSE)*100,VLOOKUP($AA64,Escalation!$A$7:$R$54,MATCH(AB$7,Escalation!$6:$6,0),FALSE)*100) -> 2.210875284 | AC64: 3.050828061 | AD64: =IF(ISNA(VLOOKUP($AA64,Escalation!$A$7:$R$54,MATCH(AD$7,Escalation!$6:$6,0),FALSE)*100),VLOOKUP(CONCATENATE("Post ",MAX(Escalation!$A:$A)),Escalation!$A$7:$R$54,MATCH(AD$7,Escalation!$6:$6,0),FALSE)*100,VLOOKUP($AA64,Escalation!$A$7:$R$54,MATCH(AD$7,Escalation!$6:$6,0),FALSE)*100) -> 2.473916856 | AE64: 3.477951777 | AF64: =IF(ISNA(VLOOKUP($AA64,Escalation!$A$7:$R$54,MATCH(AF$7,Escalation!$6:$6,0),FALSE)*100),VLOOKUP(CONCATENATE("Post ",MAX(Escalation!$A:$A)),Escalation!$A$7:$R$54,MATCH(AF$7,Escalation!$6:$6,0),FALSE)*100,VLOOKUP($AA64,Escalation!$A$7:$R$54,MATCH(AF$7,Escalation!$6:$6,0),FALSE)*100) -> 2.736958428 | AG64: 3.963542781 | AH64: =IF(ISNA(VLOOKUP($AA64,Escalation!$A$7:$R$54,MATCH(AH$7,Escalation!$6:$6,0),FALSE)*100),VLOOKUP(CONCATENATE("Post ",MAX(Escalation!$A:$A)),Escalation!$A$7:$R$54,MATCH(AH$7,Escalation!$6:$6,0),FALSE)*100,VLOOKUP($AA64,Escalation!$A$7:$R$54,MATCH(AH$7,Escalation!$6:$6,0),FALSE)*100) -> 3 | AI64: 4.515423199 | AJ64: =IF(ISNA(VLOOKUP($AA64,Escalation!$A$7:$R$54,MATCH(AJ$7,Escalation!$6:$6,0),FALSE)*100),VLOOKUP(CONCATENATE("Post ",MAX(Escalation!$A:$A)),Escalation!$A$7:$R$54,MATCH(AJ$7,Escalation!$6:$6,0),FALSE)*100,VLOOKUP($AA64,Escalation!$A$7:$R$54,MATCH(AJ$7,Escalation!$6:$6,0),FALSE)*100) -> 1.947833713 | AK64: 2.675255882 | AL64: 2069 | AM64: =IF(ISNA(VLOOKUP($AA64,Escalation!$A$7:$R$54,MATCH(AM$8,Escalation!$6:$6,0),FALSE)*100),VLOOKUP(CONCATENATE("Post ",MAX(Escalation!$A:$A)),Escalation!$A$7:$R$54,MATCH(AM$8,Escalation!$6:$6,0),FALSE)*100,VLOOKUP($AA64,Escalation!$A$7:$R$54,MATCH(AM$8,Escalation!$6:$6,0),FALSE)*100) -> 1.947833713 | AN64: 2.675255882 | AO64: =IF(ISNA(VLOOKUP($AA64,Escalation!$A$7:$R$54,MATCH(AO$8,Escalation!$6:$6,0),FALSE)*100),VLOOKUP(CONCATENATE("Post ",MAX(Escalation!$A:$A)),Escalation!$A$7:$R$54,MATCH(AO$8,Escalation!$6:$6,0),FALSE)*100,VLOOKUP($AA64,Escalation!$A$7:$R$54,MATCH(AO$8,Escalation!$6:$6,0),FALSE)*100) -> 2.812969183 | AP64: 4.116512841 | AQ64: =IF(ISNA(VLOOKUP($AA64,Escalation!$A$7:$R$54,MATCH(AQ$8,Escalation!$6:$6,0),FALSE)*100),VLOOKUP(CONCATENATE("Post ",MAX(Escalation!$A:$A)),Escalation!$A$7:$R$54,MATCH(AQ$8,Escalation!$6:$6,0),FALSE)*100,VLOOKUP($AA64,Escalation!$A$7:$R$54,MATCH(AQ$8,Escalation!$6:$6,0),FALSE)*100) -> 2.812969183 | AR64: 4.116512841 | AS64: =IF(ISNA(VLOOKUP($AA64,Escalation!$A$7:$R$54,MATCH(AS$8,Escalation!$6:$6,0),FALSE)*100),VLOOKUP(CONCATENATE("Post ",MAX(Escalation!$A:$A)),Escalation!$A$7:$R$54,MATCH(AS$8,Escalation!$6:$6,0),FALSE)*100,VLOOKUP($AA64,Escalation!$A$7:$R$54,MATCH(AS$8,Escalation!$6:$6,0),FALSE)*100) -> 2.656095012 | AT64: 3.808100166 | AU64: =IF(ISNA(VLOOKUP($AA64,Escalation!$A$7:$R$54,MATCH(AU$8,Escalation!$6:$6,0),FALSE)*100),VLOOKUP(CONCATENATE("Post ",MAX(Escalation!$A:$A)),Escalation!$A$7:$R$54,MATCH(AU$8,Escalation!$6:$6,0),FALSE)*100,VLOOKUP($AA64,Escalation!$A$7:$R$54,MATCH(AU$8,Escalation!$6:$6,0),FALSE)*100) -> 2.53541408 | AV64: 3.58637007 | AW64: =IF(ISNA(VLOOKUP($AA64,Escalation!$A$7:$R$54,MATCH(AW$8,Escalation!$6:$6,0),FALSE)*100),VLOOKUP(CONCATENATE("Post ",MAX(Escalation!$A:$A)),Escalation!$A$7:$R$54,MATCH(AW$8,Escalation!$6:$6,0),FALSE)*100,VLOOKUP($AA64,Escalation!$A$7:$R$54,MATCH(AW$8,Escalation!$6:$6,0),FALSE)*100) -> 2.050029531 | AX64: 2.816128505 | AY64: =IF(ISNA(VLOOKUP($AA64,Escalation!$A$7:$R$54,MATCH(AY$8,Escalation!$6:$6,0),FALSE)*100),VLOOKUP(CONCATENATE("Post ",MAX(Escalation!$A:$A)),Escalation!$A$7:$R$54,MATCH(AY$8,Escalation!$6:$6,0),FALSE)*100,VLOOKUP($AA64,Escalation!$A$7:$R$54,MATCH(AY$8,Escalation!$6:$6,0),FALSE)*100) -> 2.050029531 | AZ64: 2.816128505
AA65: =AA64+1 -> 2070 | AB65: =IF(ISNA(VLOOKUP($AA65,Escalation!$A$7:$R$54,MATCH(AB$7,Escalation!$6:$6,0),FALSE)*100),VLOOKUP(CONCATENATE("Post ",MAX(Escalation!$A:$A)),Escalation!$A$7:$R$54,MATCH(AB$7,Escalation!$6:$6,0),FALSE)*100,VLOOKUP($AA65,Escalation!$A$7:$R$54,MATCH(AB$7,Escalation!$6:$6,0),FALSE)*100) -> 2.210875284 | AC65: =(1+AB65/100)*AC64 -> 3.118278065 | AD65: =IF(ISNA(VLOOKUP($AA65,Escalation!$A$7:$R$54,MATCH(AD$7,Escalation!$6:$6,0),FALSE)*100),VLOOKUP(CONCATENATE("Post ",MAX(Escalation!$A:$A)),Escalation!$A$7:$R$54,MATCH(AD$7,Escalation!$6:$6,0),FALSE)*100,VLOOKUP($AA65,Escalation!$A$7:$R$54,MATCH(AD$7,Escalation!$6:$6,0),FALSE)*100) -> 2.473916856 | AE65: =(1+AD65/100)*AE64 -> 3.563993413 | AF65: =IF(ISNA(VLOOKUP($AA65,Escalation!$A$7:$R$54,MATCH(AF$7,Escalation!$6:$6,0),FALSE)*100),VLOOKUP(CONCATENATE("Post ",MAX(Escalation!$A:$A)),Escalation!$A$7:$R$54,MATCH(AF$7,Escalation!$6:$6,0),FALSE)*100,VLOOKUP($AA65,Escalation!$A$7:$R$54,MATCH(AF$7,Escalation!$6:$6,0),FALSE)*100) -> 2.736958428 | AG65: =(1+AF65/100)*AG64 -> 4.072023299 | AH65: =IF(ISNA(VLOOKUP($AA65,Escalation!$A$7:$R$54,MATCH(AH$7,Escalation!$6:$6,0),FALSE)*100),VLOOKUP(CONCATENATE("Post ",MAX(Escalation!$A:$A)),Escalation!$A$7:$R$54,MATCH(AH$7,Escalation!$6:$6,0),FALSE)*100,VLOOKUP($AA65,Escalation!$A$7:$R$54,MATCH(AH$7,Escalation!$6:$6,0),FALSE)*100) -> 3 | AI65: =(1+AH65/100)*AI64 -> 4.650885895 | AJ65: =IF(ISNA(VLOOKUP($AA65,Escalation!$A$7:$R$54,MATCH(AJ$7,Escalation!$6:$6,0),FALSE)*100),VLOOKUP(CONCATENATE("Post ",MAX(Escalation!$A:$A)),Escalation!$A$7:$R$54,MATCH(AJ$7,Escalation!$6:$6,0),FALSE)*100,VLOOKUP($AA65,Escalation!$A$7:$R$54,MATCH(AJ$7,Escalation!$6:$6,0),FALSE)*100) -> 1.947833713 | AK65: =(1+AJ65/100)*AK64 -> 2.727365418 | AL65: 2070 | AM65: =IF(ISNA(VLOOKUP($AA65,Escalation!$A$7:$R$54,MATCH(AM$8,Escalation!$6:$6,0),FALSE)*100),VLOOKUP(CONCATENATE("Post ",MAX(Escalation!$A:$A)),Escalation!$A$7:$R$54,MATCH(AM$8,Escalation!$6:$6,0),FALSE)*100,VLOOKUP($AA65,Escalation!$A$7:$R$54,MATCH(AM$8,Escalation!$6:$6,0),FALSE)*100) -> 1.947833713 | AN65: =(1+AM65/100)*AN64 -> 2.727365418 | AO65: =IF(ISNA(VLOOKUP($AA65,Escalation!$A$7:$R$54,MATCH(AO$8,Escalation!$6:$6,0),FALSE)*100),VLOOKUP(CONCATENATE("Post ",MAX(Escalation!$A:$A)),Escalation!$A$7:$R$54,MATCH(AO$8,Escalation!$6:$6,0),FALSE)*100,VLOOKUP($AA65,Escalation!$A$7:$R$54,MATCH(AO$8,Escalation!$6:$6,0),FALSE)*100) -> 2.812969183 | AP65: =(1+AO65/100)*AP64 -> 4.232309078 | AQ65: =IF(ISNA(VLOOKUP($AA65,Escalation!$A$7:$R$54,MATCH(AQ$8,Escalation!$6:$6,0),FALSE)*100),VLOOKUP(CONCATENATE("Post ",MAX(Escalation!$A:$A)),Escalation!$A$7:$R$54,MATCH(AQ$8,Escalation!$6:$6,0),FALSE)*100,VLOOKUP($AA65,Escalation!$A$7:$R$54,MATCH(AQ$8,Escalation!$6:$6,0),FALSE)*100) -> 2.812969183 | AR65: =(1+AQ65/100)*AR64 -> 4.232309078 | AS65: =IF(ISNA(VLOOKUP($AA65,Escalation!$A$7:$R$54,MATCH(AS$8,Escalation!$6:$6,0),FALSE)*100),VLOOKUP(CONCATENATE("Post ",MAX(Escalation!$A:$A)),Escalation!$A$7:$R$54,MATCH(AS$8,Escalation!$6:$6,0),FALSE)*100,VLOOKUP($AA65,Escalation!$A$7:$R$54,MATCH(AS$8,Escalation!$6:$6,0),FALSE)*100) -> 2.656095012 | AT65: =(1+AS65/100)*AT64 -> 3.909246925 | AU65: =IF(ISNA(VLOOKUP($AA65,Escalation!$A$7:$R$54,MATCH(AU$8,Escalation!$6:$6,0),FALSE)*100),VLOOKUP(CONCATENATE("Post ",MAX(Escalation!$A:$A)),Escalation!$A$7:$R$54,MATCH(AU$8,Escalation!$6:$6,0),FALSE)*100,VLOOKUP($AA65,Escalation!$A$7:$R$54,MATCH(AU$8,Escalation!$6:$6,0),FALSE)*100) -> 2.53541408 | AV65: =(1+AU65/100)*AV64 -> 3.677299402 | AW65: =IF(ISNA(VLOOKUP($AA65,Escalation!$A$7:$R$54,MATCH(AW$8,Escalation!$6:$6,0),FALSE)*100),VLOOKUP(CONCATENATE("Post ",MAX(Escalation!$A:$A)),Escalation!$A$7:$R$54,MATCH(AW$8,Escalation!$6:$6,0),FALSE)*100,VLOOKUP($AA65,Escalation!$A$7:$R$54,MATCH(AW$8,Escalation!$6:$6,0),FALSE)*100) -> 2.050029531 | AX65: =(1+AW65/100)*AX64 -> 2.873859971 | AY65: =IF(ISNA(VLOOKUP($AA65,Escalation!$A$7:$R$54,MATCH(AY$8,Escalation!$6:$6,0),FALSE)*100),VLOOKUP(CONCATENATE("Post ",MAX(Escalation!$A:$A)),Escalation!$A$7:$R$54,MATCH(AY$8,Escalation!$6:$6,0),FALSE)*100,VLOOKUP($AA65,Escalation!$A$7:$R$54,MATCH(AY$8,Escalation!$6:$6,0),FALSE)*100) -> 2.050029531 | AZ65: =(1+AY65/100)*AZ64 -> 2.873859971
AA66: =AA65+1 -> 2071 | AB66: =IF(ISNA(VLOOKUP($AA66,Escalation!$A$7:$R$54,MATCH(AB$7,Escalation!$6:$6,0),FALSE)*100),VLOOKUP(CONCATENATE("Post ",MAX(Escalation!$A:$A)),Escalation!$A$7:$R$54,MATCH(AB$7,Escalation!$6:$6,0),FALSE)*100,VLOOKUP($AA66,Escalation!$A$7:$R$54,MATCH(AB$7,Escalation!$6:$6,0),FALSE)*100) -> 2.210875284 | AC66: =(1+AB66/100)*AC65 -> 3.187219304 | AD66: =IF(ISNA(VLOOKUP($AA66,Escalation!$A$7:$R$54,MATCH(AD$7,Escalation!$6:$6,0),FALSE)*100),VLOOKUP(CONCATENATE("Post ",MAX(Escalation!$A:$A)),Escalation!$A$7:$R$54,MATCH(AD$7,Escalation!$6:$6,0),FALSE)*100,VLOOKUP($AA66,Escalation!$A$7:$R$54,MATCH(AD$7,Escalation!$6:$6,0),FALSE)*100) -> 2.473916856 | AE66: =(1+AD66/100)*AE65 -> 3.652163646 | AF66: =IF(ISNA(VLOOKUP($AA66,Escalation!$A$7:$R$54,MATCH(AF$7,Escalation!$6:$6,0),FALSE)*100),VLOOKUP(CONCATENATE("Post ",MAX(Escalation!$A:$A)),Escalation!$A$7:$R$54,MATCH(AF$7,Escalation!$6:$6,0),FALSE)*100,VLOOKUP($AA66,Escalation!$A$7:$R$54,MATCH(AF$7,Escalation!$6:$6,0),FALSE)*100) -> 2.736958428 | AG66: =(1+AF66/100)*AG65 -> 4.183472884 | AH66: =IF(ISNA(VLOOKUP($AA66,Escalation!$A$7:$R$54,MATCH(AH$7,Escalation!$6:$6,0),FALSE)*100),VLOOKUP(CONCATENATE("Post ",MAX(Escalation!$A:$A)),Escalation!$A$7:$R$54,MATCH(AH$7,Escalation!$6:$6,0),FALSE)*100,VLOOKUP($AA66,Escalation!$A$7:$R$54,MATCH(AH$7,Escalation!$6:$6,0),FALSE)*100) -> 3 | AI66: =(1+AH66/100)*AI65 -> 4.790412472 | AJ66: =IF(ISNA(VLOOKUP($AA66,Escalation!$A$7:$R$54,MATCH(AJ$7,Escalation!$6:$6,0),FALSE)*100),VLOOKUP(CONCATENATE("Post ",MAX(Escalation!$A:$A)),Escalation!$A$7:$R$54,MATCH(AJ$7,Escalation!$6:$6,0),FALSE)*100,VLOOKUP($AA66,Escalation!$A$7:$R$54,MATCH(AJ$7,Escalation!$6:$6,0),FALSE)*100) -> 1.947833713 | AK66: =(1+AJ66/100)*AK65 -> 2.780489961 | AL66: 2071 | AM66: =IF(ISNA(VLOOKUP($AA66,Escalation!$A$7:$R$54,MATCH(AM$8,Escalation!$6:$6,0),FALSE)*100),VLOOKUP(CONCATENATE("Post ",MAX(Escalation!$A:$A)),Escalation!$A$7:$R$54,MATCH(AM$8,Escalation!$6:$6,0),FALSE)*100,VLOOKUP($AA66,Escalation!$A$7:$R$54,MATCH(AM$8,Escalation!$6:$6,0),FALSE)*100) -> 1.947833713 | AN66: =(1+AM66/100)*AN65 -> 2.780489961 | AO66: =IF(ISNA(VLOOKUP($AA66,Escalation!$A$7:$R$54,MATCH(AO$8,Escalation!$6:$6,0),FALSE)*100),VLOOKUP(CONCATENATE("Post ",MAX(Escalation!$A:$A)),Escalation!$A$7:$R$54,MATCH(AO$8,Escalation!$6:$6,0),FALSE)*100,VLOOKUP($AA66,Escalation!$A$7:$R$54,MATCH(AO$8,Escalation!$6:$6,0),FALSE)*100) -> 2.812969183 | AP66: =(1+AO66/100)*AP65 -> 4.351362629 | AQ66: =IF(ISNA(VLOOKUP($AA66,Escalation!$A$7:$R$54,MATCH(AQ$8,Escalation!$6:$6,0),FALSE)*100),VLOOKUP(CONCATENATE("Post ",MAX(Escalation!$A:$A)),Escalation!$A$7:$R$54,MATCH(AQ$8,Escalation!$6:$6,0),FALSE)*100,VLOOKUP($AA66,Escalation!$A$7:$R$54,MATCH(AQ$8,Escalation!$6:$6,0),FALSE)*100) -> 2.812969183 | AR66: =(1+AQ66/100)*AR65 -> 4.351362629 | AS66: =IF(ISNA(VLOOKUP($AA66,Escalation!$A$7:$R$54,MATCH(AS$8,Escalation!$6:$6,0),FALSE)*100),VLOOKUP(CONCATENATE("Post ",MAX(Escalation!$A:$A)),Escalation!$A$7:$R$54,MATCH(AS$8,Escalation!$6:$6,0),FALSE)*100,VLOOKUP($AA66,Escalation!$A$7:$R$54,MATCH(AS$8,Escalation!$6:$6,0),FALSE)*100) -> 2.656095012 | AT66: =(1+AS66/100)*AT65 -> 4.013080237 | AU66: =IF(ISNA(VLOOKUP($AA66,Escalation!$A$7:$R$54,MATCH(AU$8,Escalation!$6:$6,0),FALSE)*100),VLOOKUP(CONCATENATE("Post ",MAX(Escalation!$A:$A)),Escalation!$A$7:$R$54,MATCH(AU$8,Escalation!$6:$6,0),FALSE)*100,VLOOKUP($AA66,Escalation!$A$7:$R$54,MATCH(AU$8,Escalation!$6:$6,0),FALSE)*100) -> 2.53541408 | AV66: =(1+AU66/100)*AV65 -> 3.770534169 | AW66: =IF(ISNA(VLOOKUP($AA66,Escalation!$A$7:$R$54,MATCH(AW$8,Escalation!$6:$6,0),FALSE)*100),VLOOKUP(CONCATENATE("Post ",MAX(Escalation!$A:$A)),Escalation!$A$7:$R$54,MATCH(AW$8,Escalation!$6:$6,0),FALSE)*100,VLOOKUP($AA66,Escalation!$A$7:$R$54,MATCH(AW$8,Escalation!$6:$6,0),FALSE)*100) -> 2.050029531 | AX66: =(1+AW66/100)*AX65 -> 2.932774949 | AY66: =IF(ISNA(VLOOKUP($AA66,Escalation!$A$7:$R$54,MATCH(AY$8,Escalation!$6:$6,0),FALSE)*100),VLOOKUP(CONCATENATE("Post ",MAX(Escalation!$A:$A)),Escalation!$A$7:$R$54,MATCH(AY$8,Escalation!$6:$6,0),FALSE)*100,VLOOKUP($AA66,Escalation!$A$7:$R$54,MATCH(AY$8,Escalation!$6:$6,0),FALSE)*100) -> 2.050029531 | AZ66: =(1+AY66/100)*AZ65 -> 2.932774949
AA67: =AA66+1 -> 2072 | AB67: =IF(ISNA(VLOOKUP($AA67,Escalation!$A$7:$R$54,MATCH(AB$7,Escalation!$6:$6,0),FALSE)*100),VLOOKUP(CONCATENATE("Post ",MAX(Escalation!$A:$A)),Escalation!$A$7:$R$54,MATCH(AB$7,Escalation!$6:$6,0),FALSE)*100,VLOOKUP($AA67,Escalation!$A$7:$R$54,MATCH(AB$7,Escalation!$6:$6,0),FALSE)*100) -> 2.210875284 | AC67: =(1+AB67/100)*AC66 -> 3.257684748 | AD67: =IF(ISNA(VLOOKUP($AA67,Escalation!$A$7:$R$54,MATCH(AD$7,Escalation!$6:$6,0),FALSE)*100),VLOOKUP(CONCATENATE("Post ",MAX(Escalation!$A:$A)),Escalation!$A$7:$R$54,MATCH(AD$7,Escalation!$6:$6,0),FALSE)*100,VLOOKUP($AA67,Escalation!$A$7:$R$54,MATCH(AD$7,Escalation!$6:$6,0),FALSE)*100) -> 2.473916856 | AE67: =(1+AD67/100)*AE66 -> 3.742515138 | AF67: =IF(ISNA(VLOOKUP($AA67,Escalation!$A$7:$R$54,MATCH(AF$7,Escalation!$6:$6,0),FALSE)*100),VLOOKUP(CONCATENATE("Post ",MAX(Escalation!$A:$A)),Escalation!$A$7:$R$54,MATCH(AF$7,Escalation!$6:$6,0),FALSE)*100,VLOOKUP($AA67,Escalation!$A$7:$R$54,MATCH(AF$7,Escalation!$6:$6,0),FALSE)*100) -> 2.736958428 | AG67: =(1+AF67/100)*AG66 -> 4.297972797 | AH67: =IF(ISNA(VLOOKUP($AA67,Escalation!$A$7:$R$54,MATCH(AH$7,Escalation!$6:$6,0),FALSE)*100),VLOOKUP(CONCATENATE("Post ",MAX(Escalation!$A:$A)),Escalation!$A$7:$R$54,MATCH(AH$7,Escalation!$6:$6,0),FALSE)*100,VLOOKUP($AA67,Escalation!$A$7:$R$54,MATCH(AH$7,Escalation!$6:$6,0),FALSE)*100) -> 3 | AI67: =(1+AH67/100)*AI66 -> 4.934124846 | AJ67: =IF(ISNA(VLOOKUP($AA67,Escalation!$A$7:$R$54,MATCH(AJ$7,Escalation!$6:$6,0),FALSE)*100),VLOOKUP(CONCATENATE("Post ",MAX(Escalation!$A:$A)),Escalation!$A$7:$R$54,MATCH(AJ$7,Escalation!$6:$6,0),FALSE)*100,VLOOKUP($AA67,Escalation!$A$7:$R$54,MATCH(AJ$7,Escalation!$6:$6,0),FALSE)*100) -> 1.947833713 | AK67: =(1+AJ67/100)*AK66 -> 2.834649282 | AL67: 2072 | AM67: =IF(ISNA(VLOOKUP($AA67,Escalation!$A$7:$R$54,MATCH(AM$8,Escalation!$6:$6,0),FALSE)*100),VLOOKUP(CONCATENATE("Post ",MAX(Escalation!$A:$A)),Escalation!$A$7:$R$54,MATCH(AM$8,Escalation!$6:$6,0),FALSE)*100,VLOOKUP($AA67,Escalation!$A$7:$R$54,MATCH(AM$8,Escalation!$6:$6,0),FALSE)*100) -> 1.947833713 | AN67: =(1+AM67/100)*AN66 -> 2.834649282 | AO67: =IF(ISNA(VLOOKUP($AA67,Escalation!$A$7:$R$54,MATCH(AO$8,Escalation!$6:$6,0),FALSE)*100),VLOOKUP(CONCATENATE("Post ",MAX(Escalation!$A:$A)),Escalation!$A$7:$R$54,MATCH(AO$8,Escalation!$6:$6,0),FALSE)*100,VLOOKUP($AA67,Escalation!$A$7:$R$54,MATCH(AO$8,Escalation!$6:$6,0),FALSE)*100) -> 2.812969183 | AP67: =(1+AO67/100)*AP66 -> 4.473765118 | AQ67: =IF(ISNA(VLOOKUP($AA67,Escalation!$A$7:$R$54,MATCH(AQ$8,Escalation!$6:$6,0),FALSE)*100),VLOOKUP(CONCATENATE("Post ",MAX(Escalation!$A:$A)),Escalation!$A$7:$R$54,MATCH(AQ$8,Escalation!$6:$6,0),FALSE)*100,VLOOKUP($AA67,Escalation!$A$7:$R$54,MATCH(AQ$8,Escalation!$6:$6,0),FALSE)*100) -> 2.812969183 | AR67: =(1+AQ67/100)*AR66 -> 4.473765118 | AS67: =IF(ISNA(VLOOKUP($AA67,Escalation!$A$7:$R$54,MATCH(AS$8,Escalation!$6:$6,0),FALSE)*100),VLOOKUP(CONCATENATE("Post ",MAX(Escalation!$A:$A)),Escalation!$A$7:$R$54,MATCH(AS$8,Escalation!$6:$6,0),FALSE)*100,VLOOKUP($AA67,Escalation!$A$7:$R$54,MATCH(AS$8,Escalation!$6:$6,0),FALSE)*100) -> 2.656095012 | AT67: =(1+AS67/100)*AT66 -> 4.119671461 | AU67: =IF(ISNA(VLOOKUP($AA67,Escalation!$A$7:$R$54,MATCH(AU$8,Escalation!$6:$6,0),FALSE)*100),VLOOKUP(CONCATENATE("Post ",MAX(Escalation!$A:$A)),Escalation!$A$7:$R$54,MATCH(AU$8,Escalation!$6:$6,0),FALSE)*100,VLOOKUP($AA67,Escalation!$A$7:$R$54,MATCH(AU$8,Escalation!$6:$6,0),FALSE)*100) -> 2.53541408 | AV67: =(1+AU67/100)*AV66 -> 3.866132823 | AW67: =IF(ISNA(VLOOKUP($AA67,Escalation!$A$7:$R$54,MATCH(AW$8,Escalation!$6:$6,0),FALSE)*100),VLOOKUP(CONCATENATE("Post ",MAX(Escalation!$A:$A)),Escalation!$A$7:$R$54,MATCH(AW$8,Escalation!$6:$6,0),FALSE)*100,VLOOKUP($AA67,Escalation!$A$7:$R$54,MATCH(AW$8,Escalation!$6:$6,0),FALSE)*100) -> 2.050029531 | AX67: =(1+AW67/100)*AX66 -> 2.992897701 | AY67: =IF(ISNA(VLOOKUP($AA67,Escalation!$A$7:$R$54,MATCH(AY$8,Escalation!$6:$6,0),FALSE)*100),VLOOKUP(CONCATENATE("Post ",MAX(Escalation!$A:$A)),Escalation!$A$7:$R$54,MATCH(AY$8,Escalation!$6:$6,0),FALSE)*100,VLOOKUP($AA67,Escalation!$A$7:$R$54,MATCH(AY$8,Escalation!$6:$6,0),FALSE)*100) -> 2.050029531 | AZ67: =(1+AY67/100)*AZ66 -> 2.992897701

Sheet Alt. 1
AM2: PROJECT COST / BENEFIT ANALYSIS TEMPLATE
AM3: ='Home Page'!G10 -> Expansion Study - Lab East Interconnected System
AM4: Back-up Gen/Interruptibles
AP5: Note: Costs are shown as positive values; Benefits as negative values
AT7: Current Year | AU7: ='Home Page'!G6 -> 2018
AT8: Present Worth Year | AU8: ='Home Page'!G18 -> 2018
H9: Scratch Pad area for Annual O&M costs | AT9: Number of Years in Study | AU9: ='Home Page'!G14 -> 25
AT10: Discount Rate | AU10: ='Home Page'!G16 -> 0.059
H11: This area is used to enter O&M costs associated with the project. | AT11: Total In-service Project Cost
H12: Columns 3,4,5,6,7 & 8 can be used to do some calculations if preferred. | AT12: In-service Year | AU12: ='Home Page'!G12 -> 2020
H13: The determined O&M costs for each year must be entered into column 9 as constant year dollar values, | AT13: Other Project Cost after In-service (if applicable)
H14: that is, the values in this year's dollars. | AT14: Other Project Year (if applicable)
H15: The entered values will be automatically escalated to current year dollar values in column 10 | AT15: Replacement Cost (if applicable) | AU15: 0
H16: that is, the costs in their respective years as shown in column 2. | AT16: Replacement Year (if applicable)
H17: NOTE: Annual O&M costs are assumed to start in the in-service year. | AT17: Project cost in Ending (E) or Beginning (B) Year $$ | AU17: B
AT18: O&M costs - Escalation based on mixture of Materials & Labour | AU18: More Material Less Labour
B20: 1 | C20: 2 | D20: 3 | E20: 4 | F20: 5 | G20: 6 | H20: 7 | I20: 8 | J20: 9 | K20: 10 | L20: 11 | N20: 12 | O20: 13
AM21: A B | AO21: C | AP21: D | AQ21: E | AR21: F | AS21: G | AT21: H | AU21: I | AV21: J | AW21: K | AX21: L
D22: Working Area Below (if required) | K22: Annual | N22: User Chosen | O22: Cumulative | AO22: Annual O&M | AP22: Annual Fuel | AQ22: Annual Fuel | AR22: Other | AS22: Total | AT22: Benefit 1 | AU22: Benefit 2 | AW22: P.W. | AX22: Cumulative
B23: Year | J23: O&M costs | K23: O&M costs | L23: Comments / Explanations | N23: Annual % | O23: Change | AM23: Year | AO23: Cost | AP23: Price | AQ23: Cost | AR23: Cost | AS23: Costs | AT23: (specify) | AU23: (specify) | AV23: NET | AW23: January | AX23: Present
D24: HVY GT | E24: L1301 | F24: Interruptable Contracts | J24: (Constant $$) | K24: (Current $$) | N24: Change | O24: Factor | AO24: $ | AP24: (if applicable) | AQ24: $ | AR24: $ | AS24: $ | AT24: $ | AU24: $ | AV24: $ | AW24: =$AU$8 -> 2018 | AX24: Worth
B26: 0 | C26: =$AU$7 -> 2018 | D26: 351000 | E26: =435000+20000 -> 455000 | F26: =10*4*6000 -> 240000 | J26: =SUM(D26:I26) -> 1046000 | K26: =IF(J26 = "", "",IF($AU$18 = " User Defined",(J26*O26),J26*(VLOOKUP(C26,Index,$BC$37,FALSE)))) -> 1046000 | O26: 1 | AM26: 0 | AN26: =AU7 -> 2018 | AO26: =IF(AM26="","",IF($AU$12>AN26,0,K26)) -> 0 | AQ26: =IF(AM26="","",IF($AU$12>AN26,0,J135)) -> 0 | AR26: =IF(AM26="","",IF($AU$12>AN26,0,L238)) -> 0 | AS26: =IF(AN26=$AU$12,SUM(AO26:AR26)-AP26+$AU$11,SUM(AO26:AR26)-AP26) -> 0 | AT26: =IF(AM26="","",IF($AU$12>AN26,0,-L339)) -> 0 | AU26: =IF(AM26="","",IF($AU$12>AN26,0,-L440)) -> 0 | AV26: =AS26+SUM(AT26:AU26) -> 0 | AW26: =IF(AV26=0,0,IF(AV26=SUM(AO26:AR26)+SUM(AT26:AU26),AV26/(1+$AU$10)^(AN26-$AU$8+1),IF($AU$17="E",AV26/(1+$AU$10)^(AN26-$AU$8+1),(AV26-SUM(AO26:AR26)-SUM(AT26:AU26))/(1+$AU$10)^(AN26-$AU$8)+(SUM(AO26:AR26)+SUM(AT26:AU26))/(1+$AU$10)^(AN26-$AU$8+1)))) -> 0 | AX26: =AX25+AW26 -> 0
B27: =B26+1 -> 1 | C27: =C26+1 -> 2019 | D27: 351000 | E27: 455000 | F27: =10*4*6000 -> 240000 | J27: =SUM(D27:I27) -> 1046000 | K27: 1069200.846 | O27: =1+N27/100 -> 1 | AM27: =IF(AM26="","",IF($AU$9-AM26<=0,"",AM26+1)) -> 1 | AN27: =IF(AM27="","",AN26+1) -> 2019 | AO27: 0 | AQ27: 0 | AR27: 0 | AS27: =IF(AN27=$AU$12,SUM(AO27:AR27)-AP27+$AU$11,IF(AN27=$AU$16,SUM(AO27:AR27)-AP27+$AU$15,IF(AN27=$AU$14,SUM(AO27:AR27)-AP27+$AU$13,SUM(AO27:AR27)-AP27))) -> 0 | AT27: 0 | AU27: 0 | AV27: =AS27+SUM(AT27:AU27) -> 0 | AW27: =IF(AV27=0,0,IF(AV27=SUM(AO27:AR27)+SUM(AT27:AU27),AV27/(1+$AU$10)^(AN27-$AU$8+1),IF($AU$17="E",AV27/(1+$AU$10)^(AN27-$AU$8+1),(AV27-SUM(AO27:AR27)-SUM(AT27:AU27))/(1+$AU$10)^(AN27-$AU$8)+(SUM(AO27:AR27)+SUM(AT27:AU27))/(1+$AU$10)^(AN27-$AU$8+1)))) -> 0 | AX27: =IF(AN27="",0,IF(AW27=0,AX26,AX26+AW27)) -> 0 | BD27: =IF(AM27=$AU$9,AX27,0) -> 0 | BF27: =IF(AM27=$AU$9,AN27,0) -> 0
B28: =B27+1 -> 2 | C28: 2020 | D28: 351000 | E28: 455000 | F28: 240000 | J28: 1046000 | K28: 1092901.784 | O28: =(1+N28/100)*O27 -> 1 | AM28: =IF(AM27="","",IF($AU$9-AM27<=0,"",AM27+1)) -> 2 | AN28: =IF(AM28="","",AN27+1) -> 2020 | AO28: 1092901.784 | AQ28: 1807157.511 | AR28: 3805500 | AS28: =IF(AN28=$AU$12,SUM(AO28:AR28)-AP28+$AU$11,IF(AN28=$AU$16,SUM(AO28:AR28)-AP28+$AU$15,IF(AN28=$AU$14,SUM(AO28:AR28)-AP28+$AU$13,SUM(AO28:AR28)-AP28))) -> 6705559.295 | AT28: -265733.6118 | AU28: 0 | AV28: 6439825.683 | AW28: =IF(AV28=0,0,IF(AV28=SUM(AO28:AR28)+SUM(AT28:AU28),AV28/(1+$AU$10)^(AN28-$AU$8+1),IF($AU$17="E",AV28/(1+$AU$10)^(AN28-$AU$8+1),(AV28-SUM(AO28:AR28)-SUM(AT28:AU28))/(1+$AU$10)^(AN28-$AU$8)+(SUM(AO28:AR28)+SUM(AT28:AU28))/(1+$AU$10)^(AN28-$AU$8+1)))) -> 5422333.577 | AX28: =IF(AN28="",0,IF(AW28=0,AX27,AX27+AW28)) -> 5422333.577 | BB28: E | BD28: =IF(AM28=$AU$9,AX28,0) -> 0 | BF28: =IF(AM28=$AU$9,AN28,0) -> 0
B29: 3 | C29: 2021 | D29: 351000 | E29: 455000 | F29: 240000 | J29: 1046000 | K29: 1117090.252 | O29: =(1+N29/100)*O28 -> 1 | AM29: 3 | AN29: 2021 | AO29: 1117090.252 | AQ29: 1769284.937 | AR29: 4383480.417 | AS29: =IF(AN29=$AU$12,SUM(AO29:AR29)-AP29+$AU$11,IF(AN29=$AU$16,SUM(AO29:AR29)-AP29+$AU$15,IF(AN29=$AU$14,SUM(AO29:AR29)-AP29+$AU$13,SUM(AO29:AR29)-AP29))) -> 7269855.606 | AT29: -266688.3434 | AU29: 0 | AV29: 7003167.263 | AW29: 5568146.57 | AX29: 10990480.15 | BB29: B | BD29: =IF(AM29=$AU$9,AX29,0) -> 0 | BF29: =IF(AM29=$AU$9,AN29,0) -> 0
B30: 4 | C30: 2022 | D30: 351000 | E30: 455000 | F30: 240000 | J30: 1046000 | K30: 1141787.724 | O30: 1 | AM30: 4 | AN30: 2022 | AO30: 1141787.724 | AQ30: 1751056.11 | AR30: 0 | AS30: 2892843.835 | AT30: -267324.831 | AU30: 0 | AV30: 2625519.004 | AW30: 1971221.22 | AX30: 12961701.37 | BD30: 0 | BF30: 0
B31: 5 | C31: 2023 | D31: 351000 | E31: 455000 | F31: 240000 | J31: 1046000 | K31: 1167031.227 | O31: 1 | AM31: 5 | AN31: 2023 | AO31: 1167031.227 | AQ31: 1752753.27 | AR31: 0 | AS31: 2919784.497 | AT31: -268279.5626 | AU31: 0 | AV31: 2651504.934 | AW31: 1879821.788 | AX31: 14841523.15 | BB31: More Material Less Labour | BC31: 3 | BD31: 0 | BF31: 0
B32: 6 | C32: 2024 | D32: 351000 | E32: 455000 | F32: 240000 | J32: 1046000 | K32: 1192832.832 | O32: 1 | AM32: 6 | AN32: 2024 | AO32: 1192832.832 | AQ32: 1776209.643 | AR32: 0 | AS32: 2969042.475 | AT32: -270189.0257 | AU32: 0 | AV32: 2698853.45 | AW32: 1806789.599 | AX32: 16648312.75 | BB32: Same Material Same Labour | BC32: 5 | BD32: 0 | BF32: 0
B33: 7 | C33: 2025 | D33: 351000 | E33: 455000 | F33: 240000 | J33: 1046000 | K33: 1219204.878 | O33: 1 | AM33: 7 | AN33: 2025 | AO33: 1219204.878 | AQ33: 1797210.116 | AR33: 0 | AS33: 3016414.995 | AT33: -271780.2449 | AU33: 0 | AV33: 2744634.75 | AW33: 1735069.505 | AX33: 18383382.26 | BB33: More Labour Less Material | BC33: 7 | BD33: 0 | BF33: 0
B34: 8 | C34: 2026 | D34: 351000 | E34: 455000 | F34: 240000 | J34: 1046000 | K34: 1246159.978 | O34: 1 | AM34: 8 | AN34: 2026 | AO34: 1246159.978 | AQ34: 1823168.552 | AR34: 0 | AS34: 3069328.529 | AT34: -273371.4641 | AU34: 0 | AV34: 2795957.065 | AW34: 1669040.431 | AX34: 20052422.69 | BB34: Labour Only | BC34: 9 | BD34: 0 | BF34: 0
B35: 9 | C35: 2027 | D35: 351000 | E35: =435000+227375 -> 662375 | F35: 240000 | J35: 1253375 | K35: 1526230.928 | O35: 1 | AM35: 9 | AN35: 2027 | AO35: 1526230.928 | AQ35: 2011206.009 | AR35: 641929.9149 | AS35: 4179366.852 | AT35: -274962.6834 | AU35: 0 | AV35: 3904404.168 | AW35: 2200873.933 | AX35: 22253296.62 | BB35: Oil and Gas Operations | BC35: 11 | BD35: 0 | BF35: 0
B36: 10 | C36: 2028 | D36: 351000 | E36: 662375 | F36: 240000 | J36: 1253375 | K36: 1559973.99 | O36: 1 | AM36: 10 | AN36: 2028 | AO36: 1559973.99 | AQ36: 2040045.694 | AR36: 791984.6467 | AS36: 4392004.33 | AT36: -276553.9026 | AU36: 0 | AV36: 4115450.428 | AW36: 2190593.596 | AX36: 24443890.22 | BB36: User Defined | BD36: 0 | BF36: 0
B37: 11 | C37: 2029 | D37: 351000 | E37: 662375 | F37: 240000 | J37: 1253375 | K37: 1594463.069 | O37: 1 | AM37: 11 | AN37: =IF(AM37="","",AN36+1) -> 2029 | AO37: =IF(AM37="","",IF($AU$12>AN37,0,K37)) -> 1594463.069 | AQ37: 2504069.203 | AR37: 407131.4654 | AS37: =IF(AN37=$AU$12,SUM(AO37:AR37)-AP37+$AU$11,IF(AN37=$AU$16,SUM(AO37:AR37)-AP37+$AU$15,IF(AN37=$AU$14,SUM(AO37:AR37)-AP37+$AU$13,SUM(AO37:AR37)-AP37))) -> 4505663.737 | AT37: -278463.3657 | AU37: 0 | AV37: =AS37+SUM(AT37:AU37) -> 4227200.372 | AW37: =IF(AV37=0,0,IF(AV37=SUM(AO37:AR37)+SUM(AT37:AU37),AV37/(1+$AU$10)^(AN37-$AU$8+1),IF($AU$17="E",AV37/(1+$AU$10)^(AN37-$AU$8+1),(AV37-SUM(AO37:AR37)-SUM(AT37:AU37))/(1+$AU$10)^(AN37-$AU$8)+(SUM(AO37:AR37)+SUM(AT37:AU37))/(1+$AU$10)^(AN37-$AU$8+1)))) -> 2124718.077 | AX37: =IF(AN37="",0,IF(AW37=0,AX36,AX36+AW37)) -> 26568608.29 | BC37: =IF(AU18 = "","",VLOOKUP(AU18,BB31:BC36,2,FALSE)) -> 3 | BD37: 0 | BF37: 0
B38: 12 | C38: 2030 | D38: 351000 | E38: 662375 | F38: 240000 | J38: 1253375 | K38: 1629714.659 | O38: 1 | AM38: 12 | AN38: 2030 | AO38: 1629714.659 | AQ38: 2701474.54 | AR38: 0 | AS38: 4331189.2 | AT38: -280054.5849 | AU38: 0 | AV38: 4051134.615 | AW38: 1922778.216 | AX38: 28491386.51 | BB38: =MAX(AM26:AM78) -> 25 | BD38: 0 | BF38: 0
B39: 13 | C39: 2031 | D39: 351000 | E39: 455000 | F39: 240000 | J39: 1046000 | K39: 1390142.548 | O39: 1 | AM39: 13 | AN39: 2031 | AO39: 1390142.548 | AQ39: 2993357.192 | AR39: 0 | AS39: 4383499.741 | AT39: -281645.8041 | AU39: 0 | AV39: 4101853.937 | AW39: 1838386.194 | AX39: 30329772.7 | BD39: 0 | BF39: 0
B40: 14 | C40: 2032 | D40: 351000 | E40: 455000 | F40: 240000 | J40: 1046000 | K40: 1420876.866 | O40: 1 | AM40: 14 | AN40: 2032 | AO40: 1420876.866 | AQ40: 3055944.899 | AR40: 73744.07331 | AS40: 4550565.839 | AT40: -283237.0234 | AU40: 0 | AV40: 4267328.816 | AW40: 1805995.678 | AX40: 32135768.38 | BB40: =IF(MAX(BD26:BD78)=0,MIN(BD26:BD78),MAX(BD26:BD78)) -> 52428672.75 | BD40: 0 | BF40: 0
B41: 15 | C41: 2033 | D41: 351000 | E41: 455000 | F41: 240000 | J41: 1046000 | K41: 1452290.682 | O41: 1 | AM41: 15 | AN41: 2033 | AO41: 1452290.682 | AQ41: 3118365.233 | AR41: 417001.5925 | AS41: 4987657.507 | AT41: -285146.4864 | AU41: 0 | AV41: 4702511.021 | AW41: 1879292.845 | AX41: 34015061.23 | BD41: 0 | BF41: 0
B42: 16 | C42: 2034 | D42: 351000 | E42: 455000 | F42: 240000 | J42: 1046000 | K42: 1484399.017 | O42: 1 | AM42: 16 | AN42: 2034 | AO42: 1484399.017 | AQ42: 3268393.491 | AR42: 0 | AS42: 4752792.508 | AT42: -286737.7057 | AU42: 0 | AV42: 4466054.803 | AW42: 1685360.17 | AX42: 35700421.4 | BB42: =MAX(BF26:BF78) -> 2043 | BD42: 0 | BF42: 0
B43: 17 | C43: 2035 | D43: 351000 | E43: 455000 | F43: 240000 | J43: 1046000 | K43: 1517217.228 | O43: 1 | AM43: 17 | AN43: 2035 | AO43: 1517217.228 | AQ43: 3558016.499 | AR43: 0 | AS43: 5075233.728 | AT43: -288328.9249 | AU43: 0 | AV43: 4786904.803 | AW43: 1705797.638 | AX43: 37406219.04 | BD43: 0 | BF43: 0
B44: 18 | C44: 2036 | D44: 351000 | E44: =435000+227375 -> 662375 | F44: 240000 | J44: 1253375 | K44: 1858207.533 | O44: 1 | AM44: 18 | AN44: 2036 | AO44: 1858207.533 | AQ44: 3700330.849 | AR44: 4943903.43 | AS44: 10502441.81 | AT44: -289920.1441 | AU44: 0 | AV44: 10212521.67 | AW44: 3436447.781 | AX44: 40842666.82 | BD44: 0 | BF44: 0
B45: 19 | C45: 2037 | D45: 351000 | E45: 662375 | F45: 240000 | J45: 1253375 | K45: 1899290.184 | O45: 1 | AM45: 19 | AN45: 2037 | AO45: 1899290.184 | AQ45: 4134950.076 | AR45: 6777298.546 | AS45: 12811538.81 | AT45: -291829.6072 | AU45: 0 | AV45: 12519709.2 | AW45: 3978093.984 | AX45: 44820760.8 | BD45: 0 | BF45: 0
B46: 20 | C46: 2038 | D46: 351000 | E46: 662375 | F46: 240000 | J46: 1253375 | K46: 1941281.122 | O46: 1 | AM46: 20 | AN46: 2038 | AO46: 1941281.122 | AQ46: 4212362.06 | AR46: 0 | AS46: 6153643.182 | AT46: -293420.8265 | AU46: 0 | AV46: 5860222.355 | AW46: 1758324.116 | AX46: 46579084.92 | BD46: 0 | BF46: 0
B47: 21 | C47: 2039 | D47: 351000 | E47: 662375 | F47: 240000 | J47: 1253375 | K47: 1984200.426 | O47: 1 | AM47: 21 | AN47: 2039 | AO47: 1984200.426 | AQ47: 4343190.654 | AR47: 0 | AS47: 6327391.081 | AT47: -295012.0457 | AU47: 0 | AV47: 6032379.035 | AW47: 1709139.454 | AX47: 48288224.37 | BD47: 0 | BF47: 0
B48: 22 | C48: 2040 | D48: 351000 | E48: 455000 | F48: 240000 | J48: 1046000 | K48: 1692518.025 | O48: 1 | AM48: 22 | AN48: 2040 | AO48: 1692518.025 | AQ48: 4501975.833 | AR48: 0 | AS48: 6194493.858 | AT48: -296921.5088 | AU48: 0 | AV48: 5897572.349 | AW48: 1577851.747 | AX48: 49866076.12 | BD48: 0 | BF48: 0
B49: 23 | C49: 2041 | D49: 351000 | E49: 455000 | F49: 240000 | J49: 1046000 | K49: 1729937.488 | O49: 1 | AM49: 23 | AN49: 2041 | AO49: 1729937.488 | AQ49: 4703472.284 | AR49: 2082480.373 | AS49: 8515890.145 | AT49: -298512.728 | AU49: 0 | AV49: 8217377.417 | AW49: 2076013.587 | AX49: 51942089.71 | BD49: 0 | BF49: 0
B50: 24 | C50: 2042 | D50: 351000 | E50: 455000 | F50: 240000 | J50: 1046000 | K50: 1768184.248 | O50: 1 | AM50: 24 | AN50: 2042 | AO50: 1768184.248 | AQ50: 4799806.491 | AR50: 0 | AS50: 6567990.739 | AT50: -300103.9472 | AU50: 0 | AV50: 6267886.792 | AW50: 1495278.68 | AX50: 53437368.39 | BD50: 0 | BF50: 0
B51: 25 | C51: 2043 | D51: 351000 | E51: 455000 | F51: 240000 | J51: 1046000 | K51: 1807276.597 | O51: 1 | AM51: 25 | AN51: 2043 | AO51: 1807276.597 | AQ51: 4943741.282 | AR51: 0 | AS51: 6751017.879 | AT51: -11228719.03 | AU51: 0 | AV51: -4477701.155 | AW51: -1008695.637 | AX51: 52428672.75 | BD51: 52428672.75 | BF51: 2043
B52: 26 | C52: 2044 | D52: 351000 | E52: 455000 | F52: 240000 | J52: 1046000 | K52: 1847233.228 | O52: 1 | AS52: 0 | AV52: 0 | AW52: 0 | AX52: 0 | BD52: 0 | BF52: 0
B53: 27 | C53: 2045 | D53: 351000 | E53: 455000 | F53: 240000 | J53: 1046000 | K53: 1888073.251 | O53: 1 | AS53: 0 | AV53: 0 | AW53: 0 | AX53: 0 | BD53: 0 | BF53: 0
B54: 28 | C54: 2046 | D54: 351000 | E54: 455000 | F54: 240000 | J54: 1046000 | K54: 1929816.196 | O54: 1 | AS54: 0 | AV54: 0 | AW54: 0 | AX54: 0 | BD54: 0 | BF54: 0
B55: 29 | C55: 2047 | D55: 351000 | E55: 455000 | F55: 240000 | J55: 1046000 | K55: 1972482.025 | O55: 1 | AS55: 0 | AV55: 0 | AW55: 0 | AX55: 0 | BD55: 0 | BF55: 0
B56: 30 | C56: 2048 | D56: 351000 | E56: 455000 | F56: 240000 | J56: 1046000 | K56: 2016091.143 | O56: 1 | AS56: 0 | AV56: 0 | AW56: 0 | AX56: 0 | BD56: 0 | BF56: 0
B57: 31 | C57: 2049 | O57: 1 | AS57: 0 | AV57: 0 | AW57: 0 | AX57: 0 | BD57: 0 | BF57: 0
B58: 32 | C58: 2050 | O58: 1 | AS58: 0 | AV58: 0 | AW58: 0 | AX58: 0 | BD58: 0 | BF58: 0
B59: 33 | C59: 2051 | O59: 1 | AS59: 0 | AV59: 0 | AW59: 0 | AX59: 0 | BD59: 0 | BF59: 0
B60: 34 | C60: 2052 | O60: 1 | AS60: 0 | AV60: 0 | AW60: 0 | AX60: 0 | BD60: 0 | BF60: 0
B61: 35 | C61: 2053 | O61: 1 | AS61: 0 | AV61: 0 | AW61: 0 | AX61: 0 | BD61: 0 | BF61: 0
B62: 36 | C62: 2054 | O62: 1 | AS62: 0 | AV62: 0 | AW62: 0 | AX62: 0 | BD62: 0 | BF62: 0
B63: 37 | C63: 2055 | O63: 1 | AS63: 0 | AV63: 0 | AW63: 0 | AX63: 0 | BD63: 0 | BF63: 0
B64: 38 | C64: 2056 | O64: 1 | AS64: 0 | AV64: 0 | AW64: 0 | AX64: 0 | BD64: 0 | BF64: 0
B65: 39 | C65: 2057 | O65: 1 | AS65: 0 | AV65: 0 | AW65: 0 | AX65: 0 | BD65: 0 | BF65: 0
B66: 40 | C66: 2058 | O66: 1 | AS66: 0 | AV66: 0 | AW66: 0 | AX66: 0 | BD66: =IF(AM66=$AU$9,AX66,0) -> 0 | BF66: =IF(AM66=$AU$9,AN66,0) -> 0
B67: =B66+1 -> 41 | C67: 2059 | K67: =IF(J67 = "", "",IF($AU$18 = " User Defined",(J67*O67),J67*(VLOOKUP(C67,Index,$BC$37,FALSE)))) ->  | O67: =(1+N67/100)*O66 -> 1 | AN67: =IF(AM67="","",AN66+1) ->  | AO67: =IF(AM67="","",IF($AU$12>AN67,0,K67)) ->  | AQ67: =IF(AM67="","",IF($AU$12>AN67,0,J176)) ->  | AR67: =IF(AM67="","",IF($AU$12>AN67,0,L279)) ->  | AS67: =IF(AN67=$AU$12,SUM(AO67:AR67)-AP67+$AU$11,IF(AN67=$AU$16,SUM(AO67:AR67)-AP67+$AU$15,IF(AN67=$AU$14,SUM(AO67:AR67)-AP67+$AU$13,SUM(AO67:AR67)-AP67))) -> 0 | AT67: =IF(AM67="","",IF($AU$12>AN67,0,-L380)) ->  | AU67: =IF(AM67="","",IF($AU$12>AN67,0,-L481)) ->  | AV67: =AS67+SUM(AT67:AU67) -> 0 | AW67: =IF(AV67=0,0,IF(AV67=SUM(AO67:AR67)+SUM(AT67:AU67),AV67/(1+$AU$10)^(AN67-$AU$8+1),IF($AU$17="E",AV67/(1+$AU$10)^(AN67-$AU$8+1),(AV67-SUM(AO67:AR67)-SUM(AT67:AU67))/(1+$AU$10)^(AN67-$AU$8)+(SUM(AO67:AR67)+SUM(AT67:AU67))/(1+$AU$10)^(AN67-$AU$8+1)))) -> 0 | AX67: =IF(AN67="",0,IF(AW67=0,AX66,AX66+AW67)) -> 0 | BD67: =IF(AM67=$AU$9,AX67,0) -> 0
B68: =B67+1 -> 42 | C68: 2060 | O68: 1 | AS68: 0 | AV68: 0 | AW68: 0 | AX68: 0 | BD68: 0
B69: =B68+1 -> 43 | C69: 2061 | O69: 1 | AS69: 0 | AV69: 0 | AW69: 0 | AX69: 0 | BD69: 0
B70: =B69+1 -> 44 | C70: 2062 | O70: 1 | AS70: 0 | AV70: 0 | AW70: 0 | AX70: 0 | BD70: 0
B71: =B70+1 -> 45 | C71: 2063 | O71: 1 | AS71: 0 | AV71: 0 | AW71: 0 | AX71: 0 | BD71: 0
B72: =B71+1 -> 46 | C72: 2064 | O72: 1 | AS72: 0 | AV72: 0 | AW72: 0 | AX72: 0 | BD72: 0
B73: =B72+1 -> 47 | C73: 2065 | O73: 1 | AS73: 0 | AV73: 0 | AW73: 0 | AX73: 0 | BD73: 0
B74: =B73+1 -> 48 | C74: 2066 | O74: 1 | AS74: 0 | AV74: 0 | AW74: 0 | AX74: 0 | BD74: 0
B75: =B74+1 -> 49 | C75: 2067 | O75: 1 | AS75: 0 | AV75: 0 | AW75: 0 | AX75: 0 | BD75: 0
B76: =B75+1 -> 50 | C76: 2068 | O76: 1 | AS76: 0 | AV76: 0 | AW76: 0 | AX76: 0 | BD76: 0
AM78: Assumptions & Notes:
AW79: 2017-01-16T13:57:49 | AX79: 2017-01-16T13:57:49
AV88: Date Revised
AV89: Date Printed
G119: Scratch Pad area for Annual Fuel costs
G120: This area is used to enter Fuel costs associated with the project. NOTE: Fuel Prices are to be entered in Column D in Main Table
G121: Market Analysis section of System Planning prepares various fuel price forecasts for numerous delivery points.
G122: Please reference the appropriate forecast and enter the values in Column D in Main Table.
G123: Columns 3 below picks up the fuel prices from the main table. Columns 4,5,6,7 & 8 can be used to do some calculations if preferred.
G124: Necessary calculations can be performed to determine each current year dollar value of the annual fuel costs.
G125: The respective annual costs are to be entered in column 9.
G126: NOTE: Annual Fuel costs (if applicable) may start in the in-service year .
B129: 1 | C129: 2 | D129: 3 | E129: 4 | F129: 5 | G129: 6 | H129: 7 | I129: 8 | J129: 9 | K129: 10
D131: Annual | E131: Working Area Below (if required) | J131: Annual
B132: Year | D132: Fuel price | G132: L1301 | H132: Fuel For | J132: Fuel costs | K132: Comments / Explanations
D133: =AP24 -> (if applicable) | E133: HVY GT ($/L) | F133: HVY GT (L) | G133: Losses ($) | H133: Summer Outage (L) | J133: (Current $$)
B135: 0 | C135: =$AU$7 -> 2018 | D135: =AP26 -> 0 | E135: 1.255 | F135: 0 | G135: =Losses!C4*Losses!$G$7 -> 1010200.801 | H135: 481605 | J135: =E135*F135+G135+H135*E135 -> 1614615.076
B136: =B135+1 -> 1 | C136: =C135+1 -> 2019 | D136: 0 | E136: 1.347 | F136: =8*5*1000/1.85 -> 21621.62162 | G136: =Losses!C5*Losses!$G$7 -> 1049115.933 | H136: 481605 | J136: =E136*F136+G136+H136*E136 -> 1726962.193
B137: =B136+1 -> 2 | C137: 2020 | D137: 0 | E137: 1.495 | F137: =8*5*1000/1.85 -> 21621.62162 | G137: =Losses!C6*Losses!$G$7 -> 1054833.712 | H137: 481605 | J137: =E137*F137+G137+H137*E137 -> 1807157.511
B138: 3 | C138: 2021 | D138: =AP29 -> 0 | E138: 1.405 | F138: 21621.62162 | G138: =Losses!C7*Losses!$G$7 -> 1062251.534 | H138: 481605 | J138: =E138*F138+G138+H138*E138 -> 1769284.937
B139: 4 | C139: 2022 | D139: 0 | E139: 1.355 | F139: 21621.62162 | G139: =Losses!C8*Losses!$G$7 -> 1069184.038 | H139: 481605 | J139: 1751056.11
B140: 5 | C140: 2023 | D140: 0 | E140: 1.345 | F140: 21621.62162 | G140: =Losses!C9*Losses!$G$7 -> 1075913.464 | H140: 481605 | J140: 1752753.27
B141: 6 | C141: 2024 | D141: 0 | E141: 1.365 | F141: 21621.62162 | G141: =Losses!C10*Losses!$G$7 -> 1089305.305 | H141: 481605 | J141: 1776209.643
B142: 7 | C142: 2025 | D142: 0 | E142: 1.38 | F142: 21621.62162 | G142: =Losses!C11*Losses!$G$7 -> 1102757.379 | H142: 481605 | J142: 1797210.116
B143: 8 | C143: 2026 | D143: 0 | E143: 1.405 | F143: 21621.62162 | G143: =Losses!C12*Losses!$G$7 -> 1116135.148 | H143: 481605 | J143: 1823168.552
B144: 9 | C144: 2027 | D144: 0 | E144: 1.435 | F144: 135810.8108 | G144: =Losses!C13*Losses!$G$7 -> 1125214.321 | H144: 481605 | J144: 2011206.009
B145: 10 | C145: 2028 | D145: 0 | E145: 1.455 | F145: 137837.8378 | G145: =Losses!C14*Losses!$G$7 -> 1138756.365 | H145: 481605 | J145: 2040045.694
B146: 11 | C146: 2029 | D146: 0 | E146: 1.48 | F146: 438513.5135 | G146: =Losses!C15*Losses!$G$7 -> 1142293.803 | H146: 481605 | J146: 2504069.203
B147: 12 | C147: 2030 | D147: 0 | E147: 1.51 | F147: 544594.5946 | G147: =Losses!C16*Losses!$G$7 -> 1151913.152 | H147: 481605 | J147: 2701474.54
B148: 13 | C148: 2031 | D148: 0 | E148: 1.535 | F148: 713513.5135 | G148: =Losses!C17*Losses!$G$7 -> 1158850.274 | H148: 481605 | J148: 2993357.192
B149: 14 | C149: 2032 | D149: 0 | E149: 1.565 | F149: 722297.2973 | G149: =Losses!C18*Losses!$G$7 -> 1171837.804 | H149: 481605 | J149: 3055944.899
B150: 15 | C150: 2033 | D150: 0 | E150: 1.59 | F150: 734459.4595 | G150: =Losses!C19*Losses!$G$7 -> 1184822.743 | H150: 481605 | J150: 3118365.233
B151: 16 | C151: 2034 | D151: 0 | E151: 1.62 | F151: 797972.973 | G151: =Losses!C20*Losses!$G$7 -> 1195477.174 | H151: 481605 | J151: 3268393.491
B152: 17 | C152: 2035 | D152: 0 | E152: 1.65 | F152: 945270.2703 | G152: =Losses!C21*Losses!$G$7 -> 1203672.303 | H152: 481605 | J152: 3558016.499
B153: 18 | C153: 2036 | D153: 0 | E153: 1.68 | F153: 997972.973 | G153: =Losses!C22*Losses!$G$7 -> 1214639.854 | H153: 481605 | J153: 3700330.849
B154: 19 | C154: 2037 | D154: 0 | E154: 1.705 | F154: 1228392.168 | G154: =Losses!C23*Losses!$G$7 -> 1219404.905 | H154: 481605 | J154: 4134950.076
B155: 20 | C155: 2038 | D155: 0 | E155: 1.735 | F155: 1236183.122 | G155: =Losses!C24*Losses!$G$7 -> 1231999.669 | H155: 481605 | J155: 4212362.06
B156: 21 | C156: 2039 | D156: 0 | E156: 1.765 | F156: 1274379.482 | G156: =Losses!C25*Losses!$G$7 -> 1243878.045 | H156: 481605 | J156: 4343190.654
B157: 22 | C157: 2040 | D157: 0 | E157: 1.8 | F157: 1322076.669 | G157: =Losses!C26*Losses!$G$7 -> 1255348.83 | H157: 481605 | J157: 4501975.833
B158: 23 | C158: 2041 | D158: 0 | E158: 1.835 | F158: 1391381.688 | G158: =Losses!C27*Losses!$G$7 -> 1266541.712 | H158: 481605 | J158: 4703472.284
B159: 24 | C159: 2042 | D159: 0 | E159: 1.87 | F159: 1400854.937 | G159: =Losses!C28*Losses!$G$7 -> 1279606.41 | H159: 481605 | J159: 4799806.491
B160: 25 | C160: 2043 | D160: 0 | E160: 1.91 | F160: 1430295.091 | G160: =Losses!C29*Losses!$G$7 -> 1292012.108 | H160: 481605 | J160: 4943741.282
B161: 26 | C161: 2044 | D161: 0 | E161: 1.945 | F161: 1463099.835 | G161: =Losses!C30*Losses!$G$7 -> 1304462.435 | H161: 481605 | J161: 5086913.339
B162: 27 | C162: 2045 | D162: 0 | E162: 1.985 | F162: 1472242.14 | G162: =Losses!C31*Losses!$G$7 -> 1317847.179 | H162: 481605 | J162: 5196233.752
B163: 28 | C163: 2046 | D163: 0 | E163: 2.02 | F163: 1485135.135 | G163: =Losses!C32*Losses!$G$7 -> 1330671.548 | H163: 481605 | J163: 5303486.621
B164: 29 | C164: 2047 | D164: 0 | E164: 2.06 | F164: 1627454.495 | G164: =Losses!C33*Losses!$G$7 -> 1339383.619 | H164: 481605 | J164: 5684046.179
B165: 30 | C165: 2048 | D165: 0 | E165: 2.1 | F165: 1639049.792 | G165: =Losses!C34*Losses!$G$7 -> 1352180.398 | H165: 481605 | J165: 5805555.461
B166: 31 | C166: 2049 | D166: 0
B167: 32 | C167: 2050 | D167: 0
B168: 33 | C168: 2051 | D168: 0
B169: 34 | C169: 2052 | D169: 0
B170: 35 | C170: 2053 | D170: 0
B171: 36 | C171: 2054 | D171: 0
B172: 37 | C172: 2055 | D172: 0
B173: 38 | C173: 2056 | D173: 0
B174: 39 | C174: 2057 | D174: 0
B175: 40 | C175: 2058 | D175: 0
B176: =B175+1 -> 41 | C176: 2059 | D176: =AP67 -> 0
B177: =B176+1 -> 42 | C177: 2060 | D177: 0
B178: =B177+1 -> 43 | C178: 2061 | D178: 0
B179: =B178+1 -> 44 | C179: 2062 | D179: 0
B180: =B179+1 -> 45 | C180: 2063 | D180: 0
B181: =B180+1 -> 46 | C181: 2064 | D181: 0
B182: =B181+1 -> 47 | C182: 2065 | D182: 0
B183: =B182+1 -> 48 | C183: 2066 | D183: 0
B184: =B183+1 -> 49 | C184: 2067 | D184: 0
B185: =B184+1 -> 50 | C185: 2068 | D185: 0
G218: Scratch Pad area for Other costs
G219: This area is used to enter Other costs associated with the project.
G220: Use Column 3 below if GDP Price Deflator indices are required.
G221: Use Column 4 below if Combustion Turbine indices are required.
G222: Use Column 5 below if Combined Cycle Combustion Turbine indices are required.
G223: Use Column 6 below if Hydraulic indices are required.
G224: Use Column 7 below if Transmission indices are required.
G225: Use Column 8 below if Transformer indices are required.
G226: Use Column 9 below if Distribution indices are required.
G227: Use Column 10 below if No Escalation is required.
G228: Benefits must be entered as constant year dollars, that is, the values in this year's dollars.
G229: The entered values will be automatically escalated to current year dollar values in Column 11,
G230: that is, the costs in their respective years as shown in column 2.
B232: 1 | C232: 2 | D232: 3 | E232: 4 | F232: 5 | G232: 6 | H232: 7 | I232: 8 | J232: 9 | K232: 10 | L232: 11 | M232: 12
D234: For | E234: For | F234: For | G234: For | H234: For | I234: For | J234: For | K234: With | L234: Other
B235: Year | D235: GDP | E235: Combustion Turbine | F235: CCCT | G235: Hydraulic | H235: Transmission | I235: Transformer | J235: Distribution | K235: No | L235: Costs | M235: Comments / Explanations | R235: Extra work Area if needed
D236: Escalation | E236: Escalation | F236: Escalation | G236: Escalation | H236: Escalation | I236: Escalation | J236: Escalation | K236: Escalation | L236: (Current $$)
B238: 0 | C238: =$AU$7 -> 2018 | L238: =D238*(VLOOKUP(C238,Index,14,FALSE))+E238*(VLOOKUP(C238,Index,16,FALSE))+F238*(VLOOKUP(C238,Index,18,FALSE))+G238*(VLOOKUP(C238,Index,20,FALSE))+ H238*(VLOOKUP(C238,Index,22,FALSE)) + I238*(VLOOKUP(C238,Index,24,FALSE)) + J238*(VLOOKUP(C238,Index,26,FALSE)) + K238 -> 0
B239: =B238+1 -> 1 | C239: =C238+1 -> 2019 | L239: 0
B240: =B239+1 -> 2 | C240: 2020 | K240: 3805500 | L240: =D240*(VLOOKUP(C240,Index,14,FALSE))+E240*(VLOOKUP(C240,Index,16,FALSE))+F240*(VLOOKUP(C240,Index,18,FALSE))+G240*(VLOOKUP(C240,Index,20,FALSE))+ H240*(VLOOKUP(C240,Index,22,FALSE)) + I240*(VLOOKUP(C240,Index,24,FALSE)) + J240*(VLOOKUP(C240,Index,26,FALSE)) + K240 -> 3805500 | M240: Installation of New HVY Transformer
B241: 3 | C241: 2021 | K241: =4166600+NBV!I8 -> 4383480.417 | L241: 4383480.417 | M241: Replace CF T32
B242: 4 | C242: 2022 | L242: 0
B243: 5 | C243: 2023 | L243: 0
B244: 6 | C244: 2024 | L244: 0
B245: 7 | C245: 2025 | L245: 0
B246: 8 | C246: 2026 | L246: 0
B247: 9 | C247: 2027 | F247: =NBV!L86*1000 -> 500000 | L247: 641929.9149 | M247: Upgrade Fuel system (HVY GT)
B248: 10 | C248: 2028 | F248: =NBV!M82*1000 -> 600000 | L248: 791984.6467 | M248: Upgrade Lube Oil System (HVY GT)
B249: 11 | C249: 2029 | F249: =NBV!N85*1000 -> 300000 | L249: 407131.4654 | M249: Upgrade Compressed Air System (HVY GT)
B250: 12 | C250: 2030 | L250: 0
B251: 13 | C251: 2031 | L251: 0
B252: 14 | C252: 2032 | F252: =NBV!Q89*1000 -> 50000 | L252: 73744.07331 | M252: Inspect/Refurbish Clutch (HVY GT)
B253: 15 | C253: 2033 | F253: =NBV!R89*1000 -> 275000 | L253: 417001.5925 | M253: Inspect/Refurbish Clutch (HVY GT)
B254: 16 | C254: 2034 | L254: 0
B255: 17 | C255: 2035 | L255: 0
B256: 18 | C256: 2036 | F256: =NBV!U91*1000 -> 3000000 | L256: 4943903.43 | M256: Replace Control System (HVY GT)
B257: 19 | C257: 2037 | F257: =NBV!V87*1000 -> 4000000 | L257: 6777298.546 | M257: Overhaul FT8 Gas Generator (HVY GT)
B258: 20 | C258: 2038 | L258: 0
B259: 21 | C259: 2039 | L259: 0
B260: 22 | C260: 2040 | L260: 0
B261: 23 | C261: 2041 | F261: =NBV!Z90*1000 -> 1100000 | L261: 2082480.373 | M261: Generator - Rotor Out Inspection (HVY GT)
B262: 24 | C262: 2042 | L262: 0
B263: 25 | C263: 2043 | L263: 0
B264: 26 | C264: 2044 | L264: 0
B265: 27 | C265: 2045 | L265: 0
B266: 28 | C266: 2046 | L266: 0
B267: 29 | C267: 2047 | F267: =NBV!AF88*1000 -> 4000000 | L267: 8944079.119 | M267: Overhaul FT8 Gas Generator (HVY GT)
B268: 30 | C268: 2048 | L268: 0
B269: 31 | C269: 2049 | L269: 0
B270: 32 | C270: 2050 | L270: 0
B271: 33 | C271: 2051 | L271: 0
B272: 34 | C272: 2052 | L272: 0
B273: 35 | C273: 2053 | L273: 0
B274: 36 | C274: 2054 | L274: 0
B275: 37 | C275: 2055 | L275: 0
B276: 38 | C276: 2056 | L276: 0
B277: 39 | C277: 2057 | L277: 0
B278: 40 | C278: 2058 | L278: 0
B279: =B278+1 -> 41 | C279: 2059 | L279: =D279*(VLOOKUP(C279,Index,14,FALSE))+E279*(VLOOKUP(C279,Index,16,FALSE))+F279*(VLOOKUP(C279,Index,18,FALSE))+G279*(VLOOKUP(C279,Index,20,FALSE))+ H279*(VLOOKUP(C279,Index,22,FALSE)) + I279*(VLOOKUP(C279,Index,24,FALSE)) + J279*(VLOOKUP(C279,Index,26,FALSE)) + K279 -> 0
B280: =B279+1 -> 42 | C280: 2060 | L280: 0
B281: =B280+1 -> 43 | C281: 2061 | L281: 0
... 143 more rows

Sheet Alt. 2
AM2: PROJECT COST / BENEFIT ANALYSIS TEMPLATE
AM3: ='Home Page'!G10 -> Expansion Study - Lab East Interconnected System
AM4: MF Interconnection
AP5: Note: Costs are shown as positive values; Benefits as negative values
AT7: Current Year | AU7: ='Home Page'!G6 -> 2018
AT8: Present Worth Year | AU8: ='Home Page'!G18 -> 2018
H9: Scratch Pad area for Annual O&M costs | AT9: Number of Years in Study | AU9: ='Home Page'!G14 -> 25
AT10: Discount Rate | AU10: ='Home Page'!G16 -> 0.059
H11: This area is used to enter O&M costs associated with the project. | AT11: Total In-service Project Cost | AU11: 20072000
H12: Columns 3,4,5,6,7 & 8 can be used to do some calculations if preferred. | AT12: In-service Year | AU12: ='Home Page'!G12 -> 2020
H13: The determined O&M costs for each year must be entered into column 9 as constant year dollar values, | AT13: Other Project Cost after In-service (if applicable)
H14: that is, the values in this year's dollars. | AT14: Other Project Year (if applicable)
H15: The entered values will be automatically escalated to current year dollar values in column 10 | AT15: Replacement Cost (if applicable) | AU15: 0
H16: that is, the costs in their respective years as shown in column 2. | AT16: Replacement Year (if applicable)
H17: NOTE: Annual O&M costs are assumed to start in the in-service year. | AT17: Project cost in Ending (E) or Beginning (B) Year $$ | AU17: B
AT18: O&M costs - Escalation based on mixture of Materials & Labour | AU18: More Material Less Labour
B20: 1 | C20: 2 | D20: 3 | E20: 4 | F20: 5 | G20: 6 | H20: 7 | I20: 8 | J20: 9 | K20: 10 | L20: 11 | N20: 12 | O20: 13
AM21: A B | AO21: C | AP21: D | AQ21: E | AR21: F | AS21: G | AT21: H | AU21: I | AV21: J | AW21: K | AX21: L
D22: Working Area Below (if required) | J22: Annual | K22: Annual | N22: User Chosen | O22: Cumulative | AO22: Annual O&M | AP22: Annual Fuel | AQ22: Annual Fuel | AR22: Other | AS22: Total | AT22: Benefit 1 | AU22: Benefit 2 | AW22: P.W. | AX22: Cumulative
B23: Year | J23: O&M costs | K23: O&M costs | L23: Comments / Explanations | N23: Annual % | O23: Change | AM23: Year | AO23: Cost | AP23: Price | AQ23: Cost | AR23: Cost | AS23: Costs | AT23: (specify) | AU23: (specify) | AV23: NET | AW23: January | AX23: Present
D24: HVY GT (Synch) | E24: Interruptible | F24: L1301 (as Backup) | G24: Additional for 6km Line | J24: (Constant $$) | K24: (Current $$) | N24: Change | O24: Factor | AO24: $ | AP24: (if applicable) | AQ24: $ | AR24: $ | AS24: $ | AT24: $ | AU24: $ | AV24: $ | AW24: =$AU$8 -> 2018 | AX24: Worth
B26: 0 | C26: =$AU$7 -> 2018 | D26: 247700 | E26: 240000 | F26: 30000 | G26: 9000 | J26: =SUM(D26:I26) -> 526700 | K26: =IF(J26 = "", "",IF($AU$18 = " User Defined",(J26*O26),J26*(VLOOKUP(C26,Index,$BC$37,FALSE)))) -> 526700 | O26: 1 | AM26: 0 | AN26: =AU7 -> 2018 | AO26: =IF(AM26="","",IF($AU$12>AN26,0,K26)) -> 0 | AQ26: =IF(AM26="","",IF($AU$12>AN26,0,J135)) -> 0 | AR26: =IF(AM26="","",IF($AU$12>AN26,0,L238)) -> 0 | AS26: =IF(AN26=$AU$12,SUM(AO26:AR26)-AP26+$AU$11,SUM(AO26:AR26)-AP26) -> 0 | AT26: =IF(AM26="","",IF($AU$12>AN26,0,-L339)) -> 0 | AU26: =IF(AM26="","",IF($AU$12>AN26,0,-L440)) -> 0 | AV26: =AS26+SUM(AT26:AU26) -> 0 | AW26: =IF(AV26=0,0,IF(AV26=SUM(AO26:AR26)+SUM(AT26:AU26),AV26/(1+$AU$10)^(AN26-$AU$8+1),IF($AU$17="E",AV26/(1+$AU$10)^(AN26-$AU$8+1),(AV26-SUM(AO26:AR26)-SUM(AT26:AU26))/(1+$AU$10)^(AN26-$AU$8)+(SUM(AO26:AR26)+SUM(AT26:AU26))/(1+$AU$10)^(AN26-$AU$8+1)))) -> 0 | AX26: =AX25+AW26 -> 0
B27: =B26+1 -> 1 | C27: =C26+1 -> 2019 | D27: 247700 | E27: 240000 | F27: 30000 | G27: 9000 | J27: 526700 | K27: 538382.4908 | O27: =1+N27/100 -> 1 | AM27: =IF(AM26="","",IF($AU$9-AM26<=0,"",AM26+1)) -> 1 | AN27: =IF(AM27="","",AN26+1) -> 2019 | AO27: 0 | AQ27: 0 | AR27: 0 | AS27: =IF(AN27=$AU$12,SUM(AO27:AR27)-AP27+$AU$11,IF(AN27=$AU$16,SUM(AO27:AR27)-AP27+$AU$15,IF(AN27=$AU$14,SUM(AO27:AR27)-AP27+$AU$13,SUM(AO27:AR27)-AP27))) -> 0 | AT27: 0 | AU27: 0 | AV27: 0 | AW27: 0 | AX27: =IF(AN27="",0,IF(AW27=0,AX26,AX26+AW27)) -> 0 | BD27: =IF(AM27=$AU$9,AX27,0) -> 0 | BF27: =IF(AM27=$AU$9,AN27,0) -> 0
B28: 2 | C28: 2020 | D28: 247700 | F28: 30000 | G28: 9000 | J28: 286700 | K28: 299555.3933 | O28: =(1+N28/100)*O27 -> 1 | AM28: 2 | AN28: 2020 | AO28: 299555.3933 | AQ28: 108975.3636 | AR28: 0 | AS28: 20480530.76 | AT28: 0 | AU28: 0 | AV28: 20480530.76 | AW28: 18241744.9 | AX28: 18241744.9 | BB28: E | BD28: 0 | BF28: 0
B29: 3 | C29: 2021 | D29: 247700 | F29: 30000 | G29: 9000 | J29: 286700 | K29: 306185.2536 | O29: 1 | AM29: 3 | AN29: 2021 | AO29: 306185.2536 | AQ29: 109437.0876 | AR29: 0 | AS29: 415622.3412 | AT29: 0 | AU29: 0 | AV29: 415622.3412 | AW29: 330457.0671 | AX29: 18572201.96 | BB29: B | BD29: 0 | BF29: 0
B30: 4 | C30: 2022 | D30: 247700 | F30: 30000 | G30: 9000 | J30: 286700 | K30: 312954.6277 | O30: 1 | AM30: 4 | AN30: 2022 | AO30: 312954.6277 | AQ30: 109744.578 | AR30: 0 | AS30: 422699.2057 | AT30: 0 | AU30: 0 | AV30: 422699.2057 | AW30: 317359.5935 | AX30: 18889561.56 | BD30: 0 | BF30: 0
B31: 5 | C31: 2023 | D31: 247700 | F31: 30000 | G31: 9000 | J31: 286700 | K31: 319873.6642 | O31: 1 | AM31: 5 | AN31: 2023 | AO31: 319873.6642 | AQ31: 110205.4605 | AR31: 0 | AS31: 430079.1247 | AT31: 0 | AU31: 0 | AV31: 430079.1247 | AW31: 304910.6561 | AX31: 19194472.21 | BB31: More Material Less Labour | BC31: 3 | BD31: 0 | BF31: 0
B32: 6 | C32: 2024 | D32: 247700 | F32: 30000 | G32: 9000 | J32: 286700 | K32: 326945.672 | O32: 1 | AM32: 6 | AN32: 2024 | AO32: 326945.672 | AQ32: 111127.4408 | AR32: 0 | AS32: 438073.1129 | AT32: 0 | AU32: 0 | AV32: 438073.1129 | AW32: 293274.8883 | AX32: 19487747.1 | BB32: Same Material Same Labour | BC32: 5 | BD32: 0 | BF32: 0
B33: 7 | C33: 2025 | D33: 247700 | F33: 30000 | G33: 9000 | J33: =SUM(D33:I33) -> 286700 | K33: 334174.0331 | O33: 1 | AM33: 7 | AN33: 2025 | AO33: 334174.0331 | AQ33: 111894.3386 | AR33: 0 | AS33: 446068.3717 | AT33: 0 | AU33: 0 | AV33: 446068.3717 | AW33: 281990.0276 | AX33: 19769737.13 | BB33: More Labour Less Material | BC33: 7 | BD33: 0 | BF33: 0
B34: 8 | C34: 2026 | D34: 247700 | F34: 30000 | G34: 9000 | J34: =SUM(D34:I34) -> 286700 | K34: 341562.2042 | O34: 1 | AM34: 8 | AN34: 2026 | AO34: 341562.2042 | AQ34: 112659.4636 | AR34: 0 | AS34: 454221.6677 | AT34: 0 | AU34: 0 | AV34: 454221.6677 | AW34: 271146.6272 | AX34: 20040883.76 | BB34: Labour Only | BC34: 9 | BD34: 0 | BF34: 0
B35: 9 | C35: 2027 | D35: 247700 | F35: 30000 | G35: 9000 | J35: 286700 | K35: 349113.7185 | O35: 1 | AM35: 9 | AN35: 2027 | AO35: 349113.7185 | AQ35: 113422.992 | AR35: 0 | AS35: 462536.7105 | AT35: 0 | AU35: 0 | AV35: 462536.7105 | AW35: 260727.3595 | AX35: 20301611.12 | BB35: Oil and Gas Operations | BC35: 11 | BD35: 0 | BF35: 0
B36: 10 | C36: 2028 | D36: 247700 | F36: 30000 | G36: 9000 | J36: 286700 | K36: 356832.1875 | O36: 1 | AM36: 10 | AN36: 2028 | AO36: 356832.1875 | AQ36: 114246.4843 | AR36: 0 | AS36: 471078.6718 | AT36: 0 | AU36: 0 | AV36: 471078.6718 | AW36: 250748.2327 | AX36: 20552359.35 | BB36: User Defined | BD36: 0 | BF36: 0
B37: 11 | C37: 2029 | D37: 247700 | F37: 30000 | G37: 9000 | J37: 286700 | K37: 364721.3021 | O37: 1 | AM37: 11 | AN37: =IF(AM37="","",AN36+1) -> 2029 | AO37: =IF(AM37="","",IF($AU$12>AN37,0,K37)) -> 364721.3021 | AQ37: 115038.8641 | AR37: 0 | AS37: =IF(AN37=$AU$12,SUM(AO37:AR37)-AP37+$AU$11,IF(AN37=$AU$16,SUM(AO37:AR37)-AP37+$AU$15,IF(AN37=$AU$14,SUM(AO37:AR37)-AP37+$AU$13,SUM(AO37:AR37)-AP37))) -> 479760.1662 | AT37: 0 | AU37: 0 | AV37: =AS37+SUM(AT37:AU37) -> 479760.1662 | AW37: =IF(AV37=0,0,IF(AV37=SUM(AO37:AR37)+SUM(AT37:AU37),AV37/(1+$AU$10)^(AN37-$AU$8+1),IF($AU$17="E",AV37/(1+$AU$10)^(AN37-$AU$8+1),(AV37-SUM(AO37:AR37)-SUM(AT37:AU37))/(1+$AU$10)^(AN37-$AU$8)+(SUM(AO37:AR37)+SUM(AT37:AU37))/(1+$AU$10)^(AN37-$AU$8+1)))) -> 241141.8925 | AX37: =IF(AN37="",0,IF(AW37=0,AX36,AX36+AW37)) -> 20793501.24 | BC37: =IF(AU18 = "","",VLOOKUP(AU18,BB31:BC36,2,FALSE)) -> 3 | BD37: 0 | BF37: 0
B38: 12 | C38: 2030 | D38: 247700 | F38: 30000 | G38: 9000 | J38: 286700 | K38: 372784.8352 | O38: 1 | AM38: 12 | AN38: 2030 | AO38: 372784.8352 | AQ38: 115780.7431 | AR38: 0 | AS38: 488565.5784 | AT38: 0 | AU38: 0 | AV38: 488565.5784 | AW38: 231886.4566 | AX38: 21025387.7 | BB38: =MAX(AM26:AM78) -> 25 | BD38: 0 | BF38: 0
B39: 13 | C39: 2031 | D39: 247700 | F39: 30000 | G39: 9000 | J39: 286700 | K39: 381026.643 | O39: 1 | AM39: 13 | AN39: 2031 | AO39: 381026.643 | AQ39: 116521.1972 | AR39: 0 | AS39: 497547.8402 | AT39: 0 | AU39: 0 | AV39: 497547.8402 | AW39: 222993.0891 | AX39: 21248380.79 | BD39: 0 | BF39: 0
B40: 14 | C40: 2032 | D40: 247700 | F40: 30000 | G40: 9000 | J40: 286700 | K40: 389450.6669 | O40: 1 | AM40: 14 | AN40: 2032 | AO40: 389450.6669 | AQ40: 117260.2478 | AR40: 0 | AS40: 506710.9147 | AT40: 0 | AU40: 0 | AV40: 506710.9147 | AW40: 214447.4358 | AX40: 21462828.22 | BB40: =IF(MAX(BD26:BD78)=0,MIN(BD26:BD78),MAX(BD26:BD78)) -> 21489568.92 | BD40: 0 | BF40: 0
B41: 15 | C41: 2033 | D41: 247700 | F41: 30000 | G41: 9000 | J41: 286700 | K41: 398060.9354 | O41: 1 | AM41: 15 | AN41: 2033 | AO41: 398060.9354 | AQ41: 117997.9161 | AR41: 0 | AS41: 516058.8516 | AT41: 0 | AU41: 0 | AV41: 516058.8516 | AW41: 206235.7118 | AX41: 21669063.93 | BD41: 0 | BF41: 0
B42: 16 | C42: 2034 | D42: 247700 | F42: 230000 | G42: 9000 | J42: 486700 | K42: 690685.4702 | O42: 1 | AM42: 16 | AN42: 2034 | AO42: 690685.4702 | AQ42: 118707.7543 | AR42: 0 | AS42: 809393.2245 | AT42: 0 | AU42: 0 | AV42: 809393.2245 | AW42: 305441.6399 | AX42: 21974505.57 | BB42: =MAX(BF26:BF78) -> 2043 | BD42: 0 | BF42: 0
B43: 17 | C43: 2035 | D43: 247700 | F43: 230000 | G43: 9000 | J43: 486700 | K43: 705955.6645 | O43: 1 | AM43: 17 | AN43: 2035 | AO43: 705955.6645 | AQ43: 119390.0967 | AR43: 0 | AS43: 825345.7613 | AT43: 0 | AU43: 0 | AV43: 825345.7613 | AW43: 294109.2227 | AX43: 22268614.8 | BD43: 0 | BF43: 0
B44: 18 | C44: 2036 | D44: 247700 | F44: 230000 | G44: 9000 | J44: 486700 | K44: 721563.4638 | O44: 1 | AM44: 18 | AN44: 2036 | AO44: 721563.4638 | AQ44: 120071.5358 | AR44: 0 | AS44: 841634.9997 | AT44: 0 | AU44: 0 | AV44: 841634.9997 | AW44: 283204.758 | AX44: 22551819.56 | BD44: 0 | BF44: 0
B45: 19 | C45: 2037 | D45: 247700 | F45: 230000 | G45: 9000 | J45: 486700 | K45: 737516.3321 | O45: 1 | AM45: 19 | AN45: 2037 | AO45: 737516.3321 | AQ45: 120752.0898 | AR45: 0 | AS45: 858268.4219 | AT45: 0 | AU45: 0 | AV45: 858268.4219 | AW45: 272711.8012 | AX45: 22824531.36 | BD45: 0 | BF45: 0
B46: 20 | C46: 2038 | D46: 247700 | F46: 30000 | G46: 9000 | J46: 286700 | K46: 444053.2942 | O46: 1 | AM46: 20 | AN46: 2038 | AO46: 444053.2942 | AQ46: 121450.4582 | AR46: 0 | AS46: 565503.7523 | AT46: 0 | AU46: 0 | AV46: 565503.7523 | AW46: 169675.9653 | AX46: 22994207.32 | BD46: 0 | BF46: 0
B47: 21 | C47: 2039 | D47: 247700 | F47: 30000 | G47: 9000 | J47: 286700 | K47: 453870.7587 | O47: 1 | AM47: 21 | AN47: 2039 | AO47: 453870.7587 | AQ47: 122148.8266 | AR47: 0 | AS47: 576019.5853 | AT47: 0 | AU47: 0 | AV47: 576019.5853 | AW47: 163202.2447 | AX47: 23157409.57 | BD47: 0 | BF47: 0
B48: 22 | C48: 2040 | D48: 247700 | F48: 30000 | G48: 9000 | J48: 286700 | K48: 463905.2751 | O48: 1 | AM48: 22 | AN48: 2040 | AO48: 463905.2751 | AQ48: 122847.1949 | AR48: 0 | AS48: 586752.4701 | AT48: 0 | AU48: 0 | AV48: 586752.4701 | AW48: 156981.2721 | AX48: 23314390.84 | BD48: 0 | BF48: 0
B49: 23 | C49: 2041 | D49: 247700 | F49: 30000 | G49: 9000 | J49: 286700 | K49: 474161.6422 | O49: 1 | AM49: 23 | AN49: 2041 | AO49: 474161.6422 | AQ49: 123545.5633 | AR49: 0 | AS49: 597707.2055 | AT49: 0 | AU49: 0 | AV49: 597707.2055 | AW49: 151002.9559 | AX49: 23465393.79 | BD49: 0 | BF49: 0
B50: 24 | C50: 2042 | D50: 247700 | F50: 30000 | G50: 9000 | J50: 286700 | K50: 484644.7648 | O50: 1 | AM50: 24 | AN50: 2042 | AO50: 484644.7648 | AQ50: 124243.9317 | AR50: 0 | AS50: 608888.6965 | AT50: 0 | AU50: 0 | AV50: 608888.6965 | AW50: 145257.615 | AX50: 23610651.41 | BD50: 0 | BF50: 0
B51: 25 | C51: 2043 | D51: 247700 | F51: 30000 | G51: 9000 | J51: 286700 | K51: 495359.6561 | O51: 1 | AM51: 25 | AN51: 2043 | AO51: 495359.6561 | AQ51: 124942.3001 | AR51: 0 | AS51: 620301.9562 | AT51: -10036000 | AU51: 0 | AV51: -9415698.044 | AW51: -2121082.494 | AX51: 21489568.92 | BD51: 21489568.92 | BF51: 2043
B52: 26 | C52: 2044 | D52: 247700 | F52: 30000 | G52: 9000 | J52: 286700 | K52: 506311.4403 | O52: 1 | AS52: 0 | AV52: 0 | AW52: 0 | AX52: 0 | BD52: 0 | BF52: 0
B53: 27 | C53: 2045 | D53: 247700 | F53: 30000 | G53: 9000 | J53: 286700 | K53: 517505.3548 | O53: 1 | AS53: 0 | AV53: 0 | AW53: 0 | AX53: 0 | BD53: 0 | BF53: 0
B54: 28 | C54: 2046 | D54: 247700 | F54: 30000 | G54: 9000 | J54: 286700 | K54: 528946.7528 | O54: 1 | AS54: 0 | AV54: 0 | AW54: 0 | AX54: 0 | BD54: 0 | BF54: 0
B55: 29 | C55: 2047 | D55: 247700 | F55: 30000 | G55: 9000 | J55: 286700 | K55: 540641.1058 | O55: 1 | AS55: 0 | AV55: 0 | AW55: 0 | AX55: 0 | BD55: 0 | BF55: 0
B56: 30 | C56: 2048 | D56: 247700 | F56: 30000 | G56: 9000 | J56: 286700 | K56: 552594.0064 | O56: 1 | AS56: 0 | AV56: 0 | AW56: 0 | AX56: 0 | BD56: 0 | BF56: 0
B57: 31 | C57: 2049 | O57: 1 | AS57: 0 | AV57: 0 | AW57: 0 | AX57: 0 | BD57: 0 | BF57: 0
B58: 32 | C58: 2050 | O58: 1 | AS58: 0 | AV58: 0 | AW58: 0 | AX58: 0 | BD58: 0 | BF58: 0
B59: 33 | C59: 2051 | O59: 1 | AS59: 0 | AV59: 0 | AW59: 0 | AX59: 0 | BD59: 0 | BF59: 0
B60: 34 | C60: 2052 | O60: 1 | AS60: 0 | AV60: 0 | AW60: 0 | AX60: 0 | BD60: 0 | BF60: 0
B61: 35 | C61: 2053 | O61: 1 | AS61: 0 | AV61: 0 | AW61: 0 | AX61: 0 | BD61: 0 | BF61: 0
B62: 36 | C62: 2054 | O62: 1 | AS62: 0 | AV62: 0 | AW62: 0 | AX62: 0 | BD62: 0 | BF62: 0
B63: 37 | C63: 2055 | O63: 1 | AS63: 0 | AV63: 0 | AW63: 0 | AX63: 0 | BD63: 0 | BF63: 0
B64: 38 | C64: 2056 | O64: 1 | AS64: 0 | AV64: 0 | AW64: 0 | AX64: 0 | BD64: 0 | BF64: 0
B65: 39 | C65: 2057 | O65: 1 | AS65: 0 | AV65: 0 | AW65: 0 | AX65: 0 | BD65: 0 | BF65: 0
B66: 40 | C66: 2058 | O66: 1 | AS66: 0 | AV66: 0 | AW66: 0 | AX66: 0 | BD66: 0 | BF66: 0
B67: 41 | C67: 2059 | K67: =IF(J67 = "", "",IF($AU$18 = " User Defined",(J67*O67),J67*(VLOOKUP(C67,Index,$BC$37,FALSE)))) ->  | O67: =(1+N67/100)*O66 -> 1 | AN67: =IF(AM67="","",AN66+1) ->  | AO67: =IF(AM67="","",IF($AU$12>AN67,0,K67)) ->  | AQ67: =IF(AM67="","",IF($AU$12>AN67,0,J176)) ->  | AR67: =IF(AM67="","",IF($AU$12>AN67,0,L279)) ->  | AS67: =IF(AN67=$AU$12,SUM(AO67:AR67)-AP67+$AU$11,IF(AN67=$AU$16,SUM(AO67:AR67)-AP67+$AU$15,IF(AN67=$AU$14,SUM(AO67:AR67)-AP67+$AU$13,SUM(AO67:AR67)-AP67))) -> 0 | AT67: =IF(AM67="","",IF($AU$12>AN67,0,-L380)) ->  | AU67: =IF(AM67="","",IF($AU$12>AN67,0,-L481)) ->  | AV67: =AS67+SUM(AT67:AU67) -> 0 | AW67: =IF(AV67=0,0,IF(AV67=SUM(AO67:AR67)+SUM(AT67:AU67),AV67/(1+$AU$10)^(AN67-$AU$8+1),IF($AU$17="E",AV67/(1+$AU$10)^(AN67-$AU$8+1),(AV67-SUM(AO67:AR67)-SUM(AT67:AU67))/(1+$AU$10)^(AN67-$AU$8)+(SUM(AO67:AR67)+SUM(AT67:AU67))/(1+$AU$10)^(AN67-$AU$8+1)))) -> 0 | AX67: =IF(AN67="",0,IF(AW67=0,AX66,AX66+AW67)) -> 0 | BD67: 0
B68: 42 | C68: 2060 | O68: 1 | AS68: 0 | AV68: 0 | AW68: 0 | AX68: 0 | BD68: 0
B69: 43 | C69: 2061 | O69: 1 | AS69: 0 | AV69: 0 | AW69: 0 | AX69: 0 | BD69: 0
B70: 44 | C70: 2062 | O70: 1 | AS70: 0 | AV70: 0 | AW70: 0 | AX70: 0 | BD70: 0
B71: 45 | C71: 2063 | O71: 1 | AS71: 0 | AV71: 0 | AW71: 0 | AX71: 0 | BD71: 0
B72: 46 | C72: 2064 | O72: 1 | AS72: 0 | AV72: 0 | AW72: 0 | AX72: 0 | BD72: 0
B73: 47 | C73: 2065 | O73: 1 | AS73: 0 | AV73: 0 | AW73: 0 | AX73: 0 | BD73: 0
B74: 48 | C74: 2066 | O74: 1 | AS74: 0 | AV74: 0 | AW74: 0 | AX74: 0 | BD74: 0
B75: 49 | C75: 2067 | O75: 1 | AS75: 0 | AV75: 0 | AW75: 0 | AX75: 0 | BD75: 0
B76: 50 | C76: 2068 | O76: 1 | AS76: 0 | AV76: 0 | AW76: 0 | AX76: 0 | BD76: 0
AM78: Assumptions & Notes:
AW79: 2017-01-16T14:04:40 | AX79: 2017-01-16T14:04:40
AV88: Date Revised
AV89: Date Printed | AW89: 2014-03-07T15:35:47 | AX89: 41705.64985
G119: Scratch Pad area for Annual Fuel costs
G120: This area is used to enter Fuel costs associated with the project. NOTE: Fuel Prices are to be entered in Column D in Main Table
G121: Market Analysis section of System Planning prepares various fuel price forecasts for numerous delivery points.
G122: Please reference the appropriate forecast and enter the values in Column D in Main Table.
G123: Columns 3 below picks up the fuel prices from the main table. Columns 4,5,6,7 & 8 can be used to do some calculations if preferred.
G124: Necessary calculations can be performed to determine each current year dollar value of the annual fuel costs.
G125: The respective annual costs are to be entered in column 9.
G126: NOTE: Annual Fuel costs (if applicable) may start in the in-service year .
B129: 1 | C129: 2 | D129: 3 | E129: 4 | F129: 5 | G129: 6 | H129: 7 | I129: 8 | J129: 9 | K129: 10
D131: Annual | E131: Working Area Below (if required) | J131: Annual
B132: Year | D132: Fuel price | I132: 315kV | J132: Fuel costs | K132: Comments / Explanations
D133: =AP24 -> (if applicable) | I133: LOSSES | J133: (Current $$)
B135: 0 | C135: =$AU$7 -> 2018 | D135: =AP26 -> 0 | I135: =Losses!E4*Losses!$G$7 -> 106189.6913 | J135: =E135*F135+G135*H135+I135 -> 106189.6913
B136: =B135+1 -> 1 | C136: =C135+1 -> 2019 | D136: 0 | I136: =Losses!E5*Losses!$G$7 -> 108667.5198 | J136: =E136*F136+G136*H136+I136 -> 108667.5198
B137: 2 | C137: 2020 | D137: 0 | I137: =Losses!E6*Losses!$G$7 -> 108975.3636 | J137: 108975.3636
B138: 3 | C138: 2021 | D138: 0 | I138: =Losses!E7*Losses!$G$7 -> 109437.0876 | J138: 109437.0876
B139: 4 | C139: 2022 | D139: 0 | I139: =Losses!E8*Losses!$G$7 -> 109744.578 | J139: 109744.578
B140: 5 | C140: 2023 | D140: 0 | I140: =Losses!E9*Losses!$G$7 -> 110205.4605 | J140: 110205.4605
B141: 6 | C141: 2024 | D141: 0 | I141: =Losses!E10*Losses!$G$7 -> 111127.4408 | J141: 111127.4408
B142: 7 | C142: 2025 | D142: 0 | I142: =Losses!E11*Losses!$G$7 -> 111894.3386 | J142: 111894.3386
B143: 8 | C143: 2026 | D143: 0 | I143: =Losses!E12*Losses!$G$7 -> 112659.4636 | J143: 112659.4636
B144: 9 | C144: 2027 | D144: 0 | I144: =Losses!E13*Losses!$G$7 -> 113422.992 | J144: 113422.992
B145: 10 | C145: 2028 | D145: 0 | I145: =Losses!E14*Losses!$G$7 -> 114246.4843 | J145: 114246.4843
B146: 11 | C146: 2029 | D146: 0 | I146: =Losses!E15*Losses!$G$7 -> 115038.8641 | J146: 115038.8641
B147: 12 | C147: 2030 | D147: 0 | I147: =Losses!E16*Losses!$G$7 -> 115780.7431 | J147: 115780.7431
B148: 13 | C148: 2031 | D148: 0 | I148: =Losses!E17*Losses!$G$7 -> 116521.1972 | J148: 116521.1972
B149: 14 | C149: 2032 | D149: 0 | I149: =Losses!E18*Losses!$G$7 -> 117260.2478 | J149: 117260.2478
B150: 15 | C150: 2033 | D150: 0 | I150: =Losses!E19*Losses!$G$7 -> 117997.9161 | J150: 117997.9161
B151: 16 | C151: 2034 | D151: 0 | I151: =Losses!E20*Losses!$G$7 -> 118707.7543 | J151: 118707.7543
B152: 17 | C152: 2035 | D152: 0 | I152: =Losses!E21*Losses!$G$7 -> 119390.0967 | J152: 119390.0967
B153: 18 | C153: 2036 | D153: 0 | I153: =Losses!E22*Losses!$G$7 -> 120071.5358 | J153: 120071.5358
B154: 19 | C154: 2037 | D154: 0 | I154: =Losses!E23*Losses!$G$7 -> 120752.0898 | J154: 120752.0898
B155: 20 | C155: 2038 | D155: 0 | I155: =Losses!E24*Losses!$G$7 -> 121450.4582 | J155: 121450.4582
B156: 21 | C156: 2039 | D156: 0 | I156: =Losses!E25*Losses!$G$7 -> 122148.8266 | J156: 122148.8266
B157: 22 | C157: 2040 | D157: 0 | I157: =Losses!E26*Losses!$G$7 -> 122847.1949 | J157: 122847.1949
B158: 23 | C158: 2041 | D158: 0 | I158: =Losses!E27*Losses!$G$7 -> 123545.5633 | J158: 123545.5633
B159: 24 | C159: 2042 | D159: 0 | I159: =Losses!E28*Losses!$G$7 -> 124243.9317 | J159: 124243.9317
B160: 25 | C160: 2043 | D160: 0 | I160: =Losses!E29*Losses!$G$7 -> 124942.3001 | J160: 124942.3001
B161: 26 | C161: 2044 | D161: 0 | I161: =Losses!E30*Losses!$G$7 -> 125640.6685 | J161: 125640.6685
B162: 27 | C162: 2045 | D162: 0 | I162: =Losses!E31*Losses!$G$7 -> 126339.0369 | J162: 126339.0369
B163: 28 | C163: 2046 | D163: 0 | I163: =Losses!E32*Losses!$G$7 -> 127037.4053 | J163: 127037.4053
B164: 29 | C164: 2047 | D164: 0 | I164: =Losses!E33*Losses!$G$7 -> 127735.7737 | J164: 127735.7737
B165: 30 | C165: 2048 | D165: 0 | I165: =Losses!E34*Losses!$G$7 -> 128434.1421 | J165: 128434.1421
B166: 31 | C166: 2049 | D166: 0
B167: 32 | C167: 2050 | D167: 0
B168: 33 | C168: 2051 | D168: 0
B169: 34 | C169: 2052 | D169: 0
B170: 35 | C170: 2053 | D170: 0
B171: 36 | C171: 2054 | D171: 0
B172: 37 | C172: 2055 | D172: 0
B173: 38 | C173: 2056 | D173: 0
B174: 39 | C174: 2057 | D174: 0
B175: 40 | C175: 2058 | D175: 0
B176: 41 | C176: 2059 | D176: =AP67 -> 0
B177: 42 | C177: 2060 | D177: 0
B178: 43 | C178: 2061 | D178: 0
B179: 44 | C179: 2062 | D179: 0
B180: 45 | C180: 2063 | D180: 0
B181: 46 | C181: 2064 | D181: 0
B182: 47 | C182: 2065 | D182: 0
B183: 48 | C183: 2066 | D183: 0
B184: 49 | C184: 2067 | D184: 0
B185: 50 | C185: 2068 | D185: 0
G218: Scratch Pad area for Other costs
G219: This area is used to enter Other costs associated with the project.
G220: Use Column 3 below if GDP Price Deflator indices are required.
G221: Use Column 4 below if Combustion Turbine indices are required.
G222: Use Column 5 below if Combined Cycle Combustion Turbine indices are required.
G223: Use Column 6 below if Hydraulic indices are required.
G224: Use Column 7 below if Transmission indices are required.
G225: Use Column 8 below if Transformer indices are required.
G226: Use Column 9 below if Distribution indices are required.
G227: Use Column 10 below if No Escalation is required.
G228: Benefits must be entered as constant year dollars, that is, the values in this year's dollars.
G229: The entered values will be automatically escalated to current year dollar values in Column 11,
G230: that is, the costs in their respective years as shown in column 2.
B232: 1 | C232: 2 | D232: 3 | E232: 4 | F232: 5 | G232: 6 | H232: 7 | I232: 8 | J232: 9 | K232: 10 | L232: 11 | M232: 12
D234: For | E234: For | F234: For | G234: For | H234: For | I234: For | J234: For | K234: With | L234: Other
B235: Year | D235: GDP | E235: Combustion Turbine | F235: CCCT | G235: Hydraulic | H235: Transmission | I235: Transformer | J235: Distribution | K235: No | L235: Costs | M235: Comments / Explanations | R235: Extra work Area if needed
D236: Escalation | E236: Escalation | F236: Escalation | G236: Escalation | H236: Escalation | I236: Escalation | J236: Escalation | K236: Escalation | L236: (Current $$)
B238: 0 | C238: =$AU$7 -> 2018 | L238: =D238*(VLOOKUP(C238,Index,14,FALSE))+E238*(VLOOKUP(C238,Index,16,FALSE))+F238*(VLOOKUP(C238,Index,18,FALSE))+G238*(VLOOKUP(C238,Index,20,FALSE))+ H238*(VLOOKUP(C238,Index,22,FALSE)) + I238*(VLOOKUP(C238,Index,24,FALSE)) + J238*(VLOOKUP(C238,Index,26,FALSE)) + K238 -> 0
B239: =B238+1 -> 1 | C239: =C238+1 -> 2019 | L239: 0
B240: 2 | C240: 2020 | L240: 0
B241: 3 | C241: 2021 | L241: 0
B242: 4 | C242: 2022 | L242: 0
B243: 5 | C243: 2023 | L243: 0
B244: 6 | C244: 2024 | L244: 0
B245: 7 | C245: 2025 | L245: 0
B246: 8 | C246: 2026 | L246: 0
B247: 9 | C247: 2027 | L247: 0
B248: 10 | C248: 2028 | L248: 0
B249: 11 | C249: 2029 | L249: 0
B250: 12 | C250: 2030 | L250: 0
B251: 13 | C251: 2031 | L251: 0
B252: 14 | C252: 2032 | L252: 0
B253: 15 | C253: 2033 | L253: 0
B254: 16 | C254: 2034 | L254: 0
B255: 17 | C255: 2035 | L255: 0
B256: 18 | C256: 2036 | L256: 0
B257: 19 | C257: 2037 | L257: 0
B258: 20 | C258: 2038 | L258: 0
B259: 21 | C259: 2039 | L259: 0
B260: 22 | C260: 2040 | L260: 0
B261: 23 | C261: 2041 | L261: 0
B262: 24 | C262: 2042 | L262: 0
B263: 25 | C263: 2043 | L263: 0
B264: 26 | C264: 2044 | L264: 0
B265: 27 | C265: 2045 | L265: 0
B266: 28 | C266: 2046 | L266: 0
B267: 29 | C267: 2047 | L267: 0
B268: 30 | C268: 2048 | L268: 0
B269: 31 | C269: 2049 | L269: 0
B270: 32 | C270: 2050 | L270: 0
B271: 33 | C271: 2051 | L271: 0
B272: 34 | C272: 2052 | L272: 0
B273: 35 | C273: 2053 | L273: 0
B274: 36 | C274: 2054 | L274: 0
B275: 37 | C275: 2055 | L275: 0
B276: 38 | C276: 2056 | L276: 0
B277: 39 | C277: 2057 | L277: 0
B278: 40 | C278: 2058 | L278: 0
B279: 41 | C279: 2059 | L279: =D279*(VLOOKUP(C279,Index,14,FALSE))+E279*(VLOOKUP(C279,Index,16,FALSE))+F279*(VLOOKUP(C279,Index,18,FALSE))+G279*(VLOOKUP(C279,Index,20,FALSE))+ H279*(VLOOKUP(C279,Index,22,FALSE)) + I279*(VLOOKUP(C279,Index,24,FALSE)) + J279*(VLOOKUP(C279,Index,26,FALSE)) + K279 -> 0
B280: 42 | C280: 2060 | L280: 0
B281: 43 | C281: 2061 | L281: 0
... 143 more rows

Sheet Alt. 3
AM2: PROJECT COST / BENEFIT ANALYSIS TEMPLATE
AM3: ='Home Page'!G10 -> Expansion Study - Lab East Interconnected System
AP5: Note: Costs are shown as positive values; Benefits as negative values
AT7: Current Year | AU7: ='Home Page'!G6 -> 2018
AT8: Present Worth Year | AU8: ='Home Page'!G18 -> 2018
H9: Scratch Pad area for Annual O&M costs | AT9: Number of Years in Study | AU9: ='Home Page'!G14 -> 25
AT10: Discount Rate | AU10: ='Home Page'!G16 -> 0.059
H11: This area is used to enter O&M costs associated with the project. | AT11: Total In-service Project Cost
H12: Columns 3,4,5,6,7 & 8 can be used to do some calculations if preferred. | AT12: In-service Year | AU12: ='Home Page'!G12 -> 2020
H13: The determined O&M costs for each year must be entered into column 9 as constant year dollar values, | AT13: Other Project Cost after In-service (if applicable)
H14: that is, the values in this year's dollars. | AT14: Other Project Year (if applicable)
H15: The entered values will be automatically escalated to current year dollar values in column 10 | AT15: Replacement Cost (if applicable) | AU15: 0
H16: that is, the costs in their respective years as shown in column 2. | AT16: Replacement Year (if applicable)
H17: NOTE: Annual O&M costs are assumed to start in the in-service year. | AT17: Project cost in Ending (E) or Beginning (B) Year $$ | AU17: E
AT18: O&M costs - Escalation based on mixture of Materials & Labour | AU18: More Labour Less Material
B20: 1 | C20: 2 | D20: 3 | E20: 4 | F20: 5 | G20: 6 | H20: 7 | I20: 8 | J20: 9 | K20: 10 | L20: 11 | N20: 12 | O20: 13
AM21: A B | AO21: C | AP21: D | AQ21: E | AR21: F | AS21: G | AT21: H | AU21: I | AV21: J | AW21: K | AX21: L
D22: Working Area Below (if required) | J22: Annual | K22: Annual | N22: User Chosen | O22: Cumulative | AO22: Annual O&M | AP22: Annual Fuel | AQ22: Annual Fuel | AR22: Other | AS22: Total | AT22: Benefit 1 | AU22: Benefit 2 | AW22: P.W. | AX22: Cumulative
B23: Year | J23: O&M costs | K23: O&M costs | L23: Comments / Explanations | N23: Annual % | O23: Change | AM23: Year | AO23: Cost | AP23: Price | AQ23: Cost | AR23: Cost | AS23: Costs | AT23: (specify) | AU23: (specify) | AV23: NET | AW23: January | AX23: Present
J24: (Constant $$) | K24: (Current $$) | N24: Change | O24: Factor | AO24: $ | AP24: (if applicable) | AQ24: $ | AR24: $ | AS24: $ | AT24: $ | AU24: $ | AV24: $ | AW24: =$AU$8 -> 2018 | AX24: Worth
B26: 0 | C26: =$AU$7 -> 2018 | J26: =SUM(D26:I26) -> 0 | K26: =IF(J26 = "", "",IF($AU$18 = " User Defined",(J26*O26),J26*(VLOOKUP(C26,Index,$BC$37,FALSE)))) -> 0 | O26: 1 | AM26: 0 | AN26: =AU7 -> 2018 | AO26: =IF(AM26="","",IF($AU$12>AN26,0,K26)) -> 0 | AQ26: =IF(AM26="","",IF($AU$12>AN26,0,J135)) -> 0 | AR26: =IF(AM26="","",IF($AU$12>AN26,0,L238)) -> 0 | AS26: =IF(AN26=$AU$12,SUM(AO26:AR26)-AP26+$AU$11,SUM(AO26:AR26)-AP26) -> 0 | AT26: =IF(AM26="","",IF($AU$12>AN26,0,-L339)) -> 0 | AU26: =IF(AM26="","",IF($AU$12>AN26,0,-L440)) -> 0 | AV26: =AS26+SUM(AT26:AU26) -> 0 | AW26: =IF(AV26=0,0,IF(AV26=SUM(AO26:AR26)+SUM(AT26:AU26),AV26/(1+$AU$10)^(AN26-$AU$8+1),IF($AU$17="E",AV26/(1+$AU$10)^(AN26-$AU$8+1),(AV26-SUM(AO26:AR26)-SUM(AT26:AU26))/(1+$AU$10)^(AN26-$AU$8)+(SUM(AO26:AR26)+SUM(AT26:AU26))/(1+$AU$10)^(AN26-$AU$8+1)))) -> 0 | AX26: =AX25+AW26 -> 0
B27: =B26+1 -> 1 | C27: =C26+1 -> 2019 | J27: =SUM(D27:I27) -> 0 | K27: 0 | O27: =1+N27/100 -> 1 | AM27: =IF(AM26="","",IF($AU$9-AM26<=0,"",AM26+1)) -> 1 | AN27: =IF(AM27="","",AN26+1) -> 2019 | AO27: 0 | AQ27: 0 | AR27: 0 | AS27: =IF(AN27=$AU$12,SUM(AO27:AR27)-AP27+$AU$11,IF(AN27=$AU$16,SUM(AO27:AR27)-AP27+$AU$15,IF(AN27=$AU$14,SUM(AO27:AR27)-AP27+$AU$13,SUM(AO27:AR27)-AP27))) -> 0 | AT27: 0 | AU27: 0 | AV27: 0 | AW27: 0 | AX27: =IF(AN27="",0,IF(AW27=0,AX26,AX26+AW27)) -> 0 | BD27: =IF(AM27=$AU$9,AX27,0) -> 0 | BF27: =IF(AM27=$AU$9,AN27,0) -> 0
B28: 2 | C28: 2020 | J28: 0 | K28: 0 | O28: =(1+N28/100)*O27 -> 1 | AM28: 2 | AN28: 2020 | AO28: 0 | AQ28: 0 | AR28: 0 | AS28: 0 | AT28: 0 | AU28: 0 | AV28: 0 | AW28: 0 | AX28: 0 | BB28: E | BD28: 0 | BF28: 0
B29: 3 | C29: 2021 | J29: 0 | K29: 0 | O29: 1 | AM29: 3 | AN29: 2021 | AO29: 0 | AQ29: 0 | AR29: 0 | AS29: 0 | AT29: 0 | AU29: 0 | AV29: 0 | AW29: 0 | AX29: 0 | BB29: B | BD29: 0 | BF29: 0
B30: 4 | C30: 2022 | J30: 0 | K30: 0 | O30: 1 | AM30: 4 | AN30: 2022 | AO30: 0 | AQ30: 0 | AR30: 0 | AS30: 0 | AT30: 0 | AU30: 0 | AV30: 0 | AW30: 0 | AX30: 0 | BD30: 0 | BF30: 0
B31: 5 | C31: 2023 | J31: 0 | K31: 0 | O31: 1 | AM31: 5 | AN31: 2023 | AO31: 0 | AQ31: 0 | AR31: 0 | AS31: 0 | AT31: 0 | AU31: 0 | AV31: 0 | AW31: 0 | AX31: 0 | BB31: More Material Less Labour | BC31: 3 | BD31: 0 | BF31: 0
B32: 6 | C32: 2024 | J32: 0 | K32: 0 | O32: 1 | AM32: 6 | AN32: 2024 | AO32: 0 | AQ32: 0 | AR32: 0 | AS32: 0 | AT32: 0 | AU32: 0 | AV32: 0 | AW32: 0 | AX32: 0 | BB32: Same Material Same Labour | BC32: 5 | BD32: 0 | BF32: 0
B33: 7 | C33: 2025 | J33: 0 | K33: 0 | O33: 1 | AM33: 7 | AN33: 2025 | AO33: 0 | AQ33: 0 | AR33: 0 | AS33: 0 | AT33: 0 | AU33: 0 | AV33: 0 | AW33: 0 | AX33: 0 | BB33: More Labour Less Material | BC33: 7 | BD33: 0 | BF33: 0
B34: 8 | C34: 2026 | J34: 0 | K34: 0 | O34: 1 | AM34: 8 | AN34: 2026 | AO34: 0 | AQ34: 0 | AR34: 0 | AS34: 0 | AT34: 0 | AU34: 0 | AV34: 0 | AW34: 0 | AX34: 0 | BB34: Labour Only | BC34: 9 | BD34: 0 | BF34: 0
B35: 9 | C35: 2027 | J35: 0 | K35: 0 | O35: 1 | AM35: 9 | AN35: 2027 | AO35: 0 | AQ35: 0 | AR35: 0 | AS35: 0 | AT35: 0 | AU35: 0 | AV35: 0 | AW35: 0 | AX35: 0 | BB35: Oil and Gas Operations | BC35: 11 | BD35: 0 | BF35: 0
B36: 10 | C36: 2028 | J36: 0 | K36: 0 | O36: 1 | AM36: 10 | AN36: 2028 | AO36: 0 | AQ36: 0 | AR36: 0 | AS36: 0 | AT36: 0 | AU36: 0 | AV36: 0 | AW36: 0 | AX36: 0 | BB36: User Defined | BD36: 0 | BF36: 0
B37: 11 | C37: 2029 | J37: 0 | K37: 0 | O37: 1 | AM37: 11 | AN37: 2029 | AO37: 0 | AQ37: 0 | AR37: 0 | AS37: 0 | AT37: 0 | AU37: 0 | AV37: 0 | AW37: 0 | AX37: 0 | BC37: =IF(AU18 = "","",VLOOKUP(AU18,BB31:BC36,2,FALSE)) -> 7 | BD37: 0 | BF37: 0
B38: 12 | C38: 2030 | J38: 0 | K38: 0 | O38: 1 | AM38: 12 | AN38: 2030 | AO38: 0 | AQ38: 0 | AR38: 0 | AS38: 0 | AT38: 0 | AU38: 0 | AV38: 0 | AW38: 0 | AX38: 0 | BB38: =MAX(AM26:AM78) -> 25 | BD38: 0 | BF38: 0
B39: 13 | C39: 2031 | J39: 0 | K39: 0 | O39: 1 | AM39: 13 | AN39: 2031 | AO39: 0 | AQ39: 0 | AR39: 0 | AS39: 0 | AT39: 0 | AU39: 0 | AV39: 0 | AW39: 0 | AX39: 0 | BD39: 0 | BF39: 0
B40: 14 | C40: 2032 | J40: 0 | K40: 0 | O40: 1 | AM40: 14 | AN40: 2032 | AO40: 0 | AQ40: 0 | AR40: 0 | AS40: 0 | AT40: 0 | AU40: 0 | AV40: 0 | AW40: 0 | AX40: 0 | BB40: =IF(MAX(BD26:BD78)=0,MIN(BD26:BD78),MAX(BD26:BD78)) -> 0 | BD40: 0 | BF40: 0
B41: 15 | C41: 2033 | J41: 0 | K41: 0 | O41: 1 | AM41: 15 | AN41: 2033 | AO41: 0 | AQ41: 0 | AR41: 0 | AS41: 0 | AT41: 0 | AU41: 0 | AV41: 0 | AW41: 0 | AX41: 0 | BD41: 0 | BF41: 0
B42: 16 | C42: 2034 | J42: 0 | K42: 0 | O42: 1 | AM42: 16 | AN42: 2034 | AO42: 0 | AQ42: 0 | AR42: 0 | AS42: 0 | AT42: 0 | AU42: 0 | AV42: 0 | AW42: 0 | AX42: 0 | BB42: =MAX(BF26:BF78) -> 2043 | BD42: 0 | BF42: 0
B43: 17 | C43: 2035 | J43: 0 | K43: 0 | O43: 1 | AM43: 17 | AN43: 2035 | AO43: 0 | AQ43: 0 | AR43: 0 | AS43: 0 | AT43: 0 | AU43: 0 | AV43: 0 | AW43: 0 | AX43: 0 | BD43: 0 | BF43: 0
B44: 18 | C44: 2036 | J44: 0 | K44: 0 | O44: 1 | AM44: 18 | AN44: 2036 | AO44: 0 | AQ44: 0 | AR44: 0 | AS44: 0 | AT44: 0 | AU44: 0 | AV44: 0 | AW44: 0 | AX44: 0 | BD44: 0 | BF44: 0
B45: 19 | C45: 2037 | J45: 0 | K45: 0 | O45: 1 | AM45: 19 | AN45: 2037 | AO45: 0 | AQ45: 0 | AR45: 0 | AS45: 0 | AT45: 0 | AU45: 0 | AV45: 0 | AW45: 0 | AX45: 0 | BD45: 0 | BF45: 0
B46: 20 | C46: 2038 | J46: 0 | K46: 0 | O46: 1 | AM46: 20 | AN46: 2038 | AO46: 0 | AQ46: 0 | AR46: 0 | AS46: 0 | AT46: 0 | AU46: 0 | AV46: 0 | AW46: 0 | AX46: 0 | BD46: 0 | BF46: 0
B47: 21 | C47: 2039 | J47: 0 | K47: 0 | O47: 1 | AM47: 21 | AN47: 2039 | AO47: 0 | AQ47: 0 | AR47: 0 | AS47: 0 | AT47: 0 | AU47: 0 | AV47: 0 | AW47: 0 | AX47: 0 | BD47: 0 | BF47: 0
B48: 22 | C48: 2040 | J48: 0 | K48: 0 | O48: 1 | AM48: 22 | AN48: 2040 | AO48: 0 | AQ48: 0 | AR48: 0 | AS48: 0 | AT48: 0 | AU48: 0 | AV48: =AS48+SUM(AT48:AU48) -> 0 | AW48: =IF(AV48=0,0,IF(AV48=SUM(AO48:AR48)+SUM(AT48:AU48),AV48/(1+$AU$10)^(AN48-$AU$8+1),IF($AU$17="E",AV48/(1+$AU$10)^(AN48-$AU$8+1),(AV48-SUM(AO48:AR48)-SUM(AT48:AU48))/(1+$AU$10)^(AN48-$AU$8)+(SUM(AO48:AR48)+SUM(AT48:AU48))/(1+$AU$10)^(AN48-$AU$8+1)))) -> 0 | AX48: =IF(AN48="",0,IF(AW48=0,AX47,AX47+AW48)) -> 0 | BD48: 0 | BF48: 0
B49: 23 | C49: 2041 | J49: 0 | K49: 0 | O49: 1 | AM49: 23 | AN49: 2041 | AO49: 0 | AQ49: 0 | AR49: 0 | AS49: 0 | AT49: 0 | AU49: 0 | AV49: 0 | AW49: 0 | AX49: 0 | BD49: 0 | BF49: 0
B50: 24 | C50: 2042 | J50: 0 | K50: 0 | O50: 1 | AM50: 24 | AN50: 2042 | AO50: 0 | AQ50: 0 | AR50: 0 | AS50: 0 | AT50: 0 | AU50: 0 | AV50: 0 | AW50: 0 | AX50: 0 | BD50: 0 | BF50: 0
B51: 25 | C51: 2043 | J51: 0 | K51: 0 | O51: 1 | AM51: 25 | AN51: 2043 | AO51: 0 | AQ51: 0 | AR51: 0 | AS51: 0 | AT51: 0 | AU51: 0 | AV51: 0 | AW51: 0 | AX51: 0 | BD51: 0 | BF51: 2043
B52: 26 | C52: 2044 | J52: 0 | K52: 0 | O52: 1 | AS52: 0 | AV52: 0 | AW52: 0 | AX52: 0 | BD52: 0 | BF52: 0
B53: 27 | C53: 2045 | J53: 0 | K53: 0 | O53: 1 | AS53: 0 | AV53: 0 | AW53: 0 | AX53: 0 | BD53: 0 | BF53: 0
B54: 28 | C54: 2046 | J54: 0 | K54: 0 | O54: 1 | AS54: 0 | AV54: 0 | AW54: 0 | AX54: 0 | BD54: 0 | BF54: 0
B55: 29 | C55: 2047 | J55: 0 | K55: 0 | O55: 1 | AS55: 0 | AV55: 0 | AW55: 0 | AX55: 0 | BD55: 0 | BF55: 0
B56: 30 | C56: 2048 | J56: 0 | K56: 0 | O56: 1 | AS56: 0 | AV56: 0 | AW56: 0 | AX56: 0 | BD56: 0 | BF56: 0
B57: 31 | C57: 2049 | O57: 1 | AS57: 0 | AV57: 0 | AW57: 0 | AX57: 0 | BD57: 0 | BF57: 0
B58: 32 | C58: 2050 | O58: 1 | AS58: 0 | AV58: 0 | AW58: 0 | AX58: 0 | BD58: 0 | BF58: 0
B59: 33 | C59: 2051 | O59: 1 | AN59: =IF(AM59="","",AN58+1) ->  | AO59: =IF(AM59="","",IF($AU$12>AN59,0,K59)) ->  | AS59: 0 | AV59: 0 | AW59: 0 | AX59: 0 | BD59: 0 | BF59: 0
B60: 34 | C60: 2052 | O60: 1 | AS60: 0 | AV60: 0 | AW60: 0 | AX60: 0 | BD60: 0 | BF60: 0
B61: 35 | C61: 2053 | O61: 1 | AS61: 0 | AV61: 0 | AW61: 0 | AX61: 0 | BD61: 0 | BF61: 0
B62: 36 | C62: 2054 | O62: 1 | AS62: 0 | AV62: 0 | AW62: 0 | AX62: 0 | BD62: 0 | BF62: 0
B63: 37 | C63: 2055 | O63: 1 | AS63: 0 | AV63: 0 | AW63: 0 | AX63: 0 | BD63: 0 | BF63: 0
B64: 38 | C64: 2056 | O64: 1 | AS64: 0 | AV64: 0 | AW64: 0 | AX64: 0 | BD64: 0 | BF64: 0
B65: 39 | C65: 2057 | O65: 1 | AS65: 0 | AV65: 0 | AW65: 0 | AX65: 0 | BD65: 0 | BF65: 0
B66: 40 | C66: 2058 | O66: 1 | AS66: 0 | AV66: 0 | AW66: 0 | AX66: 0 | BD66: 0 | BF66: 0
B67: 41 | C67: 2059 | K67: =IF(J67 = "", "",IF($AU$18 = " User Defined",(J67*O67),J67*(VLOOKUP(C67,Index,$BC$37,FALSE)))) ->  | O67: =(1+N67/100)*O66 -> 1 | AN67: =IF(AM67="","",AN66+1) ->  | AO67: =IF(AM67="","",IF($AU$12>AN67,0,K67)) ->  | AQ67: =IF(AM67="","",IF($AU$12>AN67,0,J176)) ->  | AR67: =IF(AM67="","",IF($AU$12>AN67,0,L279)) ->  | AS67: =IF(AN67=$AU$12,SUM(AO67:AR67)-AP67+$AU$11,IF(AN67=$AU$16,SUM(AO67:AR67)-AP67+$AU$15,IF(AN67=$AU$14,SUM(AO67:AR67)-AP67+$AU$13,SUM(AO67:AR67)-AP67))) -> 0 | AT67: =IF(AM67="","",IF($AU$12>AN67,0,-L380)) ->  | AU67: =IF(AM67="","",IF($AU$12>AN67,0,-L481)) ->  | AV67: =AS67+SUM(AT67:AU67) -> 0 | AW67: =IF(AV67=0,0,IF(AV67=SUM(AO67:AR67)+SUM(AT67:AU67),AV67/(1+$AU$10)^(AN67-$AU$8+1),IF($AU$17="E",AV67/(1+$AU$10)^(AN67-$AU$8+1),(AV67-SUM(AO67:AR67)-SUM(AT67:AU67))/(1+$AU$10)^(AN67-$AU$8)+(SUM(AO67:AR67)+SUM(AT67:AU67))/(1+$AU$10)^(AN67-$AU$8+1)))) -> 0 | AX67: =IF(AN67="",0,IF(AW67=0,AX66,AX66+AW67)) -> 0 | BD67: 0
B68: 42 | C68: 2060 | O68: 1 | AS68: 0 | AV68: 0 | AW68: 0 | AX68: 0 | BD68: 0
B69: 43 | C69: 2061 | O69: 1 | AS69: 0 | AV69: 0 | AW69: 0 | AX69: 0 | BD69: 0
B70: 44 | C70: 2062 | O70: 1 | AS70: 0 | AV70: 0 | AW70: 0 | AX70: 0 | BD70: 0
B71: 45 | C71: 2063 | O71: 1 | AS71: 0 | AV71: 0 | AW71: 0 | AX71: 0 | BD71: 0
B72: 46 | C72: 2064 | O72: 1 | AS72: 0 | AV72: 0 | AW72: 0 | AX72: 0 | BD72: 0
B73: 47 | C73: 2065 | O73: 1 | AS73: 0 | AV73: 0 | AW73: 0 | AX73: 0 | BD73: 0
B74: 48 | C74: 2066 | O74: 1 | AS74: 0 | AV74: 0 | AW74: 0 | AX74: 0 | BD74: 0
B75: 49 | C75: 2067 | O75: 1 | AS75: 0 | AV75: 0 | AW75: 0 | AX75: 0 | BD75: 0
B76: 50 | C76: 2068 | O76: 1 | AS76: 0 | AV76: 0 | AW76: 0 | AX76: 0 | BD76: 0
AM78: Assumptions & Notes:
AV88: Date Revised
AV89: Date Printed | AW89: 2014-03-07T15:35:56 | AX89: 41705.64995
G119: Scratch Pad area for Annual Fuel costs
G120: This area is used to enter Fuel costs associated with the project. NOTE: Fuel Prices are to be entered in Column D in Main Table
G121: Market Analysis section of System Planning prepares various fuel price forecasts for numerous delivery points.
G122: Please reference the appropriate forecast and enter the values in Column D in Main Table.
G123: Columns 3 below picks up the fuel prices from the main table. Columns 4,5,6,7 & 8 can be used to do some calculations if preferred.
G124: Necessary calculations can be performed to determine each current year dollar value of the annual fuel costs.
G125: The respective annual costs are to be entered in column 9.
G126: NOTE: Annual Fuel costs (if applicable) may start in the in-service year .
B129: 1 | C129: 2 | D129: 3 | E129: 4 | F129: 5 | G129: 6 | H129: 7 | I129: 8 | J129: 9 | K129: 10
D131: Annual | E131: Working Area Below (if required) | J131: Annual
B132: Year | D132: Fuel price | J132: Fuel costs | K132: Comments / Explanations
D133: =AP24 -> (if applicable) | J133: (Current $$)
B135: 0 | C135: =$AU$7 -> 2018 | D135: =AP26 -> 0 | J135: =E135 -> 0
B136: =B135+1 -> 1 | C136: =C135+1 -> 2019 | D136: 0 | J136: =E136 -> 0
B137: 2 | C137: 2020 | D137: 0 | J137: 0
B138: 3 | C138: 2021 | D138: 0 | J138: 0
B139: 4 | C139: 2022 | D139: 0 | J139: 0
B140: 5 | C140: 2023 | D140: 0 | J140: 0
B141: 6 | C141: 2024 | D141: 0 | J141: 0
B142: 7 | C142: 2025 | D142: 0 | J142: 0
B143: 8 | C143: 2026 | D143: 0 | J143: 0
B144: 9 | C144: 2027 | D144: 0 | J144: 0
B145: 10 | C145: 2028 | D145: 0 | J145: 0
B146: 11 | C146: 2029 | D146: 0 | J146: 0
B147: 12 | C147: 2030 | D147: 0 | J147: 0
B148: 13 | C148: 2031 | D148: 0 | J148: 0
B149: 14 | C149: 2032 | D149: 0 | J149: 0
B150: 15 | C150: 2033 | D150: 0 | J150: 0
B151: 16 | C151: 2034 | D151: 0 | J151: 0
B152: 17 | C152: 2035 | D152: 0 | J152: 0
B153: 18 | C153: 2036 | D153: 0 | J153: 0
B154: 19 | C154: 2037 | D154: 0 | J154: 0
B155: 20 | C155: 2038 | D155: 0 | J155: 0
B156: 21 | C156: 2039 | D156: 0 | J156: 0
B157: 22 | C157: 2040 | D157: 0 | J157: 0
B158: 23 | C158: 2041 | D158: 0 | J158: 0
B159: 24 | C159: 2042 | D159: 0 | J159: 0
B160: 25 | C160: 2043 | D160: 0 | J160: 0
B161: 26 | C161: 2044 | D161: 0 | J161: 0
B162: 27 | C162: 2045 | D162: 0 | J162: 0
B163: 28 | C163: 2046 | D163: 0 | J163: 0
B164: 29 | C164: 2047 | D164: 0 | J164: 0
B165: 30 | C165: 2048 | D165: 0 | J165: 0
B166: 31 | C166: 2049 | D166: 0
B167: 32 | C167: 2050 | D167: 0
B168: 33 | C168: 2051 | D168: 0
B169: 34 | C169: 2052 | D169: 0
B170: 35 | C170: 2053 | D170: 0
B171: 36 | C171: 2054 | D171: 0
B172: 37 | C172: 2055 | D172: 0
B173: 38 | C173: 2056 | D173: 0
B174: 39 | C174: 2057 | D174: 0
B175: 40 | C175: 2058 | D175: 0
B176: 41 | C176: 2059 | D176: =AP67 -> 0
B177: 42 | C177: 2060 | D177: 0
B178: 43 | C178: 2061 | D178: 0
B179: 44 | C179: 2062 | D179: 0
B180: 45 | C180: 2063 | D180: 0
B181: 46 | C181: 2064 | D181: 0
B182: 47 | C182: 2065 | D182: 0
B183: 48 | C183: 2066 | D183: 0
B184: 49 | C184: 2067 | D184: 0
B185: 50 | C185: 2068 | D185: 0
G218: Scratch Pad area for Other costs
G219: This area is used to enter Other costs associated with the project.
G220: Use Column 3 below if GDP Price Deflator indices are required.
G221: Use Column 4 below if Combustion Turbine indices are required.
G222: Use Column 5 below if Combined Cycle Combustion Turbine indices are required.
G223: Use Column 6 below if Hydraulic indices are required.
G224: Use Column 7 below if Transmission indices are required.
G225: Use Column 8 below if Transformer indices are required.
G226: Use Column 9 below if Distribution indices are required.
G227: Use Column 10 below if No Escalation is required.
G228: Benefits must be entered as constant year dollars, that is, the values in this year's dollars.
G229: The entered values will be automatically escalated to current year dollar values in Column 11,
G230: that is, the costs in their respective years as shown in column 2.
B232: 1 | C232: 2 | D232: 3 | E232: 4 | F232: 5 | G232: 6 | H232: 7 | I232: 8 | J232: 9 | K232: 10 | L232: 11 | M232: 12
D234: For | E234: For | F234: For | G234: For | H234: For | I234: For | J234: For | K234: With | L234: Other
B235: Year | D235: GDP | E235: Combustion Turbine | F235: CCCT | G235: Hydraulic | H235: Transmission | I235: Transformer | J235: Distribution | K235: No | L235: Costs | M235: Comments / Explanations | R235: Extra work Area if needed
D236: Escalation | E236: Escalation | F236: Escalation | G236: Escalation | H236: Escalation | I236: Escalation | J236: Escalation | K236: Escalation | L236: (Current $$)
B238: 0 | C238: =$AU$7 -> 2018 | L238: =D238*(VLOOKUP(C238,Index,14,FALSE))+E238*(VLOOKUP(C238,Index,16,FALSE))+F238*(VLOOKUP(C238,Index,18,FALSE))+G238*(VLOOKUP(C238,Index,20,FALSE))+ H238*(VLOOKUP(C238,Index,22,FALSE)) + I238*(VLOOKUP(C238,Index,24,FALSE)) + J238*(VLOOKUP(C238,Index,26,FALSE)) + K238 -> 0
B239: =B238+1 -> 1 | C239: =C238+1 -> 2019 | L239: 0 | M239: T5 Transformer cost is included in project cost
B240: 2 | C240: 2020 | L240: 0
B241: 3 | C241: 2021 | L241: 0
B242: 4 | C242: 2022 | L242: 0
B243: 5 | C243: 2023 | L243: 0
B244: 6 | C244: 2024 | L244: 0
B245: 7 | C245: 2025 | L245: 0
B246: 8 | C246: 2026 | L246: 0
B247: 9 | C247: 2027 | L247: 0
B248: 10 | C248: 2028 | L248: 0
B249: 11 | C249: 2029 | L249: 0
B250: 12 | C250: 2030 | L250: 0
B251: 13 | C251: 2031 | L251: 0
B252: 14 | C252: 2032 | L252: 0
B253: 15 | C253: 2033 | L253: 0
B254: 16 | C254: 2034 | L254: 0
B255: 17 | C255: 2035 | L255: 0
B256: 18 | C256: 2036 | L256: 0
B257: 19 | C257: 2037 | L257: 0
B258: 20 | C258: 2038 | L258: 0
B259: 21 | C259: 2039 | L259: 0
B260: 22 | C260: 2040 | L260: 0
B261: 23 | C261: 2041 | L261: 0
B262: 24 | C262: 2042 | L262: 0
B263: 25 | C263: 2043 | L263: 0
B264: 26 | C264: 2044 | L264: 0
B265: 27 | C265: 2045 | L265: 0
B266: 28 | C266: 2046 | L266: 0
B267: 29 | C267: 2047 | L267: 0
B268: 30 | C268: 2048 | L268: 0
B269: 31 | C269: 2049 | L269: 0
B270: 32 | C270: 2050 | L270: 0
B271: 33 | C271: 2051 | L271: 0
B272: 34 | C272: 2052 | L272: 0
B273: 35 | C273: 2053 | L273: 0
B274: 36 | C274: 2054 | L274: 0
B275: 37 | C275: 2055 | L275: 0
B276: 38 | C276: 2056 | L276: 0
B277: 39 | C277: 2057 | L277: 0
B278: 40 | C278: 2058 | L278: 0
B279: 41 | C279: 2059 | L279: =D279*(VLOOKUP(C279,Index,14,FALSE))+E279*(VLOOKUP(C279,Index,16,FALSE))+F279*(VLOOKUP(C279,Index,18,FALSE))+G279*(VLOOKUP(C279,Index,20,FALSE))+ H279*(VLOOKUP(C279,Index,22,FALSE)) + I279*(VLOOKUP(C279,Index,24,FALSE)) + J279*(VLOOKUP(C279,Index,26,FALSE)) + K279 -> 0
B280: 42 | C280: 2060 | L280: 0
B281: 43 | C281: 2061 | L281: 0
B282: 44 | C282: 2062 | L282: 0
B283: 45 | C283: 2063 | L283: 0
... 141 more rows

Sheet Alt. 4
AM2: PROJECT COST / BENEFIT ANALYSIS TEMPLATE
AM3: ='Home Page'!G10 -> Expansion Study - Lab East Interconnected System
AM4: [Enter Alternative Title]
AP5: Note: Costs are shown as positive values; Benefits as negative values
AT7: Current Year | AU7: ='Home Page'!G6 -> 2018
AT8: Present Worth Year | AU8: ='Home Page'!G18 -> 2018
H9: Scratch Pad area for Annual O&M costs | AT9: Number of Years in Study | AU9: ='Home Page'!G14 -> 25
AT10: Discount Rate | AU10: ='Home Page'!G16 -> 0.059
H11: This area is used to enter O&M costs associated with the project. | AT11: Total In-service Project Cost
H12: Columns 3,4,5,6,7 & 8 can be used to do some calculations if preferred. | AT12: In-service Year | AU12: ='Home Page'!G12 -> 2020
H13: The determined O&M costs for each year must be entered into column 9 as constant year dollar values, | AT13: Other Project Cost after In-service (if applicable)
H14: that is, the values in this year's dollars. | AT14: Other Project Year (if applicable)
H15: The entered values will be automatically escalated to current year dollar values in column 10 | AT15: Replacement Cost (if applicable) | AU15: 0
H16: that is, the costs in their respective years as shown in column 2. | AT16: Replacement Year (if applicable)
H17: NOTE: Annual O&M costs are assumed to start in the in-service year. | AT17: Project cost in Ending (E) or Beginning (B) Year $$ | AU17: B
